Workbook

Sheet Description
B1: 1992 - 2014 NFL Games, Scores, Spreads, etc. Version 3.4 9/04/2014
B3: 22+ years worth of NFL regular season scores, pointspreads, and over/under totals.
B5: Each year has its own tab.
B7: All of the data (the first seven columns) on each tab is retrieved auomatically directly from the Sunshine Forecast website, located at: http://www.repole.com/sun4cast
B9: Columns H through Q are formulas using the data from the first seven columns.
B11: Conditional Formatting was used to automatically emphasize results, lines, totals, etc.
B13: Use the download button below, to automatically update and retrieve the weekly 2014 results.
B15: Questions are welcome: edwardcollins@yahoo.com

Sheet 2014
A1: Date | B1: Visiting Team | C1: Visitor Score | D1: Home Team | E1: Home Score | F1: Visitor Line | G1: Total Line | H1: Who Won Straight Up? Home or Visitor? | I1: Who Won Straight Up? Fav or Dog? | J1: Who Covered the spread? Home or Visitor? | K1: Who Covered the spread? Fav or Dog? | L1: Home Favorite Covered? | M1: Away Dog Covered? | N1: Home Dog Covered? | O1: Away Favorite Covered? | P1: Total Over or Under | Q1: Score Diff | R1: Loser's Score | S1: Winner's Score
H2: =IF(C2<>"",IF($C2=$E2,"Tie Game",IF($C2>$E2,"Visiting Team","Home Team")),"") ->  | I2: =IF(C2<>"",IF(AND(F2>0,E2>C2),"Favorite",IF(AND(F2<0,E2>C2),"Underdog",IF(AND(F2<0,E2<C2),"Favorite",IF(AND(F2>0,E2<C2),"Underdog")))),"") ->  | J2: =IF(C2<>"",IF($C2+$F2=$E2,"Push",IF($C2+$F2>$E2,"Visiting Team","Home Team")),"") ->  | K2: =IF(C2<>"",IF(L2="Yes", "Favorite", IF(O2="Yes", "Favorite", IF(M2 = "Yes", "Underdog", IF(N2 = "Yes", "Underdog",IF(L2 = "Push", "Push"))))),"") ->  | L2: =IF(C2<>"",IF(AND($F2>0,$C2+$F2=$E2),"Push",IF(AND($F2<0,$E2-$F2=$C2),"Push",IF($F2<0,"-",IF(AND($F2>0,$C2+$F2<$E2),"Yes","No")))),"") ->  | M2: =IF(C2<>"",IF(AND($F2>0,$C2+$F2=$E2),"Push",IF(AND($F2<0,$E2-$F2=$C2),"Push",IF($F2<0,"-",IF(AND($F2>0,$C2+$F2>$E2),"Yes","No")))),"") ->  | N2: =IF(C2<>"",IF(AND($F2>0,$C2+$F2=$E2),"Push",IF(AND($F2<0,$E2-$F2=$C2),"Push",IF($F2>0,"-",IF(AND($F2<0,$C2+$F2<$E2),"Yes","No")))),"") ->  | O2: =IF(C2<>"",IF(AND($F2>0,$C2+$F2=$E2),"Push",IF(AND($F2<0,$E2-$F2=$C2),"Push",IF($F2>0,"-",IF(AND($F2<0,$C2+$F2>$E2),"Yes","No")))),"") ->  | P2: =IF(C2<>"",IF($C2+$E2=$G2,"Push",IF($C2+$E2>$G2,"Over","Under")),"") ->  | Q2: =IF(C2<>"",ABS(C2-E2),"") ->  | R2: =IF(C2<>"",IF(C2<E2, C2+0, E2+0),"") ->  | S2: =IF(C2<>"",IF(E2>C2, E2+0, C2+0),"") -> 
H3: =IF(C3<>"",IF($C3=$E3,"Tie Game",IF($C3>$E3,"Visiting Team","Home Team")),"") ->  | I3: =IF(C3<>"",IF(AND(F3>0,E3>C3),"Favorite",IF(AND(F3<0,E3>C3),"Underdog",IF(AND(F3<0,E3<C3),"Favorite",IF(AND(F3>0,E3<C3),"Underdog")))),"") ->  | J3: =IF(C3<>"",IF($C3+$F3=$E3,"Push",IF($C3+$F3>$E3,"Visiting Team","Home Team")),"") ->  | K3: =IF(C3<>"",IF(L3="Yes", "Favorite", IF(O3="Yes", "Favorite", IF(M3 = "Yes", "Underdog", IF(N3 = "Yes", "Underdog",IF(L3 = "Push", "Push"))))),"") ->  | L3: =IF(C3<>"",IF(AND($F3>0,$C3+$F3=$E3),"Push",IF(AND($F3<0,$E3-$F3=$C3),"Push",IF($F3<0,"-",IF(AND($F3>0,$C3+$F3<$E3),"Yes","No")))),"") ->  | M3: =IF(C3<>"",IF(AND($F3>0,$C3+$F3=$E3),"Push",IF(AND($F3<0,$E3-$F3=$C3),"Push",IF($F3<0,"-",IF(AND($F3>0,$C3+$F3>$E3),"Yes","No")))),"") ->  | N3: =IF(C3<>"",IF(AND($F3>0,$C3+$F3=$E3),"Push",IF(AND($F3<0,$E3-$F3=$C3),"Push",IF($F3>0,"-",IF(AND($F3<0,$C3+$F3<$E3),"Yes","No")))),"") ->  | O3: =IF(C3<>"",IF(AND($F3>0,$C3+$F3=$E3),"Push",IF(AND($F3<0,$E3-$F3=$C3),"Push",IF($F3>0,"-",IF(AND($F3<0,$C3+$F3>$E3),"Yes","No")))),"") ->  | P3: =IF(C3<>"",IF($C3+$E3=$G3,"Push",IF($C3+$E3>$G3,"Over","Under")),"") ->  | Q3: =IF(C3<>"",ABS(C3-E3),"") ->  | R3: =IF(C3<>"",IF(C3<E3, C3+0, E3+0),"") ->  | S3: =IF(C3<>"",IF(E3>C3, E3+0, C3+0),"") -> 
H4: =IF(C4<>"",IF($C4=$E4,"Tie Game",IF($C4>$E4,"Visiting Team","Home Team")),"") ->  | I4: =IF(C4<>"",IF(AND(F4>0,E4>C4),"Favorite",IF(AND(F4<0,E4>C4),"Underdog",IF(AND(F4<0,E4<C4),"Favorite",IF(AND(F4>0,E4<C4),"Underdog")))),"") ->  | J4: =IF(C4<>"",IF($C4+$F4=$E4,"Push",IF($C4+$F4>$E4,"Visiting Team","Home Team")),"") ->  | K4: =IF(C4<>"",IF(L4="Yes", "Favorite", IF(O4="Yes", "Favorite", IF(M4 = "Yes", "Underdog", IF(N4 = "Yes", "Underdog",IF(L4 = "Push", "Push"))))),"") ->  | M4: =IF(C4<>"",IF(AND($F4>0,$C4+$F4=$E4),"Push",IF(AND($F4<0,$E4-$F4=$C4),"Push",IF($F4<0,"-",IF(AND($F4>0,$C4+$F4>$E4),"Yes","No")))),"") -> 
I5: =IF(C5<>"",IF(AND(F5>0,E5>C5),"Favorite",IF(AND(F5<0,E5>C5),"Underdog",IF(AND(F5<0,E5<C5),"Favorite",IF(AND(F5>0,E5<C5),"Underdog")))),"") -> 
L67: =IF(C67<>"",IF(AND($F67>0,$C67+$F67=$E67),"Push",IF(AND($F67<0,$E67-$F67=$C67),"Push",IF($F67<0,"-",IF(AND($F67>0,$C67+$F67<$E67),"Yes","No")))),"") ->  | N67: =IF(C67<>"",IF(AND($F67>0,$C67+$F67=$E67),"Push",IF(AND($F67<0,$E67-$F67=$C67),"Push",IF($F67>0,"-",IF(AND($F67<0,$C67+$F67<$E67),"Yes","No")))),"") ->  | O67: =IF(C67<>"",IF(AND($F67>0,$C67+$F67=$E67),"Push",IF(AND($F67<0,$E67-$F67=$C67),"Push",IF($F67>0,"-",IF(AND($F67<0,$C67+$F67>$E67),"Yes","No")))),"") ->  | P67: =IF(C67<>"",IF($C67+$E67=$G67,"Push",IF($C67+$E67>$G67,"Over","Under")),"") ->  | Q67: =IF(C67<>"",ABS(C67-E67),"") ->  | R67: =IF(C67<>"",IF(C67<E67, C67+0, E67+0),"") ->  | S67: =IF(C67<>"",IF(E67>C67, E67+0, C67+0),"") -> 
H68: =IF(C68<>"",IF($C68=$E68,"Tie Game",IF($C68>$E68,"Visiting Team","Home Team")),"") ->  | J68: =IF(C68<>"",IF($C68+$F68=$E68,"Push",IF($C68+$F68>$E68,"Visiting Team","Home Team")),"") ->  | K68: =IF(C68<>"",IF(L68="Yes", "Favorite", IF(O68="Yes", "Favorite", IF(M68 = "Yes", "Underdog", IF(N68 = "Yes", "Underdog",IF(L68 = "Push", "Push"))))),"") ->  | M68: =IF(C68<>"",IF(AND($F68>0,$C68+$F68=$E68),"Push",IF(AND($F68<0,$E68-$F68=$C68),"Push",IF($F68<0,"-",IF(AND($F68>0,$C68+$F68>$E68),"Yes","No")))),"") -> 
I69: =IF(C69<>"",IF(AND(F69>0,E69>C69),"Favorite",IF(AND(F69<0,E69>C69),"Underdog",IF(AND(F69<0,E69<C69),"Favorite",IF(AND(F69>0,E69<C69),"Underdog")))),"") -> 
L131: =IF(C131<>"",IF(AND($F131>0,$C131+$F131=$E131),"Push",IF(AND($F131<0,$E131-$F131=$C131),"Push",IF($F131<0,"-",IF(AND($F131>0,$C131+$F131<$E131),"Yes","No")))),"") ->  | N131: =IF(C131<>"",IF(AND($F131>0,$C131+$F131=$E131),"Push",IF(AND($F131<0,$E131-$F131=$C131),"Push",IF($F131>0,"-",IF(AND($F131<0,$C131+$F131<$E131),"Yes","No")))),"") ->  | O131: =IF(C131<>"",IF(AND($F131>0,$C131+$F131=$E131),"Push",IF(AND($F131<0,$E131-$F131=$C131),"Push",IF($F131>0,"-",IF(AND($F131<0,$C131+$F131>$E131),"Yes","No")))),"") ->  | P131: =IF(C131<>"",IF($C131+$E131=$G131,"Push",IF($C131+$E131>$G131,"Over","Under")),"") ->  | Q131: =IF(C131<>"",ABS(C131-E131),"") ->  | R131: =IF(C131<>"",IF(C131<E131, C131+0, E131+0),"") ->  | S131: =IF(C131<>"",IF(E131>C131, E131+0, C131+0),"") -> 
H132: =IF(C132<>"",IF($C132=$E132,"Tie Game",IF($C132>$E132,"Visiting Team","Home Team")),"") ->  | J132: =IF(C132<>"",IF($C132+$F132=$E132,"Push",IF($C132+$F132>$E132,"Visiting Team","Home Team")),"") ->  | K132: =IF(C132<>"",IF(L132="Yes", "Favorite", IF(O132="Yes", "Favorite", IF(M132 = "Yes", "Underdog", IF(N132 = "Yes", "Underdog",IF(L132 = "Push", "Push"))))),"") ->  | M132: =IF(C132<>"",IF(AND($F132>0,$C132+$F132=$E132),"Push",IF(AND($F132<0,$E132-$F132=$C132),"Push",IF($F132<0,"-",IF(AND($F132>0,$C132+$F132>$E132),"Yes","No")))),"") -> 
I133: =IF(C133<>"",IF(AND(F133>0,E133>C133),"Favorite",IF(AND(F133<0,E133>C133),"Underdog",IF(AND(F133<0,E133<C133),"Favorite",IF(AND(F133>0,E133<C133),"Underdog")))),"") -> 
L195: =IF(C195<>"",IF(AND($F195>0,$C195+$F195=$E195),"Push",IF(AND($F195<0,$E195-$F195=$C195),"Push",IF($F195<0,"-",IF(AND($F195>0,$C195+$F195<$E195),"Yes","No")))),"") ->  | N195: =IF(C195<>"",IF(AND($F195>0,$C195+$F195=$E195),"Push",IF(AND($F195<0,$E195-$F195=$C195),"Push",IF($F195>0,"-",IF(AND($F195<0,$C195+$F195<$E195),"Yes","No")))),"") ->  | O195: =IF(C195<>"",IF(AND($F195>0,$C195+$F195=$E195),"Push",IF(AND($F195<0,$E195-$F195=$C195),"Push",IF($F195>0,"-",IF(AND($F195<0,$C195+$F195>$E195),"Yes","No")))),"") ->  | P195: =IF(C195<>"",IF($C195+$E195=$G195,"Push",IF($C195+$E195>$G195,"Over","Under")),"") ->  | Q195: =IF(C195<>"",ABS(C195-E195),"") ->  | R195: =IF(C195<>"",IF(C195<E195, C195+0, E195+0),"") ->  | S195: =IF(C195<>"",IF(E195>C195, E195+0, C195+0),"") -> 
H196: =IF(C196<>"",IF($C196=$E196,"Tie Game",IF($C196>$E196,"Visiting Team","Home Team")),"") ->  | J196: =IF(C196<>"",IF($C196+$F196=$E196,"Push",IF($C196+$F196>$E196,"Visiting Team","Home Team")),"") ->  | K196: =IF(C196<>"",IF(L196="Yes", "Favorite", IF(O196="Yes", "Favorite", IF(M196 = "Yes", "Underdog", IF(N196 = "Yes", "Underdog",IF(L196 = "Push", "Push"))))),"") ->  | M196: =IF(C196<>"",IF(AND($F196>0,$C196+$F196=$E196),"Push",IF(AND($F196<0,$E196-$F196=$C196),"Push",IF($F196<0,"-",IF(AND($F196>0,$C196+$F196>$E196),"Yes","No")))),"") -> 
I197: =IF(C197<>"",IF(AND(F197>0,E197>C197),"Favorite",IF(AND(F197<0,E197>C197),"Underdog",IF(AND(F197<0,E197<C197),"Favorite",IF(AND(F197>0,E197<C197),"Underdog")))),"") -> 
R259: =SUM(R2:R258) -> 0 | S259: =SUM(S2:S258) -> 0
Q260: Average Final Score: | R260: =R259/COUNT(R2:R257) ->  | S260: =S259/COUNT(S2:S257) -> 
S261: =(R259+S259)/COUNT(S2:S257) -> 
H263: Who Won Straight Up? Home or Visitor? | I263: Who Won Straight Up? Fav or Dog? | J263: Who Covered the spread? Home or Visitor? | K263: Who Covered the spread? Fav or Dog? | L263: Home Favorite Covered? | M263: Away Dog Covered? | N263: Home Dog Covered? | O263: Away Favorite Covered? | P263: Total Over or Under
H264: Home Team | I264: Favorite | J264: Home Team | K264: Favorite | L264: Yes | M264: Yes | N264: Yes | O264: Yes | P264: Over
H265: =COUNTIF(H$2:H$261,"Home Team") -> 0 | I265: =COUNTIF(I$2:I$261,"Favorite") -> 0 | J265: =COUNTIF(J$2:J$261,"Home Team") -> 0 | K265: =COUNTIF(K$2:K$261,"Favorite") -> 0 | L265: =COUNTIF(L$2:L$261,"Yes") -> 0 | M265: =COUNTIF(M$2:M$261,"Yes") -> 0 | N265: =COUNTIF(N$2:N$261,"Yes") -> 0 | O265: =COUNTIF(O$2:O$261,"Yes") -> 0 | P265: =COUNTIF(P$2:P$261,"Over") -> 0
H266: =H265/(H265+H269+H273) -> 
H268: Visiting Team | I268: Underdog | J268: Visiting Team | K268: Underdog | L268: No | M268: No | N268: No | O268: No | P268: Under
H269: =COUNTIF(H$2:H$261,"Visiting Team") -> 0 | I269: =COUNTIF(I$2:I$261,"Underdog") -> 0 | J269: =COUNTIF(J$2:J$261,"Visiting Team") -> 0 | K269: =COUNTIF(K$2:K$261,"Underdog") -> 0 | L269: =COUNTIF(L$2:L$261,"No") -> 0 | M269: =COUNTIF(M$2:M$261,"No") -> 0 | N269: =COUNTIF(N$2:N$261,"No") -> 0 | O269: =COUNTIF(O$2:O$261,"No") -> 0 | P269: =COUNTIF(P$2:P$261,"Under") -> 0
H270: =H269/(H265+H269+H273) ->  | I270: =I269/(I265+I269+I273) ->  | J270: =J269/(J265+J269+J273) -> 
H272: Push | I272: Push | J272: Push | K272: Push | L272: Push | M272: Push | N272: Push | O272: Push | P272: Push
H273: =COUNTIF(H$2:H$261,"Push") -> 0 | I273: 0 | J273: 0 | K273: 0 | L273: 0 | M273: 0 | N273: 0 | O273: 0 | P273: =COUNTIF(P$2:P$261,"Push") -> 0
H274: =H273/(H265+H269+H273) ->  | I274: =I273/(I265+I269+I273) ->  | J274: =J273/(J265+J269+J273) -> 
O278: Percentage of games with a difference of 3 points: | P278: =Q278 / COUNT($Q$2:$Q$257) ->  | Q278: =COUNTIF(Q$2:Q$117,3) -> 0
O279: Percentage of games with a difference of 7 points: | P279: =Q279 / COUNT($Q$2:$Q$257) ->  | Q279: =COUNTIF(Q$2:Q$117,7) -> 0
O280: Percentage of games with a difference of 4 points: | Q280: =COUNTIF(Q$2:Q$117,4) -> 0
O281: Percentage of games with a difference of 9 points: | Q281: =COUNTIF(Q$2:Q$117,9) -> 0
O282: Percentage of games with a difference of 10 points: | Q282: =COUNTIF(Q$2:Q$117,10) -> 0
O283: Percentage of games with a difference of 6 points: | Q283: =COUNTIF(Q$2:Q$117,6) -> 0
O284: Percentage of games with a difference of 14 points: | Q284: =COUNTIF(Q$2:Q$117,14) -> 0
O285: Percentage of games with a difference of 1 points: | Q285: =COUNTIF(Q$2:Q$117,1) -> 0
O286: Percentage of games with a difference of 13 points: | Q286: =COUNTIF(Q$2:Q$117,13) -> 0
O287: Percentage of games with a difference of 11 points: | Q287: =COUNTIF(Q$2:Q$117,11) -> 0

Sheet 2013
A1: Date | B1: Visiting Team | C1: Visitor Score | D1: Home Team | E1: Home Score | F1: Visitor Line | G1: Total Line | H1: Who Won Straight Up? Home or Visitor? | I1: Who Won Straight Up? Fav or Dog? | J1: Who Covered the spread? Home or Visitor? | K1: Who Covered the spread? Fav or Dog? | L1: Home Favorite Covered? | M1: Away Dog Covered? | N1: Home Dog Covered? | O1: Away Favorite Covered? | P1: Total Over or Under | Q1: Score Diff | R1: Loser's Score | S1: Winner's Score
A2: 2013-09-05 | B2: Baltimore Ravens | C2: 27 | D2: Denver Broncos | E2: 49 | F2: 7.5 | G2: 49.5 | H2: =IF(C2<>"",IF($C2=$E2,"Tie Game",IF($C2>$E2,"Visiting Team","Home Team")),"") -> Home Team | I2: =IF(C2<>"",IF(AND(F2>0,E2>C2),"Favorite",IF(AND(F2<0,E2>C2),"Underdog",IF(AND(F2<0,E2<C2),"Favorite",IF(AND(F2>0,E2<C2),"Underdog")))),"") -> Favorite | J2: =IF(C2<>"",IF($C2+$F2=$E2,"Push",IF($C2+$F2>$E2,"Visiting Team","Home Team")),"") -> Home Team | K2: =IF(C2<>"",IF(L2="Yes", "Favorite", IF(O2="Yes", "Favorite", IF(M2 = "Yes", "Underdog", IF(N2 = "Yes", "Underdog",IF(L2 = "Push", "Push"))))),"") -> Favorite | L2: =IF(C2<>"",IF(AND($F2>0,$C2+$F2=$E2),"Push",IF(AND($F2<0,$E2-$F2=$C2),"Push",IF($F2<0,"-",IF(AND($F2>0,$C2+$F2<$E2),"Yes","No")))),"") -> Yes | M2: =IF(C2<>"",IF(AND($F2>0,$C2+$F2=$E2),"Push",IF(AND($F2<0,$E2-$F2=$C2),"Push",IF($F2<0,"-",IF(AND($F2>0,$C2+$F2>$E2),"Yes","No")))),"") -> No | N2: =IF(C2<>"",IF(AND($F2>0,$C2+$F2=$E2),"Push",IF(AND($F2<0,$E2-$F2=$C2),"Push",IF($F2>0,"-",IF(AND($F2<0,$C2+$F2<$E2),"Yes","No")))),"") -> - | O2: =IF(C2<>"",IF(AND($F2>0,$C2+$F2=$E2),"Push",IF(AND($F2<0,$E2-$F2=$C2),"Push",IF($F2>0,"-",IF(AND($F2<0,$C2+$F2>$E2),"Yes","No")))),"") -> - | P2: =IF(C2<>"",IF($C2+$E2=$G2,"Push",IF($C2+$E2>$G2,"Over","Under")),"") -> Over | Q2: =IF(C2<>"",ABS(C2-E2),"") -> 22 | R2: =IF(C2<>"",IF(C2<E2, C2+0, E2+0),"") -> 27 | S2: =IF(C2<>"",IF(E2>C2, E2+0, C2+0),"") -> 49
A3: 2013-09-08 | B3: New England Patriots | C3: 23 | D3: Buffalo Bills | E3: 21 | F3: -10.5 | G3: 51.5 | H3: =IF(C3<>"",IF($C3=$E3,"Tie Game",IF($C3>$E3,"Visiting Team","Home Team")),"") -> Visiting Team | I3: =IF(C3<>"",IF(AND(F3>0,E3>C3),"Favorite",IF(AND(F3<0,E3>C3),"Underdog",IF(AND(F3<0,E3<C3),"Favorite",IF(AND(F3>0,E3<C3),"Underdog")))),"") -> Favorite | J3: =IF(C3<>"",IF($C3+$F3=$E3,"Push",IF($C3+$F3>$E3,"Visiting Team","Home Team")),"") -> Home Team | K3: =IF(C3<>"",IF(L3="Yes", "Favorite", IF(O3="Yes", "Favorite", IF(M3 = "Yes", "Underdog", IF(N3 = "Yes", "Underdog",IF(L3 = "Push", "Push"))))),"") -> Underdog | L3: =IF(C3<>"",IF(AND($F3>0,$C3+$F3=$E3),"Push",IF(AND($F3<0,$E3-$F3=$C3),"Push",IF($F3<0,"-",IF(AND($F3>0,$C3+$F3<$E3),"Yes","No")))),"") -> - | M3: =IF(C3<>"",IF(AND($F3>0,$C3+$F3=$E3),"Push",IF(AND($F3<0,$E3-$F3=$C3),"Push",IF($F3<0,"-",IF(AND($F3>0,$C3+$F3>$E3),"Yes","No")))),"") -> - | N3: =IF(C3<>"",IF(AND($F3>0,$C3+$F3=$E3),"Push",IF(AND($F3<0,$E3-$F3=$C3),"Push",IF($F3>0,"-",IF(AND($F3<0,$C3+$F3<$E3),"Yes","No")))),"") -> Yes | O3: =IF(C3<>"",IF(AND($F3>0,$C3+$F3=$E3),"Push",IF(AND($F3<0,$E3-$F3=$C3),"Push",IF($F3>0,"-",IF(AND($F3<0,$C3+$F3>$E3),"Yes","No")))),"") -> No | P3: =IF(C3<>"",IF($C3+$E3=$G3,"Push",IF($C3+$E3>$G3,"Over","Under")),"") -> Under | Q3: =IF(C3<>"",ABS(C3-E3),"") -> 2 | R3: =IF(C3<>"",IF(C3<E3, C3+0, E3+0),"") -> 21 | S3: =IF(C3<>"",IF(E3>C3, E3+0, C3+0),"") -> 23
A4: 2013-09-08 | B4: Tennessee Titans | C4: 16 | D4: Pittsburgh Steelers | E4: 9 | F4: 6 | G4: 42 | H4: =IF(C4<>"",IF($C4=$E4,"Tie Game",IF($C4>$E4,"Visiting Team","Home Team")),"") -> Visiting Team | I4: =IF(C4<>"",IF(AND(F4>0,E4>C4),"Favorite",IF(AND(F4<0,E4>C4),"Underdog",IF(AND(F4<0,E4<C4),"Favorite",IF(AND(F4>0,E4<C4),"Underdog")))),"") -> Underdog | J4: =IF(C4<>"",IF($C4+$F4=$E4,"Push",IF($C4+$F4>$E4,"Visiting Team","Home Team")),"") -> Visiting Team | K4: =IF(C4<>"",IF(L4="Yes", "Favorite", IF(O4="Yes", "Favorite", IF(M4 = "Yes", "Underdog", IF(N4 = "Yes", "Underdog",IF(L4 = "Push", "Push"))))),"") -> Underdog | L4: No | M4: =IF(C4<>"",IF(AND($F4>0,$C4+$F4=$E4),"Push",IF(AND($F4<0,$E4-$F4=$C4),"Push",IF($F4<0,"-",IF(AND($F4>0,$C4+$F4>$E4),"Yes","No")))),"") -> Yes | N4: - | O4: - | P4: Under | Q4: 7 | R4: 9 | S4: 16
A5: 2013-09-08 | B5: Atlanta Falcons | C5: 17 | D5: New Orleans Saints | E5: 23 | F5: 3.5 | G5: 56 | H5: Home Team | I5: =IF(C5<>"",IF(AND(F5>0,E5>C5),"Favorite",IF(AND(F5<0,E5>C5),"Underdog",IF(AND(F5<0,E5<C5),"Favorite",IF(AND(F5>0,E5<C5),"Underdog")))),"") -> Favorite | J5: Home Team | K5: Favorite | L5: Yes | M5: No | N5: - | O5: - | P5: Under | Q5: 6 | R5: 17 | S5: 23
A6: 2013-09-08 | B6: Tampa Bay Buccaneers | C6: 17 | D6: New York Jets | E6: 18 | F6: -6 | G6: 39 | H6: Home Team | I6: Underdog | J6: Home Team | K6: Underdog | L6: - | M6: - | N6: Yes | O6: No | P6: Under | Q6: 1 | R6: 17 | S6: 18
A7: 2013-09-08 | B7: Kansas City Chiefs | C7: 28 | D7: Jacksonville Jaguars | E7: 2 | F7: -4.5 | G7: 43 | H7: Visiting Team | I7: Favorite | J7: Visiting Team | K7: Favorite | L7: - | M7: - | N7: No | O7: Yes | P7: Under | Q7: 26 | R7: 2 | S7: 28
A8: 2013-09-08 | B8: Cincinnati Bengals | C8: 21 | D8: Chicago Bears | E8: 24 | F8: 3 | G8: 42 | H8: Home Team | I8: Favorite | J8: Push | K8: Push | L8: Push | M8: Push | N8: Push | O8: Push | P8: Over | Q8: 3 | R8: 21 | S8: 24
A9: 2013-09-08 | B9: Miami Dolphins | C9: 23 | D9: Cleveland Browns | E9: 10 | F9: 2.5 | G9: 40.5 | H9: Visiting Team | I9: Underdog | J9: Visiting Team | K9: Underdog | L9: No | M9: Yes | N9: - | O9: - | P9: Under | Q9: 13 | R9: 10 | S9: 23
A10: 2013-09-08 | B10: Seattle Seahawks | C10: 12 | D10: Carolina Panthers | E10: 7 | F10: -3.5 | G10: 45 | H10: Visiting Team | I10: Favorite | J10: Visiting Team | K10: Favorite | L10: - | M10: - | N10: No | O10: Yes | P10: Under | Q10: 5 | R10: 7 | S10: 12
A11: 2013-09-08 | B11: Minnesota Vikings | C11: 24 | D11: Detroit Lions | E11: 34 | F11: 4.5 | G11: 47.5 | H11: Home Team | I11: Favorite | J11: Home Team | K11: Favorite | L11: Yes | M11: No | N11: - | O11: - | P11: Over | Q11: 10 | R11: 24 | S11: 34
A12: 2013-09-08 | B12: Oakland Raiders | C12: 17 | D12: Indianapolis Colts | E12: 21 | F12: 11.5 | G12: 45.5 | H12: Home Team | I12: Favorite | J12: Visiting Team | K12: Underdog | L12: No | M12: Yes | N12: - | O12: - | P12: Under | Q12: 4 | R12: 17 | S12: 21
A13: 2013-09-08 | B13: Arizona Cardinals | C13: 24 | D13: St Louis Rams | E13: 27 | F13: 3.5 | G13: 41.5 | H13: Home Team | I13: Favorite | J13: Visiting Team | K13: Underdog | L13: No | M13: Yes | N13: - | O13: - | P13: Over | Q13: 3 | R13: 24 | S13: 27
A14: 2013-09-08 | B14: Green Bay Packers | C14: 28 | D14: San Francisco 49ers | E14: 34 | F14: 5 | G14: 48.5 | H14: Home Team | I14: Favorite | J14: Home Team | K14: Favorite | L14: Yes | M14: No | N14: - | O14: - | P14: Over | Q14: 6 | R14: 28 | S14: 34
A15: 2013-09-08 | B15: New York Giants | C15: 31 | D15: Dallas Cowboys | E15: 36 | F15: 3.5 | G15: 50 | H15: Home Team | I15: Favorite | J15: Home Team | K15: Favorite | L15: Yes | M15: No | N15: - | O15: - | P15: Over | Q15: 5 | R15: 31 | S15: 36
A16: 2013-09-09 | B16: Philadelphia Eagles | C16: 33 | D16: Washington Redskins | E16: 27 | F16: 4.5 | G16: 53.5 | H16: Visiting Team | I16: Underdog | J16: Visiting Team | K16: Underdog | L16: No | M16: Yes | N16: - | O16: - | P16: Over | Q16: 6 | R16: 27 | S16: 33
A17: 2013-09-09 | B17: Houston Texans | C17: 31 | D17: San Diego Chargers | E17: 28 | F17: -6.5 | G17: 45.5 | H17: Visiting Team | I17: Favorite | J17: Home Team | K17: Underdog | L17: - | M17: - | N17: Yes | O17: No | P17: Over | Q17: 3 | R17: 28 | S17: 31
A18: 2013-09-12 | B18: New York Jets | C18: 10 | D18: New England Patriots | E18: 13 | F18: 11.5 | G18: 43.5 | H18: Home Team | I18: Favorite | J18: Visiting Team | K18: Underdog | L18: No | M18: Yes | N18: - | O18: - | P18: Under | Q18: 3 | R18: 10 | S18: 13
A19: 2013-09-15 | B19: San Diego Chargers | C19: 33 | D19: Philadelphia Eagles | E19: 30 | F19: 7.5 | G19: 54 | H19: Visiting Team | I19: Underdog | J19: Visiting Team | K19: Underdog | L19: No | M19: Yes | N19: - | O19: - | P19: Over | Q19: 3 | R19: 30 | S19: 33
A20: 2013-09-15 | B20: Cleveland Browns | C20: 6 | D20: Baltimore Ravens | E20: 14 | F20: 7 | G20: 44 | H20: Home Team | I20: Favorite | J20: Home Team | K20: Favorite | L20: Yes | M20: No | N20: - | O20: - | P20: Under | Q20: 8 | R20: 6 | S20: 14
A21: 2013-09-15 | B21: Tennessee Titans | C21: 24 | D21: Houston Texans | E21: 30 | F21: 9 | G21: 43 | H21: Home Team | I21: Favorite | J21: Visiting Team | K21: Underdog | L21: No | M21: Yes | N21: - | O21: - | P21: Over | Q21: 6 | R21: 24 | S21: 30
A22: 2013-09-15 | B22: Miami Dolphins | C22: 24 | D22: Indianapolis Colts | E22: 20 | F22: 3 | G22: 44 | H22: Visiting Team | I22: Underdog | J22: Visiting Team | K22: Underdog | L22: No | M22: Yes | N22: - | O22: - | P22: Push | Q22: 4 | R22: 20 | S22: 24
A23: 2013-09-15 | B23: Carolina Panthers | C23: 23 | D23: Buffalo Bills | E23: 24 | F23: -3.5 | G23: 43.5 | H23: Home Team | I23: Underdog | J23: Home Team | K23: Underdog | L23: - | M23: - | N23: Yes | O23: No | P23: Over | Q23: 1 | R23: 23 | S23: 24
A24: 2013-09-15 | B24: St Louis Rams | C24: 24 | D24: Atlanta Falcons | E24: 31 | F24: 5.5 | G24: 47.5 | H24: Home Team | I24: Favorite | J24: Home Team | K24: Favorite | L24: Yes | M24: No | N24: - | O24: - | P24: Over | Q24: 7 | R24: 24 | S24: 31
A25: 2013-09-15 | B25: Washington Redskins | C25: 20 | D25: Green Bay Packers | E25: 38 | F25: 8 | G25: 50 | H25: Home Team | I25: Favorite | J25: Home Team | K25: Favorite | L25: Yes | M25: No | N25: - | O25: - | P25: Over | Q25: 18 | R25: 20 | S25: 38
A26: 2013-09-15 | B26: Dallas Cowboys | C26: 16 | D26: Kansas City Chiefs | E26: 17 | F26: 3 | G26: 46 | H26: Home Team | I26: Favorite | J26: Visiting Team | K26: Underdog | L26: No | M26: Yes | N26: - | O26: - | P26: Under | Q26: 1 | R26: 16 | S26: 17
A27: 2013-09-15 | B27: Minnesota Vikings | C27: 30 | D27: Chicago Bears | E27: 31 | F27: 6.5 | G27: 42 | H27: Home Team | I27: Favorite | J27: Visiting Team | K27: Underdog | L27: No | M27: Yes | N27: - | O27: - | P27: Over | Q27: 1 | R27: 30 | S27: 31
A28: 2013-09-15 | B28: New Orleans Saints | C28: 16 | D28: Tampa Bay Buccaneers | E28: 14 | F28: -4 | G28: 48.5 | H28: Visiting Team | I28: Favorite | J28: Home Team | K28: Underdog | L28: - | M28: - | N28: Yes | O28: No | P28: Under | Q28: 2 | R28: 14 | S28: 16
A29: 2013-09-15 | B29: Detroit Lions | C29: 21 | D29: Arizona Cardinals | E29: 25 | F29: -2 | G29: 48.5 | H29: Home Team | I29: Underdog | J29: Home Team | K29: Underdog | L29: - | M29: - | N29: Yes | O29: No | P29: Under | Q29: 4 | R29: 21 | S29: 25
A30: 2013-09-15 | B30: Jacksonville Jaguars | C30: 9 | D30: Oakland Raiders | E30: 19 | F30: 5 | G30: 40 | H30: Home Team | I30: Favorite | J30: Home Team | K30: Favorite | L30: Yes | M30: No | N30: - | O30: - | P30: Under | Q30: 10 | R30: 9 | S30: 19
A31: 2013-09-15 | B31: Denver Broncos | C31: 41 | D31: New York Giants | E31: 23 | F31: -4 | G31: 55.5 | H31: Visiting Team | I31: Favorite | J31: Visiting Team | K31: Favorite | L31: - | M31: - | N31: No | O31: Yes | P31: Over | Q31: 18 | R31: 23 | S31: 41
A32: 2013-09-15 | B32: San Francisco 49ers | C32: 3 | D32: Seattle Seahawks | E32: 29 | F32: 2.5 | G32: 44.5 | H32: Home Team | I32: Favorite | J32: Home Team | K32: Favorite | L32: Yes | M32: No | N32: - | O32: - | P32: Under | Q32: 26 | R32: 3 | S32: 29
A33: 2013-09-16 | B33: Pittsburgh Steelers | C33: 10 | D33: Cincinnati Bengals | E33: 20 | F33: 6.5 | G33: 41 | H33: Home Team | I33: Favorite | J33: Home Team | K33: Favorite | L33: Yes | M33: No | N33: - | O33: - | P33: Under | Q33: 10 | R33: 10 | S33: 20
A34: 2013-09-19 | B34: Kansas City Chiefs | C34: 26 | D34: Philadelphia Eagles | E34: 16 | F34: 3.5 | G34: 51 | H34: Visiting Team | I34: Underdog | J34: Visiting Team | K34: Underdog | L34: No | M34: Yes | N34: - | O34: - | P34: Under | Q34: 10 | R34: 16 | S34: 26
A35: 2013-09-22 | B35: San Diego Chargers | C35: 17 | D35: Tennessee Titans | E35: 20 | F35: 3 | G35: 43.5 | H35: Home Team | I35: Favorite | J35: Push | K35: Push | L35: Push | M35: Push | N35: Push | O35: Push | P35: Under | Q35: 3 | R35: 17 | S35: 20
A36: 2013-09-22 | B36: Cleveland Browns | C36: 31 | D36: Minnesota Vikings | E36: 27 | F36: 7 | G36: 40.5 | H36: Visiting Team | I36: Underdog | J36: Visiting Team | K36: Underdog | L36: No | M36: Yes | N36: - | O36: - | P36: Over | Q36: 4 | R36: 27 | S36: 31
A37: 2013-09-22 | B37: Tampa Bay Buccaneers | C37: 3 | D37: New England Patriots | E37: 23 | F37: 7.5 | G37: 45 | H37: Home Team | I37: Favorite | J37: Home Team | K37: Favorite | L37: Yes | M37: No | N37: - | O37: - | P37: Under | Q37: 20 | R37: 3 | S37: 23
A38: 2013-09-22 | B38: Houston Texans | C38: 9 | D38: Baltimore Ravens | E38: 30 | F38: -1 | G38: 44.5 | H38: Home Team | I38: Underdog | J38: Home Team | K38: Underdog | L38: - | M38: - | N38: Yes | O38: No | P38: Under | Q38: 21 | R38: 9 | S38: 30
A39: 2013-09-22 | B39: St Louis Rams | C39: 7 | D39: Dallas Cowboys | E39: 31 | F39: 3.5 | G39: 47 | H39: Home Team | I39: Favorite | J39: Home Team | K39: Favorite | L39: Yes | M39: No | N39: - | O39: - | P39: Under | Q39: 24 | R39: 7 | S39: 31
A40: 2013-09-22 | B40: Arizona Cardinals | C40: 7 | D40: New Orleans Saints | E40: 31 | F40: 7.5 | G40: 49.5 | H40: Home Team | I40: Favorite | J40: Home Team | K40: Favorite | L40: Yes | M40: No | N40: - | O40: - | P40: Under | Q40: 24 | R40: 7 | S40: 31
A41: 2013-09-22 | B41: Detroit Lions | C41: 27 | D41: Washington Redskins | E41: 20 | F41: -1 | G41: 49.5 | H41: Visiting Team | I41: Favorite | J41: Visiting Team | K41: Favorite | L41: - | M41: - | N41: No | O41: Yes | P41: Under | Q41: 7 | R41: 20 | S41: 27
A42: 2013-09-22 | B42: Green Bay Packers | C42: 30 | D42: Cincinnati Bengals | E42: 34 | F42: -3 | G42: 50.5 | H42: Home Team | I42: Underdog | J42: Home Team | K42: Underdog | L42: - | M42: - | N42: Yes | O42: No | P42: Over | Q42: 4 | R42: 30 | S42: 34
A43: 2013-09-22 | B43: New York Giants | C43: 0 | D43: Carolina Panthers | E43: 38 | F43: -3 | G43: 47 | H43: Home Team | I43: Underdog | J43: Home Team | K43: Underdog | L43: - | M43: - | N43: Yes | O43: No | P43: Under | Q43: 38 | R43: 0 | S43: 38
A44: 2013-09-22 | B44: Atlanta Falcons | C44: 23 | D44: Miami Dolphins | E44: 27 | F44: 2.5 | G44: 46 | H44: Home Team | I44: Favorite | J44: Home Team | K44: Favorite | L44: Yes | M44: No | N44: - | O44: - | P44: Over | Q44: 4 | R44: 23 | S44: 27
A45: 2013-09-22 | B45: Indianapolis Colts | C45: 27 | D45: San Francisco 49ers | E45: 7 | F45: 10 | G45: 47 | H45: Visiting Team | I45: Underdog | J45: Visiting Team | K45: Underdog | L45: No | M45: Yes | N45: - | O45: - | P45: Under | Q45: 20 | R45: 7 | S45: 27
A46: 2013-09-22 | B46: Jacksonville Jaguars | C46: 17 | D46: Seattle Seahawks | E46: 45 | F46: 20 | G46: 39.5 | H46: Home Team | I46: Favorite | J46: Home Team | K46: Favorite | L46: Yes | M46: No | N46: - | O46: - | P46: Over | Q46: 28 | R46: 17 | S46: 45
A47: 2013-09-22 | B47: Buffalo Bills | C47: 20 | D47: New York Jets | E47: 27 | F47: 2.5 | G47: 41 | H47: Home Team | I47: Favorite | J47: Home Team | K47: Favorite | L47: Yes | M47: No | N47: - | O47: - | P47: Over | Q47: 7 | R47: 20 | S47: 27
A48: 2013-09-22 | B48: Chicago Bears | C48: 40 | D48: Pittsburgh Steelers | E48: 23 | F48: -2.5 | G48: 41 | H48: Visiting Team | I48: Favorite | J48: Visiting Team | K48: Favorite | L48: - | M48: - | N48: No | O48: Yes | P48: Over | Q48: 17 | R48: 23 | S48: 40
A49: 2013-09-23 | B49: Oakland Raiders | C49: 21 | D49: Denver Broncos | E49: 37 | F49: 16.5 | G49: 50 | H49: Home Team | I49: Favorite | J49: Visiting Team | K49: Underdog | L49: No | M49: Yes | N49: - | O49: - | P49: Over | Q49: 16 | R49: 21 | S49: 37
A50: 2013-09-26 | B50: San Francisco 49ers | C50: 35 | D50: St Louis Rams | E50: 11 | F50: -4 | G50: 43.5 | H50: Visiting Team | I50: Favorite | J50: Visiting Team | K50: Favorite | L50: - | M50: - | N50: No | O50: Yes | P50: Over | Q50: 24 | R50: 11 | S50: 35
A51: 2013-09-29 | B51: Pittsburgh Steelers | C51: 27 | D51: Minnesota Vikings | E51: 34 | F51: -3 | G51: 42.5 | H51: Home Team | I51: Underdog | J51: Home Team | K51: Underdog | L51: - | M51: - | N51: Yes | O51: No | P51: Over | Q51: 7 | R51: 27 | S51: 34
A52: 2013-09-29 | B52: Baltimore Ravens | C52: 20 | D52: Buffalo Bills | E52: 23 | F52: -4 | G52: 45 | H52: Home Team | I52: Underdog | J52: Home Team | K52: Underdog | L52: - | M52: - | N52: Yes | O52: No | P52: Under | Q52: 3 | R52: 20 | S52: 23
A53: 2013-09-29 | B53: Cincinnati Bengals | C53: 6 | D53: Cleveland Browns | E53: 17 | F53: -4.5 | G53: 42.5 | H53: Home Team | I53: Underdog | J53: Home Team | K53: Underdog | L53: - | M53: - | N53: Yes | O53: No | P53: Under | Q53: 11 | R53: 6 | S53: 17
A54: 2013-09-29 | B54: Indianapolis Colts | C54: 37 | D54: Jacksonville Jaguars | E54: 3 | F54: -9.5 | G54: 42.5 | H54: Visiting Team | I54: Favorite | J54: Visiting Team | K54: Favorite | L54: - | M54: - | N54: No | O54: Yes | P54: Under | Q54: 34 | R54: 3 | S54: 37
A55: 2013-09-29 | B55: Seattle Seahawks | C55: 23 | D55: Houston Texans | E55: 20 | F55: -2 | G55: 41 | H55: Visiting Team | I55: Favorite | J55: Visiting Team | K55: Favorite | L55: - | M55: - | N55: No | O55: Yes | P55: Over | Q55: 3 | R55: 20 | S55: 23
A56: 2013-09-29 | B56: Arizona Cardinals | C56: 13 | D56: Tampa Bay Buccaneers | E56: 10 | F56: 2.5 | G56: 40 | H56: Visiting Team | I56: Underdog | J56: Visiting Team | K56: Underdog | L56: No | M56: Yes | N56: - | O56: - | P56: Under | Q56: 3 | R56: 10 | S56: 13
A57: 2013-09-29 | B57: Chicago Bears | C57: 32 | D57: Detroit Lions | E57: 40 | F57: 2.5 | G57: 49.5 | H57: Home Team | I57: Favorite | J57: Home Team | K57: Favorite | L57: Yes | M57: No | N57: - | O57: - | P57: Over | Q57: 8 | R57: 32 | S57: 40
A58: 2013-09-29 | B58: New York Giants | C58: 7 | D58: Kansas City Chiefs | E58: 31 | F58: 4.5 | G58: 44 | H58: Home Team | I58: Favorite | J58: Home Team | K58: Favorite | L58: Yes | M58: No | N58: - | O58: - | P58: Under | Q58: 24 | R58: 7 | S58: 31
A59: 2013-09-29 | B59: New York Jets | C59: 13 | D59: Tennessee Titans | E59: 38 | F59: 3.5 | G59: 40.5 | H59: Home Team | I59: Favorite | J59: Home Team | K59: Favorite | L59: Yes | M59: No | N59: - | O59: - | P59: Over | Q59: 25 | R59: 13 | S59: 38
A60: 2013-09-29 | B60: Dallas Cowboys | C60: 21 | D60: San Diego Chargers | E60: 30 | F60: -1.5 | G60: 48 | H60: Home Team | I60: Underdog | J60: Home Team | K60: Underdog | L60: - | M60: - | N60: Yes | O60: No | P60: Over | Q60: 9 | R60: 21 | S60: 30
A61: 2013-09-29 | B61: Washington Redskins | C61: 24 | D61: Oakland Raiders | E61: 14 | F61: -4 | G61: 46 | H61: Visiting Team | I61: Favorite | J61: Visiting Team | K61: Favorite | L61: - | M61: - | N61: No | O61: Yes | P61: Under | Q61: 10 | R61: 14 | S61: 24
A62: 2013-09-29 | B62: Philadelphia Eagles | C62: 20 | D62: Denver Broncos | E62: 52 | F62: 11.5 | G62: 59 | H62: Home Team | I62: Favorite | J62: Home Team | K62: Favorite | L62: Yes | M62: No | N62: - | O62: - | P62: Over | Q62: 32 | R62: 20 | S62: 52
A63: 2013-09-29 | B63: New England Patriots | C63: 30 | D63: Atlanta Falcons | E63: 23 | F63: 3 | G63: 50 | H63: Visiting Team | I63: Underdog | J63: Visiting Team | K63: Underdog | L63: No | M63: Yes | N63: - | O63: - | P63: Over | Q63: 7 | R63: 23 | S63: 30
A64: 2013-09-30 | B64: Miami Dolphins | C64: 17 | D64: New Orleans Saints | E64: 38 | F64: 7.5 | G64: 49 | H64: Home Team | I64: Favorite | J64: Home Team | K64: Favorite | L64: Yes | M64: No | N64: - | O64: - | P64: Over | Q64: 21 | R64: 17 | S64: 38
A65: 2013-10-03 | B65: Buffalo Bills | C65: 24 | D65: Cleveland Browns | E65: 37 | F65: 4 | G65: 41 | H65: Home Team | I65: Favorite | J65: Home Team | K65: Favorite | L65: Yes | M65: No | N65: - | O65: - | P65: Over | Q65: 13 | R65: 24 | S65: 37
A66: 2013-10-06 | B66: Kansas City Chiefs | C66: 26 | D66: Tennessee Titans | E66: 17 | F66: -3 | G66: 38.5 | H66: Visiting Team | I66: Favorite | J66: Visiting Team | K66: Favorite | L66: - | M66: - | N66: No | O66: Yes | P66: Over | Q66: 9 | R66: 17 | S66: 26
A67: 2013-10-06 | B67: Baltimore Ravens | C67: 26 | D67: Miami Dolphins | E67: 23 | F67: 2.5 | G67: 43 | H67: Visiting Team | I67: Underdog | J67: Visiting Team | K67: Underdog | L67: =IF(C67<>"",IF(AND($F67>0,$C67+$F67=$E67),"Push",IF(AND($F67<0,$E67-$F67=$C67),"Push",IF($F67<0,"-",IF(AND($F67>0,$C67+$F67<$E67),"Yes","No")))),"") -> No | M67: Yes | N67: =IF(C67<>"",IF(AND($F67>0,$C67+$F67=$E67),"Push",IF(AND($F67<0,$E67-$F67=$C67),"Push",IF($F67>0,"-",IF(AND($F67<0,$C67+$F67<$E67),"Yes","No")))),"") -> - | O67: =IF(C67<>"",IF(AND($F67>0,$C67+$F67=$E67),"Push",IF(AND($F67<0,$E67-$F67=$C67),"Push",IF($F67>0,"-",IF(AND($F67<0,$C67+$F67>$E67),"Yes","No")))),"") -> - | P67: =IF(C67<>"",IF($C67+$E67=$G67,"Push",IF($C67+$E67>$G67,"Over","Under")),"") -> Over | Q67: =IF(C67<>"",ABS(C67-E67),"") -> 3 | R67: =IF(C67<>"",IF(C67<E67, C67+0, E67+0),"") -> 23 | S67: =IF(C67<>"",IF(E67>C67, E67+0, C67+0),"") -> 26
A68: 2013-10-06 | B68: Jacksonville Jaguars | C68: 20 | D68: St Louis Rams | E68: 34 | F68: 11 | G68: 41 | H68: =IF(C68<>"",IF($C68=$E68,"Tie Game",IF($C68>$E68,"Visiting Team","Home Team")),"") -> Home Team | I68: Favorite | J68: =IF(C68<>"",IF($C68+$F68=$E68,"Push",IF($C68+$F68>$E68,"Visiting Team","Home Team")),"") -> Home Team | K68: =IF(C68<>"",IF(L68="Yes", "Favorite", IF(O68="Yes", "Favorite", IF(M68 = "Yes", "Underdog", IF(N68 = "Yes", "Underdog",IF(L68 = "Push", "Push"))))),"") -> Favorite | L68: Yes | M68: =IF(C68<>"",IF(AND($F68>0,$C68+$F68=$E68),"Push",IF(AND($F68<0,$E68-$F68=$C68),"Push",IF($F68<0,"-",IF(AND($F68>0,$C68+$F68>$E68),"Yes","No")))),"") -> No | N68: - | O68: - | P68: Over | Q68: 14 | R68: 20 | S68: 34
A69: 2013-10-06 | B69: New England Patriots | C69: 6 | D69: Cincinnati Bengals | E69: 13 | F69: -1 | G69: 45.5 | H69: Home Team | I69: =IF(C69<>"",IF(AND(F69>0,E69>C69),"Favorite",IF(AND(F69<0,E69>C69),"Underdog",IF(AND(F69<0,E69<C69),"Favorite",IF(AND(F69>0,E69<C69),"Underdog")))),"") -> Underdog | J69: Home Team | K69: Underdog | L69: - | M69: - | N69: Yes | O69: No | P69: Under | Q69: 7 | R69: 6 | S69: 13
A70: 2013-10-06 | B70: Seattle Seahawks | C70: 28 | D70: Indianapolis Colts | E70: 34 | F70: -3 | G70: 44 | H70: Home Team | I70: Underdog | J70: Home Team | K70: Underdog | L70: - | M70: - | N70: Yes | O70: No | P70: Over | Q70: 6 | R70: 28 | S70: 34
A71: 2013-10-06 | B71: Detroit Lions | C71: 9 | D71: Green Bay Packers | E71: 22 | F71: 9.5 | G71: 55 | H71: Home Team | I71: Favorite | J71: Home Team | K71: Favorite | L71: Yes | M71: No | N71: - | O71: - | P71: Under | Q71: 13 | R71: 9 | S71: 22
A72: 2013-10-06 | B72: New Orleans Saints | C72: 26 | D72: Chicago Bears | E72: 18 | F72: -1.5 | G72: 51.5 | H72: Visiting Team | I72: Favorite | J72: Visiting Team | K72: Favorite | L72: - | M72: - | N72: No | O72: Yes | P72: Under | Q72: 8 | R72: 18 | S72: 26
A73: 2013-10-06 | B73: Philadelphia Eagles | C73: 36 | D73: New York Giants | E73: 21 | F73: 1.5 | G73: 54 | H73: Visiting Team | I73: Underdog | J73: Visiting Team | K73: Underdog | L73: No | M73: Yes | N73: - | O73: - | P73: Over | Q73: 15 | R73: 21 | S73: 36
A74: 2013-10-06 | B74: Carolina Panthers | C74: 6 | D74: Arizona Cardinals | E74: 22 | F74: -3 | G74: 42.5 | H74: Home Team | I74: Underdog | J74: Home Team | K74: Underdog | L74: - | M74: - | N74: Yes | O74: No | P74: Under | Q74: 16 | R74: 6 | S74: 22
A75: 2013-10-06 | B75: San Diego Chargers | C75: 17 | D75: Oakland Raiders | E75: 27 | F75: -5 | G75: 47 | H75: Home Team | I75: Underdog | J75: Home Team | K75: Underdog | L75: - | M75: - | N75: Yes | O75: No | P75: Under | Q75: 10 | R75: 17 | S75: 27
A76: 2013-10-06 | B76: Denver Broncos | C76: 51 | D76: Dallas Cowboys | E76: 48 | F76: -9 | G76: 57.5 | H76: Visiting Team | I76: Favorite | J76: Home Team | K76: Underdog | L76: - | M76: - | N76: Yes | O76: No | P76: Over | Q76: 3 | R76: 48 | S76: 51
A77: 2013-10-06 | B77: Houston Texans | C77: 3 | D77: San Francisco 49ers | E77: 34 | F77: 4.5 | G77: 44 | H77: Home Team | I77: Favorite | J77: Home Team | K77: Favorite | L77: Yes | M77: No | N77: - | O77: - | P77: Under | Q77: 31 | R77: 3 | S77: 34
A78: 2013-10-07 | B78: New York Jets | C78: 30 | D78: Atlanta Falcons | E78: 28 | F78: 10.5 | G78: 45 | H78: Visiting Team | I78: Underdog | J78: Visiting Team | K78: Underdog | L78: No | M78: Yes | N78: - | O78: - | P78: Over | Q78: 2 | R78: 28 | S78: 30
A79: 2013-10-10 | B79: New York Giants | C79: 21 | D79: Chicago Bears | E79: 27 | F79: 8.5 | G79: 48 | H79: Home Team | I79: Favorite | J79: Visiting Team | K79: Underdog | L79: No | M79: Yes | N79: - | O79: - | P79: Push | Q79: 6 | R79: 21 | S79: 27
A80: 2013-10-13 | B80: Oakland Raiders | C80: 7 | D80: Kansas City Chiefs | E80: 24 | F80: 7.5 | G80: 41.5 | H80: Home Team | I80: Favorite | J80: Home Team | K80: Favorite | L80: Yes | M80: No | N80: - | O80: - | P80: Under | Q80: 17 | R80: 7 | S80: 24
A81: 2013-10-13 | B81: Philadelphia Eagles | C81: 31 | D81: Tampa Bay Buccaneers | E81: 20 | F81: -3 | G81: 44 | H81: Visiting Team | I81: Favorite | J81: Visiting Team | K81: Favorite | L81: - | M81: - | N81: No | O81: Yes | P81: Over | Q81: 11 | R81: 20 | S81: 31
A82: 2013-10-13 | B82: Green Bay Packers | C82: 19 | D82: Baltimore Ravens | E82: 17 | F82: -2 | G82: 48 | H82: Visiting Team | I82: Favorite | J82: Push | K82: Push | L82: Push | M82: Push | N82: Push | O82: Push | P82: Under | Q82: 2 | R82: 17 | S82: 19
A83: 2013-10-13 | B83: Detroit Lions | C83: 31 | D83: Cleveland Browns | E83: 17 | F83: -2.5 | G83: 43.5 | H83: Visiting Team | I83: Favorite | J83: Visiting Team | K83: Favorite | L83: - | M83: - | N83: No | O83: Yes | P83: Over | Q83: 14 | R83: 17 | S83: 31
A84: 2013-10-13 | B84: Carolina Panthers | C84: 35 | D84: Minnesota Vikings | E84: 10 | F84: 2.5 | G84: 44.5 | H84: Visiting Team | I84: Underdog | J84: Visiting Team | K84: Underdog | L84: No | M84: Yes | N84: - | O84: - | P84: Over | Q84: 25 | R84: 10 | S84: 35
A85: 2013-10-13 | B85: St Louis Rams | C85: 38 | D85: Houston Texans | E85: 13 | F85: 9 | G85: 42.5 | H85: Visiting Team | I85: Underdog | J85: Visiting Team | K85: Underdog | L85: No | M85: Yes | N85: - | O85: - | P85: Over | Q85: 25 | R85: 13 | S85: 38
A86: 2013-10-13 | B86: Pittsburgh Steelers | C86: 19 | D86: New York Jets | E86: 6 | F86: -1.5 | G86: 41 | H86: Visiting Team | I86: Favorite | J86: Visiting Team | K86: Favorite | L86: - | M86: - | N86: No | O86: Yes | P86: Under | Q86: 13 | R86: 6 | S86: 19
A87: 2013-10-13 | B87: Cincinnati Bengals | C87: 27 | D87: Buffalo Bills | E87: 24 | F87: -6 | G87: 41 | H87: Visiting Team | I87: Favorite | J87: Home Team | K87: Underdog | L87: - | M87: - | N87: Yes | O87: No | P87: Over | Q87: 3 | R87: 24 | S87: 27
A88: 2013-10-13 | B88: Tennessee Titans | C88: 13 | D88: Seattle Seahawks | E88: 20 | F88: 11.5 | G88: 41.5 | H88: Home Team | I88: Favorite | J88: Visiting Team | K88: Underdog | L88: No | M88: Yes | N88: - | O88: - | P88: Under | Q88: 7 | R88: 13 | S88: 20
A89: 2013-10-13 | B89: Jacksonville Jaguars | C89: 19 | D89: Denver Broncos | E89: 35 | F89: 26.5 | G89: 52 | H89: Home Team | I89: Favorite | J89: Visiting Team | K89: Underdog | L89: No | M89: Yes | N89: - | O89: - | P89: Over | Q89: 16 | R89: 19 | S89: 35
A90: 2013-10-13 | B90: Arizona Cardinals | C90: 20 | D90: San Francisco 49ers | E90: 32 | F90: 10.5 | G90: 41 | H90: Home Team | I90: Favorite | J90: Home Team | K90: Favorite | L90: Yes | M90: No | N90: - | O90: - | P90: Over | Q90: 12 | R90: 20 | S90: 32
A91: 2013-10-13 | B91: New Orleans Saints | C91: 27 | D91: New England Patriots | E91: 30 | F91: 2.5 | G91: 50 | H91: Home Team | I91: Favorite | J91: Home Team | K91: Favorite | L91: Yes | M91: No | N91: - | O91: - | P91: Over | Q91: 3 | R91: 27 | S91: 30
A92: 2013-10-13 | B92: Washington Redskins | C92: 16 | D92: Dallas Cowboys | E92: 31 | F92: 5.5 | G92: 51.5 | H92: Home Team | I92: Favorite | J92: Home Team | K92: Favorite | L92: Yes | M92: No | N92: - | O92: - | P92: Under | Q92: 15 | R92: 16 | S92: 31
A93: 2013-10-14 | B93: Indianapolis Colts | C93: 9 | D93: San Diego Chargers | E93: 19 | F93: 0 | G93: 50.5 | H93: Home Team | I93: FALSE | J93: Home Team | K93: FALSE | L93: No | M93: No | N93: No | O93: No | P93: Under | Q93: 10 | R93: 9 | S93: 19
A94: 2013-10-17 | B94: Seattle Seahawks | C94: 34 | D94: Arizona Cardinals | E94: 22 | F94: -4.5 | G94: 41.5 | H94: Visiting Team | I94: Favorite | J94: Visiting Team | K94: Favorite | L94: - | M94: - | N94: No | O94: Yes | P94: Over | Q94: 12 | R94: 22 | S94: 34
A95: 2013-10-20 | B95: New England Patriots | C95: 27 | D95: New York Jets | E95: 30 | F95: -3 | G95: 43 | H95: Home Team | I95: Underdog | J95: Home Team | K95: Underdog | L95: - | M95: - | N95: Yes | O95: No | P95: Over | Q95: 3 | R95: 27 | S95: 30
A96: 2013-10-20 | B96: San Diego Chargers | C96: 24 | D96: Jacksonville Jaguars | E96: 6 | F96: -7 | G96: 44.5 | H96: Visiting Team | I96: Favorite | J96: Visiting Team | K96: Favorite | L96: - | M96: - | N96: No | O96: Yes | P96: Under | Q96: 18 | R96: 6 | S96: 24
A97: 2013-10-20 | B97: Houston Texans | C97: 16 | D97: Kansas City Chiefs | E97: 17 | F97: 6 | G97: 39 | H97: Home Team | I97: Favorite | J97: Visiting Team | K97: Underdog | L97: No | M97: Yes | N97: - | O97: - | P97: Under | Q97: 1 | R97: 16 | S97: 17
A98: 2013-10-20 | B98: Cincinnati Bengals | C98: 27 | D98: Detroit Lions | E98: 24 | F98: 1.5 | G98: 46 | H98: Visiting Team | I98: Underdog | J98: Visiting Team | K98: Underdog | L98: No | M98: Yes | N98: - | O98: - | P98: Over | Q98: 3 | R98: 24 | S98: 27
A99: 2013-10-20 | B99: Buffalo Bills | C99: 23 | D99: Miami Dolphins | E99: 21 | F99: 6.5 | G99: 44.5 | H99: Visiting Team | I99: Underdog | J99: Visiting Team | K99: Underdog | L99: No | M99: Yes | N99: - | O99: - | P99: Under | Q99: 2 | R99: 21 | S99: 23
A100: 2013-10-20 | B100: Chicago Bears | C100: 41 | D100: Washington Redskins | E100: 45 | F100: -1 | G100: 48 | H100: Home Team | I100: Underdog | J100: Home Team | K100: Underdog | L100: - | M100: - | N100: Yes | O100: No | P100: Over | Q100: 4 | R100: 41 | S100: 45
A101: 2013-10-20 | B101: Dallas Cowboys | C101: 17 | D101: Philadelphia Eagles | E101: 3 | F101: 2.5 | G101: 55 | H101: Visiting Team | I101: Underdog | J101: Visiting Team | K101: Underdog | L101: No | M101: Yes | N101: - | O101: - | P101: Under | Q101: 14 | R101: 3 | S101: 17
A102: 2013-10-20 | B102: St Louis Rams | C102: 15 | D102: Carolina Panthers | E102: 30 | F102: 7 | G102: 42 | H102: Home Team | I102: Favorite | J102: Home Team | K102: Favorite | L102: Yes | M102: No | N102: - | O102: - | P102: Over | Q102: 15 | R102: 15 | S102: 30
A103: 2013-10-20 | B103: Tampa Bay Buccaneers | C103: 23 | D103: Atlanta Falcons | E103: 31 | F103: 6.5 | G103: 43 | H103: Home Team | I103: Favorite | J103: Home Team | K103: Favorite | L103: Yes | M103: No | N103: - | O103: - | P103: Over | Q103: 8 | R103: 23 | S103: 31
A104: 2013-10-20 | B104: San Francisco 49ers | C104: 31 | D104: Tennessee Titans | E104: 17 | F104: -3 | G104: 40.5 | H104: Visiting Team | I104: Favorite | J104: Visiting Team | K104: Favorite | L104: - | M104: - | N104: No | O104: Yes | P104: Over | Q104: 14 | R104: 17 | S104: 31
A105: 2013-10-20 | B105: Cleveland Browns | C105: 13 | D105: Green Bay Packers | E105: 31 | F105: 9.5 | G105: 45 | H105: Home Team | I105: Favorite | J105: Home Team | K105: Favorite | L105: Yes | M105: No | N105: - | O105: - | P105: Under | Q105: 18 | R105: 13 | S105: 31
A106: 2013-10-20 | B106: Baltimore Ravens | C106: 16 | D106: Pittsburgh Steelers | E106: 19 | F106: 2.5 | G106: 41 | H106: Home Team | I106: Favorite | J106: Home Team | K106: Favorite | L106: Yes | M106: No | N106: - | O106: - | P106: Under | Q106: 3 | R106: 16 | S106: 19
A107: 2013-10-20 | B107: Denver Broncos | C107: 33 | D107: Indianapolis Colts | E107: 39 | F107: -6 | G107: 55.5 | H107: Home Team | I107: Underdog | J107: Home Team | K107: Underdog | L107: - | M107: - | N107: Yes | O107: No | P107: Over | Q107: 6 | R107: 33 | S107: 39
A108: 2013-10-21 | B108: Minnesota Vikings | C108: 7 | D108: New York Giants | E108: 23 | F108: 3.5 | G108: 47 | H108: Home Team | I108: Favorite | J108: Home Team | K108: Favorite | L108: Yes | M108: No | N108: - | O108: - | P108: Under | Q108: 16 | R108: 7 | S108: 23
A109: 2013-10-24 | B109: Carolina Panthers | C109: 31 | D109: Tampa Bay Buccaneers | E109: 13 | F109: -6.5 | G109: 38.5 | H109: Visiting Team | I109: Favorite | J109: Visiting Team | K109: Favorite | L109: - | M109: - | N109: No | O109: Yes | P109: Over | Q109: 18 | R109: 13 | S109: 31
A110: 2013-10-27 | B110: San Francisco 49ers | C110: 42 | D110: Jacksonville Jaguars | E110: 10 | F110: -14.5 | G110: 40 | H110: Visiting Team | I110: Favorite | J110: Visiting Team | K110: Favorite | L110: - | M110: - | N110: No | O110: Yes | P110: Over | Q110: 32 | R110: 10 | S110: 42
A111: 2013-10-27 | B111: Dallas Cowboys | C111: 30 | D111: Detroit Lions | E111: 31 | F111: 3 | G111: 50.5 | H111: Home Team | I111: Favorite | J111: Visiting Team | K111: Underdog | L111: No | M111: Yes | N111: - | O111: - | P111: Over | Q111: 1 | R111: 30 | S111: 31
A112: 2013-10-27 | B112: New York Giants | C112: 15 | D112: Philadelphia Eagles | E112: 7 | F112: 5.5 | G112: 49.5 | H112: Visiting Team | I112: Underdog | J112: Visiting Team | K112: Underdog | L112: No | M112: Yes | N112: - | O112: - | P112: Under | Q112: 8 | R112: 7 | S112: 15
A113: 2013-10-27 | B113: Cleveland Browns | C113: 17 | D113: Kansas City Chiefs | E113: 23 | F113: 7 | G113: 39 | H113: Home Team | I113: Favorite | J113: Visiting Team | K113: Underdog | L113: No | M113: Yes | N113: - | O113: - | P113: Over | Q113: 6 | R113: 17 | S113: 23
A114: 2013-10-27 | B114: Buffalo Bills | C114: 17 | D114: New Orleans Saints | E114: 35 | F114: 10.5 | G114: 48 | H114: Home Team | I114: Favorite | J114: Home Team | K114: Favorite | L114: Yes | M114: No | N114: - | O114: - | P114: Over | Q114: 18 | R114: 17 | S114: 35
A115: 2013-10-27 | B115: Miami Dolphins | C115: 17 | D115: New England Patriots | E115: 27 | F115: 5.5 | G115: 45 | H115: Home Team | I115: Favorite | J115: Home Team | K115: Favorite | L115: Yes | M115: No | N115: - | O115: - | P115: Under | Q115: 10 | R115: 17 | S115: 27
A116: 2013-10-27 | B116: New York Jets | C116: 9 | D116: Cincinnati Bengals | E116: 49 | F116: 4.5 | G116: 41.5 | H116: Home Team | I116: Favorite | J116: Home Team | K116: Favorite | L116: Yes | M116: No | N116: - | O116: - | P116: Over | Q116: 40 | R116: 9 | S116: 49
A117: 2013-10-27 | B117: Pittsburgh Steelers | C117: 18 | D117: Oakland Raiders | E117: 21 | F117: -2.5 | G117: 40.5 | H117: Home Team | I117: Underdog | J117: Home Team | K117: Underdog | L117: - | M117: - | N117: Yes | O117: No | P117: Under | Q117: 3 | R117: 18 | S117: 21
A118: 2013-10-27 | B118: Washington Redskins | C118: 21 | D118: Denver Broncos | E118: 45 | F118: 11 | G118: 58 | H118: Home Team | I118: Favorite | J118: Home Team | K118: Favorite | L118: Yes | M118: No | N118: - | O118: - | P118: Over | Q118: 24 | R118: 21 | S118: 45
A119: 2013-10-27 | B119: Atlanta Falcons | C119: 13 | D119: Arizona Cardinals | E119: 27 | F119: 3 | G119: 46.5 | H119: Home Team | I119: Favorite | J119: Home Team | K119: Favorite | L119: Yes | M119: No | N119: - | O119: - | P119: Under | Q119: 14 | R119: 13 | S119: 27
A120: 2013-10-27 | B120: Green Bay Packers | C120: 44 | D120: Minnesota Vikings | E120: 31 | F120: -7.5 | G120: 47 | H120: Visiting Team | I120: Favorite | J120: Visiting Team | K120: Favorite | L120: - | M120: - | N120: No | O120: Yes | P120: Over | Q120: 13 | R120: 31 | S120: 44
A121: 2013-10-28 | B121: Seattle Seahawks | C121: 14 | D121: St Louis Rams | E121: 9 | F121: -13 | G121: 43.5 | H121: Visiting Team | I121: Favorite | J121: Home Team | K121: Underdog | L121: - | M121: - | N121: Yes | O121: No | P121: Under | Q121: 5 | R121: 9 | S121: 14
A122: 2013-10-31 | B122: Cincinnati Bengals | C122: 20 | D122: Miami Dolphins | E122: 22 | F122: -3 | G122: 42 | H122: Home Team | I122: Underdog | J122: Home Team | K122: Underdog | L122: - | M122: - | N122: Yes | O122: No | P122: Push | Q122: 2 | R122: 20 | S122: 22
A123: 2013-11-03 | B123: Atlanta Falcons | C123: 10 | D123: Carolina Panthers | E123: 34 | F123: 8 | G123: 47 | H123: Home Team | I123: Favorite | J123: Home Team | K123: Favorite | L123: Yes | M123: No | N123: - | O123: - | P123: Under | Q123: 24 | R123: 10 | S123: 34
A124: 2013-11-03 | B124: Minnesota Vikings | C124: 23 | D124: Dallas Cowboys | E124: 27 | F124: 8.5 | G124: 50.5 | H124: Home Team | I124: Favorite | J124: Visiting Team | K124: Underdog | L124: No | M124: Yes | N124: - | O124: - | P124: Under | Q124: 4 | R124: 23 | S124: 27
A125: 2013-11-03 | B125: New Orleans Saints | C125: 20 | D125: New York Jets | E125: 26 | F125: -5.5 | G125: 46 | H125: Home Team | I125: Underdog | J125: Home Team | K125: Underdog | L125: - | M125: - | N125: Yes | O125: No | P125: Push | Q125: 6 | R125: 20 | S125: 26
A126: 2013-11-03 | B126: Tennessee Titans | C126: 28 | D126: St Louis Rams | E126: 21 | F126: -3 | G126: 40.5 | H126: Visiting Team | I126: Favorite | J126: Visiting Team | K126: Favorite | L126: - | M126: - | N126: No | O126: Yes | P126: Over | Q126: 7 | R126: 21 | S126: 28
A127: 2013-11-03 | B127: Kansas City Chiefs | C127: 23 | D127: Buffalo Bills | E127: 13 | F127: -4.5 | G127: 41 | H127: Visiting Team | I127: Favorite | J127: Visiting Team | K127: Favorite | L127: - | M127: - | N127: No | O127: Yes | P127: Under | Q127: 10 | R127: 13 | S127: 23
A128: 2013-11-03 | B128: San Diego Chargers | C128: 24 | D128: Washington Redskins | E128: 30 | F128: 0 | G128: 48.5 | H128: Home Team | I128: FALSE | J128: Home Team | K128: FALSE | L128: No | M128: No | N128: No | O128: No | P128: Over | Q128: 6 | R128: 24 | S128: 30
A129: 2013-11-03 | B129: Philadelphia Eagles | C129: 49 | D129: Oakland Raiders | E129: 20 | F129: 1 | G129: 45.5 | H129: Visiting Team | I129: Underdog | J129: Visiting Team | K129: Underdog | L129: No | M129: Yes | N129: - | O129: - | P129: Over | Q129: 29 | R129: 20 | S129: 49
A130: 2013-11-03 | B130: Tampa Bay Buccaneers | C130: 24 | D130: Seattle Seahawks | E130: 27 | F130: 14.5 | G130: 40.5 | H130: Home Team | I130: Favorite | J130: Visiting Team | K130: Underdog | L130: No | M130: Yes | N130: - | O130: - | P130: Over | Q130: 3 | R130: 24 | S130: 27
A131: 2013-11-03 | B131: Baltimore Ravens | C131: 18 | D131: Cleveland Browns | E131: 24 | F131: -1 | G131: 42 | H131: Home Team | I131: Underdog | J131: Home Team | K131: Underdog | L131: =IF(C131<>"",IF(AND($F131>0,$C131+$F131=$E131),"Push",IF(AND($F131<0,$E131-$F131=$C131),"Push",IF($F131<0,"-",IF(AND($F131>0,$C131+$F131<$E131),"Yes","No")))),"") -> - | M131: - | N131: =IF(C131<>"",IF(AND($F131>0,$C131+$F131=$E131),"Push",IF(AND($F131<0,$E131-$F131=$C131),"Push",IF($F131>0,"-",IF(AND($F131<0,$C131+$F131<$E131),"Yes","No")))),"") -> Yes | O131: =IF(C131<>"",IF(AND($F131>0,$C131+$F131=$E131),"Push",IF(AND($F131<0,$E131-$F131=$C131),"Push",IF($F131>0,"-",IF(AND($F131<0,$C131+$F131>$E131),"Yes","No")))),"") -> No | P131: =IF(C131<>"",IF($C131+$E131=$G131,"Push",IF($C131+$E131>$G131,"Over","Under")),"") -> Push | Q131: =IF(C131<>"",ABS(C131-E131),"") -> 6 | R131: =IF(C131<>"",IF(C131<E131, C131+0, E131+0),"") -> 18 | S131: =IF(C131<>"",IF(E131>C131, E131+0, C131+0),"") -> 24
A132: 2013-11-03 | B132: Pittsburgh Steelers | C132: 31 | D132: New England Patriots | E132: 55 | F132: 5.5 | G132: 43 | H132: =IF(C132<>"",IF($C132=$E132,"Tie Game",IF($C132>$E132,"Visiting Team","Home Team")),"") -> Home Team | I132: Favorite | J132: =IF(C132<>"",IF($C132+$F132=$E132,"Push",IF($C132+$F132>$E132,"Visiting Team","Home Team")),"") -> Home Team | K132: =IF(C132<>"",IF(L132="Yes", "Favorite", IF(O132="Yes", "Favorite", IF(M132 = "Yes", "Underdog", IF(N132 = "Yes", "Underdog",IF(L132 = "Push", "Push"))))),"") -> Favorite | L132: Yes | M132: =IF(C132<>"",IF(AND($F132>0,$C132+$F132=$E132),"Push",IF(AND($F132<0,$E132-$F132=$C132),"Push",IF($F132<0,"-",IF(AND($F132>0,$C132+$F132>$E132),"Yes","No")))),"") -> No | N132: - | O132: - | P132: Over | Q132: 24 | R132: 31 | S132: 55
A133: 2013-11-03 | B133: Indianapolis Colts | C133: 27 | D133: Houston Texans | E133: 24 | F133: -1 | G133: 44 | H133: Visiting Team | I133: =IF(C133<>"",IF(AND(F133>0,E133>C133),"Favorite",IF(AND(F133<0,E133>C133),"Underdog",IF(AND(F133<0,E133<C133),"Favorite",IF(AND(F133>0,E133<C133),"Underdog")))),"") -> Favorite | J133: Visiting Team | K133: Favorite | L133: - | M133: - | N133: No | O133: Yes | P133: Over | Q133: 3 | R133: 24 | S133: 27
A134: 2013-11-04 | B134: Chicago Bears | C134: 27 | D134: Green Bay Packers | E134: 20 | F134: 9.5 | G134: 50.5 | H134: Visiting Team | I134: Underdog | J134: Visiting Team | K134: Underdog | L134: No | M134: Yes | N134: - | O134: - | P134: Under | Q134: 7 | R134: 20 | S134: 27
A135: 2013-11-07 | B135: Washington Redskins | C135: 27 | D135: Minnesota Vikings | E135: 34 | F135: -1 | G135: 48 | H135: Home Team | I135: Underdog | J135: Home Team | K135: Underdog | L135: - | M135: - | N135: Yes | O135: No | P135: Over | Q135: 7 | R135: 27 | S135: 34
A136: 2013-11-10 | B136: Jacksonville Jaguars | C136: 29 | D136: Tennessee Titans | E136: 27 | F136: 11.5 | G136: 42 | H136: Visiting Team | I136: Underdog | J136: Visiting Team | K136: Underdog | L136: No | M136: Yes | N136: - | O136: - | P136: Over | Q136: 2 | R136: 27 | S136: 29
A137: 2013-11-10 | B137: Philadelphia Eagles | C137: 27 | D137: Green Bay Packers | E137: 13 | F137: -1 | G137: 47 | H137: Visiting Team | I137: Favorite | J137: Visiting Team | K137: Favorite | L137: - | M137: - | N137: No | O137: Yes | P137: Under | Q137: 14 | R137: 13 | S137: 27
A138: 2013-11-10 | B138: Buffalo Bills | C138: 10 | D138: Pittsburgh Steelers | E138: 23 | F138: 2.5 | G138: 43 | H138: Home Team | I138: Favorite | J138: Home Team | K138: Favorite | L138: Yes | M138: No | N138: - | O138: - | P138: Under | Q138: 13 | R138: 10 | S138: 23
A139: 2013-11-10 | B139: Oakland Raiders | C139: 20 | D139: New York Giants | E139: 24 | F139: 7 | G139: 41 | H139: Home Team | I139: Favorite | J139: Visiting Team | K139: Underdog | L139: No | M139: Yes | N139: - | O139: - | P139: Over | Q139: 4 | R139: 20 | S139: 24
A140: 2013-11-10 | B140: St Louis Rams | C140: 38 | D140: Indianapolis Colts | E140: 8 | F140: 7 | G140: 43 | H140: Visiting Team | I140: Underdog | J140: Visiting Team | K140: Underdog | L140: No | M140: Yes | N140: - | O140: - | P140: Over | Q140: 30 | R140: 8 | S140: 38
A141: 2013-11-10 | B141: Seattle Seahawks | C141: 33 | D141: Atlanta Falcons | E141: 10 | F141: -3 | G141: 47 | H141: Visiting Team | I141: Favorite | J141: Visiting Team | K141: Favorite | L141: - | M141: - | N141: No | O141: Yes | P141: Under | Q141: 23 | R141: 10 | S141: 33
A142: 2013-11-10 | B142: Cincinnati Bengals | C142: 17 | D142: Baltimore Ravens | E142: 20 | F142: 2 | G142: 43.5 | H142: Home Team | I142: Favorite | J142: Home Team | K142: Favorite | L142: Yes | M142: No | N142: - | O142: - | P142: Under | Q142: 3 | R142: 17 | S142: 20
A143: 2013-11-10 | B143: Detroit Lions | C143: 21 | D143: Chicago Bears | E143: 19 | F143: -1.5 | G143: 52 | H143: Visiting Team | I143: Favorite | J143: Visiting Team | K143: Favorite | L143: - | M143: - | N143: No | O143: Yes | P143: Under | Q143: 2 | R143: 19 | S143: 21
A144: 2013-11-10 | B144: Carolina Panthers | C144: 10 | D144: San Francisco 49ers | E144: 9 | F144: 5.5 | G144: 42.5 | H144: Visiting Team | I144: Underdog | J144: Visiting Team | K144: Underdog | L144: No | M144: Yes | N144: - | O144: - | P144: Under | Q144: 1 | R144: 9 | S144: 10
A145: 2013-11-10 | B145: Houston Texans | C145: 24 | D145: Arizona Cardinals | E145: 27 | F145: 3.5 | G145: 42 | H145: Home Team | I145: Favorite | J145: Visiting Team | K145: Underdog | L145: No | M145: Yes | N145: - | O145: - | P145: Over | Q145: 3 | R145: 24 | S145: 27
A146: 2013-11-10 | B146: Denver Broncos | C146: 28 | D146: San Diego Chargers | E146: 20 | F146: -7 | G146: 57 | H146: Visiting Team | I146: Favorite | J146: Visiting Team | K146: Favorite | L146: - | M146: - | N146: No | O146: Yes | P146: Under | Q146: 8 | R146: 20 | S146: 28
A147: 2013-11-10 | B147: Dallas Cowboys | C147: 17 | D147: New Orleans Saints | E147: 49 | F147: 5.5 | G147: 53.5 | H147: Home Team | I147: Favorite | J147: Home Team | K147: Favorite | L147: Yes | M147: No | N147: - | O147: - | P147: Over | Q147: 32 | R147: 17 | S147: 49
A148: 2013-11-11 | B148: Miami Dolphins | C148: 19 | D148: Tampa Bay Buccaneers | E148: 22 | F148: -2.5 | G148: 39.5 | H148: Home Team | I148: Underdog | J148: Home Team | K148: Underdog | L148: - | M148: - | N148: Yes | O148: No | P148: Over | Q148: 3 | R148: 19 | S148: 22
A149: 2013-11-14 | B149: Indianapolis Colts | C149: 30 | D149: Tennessee Titans | E149: 27 | F149: -3 | G149: 42 | H149: Visiting Team | I149: Favorite | J149: Push | K149: Push | L149: Push | M149: Push | N149: Push | O149: Push | P149: Over | Q149: 3 | R149: 27 | S149: 30
A150: 2013-11-17 | B150: Atlanta Falcons | C150: 28 | D150: Tampa Bay Buccaneers | E150: 41 | F150: 2 | G150: 43.5 | H150: Home Team | I150: Favorite | J150: Home Team | K150: Favorite | L150: Yes | M150: No | N150: - | O150: - | P150: Over | Q150: 13 | R150: 28 | S150: 41
A151: 2013-11-17 | B151: New York Jets | C151: 14 | D151: Buffalo Bills | E151: 37 | F151: -2 | G151: 39.5 | H151: Home Team | I151: Underdog | J151: Home Team | K151: Underdog | L151: - | M151: - | N151: Yes | O151: No | P151: Over | Q151: 23 | R151: 14 | S151: 37
A152: 2013-11-17 | B152: Detroit Lions | C152: 27 | D152: Pittsburgh Steelers | E152: 37 | F152: -3 | G152: 45 | H152: Home Team | I152: Underdog | J152: Home Team | K152: Underdog | L152: - | M152: - | N152: Yes | O152: No | P152: Over | Q152: 10 | R152: 27 | S152: 37
A153: 2013-11-17 | B153: Washington Redskins | C153: 16 | D153: Philadelphia Eagles | E153: 24 | F153: 4 | G153: 54 | H153: Home Team | I153: Favorite | J153: Home Team | K153: Favorite | L153: Yes | M153: No | N153: - | O153: - | P153: Under | Q153: 8 | R153: 16 | S153: 24
A154: 2013-11-17 | B154: San Diego Chargers | C154: 16 | D154: Miami Dolphins | E154: 20 | F154: -3 | G154: 44.5 | H154: Home Team | I154: Underdog | J154: Home Team | K154: Underdog | L154: - | M154: - | N154: Yes | O154: No | P154: Under | Q154: 4 | R154: 16 | S154: 20
A155: 2013-11-17 | B155: Baltimore Ravens | C155: 20 | D155: Chicago Bears | E155: 23 | F155: 3.5 | G155: 41 | H155: Home Team | I155: Favorite | J155: Visiting Team | K155: Underdog | L155: No | M155: Yes | N155: - | O155: - | P155: Over | Q155: 3 | R155: 20 | S155: 23
A156: 2013-11-17 | B156: Cleveland Browns | C156: 20 | D156: Cincinnati Bengals | E156: 41 | F156: 4.5 | G156: 40 | H156: Home Team | I156: Favorite | J156: Home Team | K156: Favorite | L156: Yes | M156: No | N156: - | O156: - | P156: Over | Q156: 21 | R156: 20 | S156: 41
A157: 2013-11-17 | B157: Oakland Raiders | C157: 28 | D157: Houston Texans | E157: 23 | F157: 10.5 | G157: 40.5 | H157: Visiting Team | I157: Underdog | J157: Visiting Team | K157: Underdog | L157: No | M157: Yes | N157: - | O157: - | P157: Over | Q157: 5 | R157: 23 | S157: 28
A158: 2013-11-17 | B158: Arizona Cardinals | C158: 27 | D158: Jacksonville Jaguars | E158: 14 | F158: -9 | G158: 40.5 | H158: Visiting Team | I158: Favorite | J158: Visiting Team | K158: Favorite | L158: - | M158: - | N158: No | O158: Yes | P158: Over | Q158: 13 | R158: 14 | S158: 27
A159: 2013-11-17 | B159: Kansas City Chiefs | C159: 17 | D159: Denver Broncos | E159: 27 | F159: 7.5 | G159: 49 | H159: Home Team | I159: Favorite | J159: Home Team | K159: Favorite | L159: Yes | M159: No | N159: - | O159: - | P159: Under | Q159: 10 | R159: 17 | S159: 27
A160: 2013-11-17 | B160: Minnesota Vikings | C160: 20 | D160: Seattle Seahawks | E160: 41 | F160: 13 | G160: 45 | H160: Home Team | I160: Favorite | J160: Home Team | K160: Favorite | L160: Yes | M160: No | N160: - | O160: - | P160: Over | Q160: 21 | R160: 20 | S160: 41
A161: 2013-11-17 | B161: San Francisco 49ers | C161: 20 | D161: New Orleans Saints | E161: 23 | F161: 3.5 | G161: 49.5 | H161: Home Team | I161: Favorite | J161: Visiting Team | K161: Underdog | L161: No | M161: Yes | N161: - | O161: - | P161: Under | Q161: 3 | R161: 20 | S161: 23
A162: 2013-11-17 | B162: Green Bay Packers | C162: 13 | D162: New York Giants | E162: 27 | F162: 3 | G162: 40.5 | H162: Home Team | I162: Favorite | J162: Home Team | K162: Favorite | L162: Yes | M162: No | N162: - | O162: - | P162: Under | Q162: 14 | R162: 13 | S162: 27
A163: 2013-11-18 | B163: New England Patriots | C163: 20 | D163: Carolina Panthers | E163: 24 | F163: 3 | G163: 45.5 | H163: Home Team | I163: Favorite | J163: Home Team | K163: Favorite | L163: Yes | M163: No | N163: - | O163: - | P163: Under | Q163: 4 | R163: 20 | S163: 24
A164: 2013-11-21 | B164: New Orleans Saints | C164: 17 | D164: Atlanta Falcons | E164: 13 | F164: -7 | G164: 52.5 | H164: Visiting Team | I164: Favorite | J164: Home Team | K164: Underdog | L164: - | M164: - | N164: Yes | O164: No | P164: Under | Q164: 4 | R164: 13 | S164: 17
A165: 2013-11-24 | B165: Tampa Bay Buccaneers | C165: 24 | D165: Detroit Lions | E165: 21 | F165: 7 | G165: 48 | H165: Visiting Team | I165: Underdog | J165: Visiting Team | K165: Underdog | L165: No | M165: Yes | N165: - | O165: - | P165: Under | Q165: 3 | R165: 21 | S165: 24
A166: 2013-11-24 | B166: Jacksonville Jaguars | C166: 13 | D166: Houston Texans | E166: 6 | F166: 10 | G166: 43.5 | H166: Visiting Team | I166: Underdog | J166: Visiting Team | K166: Underdog | L166: No | M166: Yes | N166: - | O166: - | P166: Under | Q166: 7 | R166: 6 | S166: 13
A167: 2013-11-24 | B167: Minnesota Vikings | C167: 26 | D167: Green Bay Packers | E167: 26 | F167: 5.5 | G167: 44.5 | H167: Tie Game | I167: FALSE | J167: Visiting Team | K167: Underdog | L167: No | M167: Yes | N167: - | O167: - | P167: Over | Q167: 0 | R167: 26 | S167: 26
A168: 2013-11-24 | B168: San Diego Chargers | C168: 41 | D168: Kansas City Chiefs | E168: 38 | F168: 3 | G168: 42.5 | H168: Visiting Team | I168: Underdog | J168: Visiting Team | K168: Underdog | L168: No | M168: Yes | N168: - | O168: - | P168: Over | Q168: 3 | R168: 38 | S168: 41
A169: 2013-11-24 | B169: Carolina Panthers | C169: 20 | D169: Miami Dolphins | E169: 16 | F169: -4 | G169: 40.5 | H169: Visiting Team | I169: Favorite | J169: Push | K169: Push | L169: Push | M169: Push | N169: Push | O169: Push | P169: Under | Q169: 4 | R169: 16 | S169: 20
A170: 2013-11-24 | B170: Pittsburgh Steelers | C170: 27 | D170: Cleveland Browns | E170: 11 | F170: 2 | G170: 39 | H170: Visiting Team | I170: Underdog | J170: Visiting Team | K170: Underdog | L170: No | M170: Yes | N170: - | O170: - | P170: Under | Q170: 16 | R170: 11 | S170: 27
A171: 2013-11-24 | B171: Chicago Bears | C171: 21 | D171: St Louis Rams | E171: 42 | F171: 1.5 | G171: 45 | H171: Home Team | I171: Favorite | J171: Home Team | K171: Favorite | L171: Yes | M171: No | N171: - | O171: - | P171: Over | Q171: 21 | R171: 21 | S171: 42
A172: 2013-11-24 | B172: New York Jets | C172: 3 | D172: Baltimore Ravens | E172: 19 | F172: 3.5 | G172: 38.5 | H172: Home Team | I172: Favorite | J172: Home Team | K172: Favorite | L172: Yes | M172: No | N172: - | O172: - | P172: Under | Q172: 16 | R172: 3 | S172: 19
A173: 2013-11-24 | B173: Tennessee Titans | C173: 23 | D173: Oakland Raiders | E173: 19 | F173: -2 | G173: 42 | H173: Visiting Team | I173: Favorite | J173: Visiting Team | K173: Favorite | L173: - | M173: - | N173: No | O173: Yes | P173: Push | Q173: 4 | R173: 19 | S173: 23
A174: 2013-11-24 | B174: Indianapolis Colts | C174: 11 | D174: Arizona Cardinals | E174: 40 | F174: 3 | G174: 44.5 | H174: Home Team | I174: Favorite | J174: Home Team | K174: Favorite | L174: Yes | M174: No | N174: - | O174: - | P174: Over | Q174: 29 | R174: 11 | S174: 40
A175: 2013-11-24 | B175: Dallas Cowboys | C175: 24 | D175: New York Giants | E175: 21 | F175: 2.5 | G175: 44 | H175: Visiting Team | I175: Underdog | J175: Visiting Team | K175: Underdog | L175: No | M175: Yes | N175: - | O175: - | P175: Over | Q175: 3 | R175: 21 | S175: 24
A176: 2013-11-24 | B176: Denver Broncos | C176: 31 | D176: New England Patriots | E176: 34 | F176: -2.5 | G176: 53 | H176: Home Team | I176: Underdog | J176: Home Team | K176: Underdog | L176: - | M176: - | N176: Yes | O176: No | P176: Over | Q176: 3 | R176: 31 | S176: 34
A177: 2013-11-25 | B177: San Francisco 49ers | C177: 27 | D177: Washington Redskins | E177: 6 | F177: -5 | G177: 47 | H177: Visiting Team | I177: Favorite | J177: Visiting Team | K177: Favorite | L177: - | M177: - | N177: No | O177: Yes | P177: Under | Q177: 21 | R177: 6 | S177: 27
A178: 2013-11-28 | B178: Green Bay Packers | C178: 10 | D178: Detroit Lions | E178: 40 | F178: 6 | G178: 48.5 | H178: Home Team | I178: Favorite | J178: Home Team | K178: Favorite | L178: Yes | M178: No | N178: - | O178: - | P178: Over | Q178: 30 | R178: 10 | S178: 40
A179: 2013-11-28 | B179: Oakland Raiders | C179: 24 | D179: Dallas Cowboys | E179: 31 | F179: 8 | G179: 48 | H179: Home Team | I179: Favorite | J179: Visiting Team | K179: Underdog | L179: No | M179: Yes | N179: - | O179: - | P179: Over | Q179: 7 | R179: 24 | S179: 31
A180: 2013-11-28 | B180: Pittsburgh Steelers | C180: 20 | D180: Baltimore Ravens | E180: 22 | F180: 3 | G180: 40.5 | H180: Home Team | I180: Favorite | J180: Visiting Team | K180: Underdog | L180: No | M180: Yes | N180: - | O180: - | P180: Over | Q180: 2 | R180: 20 | S180: 22
A181: 2013-12-01 | B181: Tennessee Titans | C181: 14 | D181: Indianapolis Colts | E181: 22 | F181: 3.5 | G181: 46 | H181: Home Team | I181: Favorite | J181: Home Team | K181: Favorite | L181: Yes | M181: No | N181: - | O181: - | P181: Under | Q181: 8 | R181: 14 | S181: 22
A182: 2013-12-01 | B182: Denver Broncos | C182: 35 | D182: Kansas City Chiefs | E182: 28 | F182: -6 | G182: 50 | H182: Visiting Team | I182: Favorite | J182: Visiting Team | K182: Favorite | L182: - | M182: - | N182: No | O182: Yes | P182: Over | Q182: 7 | R182: 28 | S182: 35
A183: 2013-12-01 | B183: Jacksonville Jaguars | C183: 32 | D183: Cleveland Browns | E183: 28 | F183: 7.5 | G183: 39 | H183: Visiting Team | I183: Underdog | J183: Visiting Team | K183: Underdog | L183: No | M183: Yes | N183: - | O183: - | P183: Over | Q183: 4 | R183: 28 | S183: 32
A184: 2013-12-01 | B184: Tampa Bay Buccaneers | C184: 6 | D184: Carolina Panthers | E184: 27 | F184: 6.5 | G184: 40.5 | H184: Home Team | I184: Favorite | J184: Home Team | K184: Favorite | L184: Yes | M184: No | N184: - | O184: - | P184: Under | Q184: 21 | R184: 6 | S184: 27
A185: 2013-12-01 | B185: Chicago Bears | C185: 20 | D185: Minnesota Vikings | E185: 23 | F185: 1 | G185: 50.5 | H185: Home Team | I185: Favorite | J185: Home Team | K185: Favorite | L185: Yes | M185: No | N185: - | O185: - | P185: Under | Q185: 3 | R185: 20 | S185: 23
A186: 2013-12-01 | B186: Arizona Cardinals | C186: 21 | D186: Philadelphia Eagles | E186: 24 | F186: 3.5 | G186: 48.5 | H186: Home Team | I186: Favorite | J186: Visiting Team | K186: Underdog | L186: No | M186: Yes | N186: - | O186: - | P186: Under | Q186: 3 | R186: 21 | S186: 24
A187: 2013-12-01 | B187: Miami Dolphins | C187: 23 | D187: New York Jets | E187: 3 | F187: 2 | G187: 40.5 | H187: Visiting Team | I187: Underdog | J187: Visiting Team | K187: Underdog | L187: No | M187: Yes | N187: - | O187: - | P187: Under | Q187: 20 | R187: 3 | S187: 23
A188: 2013-12-01 | B188: Atlanta Falcons | C188: 34 | D188: Buffalo Bills | E188: 31 | F188: 4.5 | G188: 48.5 | H188: Visiting Team | I188: Underdog | J188: Visiting Team | K188: Underdog | L188: No | M188: Yes | N188: - | O188: - | P188: Over | Q188: 3 | R188: 31 | S188: 34
A189: 2013-12-01 | B189: St Louis Rams | C189: 13 | D189: San Francisco 49ers | E189: 23 | F189: 7.5 | G189: 40 | H189: Home Team | I189: Favorite | J189: Home Team | K189: Favorite | L189: Yes | M189: No | N189: - | O189: - | P189: Under | Q189: 10 | R189: 13 | S189: 23
A190: 2013-12-01 | B190: New England Patriots | C190: 34 | D190: Houston Texans | E190: 31 | F190: -6.5 | G190: 47.5 | H190: Visiting Team | I190: Favorite | J190: Home Team | K190: Underdog | L190: - | M190: - | N190: Yes | O190: No | P190: Over | Q190: 3 | R190: 31 | S190: 34
A191: 2013-12-01 | B191: Cincinnati Bengals | C191: 17 | D191: San Diego Chargers | E191: 10 | F191: -1.5 | G191: 48.5 | H191: Visiting Team | I191: Favorite | J191: Visiting Team | K191: Favorite | L191: - | M191: - | N191: No | O191: Yes | P191: Under | Q191: 7 | R191: 10 | S191: 17
A192: 2013-12-01 | B192: New York Giants | C192: 24 | D192: Washington Redskins | E192: 17 | F192: 1 | G192: 44.5 | H192: Visiting Team | I192: Underdog | J192: Visiting Team | K192: Underdog | L192: No | M192: Yes | N192: - | O192: - | P192: Under | Q192: 7 | R192: 17 | S192: 24
A193: 2013-12-02 | B193: New Orleans Saints | C193: 7 | D193: Seattle Seahawks | E193: 34 | F193: 5 | G193: 47.5 | H193: Home Team | I193: Favorite | J193: Home Team | K193: Favorite | L193: Yes | M193: No | N193: - | O193: - | P193: Under | Q193: 27 | R193: 7 | S193: 34
A194: 2013-12-05 | B194: Houston Texans | C194: 20 | D194: Jacksonville Jaguars | E194: 27 | F194: -3.5 | G194: 43 | H194: Home Team | I194: Underdog | J194: Home Team | K194: Underdog | L194: - | M194: - | N194: Yes | O194: No | P194: Over | Q194: 7 | R194: 20 | S194: 27
A195: 2013-12-08 | B195: Kansas City Chiefs | C195: 45 | D195: Washington Redskins | E195: 10 | F195: -3 | G195: 44.5 | H195: Visiting Team | I195: Favorite | J195: Visiting Team | K195: Favorite | L195: =IF(C195<>"",IF(AND($F195>0,$C195+$F195=$E195),"Push",IF(AND($F195<0,$E195-$F195=$C195),"Push",IF($F195<0,"-",IF(AND($F195>0,$C195+$F195<$E195),"Yes","No")))),"") -> - | M195: - | N195: =IF(C195<>"",IF(AND($F195>0,$C195+$F195=$E195),"Push",IF(AND($F195<0,$E195-$F195=$C195),"Push",IF($F195>0,"-",IF(AND($F195<0,$C195+$F195<$E195),"Yes","No")))),"") -> No | O195: =IF(C195<>"",IF(AND($F195>0,$C195+$F195=$E195),"Push",IF(AND($F195<0,$E195-$F195=$C195),"Push",IF($F195>0,"-",IF(AND($F195<0,$C195+$F195>$E195),"Yes","No")))),"") -> Yes | P195: =IF(C195<>"",IF($C195+$E195=$G195,"Push",IF($C195+$E195>$G195,"Over","Under")),"") -> Over | Q195: =IF(C195<>"",ABS(C195-E195),"") -> 35 | R195: =IF(C195<>"",IF(C195<E195, C195+0, E195+0),"") -> 10 | S195: =IF(C195<>"",IF(E195>C195, E195+0, C195+0),"") -> 45
A196: 2013-12-08 | B196: Minnesota Vikings | C196: 26 | D196: Baltimore Ravens | E196: 29 | F196: 6 | G196: 41.5 | H196: =IF(C196<>"",IF($C196=$E196,"Tie Game",IF($C196>$E196,"Visiting Team","Home Team")),"") -> Home Team | I196: Favorite | J196: =IF(C196<>"",IF($C196+$F196=$E196,"Push",IF($C196+$F196>$E196,"Visiting Team","Home Team")),"") -> Visiting Team | K196: =IF(C196<>"",IF(L196="Yes", "Favorite", IF(O196="Yes", "Favorite", IF(M196 = "Yes", "Underdog", IF(N196 = "Yes", "Underdog",IF(L196 = "Push", "Push"))))),"") -> Underdog | L196: No | M196: =IF(C196<>"",IF(AND($F196>0,$C196+$F196=$E196),"Push",IF(AND($F196<0,$E196-$F196=$C196),"Push",IF($F196<0,"-",IF(AND($F196>0,$C196+$F196>$E196),"Yes","No")))),"") -> Yes | N196: - | O196: - | P196: Over | Q196: 3 | R196: 26 | S196: 29
A197: 2013-12-08 | B197: Cleveland Browns | C197: 26 | D197: New England Patriots | E197: 27 | F197: 9.5 | G197: 47.5 | H197: Home Team | I197: =IF(C197<>"",IF(AND(F197>0,E197>C197),"Favorite",IF(AND(F197<0,E197>C197),"Underdog",IF(AND(F197<0,E197<C197),"Favorite",IF(AND(F197>0,E197<C197),"Underdog")))),"") -> Favorite | J197: Visiting Team | K197: Underdog | L197: No | M197: Yes | N197: - | O197: - | P197: Over | Q197: 1 | R197: 26 | S197: 27
A198: 2013-12-08 | B198: Oakland Raiders | C198: 27 | D198: New York Jets | E198: 37 | F198: 3 | G198: 39.5 | H198: Home Team | I198: Favorite | J198: Home Team | K198: Favorite | L198: Yes | M198: No | N198: - | O198: - | P198: Over | Q198: 10 | R198: 27 | S198: 37
A199: 2013-12-08 | B199: Indianapolis Colts | C199: 28 | D199: Cincinnati Bengals | E199: 42 | F199: 7 | G199: 43.5 | H199: Home Team | I199: Favorite | J199: Home Team | K199: Favorite | L199: Yes | M199: No | N199: - | O199: - | P199: Over | Q199: 14 | R199: 28 | S199: 42
A200: 2013-12-08 | B200: Carolina Panthers | C200: 13 | D200: New Orleans Saints | E200: 31 | F200: 3 | G200: 46.5 | H200: Home Team | I200: Favorite | J200: Home Team | K200: Favorite | L200: Yes | M200: No | N200: - | O200: - | P200: Under | Q200: 18 | R200: 13 | S200: 31
... 80 more rows

Sheet 2012
A1: Date | B1: Visiting Team | C1: Visitor Score | D1: Home Team | E1: Home Score | F1: Visitor Line | G1: Total Line | H1: Who Won Straight Up? Home or Visitor? | I1: Who Won Straight Up? Fav or Dog? | J1: Who Covered the spread? Home or Visitor? | K1: Who Covered the spread? Fav or Dog? | L1: Home Favorite Covered? | M1: Away Dog Covered? | N1: Home Dog Covered? | O1: Away Favorite Covered? | P1: Total Over or Under | Q1: Score Diff | R1: Loser's Score | S1: Winner's Score
A2: 2012-12-23 | B2: New England Patriots | C2: 23 | D2: Jacksonville Jaguars | E2: 16 | F2: -14.5 | G2: 51 | H2: =IF(C2<>"",IF($C2=$E2,"Tie Game",IF($C2>$E2,"Visiting Team","Home Team")),"") -> Visiting Team | I2: =IF(C2<>"",IF(AND(F2>0,E2>C2),"Favorite",IF(AND(F2<0,E2>C2),"Underdog",IF(AND(F2<0,E2<C2),"Favorite",IF(AND(F2>0,E2<C2),"Underdog")))),"") -> Favorite | J2: =IF(C2<>"",IF($C2+$F2=$E2,"Push",IF($C2+$F2>$E2,"Visiting Team","Home Team")),"") -> Home Team | K2: =IF(C2<>"",IF(L2="Yes", "Favorite", IF(O2="Yes", "Favorite", IF(M2 = "Yes", "Underdog", IF(N2 = "Yes", "Underdog",IF(L2 = "Push", "Push"))))),"") -> Underdog | L2: =IF(C2<>"",IF(AND($F2>0,$C2+$F2=$E2),"Push",IF(AND($F2<0,$E2-$F2=$C2),"Push",IF($F2<0,"-",IF(AND($F2>0,$C2+$F2<$E2),"Yes","No")))),"") -> - | M2: =IF(C2<>"",IF(AND($F2>0,$C2+$F2=$E2),"Push",IF(AND($F2<0,$E2-$F2=$C2),"Push",IF($F2<0,"-",IF(AND($F2>0,$C2+$F2>$E2),"Yes","No")))),"") -> - | N2: =IF(C2<>"",IF(AND($F2>0,$C2+$F2=$E2),"Push",IF(AND($F2<0,$E2-$F2=$C2),"Push",IF($F2>0,"-",IF(AND($F2<0,$C2+$F2<$E2),"Yes","No")))),"") -> Yes | O2: =IF(C2<>"",IF(AND($F2>0,$C2+$F2=$E2),"Push",IF(AND($F2<0,$E2-$F2=$C2),"Push",IF($F2>0,"-",IF(AND($F2<0,$C2+$F2>$E2),"Yes","No")))),"") -> No | P2: =IF(C2<>"",IF($C2+$E2=$G2,"Push",IF($C2+$E2>$G2,"Over","Under")),"") -> Under | Q2: =IF(C2<>"",ABS(C2-E2),"") -> 7 | R2: =IF(C2<>"",IF(C2<E2, C2+0, E2+0),"") -> 16 | S2: =IF(C2<>"",IF(E2>C2, E2+0, C2+0),"") -> 23
A3: 2012-11-25 | B3: Denver Broncos | C3: 17 | D3: Kansas City Chiefs | E3: 9 | F3: -10.5 | G3: 42.5 | H3: Visiting Team | I3: Favorite | J3: Home Team | K3: Underdog | L3: - | M3: - | N3: Yes | O3: No | P3: Under | Q3: 8 | R3: 9 | S3: 17
A4: 2012-12-06 | B4: Denver Broncos | C4: 26 | D4: Oakland Raiders | E4: 13 | F4: -10.5 | G4: 47 | H4: Visiting Team | I4: Favorite | J4: Visiting Team | K4: Favorite | L4: - | M4: - | N4: No | O4: Yes | P4: Under | Q4: 13 | R4: 13 | S4: 26
A5: 2012-10-08 | B5: Houston Texans | C5: 23 | D5: New York Jets | E5: 17 | F5: -10 | G5: 41 | H5: Visiting Team | I5: Favorite | J5: Home Team | K5: Underdog | L5: - | M5: - | N5: Yes | O5: No | P5: Under | Q5: 6 | R5: 17 | S5: 23
A6: 2012-09-09 | B6: Philadelphia Eagles | C6: 17 | D6: Cleveland Browns | E6: 16 | F6: -9.5 | G6: 42 | H6: Visiting Team | I6: Favorite | J6: Home Team | K6: Underdog | L6: - | M6: - | N6: Yes | O6: No | P6: Under | Q6: 1 | R6: 16 | S6: 17
A7: 2012-12-02 | B7: New England Patriots | C7: 23 | D7: Miami Dolphins | E7: 16 | F7: -9 | G7: 51.5 | H7: Visiting Team | I7: Favorite | J7: Home Team | K7: Underdog | L7: - | M7: - | N7: Yes | O7: No | P7: Under | Q7: 7 | R7: 16 | S7: 23
A8: 2012-12-02 | B8: San Francisco 49ers | C8: 13 | D8: St Louis Rams | E8: 16 | F8: -8 | G8: 41 | H8: Home Team | I8: Underdog | J8: Home Team | K8: Underdog | L8: - | M8: - | N8: Yes | O8: No | P8: Under | Q8: 3 | R8: 13 | S8: 16
A9: 2012-09-16 | B9: Houston Texans | C9: 27 | D9: Jacksonville Jaguars | E9: 7 | F9: -7 | G9: 40 | H9: Visiting Team | I9: Favorite | J9: Visiting Team | K9: Favorite | L9: - | M9: - | N9: No | O9: Yes | P9: Under | Q9: 20 | R9: 7 | S9: 27
A10: 2012-09-23 | B10: San Francisco 49ers | C10: 13 | D10: Minnesota Vikings | E10: 24 | F10: -7 | G10: 42.5 | H10: Home Team | I10: Underdog | J10: Home Team | K10: Underdog | L10: - | M10: - | N10: Yes | O10: No | P10: Under | Q10: 11 | R10: 13 | S10: 24
A11: 2012-10-28 | B11: New England Patriots | C11: 45 | D11: St Louis Rams | E11: 7 | F11: -7 | G11: 46 | H11: Visiting Team | I11: Favorite | J11: Visiting Team | K11: Favorite | L11: - | M11: - | N11: No | O11: Yes | P11: Over | Q11: 38 | R11: 7 | S11: 45
A12: 2012-10-29 | B12: San Francisco 49ers | C12: 24 | D12: Arizona Cardinals | E12: 3 | F12: -7 | G12: 38.5 | H12: Visiting Team | I12: Favorite | J12: Visiting Team | K12: Favorite | L12: - | M12: - | N12: No | O12: Yes | P12: Under | Q12: 21 | R12: 3 | S12: 24
A13: 2012-11-22 | B13: New England Patriots | C13: 49 | D13: New York Jets | E13: 19 | F13: -7 | G13: 48.5 | H13: Visiting Team | I13: Favorite | J13: Visiting Team | K13: Favorite | L13: - | M13: - | N13: No | O13: Yes | P13: Over | Q13: 30 | R13: 19 | S13: 49
A14: 2012-12-02 | B14: Houston Texans | C14: 24 | D14: Tennessee Titans | E14: 10 | F14: -7 | G14: 47 | H14: Visiting Team | I14: Favorite | J14: Visiting Team | K14: Favorite | L14: - | M14: - | N14: No | O14: Yes | P14: Under | Q14: 14 | R14: 10 | S14: 24
A15: 2012-12-23 | B15: Chicago Bears | C15: 28 | D15: Arizona Cardinals | E15: 13 | F15: -7 | G15: 36.5 | H15: Visiting Team | I15: Favorite | J15: Visiting Team | K15: Favorite | L15: - | M15: - | N15: No | O15: Yes | P15: Over | Q15: 15 | R15: 13 | S15: 28
A16: 2012-09-09 | B16: New England Patriots | C16: 34 | D16: Tennessee Titans | E16: 13 | F16: -6.5 | G16: 48 | H16: Visiting Team | I16: Favorite | J16: Visiting Team | K16: Favorite | L16: - | M16: - | N16: No | O16: Yes | P16: Under | Q16: 21 | R16: 13 | S16: 34
A17: 2012-10-07 | B17: Green Bay Packers | C17: 27 | D17: Indianapolis Colts | E17: 30 | F17: -6.5 | G17: 49 | H17: Home Team | I17: Underdog | J17: Home Team | K17: Underdog | L17: - | M17: - | N17: Yes | O17: No | P17: Over | Q17: 3 | R17: 27 | S17: 30
A18: 2012-10-07 | B18: Baltimore Ravens | C18: 9 | D18: Kansas City Chiefs | E18: 6 | F18: -6.5 | G18: 47 | H18: Visiting Team | I18: Favorite | J18: Home Team | K18: Underdog | L18: - | M18: - | N18: Yes | O18: No | P18: Under | Q18: 3 | R18: 6 | S18: 9
A19: 2012-10-07 | B19: Chicago Bears | C19: 41 | D19: Jacksonville Jaguars | E19: 3 | F19: -6.5 | G19: 40 | H19: Visiting Team | I19: Favorite | J19: Visiting Team | K19: Favorite | L19: - | M19: - | N19: No | O19: Yes | P19: Over | Q19: 38 | R19: 3 | S19: 41
A20: 2012-10-11 | B20: Pittsburgh Steelers | C20: 23 | D20: Tennessee Titans | E20: 26 | F20: -6.5 | G20: 43 | H20: Home Team | I20: Underdog | J20: Home Team | K20: Underdog | L20: - | M20: - | N20: Yes | O20: No | P20: Over | Q20: 3 | R20: 23 | S20: 26
A21: 2012-11-18 | B21: New Orleans Saints | C21: 38 | D21: Oakland Raiders | E21: 17 | F21: -6.5 | G21: 56 | H21: Visiting Team | I21: Favorite | J21: Visiting Team | K21: Favorite | L21: - | M21: - | N21: No | O21: Yes | P21: Under | Q21: 21 | R21: 17 | S21: 38
A22: 2012-12-16 | B22: Detroit Lions | C22: 10 | D22: Arizona Cardinals | E22: 38 | F22: -6.5 | G22: 43.5 | H22: Home Team | I22: Underdog | J22: Home Team | K22: Underdog | L22: - | M22: - | N22: Yes | O22: No | P22: Over | Q22: 28 | R22: 10 | S22: 38
A23: 2012-11-04 | B23: Detroit Lions | C23: 31 | D23: Jacksonville Jaguars | E23: 14 | F23: -6 | G23: 44 | H23: Visiting Team | I23: Favorite | J23: Visiting Team | K23: Favorite | L23: - | M23: - | N23: No | O23: Yes | P23: Over | Q23: 17 | R23: 14 | S23: 31
A24: 2012-12-02 | B24: Carolina Panthers | C24: 21 | D24: Kansas City Chiefs | E24: 27 | F24: -6 | G24: 41 | H24: Home Team | I24: Underdog | J24: Home Team | K24: Underdog | L24: - | M24: - | N24: Yes | O24: No | P24: Over | Q24: 6 | R24: 21 | S24: 27
A25: 2012-12-23 | B25: Indianapolis Colts | C25: 20 | D25: Kansas City Chiefs | E25: 13 | F25: -6 | G25: 41.5 | H25: Visiting Team | I25: Favorite | J25: Visiting Team | K25: Favorite | L25: - | M25: - | N25: No | O25: Yes | P25: Under | Q25: 7 | R25: 13 | S25: 20
A26: 2012-12-23 | B26: Washington Redskins | C26: 27 | D26: Philadelphia Eagles | E26: 20 | F26: -6 | G26: 46 | H26: Visiting Team | I26: Favorite | J26: Visiting Team | K26: Favorite | L26: - | M26: - | N26: No | O26: Yes | P26: Over | Q26: 7 | R26: 20 | S26: 27
A27: 2012-12-30 | B27: Houston Texans | C27: 16 | D27: Indianapolis Colts | E27: 28 | F27: -6 | G27: 47 | H27: Home Team | I27: Underdog | J27: Home Team | K27: Underdog | L27: - | M27: - | N27: Yes | O27: No | P27: Under | Q27: 12 | R27: 16 | S27: 28
A28: 2012-11-04 | B28: Denver Broncos | C28: 31 | D28: Cincinnati Bengals | E28: 23 | F28: -5.5 | G28: 47.5 | H28: Visiting Team | I28: Favorite | J28: Visiting Team | K28: Favorite | L28: - | M28: - | N28: No | O28: Yes | P28: Over | Q28: 8 | R28: 23 | S28: 31
A29: 2012-10-21 | B29: Green Bay Packers | C29: 30 | D29: St Louis Rams | E29: 20 | F29: -5 | G29: 45 | H29: Visiting Team | I29: Favorite | J29: Visiting Team | K29: Favorite | L29: - | M29: - | N29: No | O29: Yes | P29: Over | Q29: 10 | R29: 20 | S29: 30
A30: 2012-11-04 | B30: Chicago Bears | C30: 51 | D30: Tennessee Titans | E30: 20 | F30: -5 | G30: 43.5 | H30: Visiting Team | I30: Favorite | J30: Visiting Team | K30: Favorite | L30: - | M30: - | N30: No | O30: Yes | P30: Over | Q30: 31 | R30: 20 | S30: 51
A31: 2012-12-13 | B31: Cincinnati Bengals | C31: 34 | D31: Philadelphia Eagles | E31: 13 | F31: -5 | G31: 45 | H31: Visiting Team | I31: Favorite | J31: Visiting Team | K31: Favorite | L31: - | M31: - | N31: No | O31: Yes | P31: Over | Q31: 21 | R31: 13 | S31: 34
A32: 2012-12-16 | B32: Seattle Seahawks | C32: 50 | D32: Buffalo Bills | E32: 17 | F32: -5 | G32: 44 | H32: Visiting Team | I32: Favorite | J32: Visiting Team | K32: Favorite | L32: - | M32: - | N32: No | O32: Yes | P32: Over | Q32: 33 | R32: 17 | S32: 50
A33: 2012-09-30 | B33: New England Patriots | C33: 52 | D33: Buffalo Bills | E33: 28 | F33: -4.5 | G33: 48.5 | H33: Visiting Team | I33: Favorite | J33: Visiting Team | K33: Favorite | L33: - | M33: - | N33: No | O33: Yes | P33: Over | Q33: 24 | R33: 28 | S33: 52
A34: 2012-11-11 | B34: New York Giants | C34: 13 | D34: Cincinnati Bengals | E34: 31 | F34: -4.5 | G34: 47.5 | H34: Home Team | I34: Underdog | J34: Home Team | K34: Underdog | L34: - | M34: - | N34: Yes | O34: No | P34: Under | Q34: 18 | R34: 13 | S34: 31
A35: 2012-09-23 | B35: Detroit Lions | C35: 41 | D35: Tennessee Titans | E35: 44 | F35: -4 | G35: 47 | H35: Home Team | I35: Underdog | J35: Home Team | K35: Underdog | L35: - | M35: - | N35: Yes | O35: No | P35: Over | Q35: 3 | R35: 41 | S35: 44
A36: 2012-09-23 | B36: Pittsburgh Steelers | C36: 31 | D36: Oakland Raiders | E36: 34 | F36: -4 | G36: 45 | H36: Home Team | I36: Underdog | J36: Home Team | K36: Underdog | L36: - | M36: - | N36: Yes | O36: No | P36: Over | Q36: 3 | R36: 31 | S36: 34
A37: 2012-09-30 | B37: San Francisco 49ers | C37: 34 | D37: New York Jets | E37: 0 | F37: -4 | G37: 41 | H37: Visiting Team | I37: Favorite | J37: Visiting Team | K37: Favorite | L37: - | M37: - | N37: No | O37: Yes | P37: Under | Q37: 34 | R37: 0 | S37: 34
A38: 2012-10-14 | B38: New England Patriots | C38: 23 | D38: Seattle Seahawks | E38: 24 | F38: -4 | G38: 42.5 | H38: Home Team | I38: Underdog | J38: Home Team | K38: Underdog | L38: - | M38: - | N38: Yes | O38: No | P38: Over | Q38: 1 | R38: 23 | S38: 24
A39: 2012-11-11 | B39: Denver Broncos | C39: 36 | D39: Carolina Panthers | E39: 14 | F39: -4 | G39: 47 | H39: Visiting Team | I39: Favorite | J39: Visiting Team | K39: Favorite | L39: - | M39: - | N39: No | O39: Yes | P39: Over | Q39: 22 | R39: 14 | S39: 36
A40: 2012-11-22 | B40: Houston Texans | C40: 34 | D40: Detroit Lions | E40: 31 | F40: -4 | G40: 49 | H40: Visiting Team | I40: Favorite | J40: Home Team | K40: Underdog | L40: - | M40: - | N40: Yes | O40: No | P40: Over | Q40: 3 | R40: 31 | S40: 34
A41: 2012-12-22 | B41: Atlanta Falcons | C41: 31 | D41: Detroit Lions | E41: 18 | F41: -4 | G41: 50.5 | H41: Visiting Team | I41: Favorite | J41: Visiting Team | K41: Favorite | L41: - | M41: - | N41: No | O41: Yes | P41: Under | Q41: 13 | R41: 18 | S41: 31
A42: 2012-09-16 | B42: Washington Redskins | C42: 28 | D42: St Louis Rams | E42: 31 | F42: -3.5 | G42: 42.5 | H42: Home Team | I42: Underdog | J42: Home Team | K42: Underdog | L42: - | M42: - | N42: Yes | O42: No | P42: Over | Q42: 3 | R42: 28 | S42: 31
A43: 2012-09-24 | B43: Green Bay Packers | C43: 12 | D43: Seattle Seahawks | E43: 14 | F43: -3.5 | G43: 45.5 | H43: Home Team | I43: Underdog | J43: Home Team | K43: Underdog | L43: - | M43: - | N43: Yes | O43: No | P43: Under | Q43: 2 | R43: 12 | S43: 14
A44: 2012-11-04 | B44: Baltimore Ravens | C44: 25 | D44: Cleveland Browns | E44: 15 | F44: -3.5 | G44: 44 | H44: Visiting Team | I44: Favorite | J44: Visiting Team | K44: Favorite | L44: - | M44: - | N44: No | O44: Yes | P44: Under | Q44: 10 | R44: 15 | S44: 25
A45: 2012-11-08 | B45: Indianapolis Colts | C45: 27 | D45: Jacksonville Jaguars | E45: 10 | F45: -3.5 | G45: 43.5 | H45: Visiting Team | I45: Favorite | J45: Visiting Team | K45: Favorite | L45: - | M45: - | N45: No | O45: Yes | P45: Under | Q45: 17 | R45: 10 | S45: 27
A46: 2012-11-25 | B46: Tennessee Titans | C46: 19 | D46: Jacksonville Jaguars | E46: 24 | F46: -3.5 | G46: 45 | H46: Home Team | I46: Underdog | J46: Home Team | K46: Underdog | L46: - | M46: - | N46: Yes | O46: No | P46: Under | Q46: 5 | R46: 19 | S46: 24
A47: 2012-12-09 | B47: Atlanta Falcons | C47: 20 | D47: Carolina Panthers | E47: 30 | F47: -3.5 | G47: 47 | H47: Home Team | I47: Underdog | J47: Home Team | K47: Underdog | L47: - | M47: - | N47: Yes | O47: No | P47: Over | Q47: 10 | R47: 20 | S47: 30
A48: 2012-09-09 | B48: Carolina Panthers | C48: 10 | D48: Tampa Bay Buccaneers | E48: 16 | F48: -3 | G48: 45.5 | H48: Home Team | I48: Underdog | J48: Home Team | K48: Underdog | L48: - | M48: - | N48: Yes | O48: No | P48: Under | Q48: 6 | R48: 10 | S48: 16
A49: 2012-09-09 | B49: Seattle Seahawks | C49: 16 | D49: Arizona Cardinals | E49: 20 | F49: -3 | G49: 41 | H49: Home Team | I49: Underdog | J49: Home Team | K49: Underdog | L49: - | M49: - | N49: Yes | O49: No | P49: Under | Q49: 4 | R49: 16 | S49: 20
A50: 2012-09-16 | B50: Minnesota Vikings | C50: 20 | D50: Indianapolis Colts | E50: 23 | F50: -3 | G50: 45.5 | H50: Home Team | I50: Underdog | J50: Home Team | K50: Underdog | L50: - | M50: - | N50: Yes | O50: No | P50: Under | Q50: 3 | R50: 20 | S50: 23
A51: 2012-09-16 | B51: New Orleans Saints | C51: 27 | D51: Carolina Panthers | E51: 35 | F51: -3 | G51: 54 | H51: Home Team | I51: Underdog | J51: Home Team | K51: Underdog | L51: - | M51: - | N51: Yes | O51: No | P51: Over | Q51: 8 | R51: 27 | S51: 35
A52: 2012-09-16 | B52: Dallas Cowboys | C52: 7 | D52: Seattle Seahawks | E52: 27 | F52: -3 | G52: 43 | H52: Home Team | I52: Underdog | J52: Home Team | K52: Underdog | L52: - | M52: - | N52: Yes | O52: No | P52: Under | Q52: 20 | R52: 7 | S52: 27
A53: 2012-09-23 | B53: New York Jets | C53: 23 | D53: Miami Dolphins | E53: 20 | F53: -3 | G53: 40.5 | H53: Visiting Team | I53: Favorite | J53: Push | K53: Push | L53: Push | M53: Push | N53: Push | O53: Push | P53: Over | Q53: 3 | R53: 20 | S53: 23 | T53: x
A54: 2012-09-23 | B54: Buffalo Bills | C54: 24 | D54: Cleveland Browns | E54: 14 | F54: -3 | G54: 45 | H54: Visiting Team | I54: Favorite | J54: Visiting Team | K54: Favorite | L54: - | M54: - | N54: No | O54: Yes | P54: Under | Q54: 10 | R54: 14 | S54: 24
A55: 2012-09-23 | B55: Philadelphia Eagles | C55: 6 | D55: Arizona Cardinals | E55: 27 | F55: -3 | G55: 42 | H55: Home Team | I55: Underdog | J55: Home Team | K55: Underdog | L55: - | M55: - | N55: Yes | O55: No | P55: Under | Q55: 21 | R55: 6 | S55: 27
A56: 2012-10-07 | B56: Atlanta Falcons | C56: 24 | D56: Washington Redskins | E56: 17 | F56: -3 | G56: 51 | H56: Visiting Team | I56: Favorite | J56: Visiting Team | K56: Favorite | L56: - | M56: - | N56: No | O56: Yes | P56: Under | Q56: 7 | R56: 17 | S56: 24
A57: 2012-10-28 | B57: San Diego Chargers | C57: 6 | D57: Cleveland Browns | E57: 7 | F57: -3 | G57: 41 | H57: Home Team | I57: Underdog | J57: Home Team | K57: Underdog | L57: - | M57: - | N57: Yes | O57: No | P57: Under | Q57: 1 | R57: 6 | S57: 7
A58: 2012-11-11 | B58: Detroit Lions | C58: 24 | D58: Minnesota Vikings | E58: 34 | F58: -3 | G58: 45.5 | H58: Home Team | I58: Underdog | J58: Home Team | K58: Underdog | L58: - | M58: - | N58: Yes | O58: No | P58: Over | Q58: 10 | R58: 24 | S58: 34
A59: 2012-11-18 | B59: Green Bay Packers | C59: 24 | D59: Detroit Lions | E59: 20 | F59: -3 | G59: 53.5 | H59: Visiting Team | I59: Favorite | J59: Visiting Team | K59: Favorite | L59: - | M59: - | N59: No | O59: Yes | P59: Under | Q59: 4 | R59: 20 | S59: 24
A60: 2012-11-18 | B60: Cincinnati Bengals | C60: 28 | D60: Kansas City Chiefs | E60: 6 | F60: -3 | G60: 42.5 | H60: Visiting Team | I60: Favorite | J60: Visiting Team | K60: Favorite | L60: - | M60: - | N60: No | O60: Yes | P60: Under | Q60: 22 | R60: 6 | S60: 28
A61: 2012-11-18 | B61: Baltimore Ravens | C61: 13 | D61: Pittsburgh Steelers | E61: 10 | F61: -3 | G61: 40.5 | H61: Visiting Team | I61: Favorite | J61: Push | K61: Push | L61: Push | M61: Push | N61: Push | O61: Push | P61: Under | Q61: 3 | R61: 10 | S61: 13 | T61: x
A62: 2012-11-25 | B62: Seattle Seahawks | C62: 21 | D62: Miami Dolphins | E62: 24 | F62: -3 | G62: 38 | H62: Home Team | I62: Underdog | J62: Home Team | K62: Underdog | L62: - | M62: - | N62: Yes | O62: No | P62: Over | Q62: 3 | R62: 21 | S62: 24
A63: 2012-11-26 | B63: Carolina Panthers | C63: 30 | D63: Philadelphia Eagles | E63: 22 | F63: -3 | G63: 42 | H63: Visiting Team | I63: Favorite | J63: Visiting Team | K63: Favorite | L63: - | M63: - | N63: No | O63: Yes | P63: Over | Q63: 8 | R63: 22 | S63: 30
A64: 2012-12-03 | B64: New York Giants | C64: 16 | D64: Washington Redskins | E64: 17 | F64: -3 | G64: 50 | H64: Home Team | I64: Underdog | J64: Home Team | K64: Underdog | L64: - | M64: - | N64: Yes | O64: No | P64: Under | Q64: 1 | R64: 16 | S64: 17
A65: 2012-12-09 | B65: New York Jets | C65: 17 | D65: Jacksonville Jaguars | E65: 10 | F65: -3 | G65: 39 | H65: Visiting Team | I65: Favorite | J65: Visiting Team | K65: Favorite | L65: - | M65: - | N65: No | O65: Yes | P65: Under | Q65: 7 | R65: 10 | S65: 17
A66: 2012-12-16 | B66: Green Bay Packers | C66: 21 | D66: Chicago Bears | E66: 13 | F66: -3 | G66: 43.5 | H66: =IF(C66<>"",IF($C66=$E66,"Tie Game",IF($C66>$E66,"Visiting Team","Home Team")),"") -> Visiting Team | I66: =IF(C66<>"",IF(AND(F66>0,E66>C66),"Favorite",IF(AND(F66<0,E66>C66),"Underdog",IF(AND(F66<0,E66<C66),"Favorite",IF(AND(F66>0,E66<C66),"Underdog")))),"") -> Favorite | J66: =IF(C66<>"",IF($C66+$F66=$E66,"Push",IF($C66+$F66>$E66,"Visiting Team","Home Team")),"") -> Visiting Team | K66: =IF(C66<>"",IF(L66="Yes", "Favorite", IF(O66="Yes", "Favorite", IF(M66 = "Yes", "Underdog", IF(N66 = "Yes", "Underdog",IF(L66 = "Push", "Push"))))),"") -> Favorite | L66: =IF(C66<>"",IF(AND($F66>0,$C66+$F66=$E66),"Push",IF(AND($F66<0,$E66-$F66=$C66),"Push",IF($F66<0,"-",IF(AND($F66>0,$C66+$F66<$E66),"Yes","No")))),"") -> - | M66: =IF(C66<>"",IF(AND($F66>0,$C66+$F66=$E66),"Push",IF(AND($F66<0,$E66-$F66=$C66),"Push",IF($F66<0,"-",IF(AND($F66>0,$C66+$F66>$E66),"Yes","No")))),"") -> - | N66: =IF(C66<>"",IF(AND($F66>0,$C66+$F66=$E66),"Push",IF(AND($F66<0,$E66-$F66=$C66),"Push",IF($F66>0,"-",IF(AND($F66<0,$C66+$F66<$E66),"Yes","No")))),"") -> No | O66: =IF(C66<>"",IF(AND($F66>0,$C66+$F66=$E66),"Push",IF(AND($F66<0,$E66-$F66=$C66),"Push",IF($F66>0,"-",IF(AND($F66<0,$C66+$F66>$E66),"Yes","No")))),"") -> Yes | P66: =IF(C66<>"",IF($C66+$E66=$G66,"Push",IF($C66+$E66>$G66,"Over","Under")),"") -> Under | Q66: =IF(C66<>"",ABS(C66-E66),"") -> 8 | R66: =IF(C66<>"",IF(C66<E66, C66+0, E66+0),"") -> 13 | S66: =IF(C66<>"",IF(E66>C66, E66+0, C66+0),"") -> 21
A67: 2012-12-16 | B67: Denver Broncos | C67: 34 | D67: Baltimore Ravens | E67: 17 | F67: -3 | G67: 48 | H67: Visiting Team | I67: Favorite | J67: Visiting Team | K67: Favorite | L67: - | M67: - | N67: No | O67: Yes | P67: Over | Q67: 17 | R67: 17 | S67: 34
A68: 2012-12-30 | B68: Chicago Bears | C68: 26 | D68: Detroit Lions | E68: 24 | F68: -3 | G68: 46 | H68: Visiting Team | I68: Favorite | J68: Home Team | K68: Underdog | L68: - | M68: - | N68: Yes | O68: No | P68: Over | Q68: 2 | R68: 24 | S68: 26
A69: 2012-12-30 | B69: Green Bay Packers | C69: 34 | D69: Minnesota Vikings | E69: 37 | F69: -3 | G69: 46 | H69: Home Team | I69: Underdog | J69: Home Team | K69: Underdog | L69: - | M69: - | N69: Yes | O69: No | P69: Over | Q69: 3 | R69: 34 | S69: 37
A70: 2012-09-09 | B70: Atlanta Falcons | C70: 40 | D70: Kansas City Chiefs | E70: 24 | F70: -2.5 | G70: 43 | H70: Visiting Team | I70: Favorite | J70: Visiting Team | K70: Favorite | L70: - | M70: - | N70: No | O70: Yes | P70: Over | Q70: 16 | R70: 24 | S70: 40
A71: 2012-09-30 | B71: San Diego Chargers | C71: 37 | D71: Kansas City Chiefs | E71: 20 | F71: -2.5 | G71: 43.5 | H71: Visiting Team | I71: Favorite | J71: Visiting Team | K71: Favorite | L71: - | M71: - | N71: No | O71: Yes | P71: Over | Q71: 17 | R71: 20 | S71: 37
A72: 2012-09-30 | B72: Seattle Seahawks | C72: 13 | D72: St Louis Rams | E72: 19 | F72: -2.5 | G72: 39 | H72: Home Team | I72: Underdog | J72: Home Team | K72: Underdog | L72: - | M72: - | N72: Yes | O72: No | P72: Under | Q72: 6 | R72: 13 | S72: 19
A73: 2012-10-21 | B73: Dallas Cowboys | C73: 19 | D73: Carolina Panthers | E73: 14 | F73: -2.5 | G73: 45 | H73: Visiting Team | I73: Favorite | J73: Visiting Team | K73: Favorite | L73: - | M73: - | N73: No | O73: Yes | P73: Under | Q73: 5 | R73: 14 | S73: 19
A74: 2012-10-28 | B74: New York Giants | C74: 29 | D74: Dallas Cowboys | E74: 24 | F74: -2.5 | G74: 48 | H74: Visiting Team | I74: Favorite | J74: Visiting Team | K74: Favorite | L74: - | M74: - | N74: No | O74: Yes | P74: Over | Q74: 5 | R74: 24 | S74: 29
A75: 2012-11-11 | B75: Dallas Cowboys | C75: 38 | D75: Philadelphia Eagles | E75: 23 | F75: -2.5 | G75: 44.5 | H75: Visiting Team | I75: Favorite | J75: Visiting Team | K75: Favorite | L75: - | M75: - | N75: No | O75: Yes | P75: Over | Q75: 15 | R75: 23 | S75: 38
A76: 2012-12-02 | B76: Cleveland Browns | C76: 20 | D76: Oakland Raiders | E76: 17 | F76: -2.5 | G76: 39.5 | H76: Visiting Team | I76: Favorite | J76: Visiting Team | K76: Favorite | L76: - | M76: - | N76: No | O76: Yes | P76: Under | Q76: 3 | R76: 17 | S76: 20
A77: 2012-12-02 | B77: Cincinnati Bengals | C77: 20 | D77: San Diego Chargers | E77: 13 | F77: -2.5 | G77: 46 | H77: Visiting Team | I77: Favorite | J77: Visiting Team | K77: Favorite | L77: - | M77: - | N77: No | O77: Yes | P77: Under | Q77: 7 | R77: 13 | S77: 20
A78: 2012-12-16 | B78: Pittsburgh Steelers | C78: 24 | D78: Dallas Cowboys | E78: 27 | F78: -2.5 | G78: 46 | H78: Home Team | I78: Underdog | J78: Home Team | K78: Underdog | L78: - | M78: - | N78: Yes | O78: No | P78: Over | Q78: 3 | R78: 24 | S78: 27
A79: 2012-12-23 | B79: New York Giants | C79: 14 | D79: Baltimore Ravens | E79: 33 | F79: -2.5 | G79: 47 | H79: Home Team | I79: Underdog | J79: Home Team | K79: Underdog | L79: - | M79: - | N79: Yes | O79: No | P79: Push | Q79: 19 | R79: 14 | S79: 33
A80: 2012-09-16 | B80: Oakland Raiders | C80: 13 | D80: Miami Dolphins | E80: 35 | F80: -2 | G80: 41 | H80: Home Team | I80: Underdog | J80: Home Team | K80: Underdog | L80: - | M80: - | N80: Yes | O80: No | P80: Over | Q80: 22 | R80: 13 | S80: 35
A81: 2012-10-14 | B81: Cincinnati Bengals | C81: 24 | D81: Cleveland Browns | E81: 34 | F81: -2 | G81: 42 | H81: Home Team | I81: Underdog | J81: Home Team | K81: Underdog | L81: - | M81: - | N81: Yes | O81: No | P81: Over | Q81: 10 | R81: 24 | S81: 34
A82: 2012-10-14 | B82: Minnesota Vikings | C82: 26 | D82: Washington Redskins | E82: 38 | F82: -2 | G82: 44 | H82: Home Team | I82: Underdog | J82: Home Team | K82: Underdog | L82: - | M82: - | N82: Yes | O82: No | P82: Over | Q82: 12 | R82: 26 | S82: 38
A83: 2012-11-04 | B83: Miami Dolphins | C83: 20 | D83: Indianapolis Colts | E83: 23 | F83: -2 | G83: 43.5 | H83: Home Team | I83: Underdog | J83: Home Team | K83: Underdog | L83: - | M83: - | N83: Yes | O83: No | P83: Under | Q83: 3 | R83: 20 | S83: 23
A84: 2012-11-25 | B84: Pittsburgh Steelers | C84: 14 | D84: Cleveland Browns | E84: 20 | F84: -2 | G84: 33.5 | H84: Home Team | I84: Underdog | J84: Home Team | K84: Underdog | L84: - | M84: - | N84: Yes | O84: No | P84: Over | Q84: 6 | R84: 14 | S84: 20
A85: 2012-09-23 | B85: Houston Texans | C85: 31 | D85: Denver Broncos | E85: 25 | F85: -1.5 | G85: 43.5 | H85: Visiting Team | I85: Favorite | J85: Visiting Team | K85: Favorite | L85: - | M85: - | N85: No | O85: Yes | P85: Over | Q85: 6 | R85: 25 | S85: 31
A86: 2012-10-04 | B86: Arizona Cardinals | C86: 3 | D86: St Louis Rams | E86: 17 | F86: -1.5 | G86: 38 | H86: Home Team | I86: Underdog | J86: Home Team | K86: Underdog | L86: - | M86: - | N86: Yes | O86: No | P86: Under | Q86: 14 | R86: 3 | S86: 17
A87: 2012-10-21 | B87: New Orleans Saints | C87: 35 | D87: Tampa Bay Buccaneers | E87: 28 | F87: -1.5 | G87: 49.5 | H87: Visiting Team | I87: Favorite | J87: Visiting Team | K87: Favorite | L87: - | M87: - | N87: No | O87: Yes | P87: Over | Q87: 7 | R87: 28 | S87: 35
A88: 2012-11-11 | B88: Atlanta Falcons | C88: 27 | D88: New Orleans Saints | E88: 31 | F88: -1.5 | G88: 54 | H88: Home Team | I88: Underdog | J88: Home Team | K88: Underdog | L88: - | M88: - | N88: Yes | O88: No | P88: Over | Q88: 4 | R88: 27 | S88: 31
A89: 2012-11-18 | B89: Tampa Bay Buccaneers | C89: 27 | D89: Carolina Panthers | E89: 21 | F89: -1.5 | G89: 47 | H89: Visiting Team | I89: Favorite | J89: Visiting Team | K89: Favorite | L89: - | M89: - | N89: No | O89: Yes | P89: Over | Q89: 6 | R89: 21 | S89: 27
A90: 2012-11-25 | B90: Atlanta Falcons | C90: 24 | D90: Tampa Bay Buccaneers | E90: 23 | F90: -1.5 | G90: 51.5 | H90: Visiting Team | I90: Favorite | J90: Home Team | K90: Underdog | L90: - | M90: - | N90: Yes | O90: No | P90: Under | Q90: 1 | R90: 23 | S90: 24
A91: 2012-11-25 | B91: San Francisco 49ers | C91: 31 | D91: New Orleans Saints | E91: 21 | F91: -1.5 | G91: 50 | H91: Visiting Team | I91: Favorite | J91: Visiting Team | K91: Favorite | L91: - | M91: - | N91: No | O91: Yes | P91: Over | Q91: 10 | R91: 21 | S91: 31
A92: 2012-12-09 | B92: Chicago Bears | C92: 14 | D92: Minnesota Vikings | E92: 21 | F92: -1.5 | G92: 40.5 | H92: Home Team | I92: Underdog | J92: Home Team | K92: Underdog | L92: - | M92: - | N92: Yes | O92: No | P92: Under | Q92: 7 | R92: 14 | S92: 21
A93: 2012-11-25 | B93: Baltimore Ravens | C93: 16 | D93: San Diego Chargers | E93: 13 | F93: -1 | G93: 47 | H93: Visiting Team | I93: Favorite | J93: Visiting Team | K93: Favorite | L93: - | M93: - | N93: No | O93: Yes | P93: Under | Q93: 3 | R93: 13 | S93: 16
A94: 2012-10-15 | B94: Denver Broncos | C94: 35 | D94: San Diego Chargers | E94: 24 | F94: 0 | G94: 47.5 | H94: Visiting Team | I94: FALSE | J94: Visiting Team | K94: FALSE | L94: No | M94: No | N94: No | O94: No | P94: Over | Q94: 11 | R94: 24 | S94: 35
A95: 2012-12-16 | B95: New York Giants | C95: 0 | D95: Atlanta Falcons | E95: 34 | F95: 0 | G95: 50 | H95: Home Team | I95: FALSE | J95: Home Team | K95: FALSE | L95: No | M95: No | N95: No | O95: No | P95: Under | Q95: 34 | R95: 0 | S95: 34
A96: 2012-09-10 | B96: San Diego Chargers | C96: 22 | D96: Oakland Raiders | E96: 14 | F96: 1 | G96: 47.5 | H96: Visiting Team | I96: Underdog | J96: Visiting Team | K96: Underdog | L96: No | M96: Yes | N96: - | O96: - | P96: Under | Q96: 8 | R96: 14 | S96: 22
A97: 2012-10-21 | B97: Cleveland Browns | C97: 13 | D97: Indianapolis Colts | E97: 17 | F97: 1 | G97: 46.5 | H97: Home Team | I97: Favorite | J97: Home Team | K97: Favorite | L97: Yes | M97: No | N97: - | O97: - | P97: Under | Q97: 4 | R97: 13 | S97: 17
A98: 2012-10-21 | B98: Pittsburgh Steelers | C98: 24 | D98: Cincinnati Bengals | E98: 17 | F98: 1 | G98: 45.5 | H98: Visiting Team | I98: Underdog | J98: Visiting Team | K98: Underdog | L98: No | M98: Yes | N98: - | O98: - | P98: Under | Q98: 7 | R98: 17 | S98: 24
A99: 2012-10-28 | B99: Miami Dolphins | C99: 30 | D99: New York Jets | E99: 9 | F99: 1 | G99: 39 | H99: Visiting Team | I99: Underdog | J99: Visiting Team | K99: Underdog | L99: No | M99: Yes | N99: - | O99: - | P99: Push | Q99: 21 | R99: 9 | S99: 30
A100: 2012-10-28 | B100: Oakland Raiders | C100: 26 | D100: Kansas City Chiefs | E100: 16 | F100: 1 | G100: 42.5 | H100: Visiting Team | I100: Underdog | J100: Visiting Team | K100: Underdog | L100: No | M100: Yes | N100: - | O100: - | P100: Under | Q100: 10 | R100: 16 | S100: 26
A101: 2012-11-04 | B101: Tampa Bay Buccaneers | C101: 42 | D101: Oakland Raiders | E101: 32 | F101: 1 | G101: 47.5 | H101: Visiting Team | I101: Underdog | J101: Visiting Team | K101: Underdog | L101: No | M101: Yes | N101: - | O101: - | P101: Over | Q101: 10 | R101: 32 | S101: 42
A102: 2012-11-11 | B102: Houston Texans | C102: 13 | D102: Chicago Bears | E102: 6 | F102: 1 | G102: 40 | H102: Visiting Team | I102: Underdog | J102: Visiting Team | K102: Underdog | L102: No | M102: Yes | N102: - | O102: - | P102: Under | Q102: 7 | R102: 6 | S102: 13
A103: 2012-11-25 | B103: St Louis Rams | C103: 31 | D103: Arizona Cardinals | E103: 17 | F103: 1 | G103: 36.5 | H103: Visiting Team | I103: Underdog | J103: Visiting Team | K103: Underdog | L103: No | M103: Yes | N103: - | O103: - | P103: Over | Q103: 14 | R103: 17 | S103: 31
A104: 2012-12-17 | B104: New York Jets | C104: 10 | D104: Tennessee Titans | E104: 14 | F104: 1 | G104: 42 | H104: Home Team | I104: Favorite | J104: Home Team | K104: Favorite | L104: Yes | M104: No | N104: - | O104: - | P104: Under | Q104: 4 | R104: 10 | S104: 14
A105: 2012-09-30 | B105: Cincinnati Bengals | C105: 27 | D105: Jacksonville Jaguars | E105: 10 | F105: 1.5 | G105: 45.5 | H105: Visiting Team | I105: Underdog | J105: Visiting Team | K105: Underdog | L105: No | M105: Yes | N105: - | O105: - | P105: Under | Q105: 17 | R105: 10 | S105: 27
A106: 2012-09-30 | B106: New York Giants | C106: 17 | D106: Philadelphia Eagles | E106: 19 | F106: 1.5 | G106: 46.5 | H106: Home Team | I106: Favorite | J106: Home Team | K106: Favorite | L106: Yes | M106: No | N106: - | O106: - | P106: Under | Q106: 2 | R106: 17 | S106: 19
A107: 2012-12-09 | B107: Baltimore Ravens | C107: 28 | D107: Washington Redskins | E107: 31 | F107: 1.5 | G107: 48 | H107: Home Team | I107: Favorite | J107: Home Team | K107: Favorite | L107: Yes | M107: No | N107: - | O107: - | P107: Over | Q107: 3 | R107: 28 | S107: 31
A108: 2012-09-09 | B108: Pittsburgh Steelers | C108: 19 | D108: Denver Broncos | E108: 31 | F108: 2 | G108: 45.5 | H108: Home Team | I108: Favorite | J108: Home Team | K108: Favorite | L108: Yes | M108: No | N108: - | O108: - | P108: Over | Q108: 12 | R108: 19 | S108: 31
A109: 2012-09-30 | B109: Washington Redskins | C109: 24 | D109: Tampa Bay Buccaneers | E109: 22 | F109: 2 | G109: 45 | H109: Visiting Team | I109: Underdog | J109: Visiting Team | K109: Underdog | L109: No | M109: Yes | N109: - | O109: - | P109: Over | Q109: 2 | R109: 22 | S109: 24
A110: 2012-10-07 | B110: Seattle Seahawks | C110: 16 | D110: Carolina Panthers | E110: 12 | F110: 2 | G110: 42 | H110: Visiting Team | I110: Underdog | J110: Visiting Team | K110: Underdog | L110: No | M110: Yes | N110: - | O110: - | P110: Under | Q110: 4 | R110: 12 | S110: 16
A111: 2012-12-23 | B111: San Francisco 49ers | C111: 13 | D111: Seattle Seahawks | E111: 42 | F111: 2 | G111: 40.5 | H111: Home Team | I111: Favorite | J111: Home Team | K111: Favorite | L111: Yes | M111: No | N111: - | O111: - | P111: Over | Q111: 29 | R111: 13 | S111: 42
A112: 2012-11-15 | B112: Miami Dolphins | C112: 14 | D112: Buffalo Bills | E112: 19 | F112: 2.5 | G112: 46 | H112: Home Team | I112: Favorite | J112: Home Team | K112: Favorite | L112: Yes | M112: No | N112: - | O112: - | P112: Under | Q112: 5 | R112: 14 | S112: 19
A113: 2012-11-25 | B113: Green Bay Packers | C113: 10 | D113: New York Giants | E113: 38 | F113: 2.5 | G113: 51.5 | H113: Home Team | I113: Favorite | J113: Home Team | K113: Favorite | L113: Yes | M113: No | N113: - | O113: - | P113: Under | Q113: 28 | R113: 10 | S113: 38
A114: 2012-12-16 | B114: Minnesota Vikings | C114: 36 | D114: St Louis Rams | E114: 22 | F114: 2.5 | G114: 39.5 | H114: Visiting Team | I114: Underdog | J114: Visiting Team | K114: Underdog | L114: No | M114: Yes | N114: - | O114: - | P114: Over | Q114: 14 | R114: 22 | S114: 36
A115: 2012-09-09 | B115: Buffalo Bills | C115: 28 | D115: New York Jets | E115: 48 | F115: 3 | G115: 39 | H115: Home Team | I115: Favorite | J115: Home Team | K115: Favorite | L115: Yes | M115: No | N115: - | O115: - | P115: Over | Q115: 20 | R115: 28 | S115: 48
A116: 2012-09-16 | B116: Kansas City Chiefs | C116: 17 | D116: Buffalo Bills | E116: 35 | F116: 3 | G116: 45 | H116: Home Team | I116: Favorite | J116: Home Team | K116: Favorite | L116: Yes | M116: No | N116: - | O116: - | P116: Over | Q116: 18 | R116: 17 | S116: 35
A117: 2012-09-16 | B117: Baltimore Ravens | C117: 23 | D117: Philadelphia Eagles | E117: 24 | F117: 3 | G117: 47 | H117: Home Team | I117: Favorite | J117: Visiting Team | K117: Underdog | L117: No | M117: Yes | N117: - | O117: - | P117: Push | Q117: 1 | R117: 23 | S117: 24
A118: 2012-09-17 | B118: Denver Broncos | C118: 21 | D118: Atlanta Falcons | E118: 27 | F118: 3 | G118: 50.5 | H118: Home Team | I118: Favorite | J118: Home Team | K118: Favorite | L118: Yes | M118: No | N118: - | O118: - | P118: Under | Q118: 6 | R118: 21 | S118: 27
A119: 2012-09-20 | B119: New York Giants | C119: 36 | D119: Carolina Panthers | E119: 7 | F119: 3 | G119: 49 | H119: Visiting Team | I119: Underdog | J119: Visiting Team | K119: Underdog | L119: No | M119: Yes | N119: - | O119: - | P119: Under | Q119: 29 | R119: 7 | S119: 36
A120: 2012-09-23 | B120: Cincinnati Bengals | C120: 38 | D120: Washington Redskins | E120: 31 | F120: 3 | G120: 49.5 | H120: Visiting Team | I120: Underdog | J120: Visiting Team | K120: Underdog | L120: No | M120: Yes | N120: - | O120: - | P120: Over | Q120: 7 | R120: 31 | S120: 38
A121: 2012-09-23 | B121: Jacksonville Jaguars | C121: 22 | D121: Indianapolis Colts | E121: 17 | F121: 3 | G121: 42 | H121: Visiting Team | I121: Underdog | J121: Visiting Team | K121: Underdog | L121: No | M121: Yes | N121: - | O121: - | P121: Under | Q121: 5 | R121: 17 | S121: 22
A122: 2012-09-23 | B122: Atlanta Falcons | C122: 27 | D122: San Diego Chargers | E122: 3 | F122: 3 | G122: 47.5 | H122: Visiting Team | I122: Underdog | J122: Visiting Team | K122: Underdog | L122: No | M122: Yes | N122: - | O122: - | P122: Under | Q122: 24 | R122: 3 | S122: 27
A123: 2012-09-23 | B123: New England Patriots | C123: 30 | D123: Baltimore Ravens | E123: 31 | F123: 3 | G123: 48 | H123: Home Team | I123: Favorite | J123: Visiting Team | K123: Underdog | L123: No | M123: Yes | N123: - | O123: - | P123: Over | Q123: 1 | R123: 30 | S123: 31
A124: 2012-10-01 | B124: Chicago Bears | C124: 34 | D124: Dallas Cowboys | E124: 18 | F124: 3 | G124: 41.5 | H124: Visiting Team | I124: Underdog | J124: Visiting Team | K124: Underdog | L124: No | M124: Yes | N124: - | O124: - | P124: Over | Q124: 16 | R124: 18 | S124: 34
A125: 2012-10-07 | B125: Miami Dolphins | C125: 17 | D125: Cincinnati Bengals | E125: 13 | F125: 3 | G125: 45 | H125: Visiting Team | I125: Underdog | J125: Visiting Team | K125: Underdog | L125: No | M125: Yes | N125: - | O125: - | P125: Under | Q125: 4 | R125: 13 | S125: 17
A126: 2012-10-14 | B126: Indianapolis Colts | C126: 9 | D126: New York Jets | E126: 35 | F126: 3 | G126: 44 | H126: Home Team | I126: Favorite | J126: Home Team | K126: Favorite | L126: Yes | M126: No | N126: - | O126: - | P126: Push | Q126: 26 | R126: 9 | S126: 35
A127: 2012-10-14 | B127: Dallas Cowboys | C127: 29 | D127: Baltimore Ravens | E127: 31 | F127: 3 | G127: 45 | H127: Home Team | I127: Favorite | J127: Visiting Team | K127: Underdog | L127: No | M127: Yes | N127: - | O127: - | P127: Over | Q127: 2 | R127: 29 | S127: 31
A128: 2012-10-28 | B128: Indianapolis Colts | C128: 19 | D128: Tennessee Titans | E128: 13 | F128: 3 | G128: 47 | H128: Visiting Team | I128: Underdog | J128: Visiting Team | K128: Underdog | L128: No | M128: Yes | N128: - | O128: - | P128: Under | Q128: 6 | R128: 13 | S128: 19
A129: 2012-10-28 | B129: Atlanta Falcons | C129: 30 | D129: Philadelphia Eagles | E129: 17 | F129: 3 | G129: 43 | H129: Visiting Team | I129: Underdog | J129: Visiting Team | K129: Underdog | L129: No | M129: Yes | N129: - | O129: - | P129: Over | Q129: 13 | R129: 17 | S129: 30
A130: 2012-10-28 | B130: Seattle Seahawks | C130: 24 | D130: Detroit Lions | E130: 28 | F130: 3 | G130: 42.5 | H130: =IF(C130<>"",IF($C130=$E130,"Tie Game",IF($C130>$E130,"Visiting Team","Home Team")),"") -> Home Team | I130: =IF(C130<>"",IF(AND(F130>0,E130>C130),"Favorite",IF(AND(F130<0,E130>C130),"Underdog",IF(AND(F130<0,E130<C130),"Favorite",IF(AND(F130>0,E130<C130),"Underdog")))),"") -> Favorite | J130: =IF(C130<>"",IF($C130+$F130=$E130,"Push",IF($C130+$F130>$E130,"Visiting Team","Home Team")),"") -> Home Team | K130: =IF(C130<>"",IF(L130="Yes", "Favorite", IF(O130="Yes", "Favorite", IF(M130 = "Yes", "Underdog", IF(N130 = "Yes", "Underdog",IF(L130 = "Push", "Push"))))),"") -> Favorite | L130: =IF(C130<>"",IF(AND($F130>0,$C130+$F130=$E130),"Push",IF(AND($F130<0,$E130-$F130=$C130),"Push",IF($F130<0,"-",IF(AND($F130>0,$C130+$F130<$E130),"Yes","No")))),"") -> Yes | M130: =IF(C130<>"",IF(AND($F130>0,$C130+$F130=$E130),"Push",IF(AND($F130<0,$E130-$F130=$C130),"Push",IF($F130<0,"-",IF(AND($F130>0,$C130+$F130>$E130),"Yes","No")))),"") -> No | N130: =IF(C130<>"",IF(AND($F130>0,$C130+$F130=$E130),"Push",IF(AND($F130<0,$E130-$F130=$C130),"Push",IF($F130>0,"-",IF(AND($F130<0,$C130+$F130<$E130),"Yes","No")))),"") -> - | O130: =IF(C130<>"",IF(AND($F130>0,$C130+$F130=$E130),"Push",IF(AND($F130<0,$E130-$F130=$C130),"Push",IF($F130>0,"-",IF(AND($F130<0,$C130+$F130>$E130),"Yes","No")))),"") -> - | P130: =IF(C130<>"",IF($C130+$E130=$G130,"Push",IF($C130+$E130>$G130,"Over","Under")),"") -> Over | Q130: =IF(C130<>"",ABS(C130-E130),"") -> 4 | R130: =IF(C130<>"",IF(C130<E130, C130+0, E130+0),"") -> 24 | S130: =IF(C130<>"",IF(E130>C130, E130+0, C130+0),"") -> 28
A131: 2012-11-04 | B131: Carolina Panthers | C131: 21 | D131: Washington Redskins | E131: 13 | F131: 3 | G131: 48.5 | H131: Visiting Team | I131: Underdog | J131: Visiting Team | K131: Underdog | L131: No | M131: Yes | N131: - | O131: - | P131: Under | Q131: 8 | R131: 13 | S131: 21
A132: 2012-11-05 | B132: Philadelphia Eagles | C132: 13 | D132: New Orleans Saints | E132: 28 | F132: 3 | G132: 52 | H132: Home Team | I132: Favorite | J132: Home Team | K132: Favorite | L132: Yes | M132: No | N132: - | O132: - | P132: Under | Q132: 15 | R132: 13 | S132: 28
A133: 2012-11-11 | B133: San Diego Chargers | C133: 24 | D133: Tampa Bay Buccaneers | E133: 34 | F133: 3 | G133: 47 | H133: Home Team | I133: Favorite | J133: Home Team | K133: Favorite | L133: Yes | M133: No | N133: - | O133: - | P133: Over | Q133: 10 | R133: 24 | S133: 34
A134: 2012-11-25 | B134: Buffalo Bills | C134: 13 | D134: Indianapolis Colts | E134: 20 | F134: 3 | G134: 51.5 | H134: Home Team | I134: Favorite | J134: Home Team | K134: Favorite | L134: Yes | M134: No | N134: - | O134: - | P134: Under | Q134: 7 | R134: 13 | S134: 20
A135: 2012-12-09 | B135: St Louis Rams | C135: 15 | D135: Buffalo Bills | E135: 12 | F135: 3 | G135: 42.5 | H135: Visiting Team | I135: Underdog | J135: Visiting Team | K135: Underdog | L135: No | M135: Yes | N135: - | O135: - | P135: Under | Q135: 3 | R135: 12 | S135: 15
A136: 2012-12-16 | B136: Carolina Panthers | C136: 31 | D136: San Diego Chargers | E136: 7 | F136: 3 | G136: 45.5 | H136: Visiting Team | I136: Underdog | J136: Visiting Team | K136: Underdog | L136: No | M136: Yes | N136: - | O136: - | P136: Under | Q136: 24 | R136: 7 | S136: 31
A137: 2012-12-23 | B137: New Orleans Saints | C137: 34 | D137: Dallas Cowboys | E137: 31 | F137: 3 | G137: 54.5 | H137: Visiting Team | I137: Underdog | J137: Visiting Team | K137: Underdog | L137: No | M137: Yes | N137: - | O137: - | P137: Over | Q137: 3 | R137: 31 | S137: 34
A138: 2012-12-23 | B138: St Louis Rams | C138: 28 | D138: Tampa Bay Buccaneers | E138: 13 | F138: 3 | G138: 44 | H138: Visiting Team | I138: Underdog | J138: Visiting Team | K138: Underdog | L138: No | M138: Yes | N138: - | O138: - | P138: Under | Q138: 15 | R138: 13 | S138: 28
A139: 2012-12-23 | B139: San Diego Chargers | C139: 27 | D139: New York Jets | E139: 17 | F139: 3 | G139: 38 | H139: Visiting Team | I139: Underdog | J139: Visiting Team | K139: Underdog | L139: No | M139: Yes | N139: - | O139: - | P139: Over | Q139: 10 | R139: 17 | S139: 27
A140: 2012-12-30 | B140: Baltimore Ravens | C140: 17 | D140: Cincinnati Bengals | E140: 23 | F140: 3 | G140: 42.5 | H140: Home Team | I140: Favorite | J140: Home Team | K140: Favorite | L140: Yes | M140: No | N140: - | O140: - | P140: Under | Q140: 6 | R140: 17 | S140: 23
A141: 2012-12-30 | B141: Dallas Cowboys | C141: 18 | D141: Washington Redskins | E141: 28 | F141: 3 | G141: 49 | H141: Home Team | I141: Favorite | J141: Home Team | K141: Favorite | L141: Yes | M141: No | N141: - | O141: - | P141: Under | Q141: 10 | R141: 18 | S141: 28
A142: 2012-12-30 | B142: Tampa Bay Buccaneers | C142: 22 | D142: Atlanta Falcons | E142: 17 | F142: 3 | G142: 46 | H142: Visiting Team | I142: Underdog | J142: Visiting Team | K142: Underdog | L142: No | M142: Yes | N142: - | O142: - | P142: Under | Q142: 5 | R142: 17 | S142: 22
A143: 2012-09-09 | B143: Jacksonville Jaguars | C143: 23 | D143: Minnesota Vikings | E143: 26 | F143: 3.5 | G143: 38 | H143: Home Team | I143: Favorite | J143: Visiting Team | K143: Underdog | L143: No | M143: Yes | N143: - | O143: - | P143: Over | Q143: 3 | R143: 23 | S143: 26
A144: 2012-10-07 | B144: San Diego Chargers | C144: 24 | D144: New Orleans Saints | E144: 31 | F144: 3.5 | G144: 52.5 | H144: Home Team | I144: Favorite | J144: Home Team | K144: Favorite | L144: Yes | M144: No | N144: - | O144: - | P144: Over | Q144: 7 | R144: 24 | S144: 31
A145: 2012-10-14 | B145: Detroit Lions | C145: 26 | D145: Philadelphia Eagles | E145: 23 | F145: 3.5 | G145: 47.5 | H145: Visiting Team | I145: Underdog | J145: Visiting Team | K145: Underdog | L145: No | M145: Yes | N145: - | O145: - | P145: Over | Q145: 3 | R145: 23 | S145: 26
A146: 2012-11-04 | B146: Pittsburgh Steelers | C146: 24 | D146: New York Giants | E146: 20 | F146: 3.5 | G146: 47.5 | H146: Visiting Team | I146: Underdog | J146: Visiting Team | K146: Underdog | L146: No | M146: Yes | N146: - | O146: - | P146: Under | Q146: 4 | R146: 20 | S146: 24
A147: 2012-11-18 | B147: Philadelphia Eagles | C147: 6 | D147: Washington Redskins | E147: 31 | F147: 3.5 | G147: 46 | H147: Home Team | I147: Favorite | J147: Home Team | K147: Favorite | L147: Yes | M147: No | N147: - | O147: - | P147: Under | Q147: 25 | R147: 6 | S147: 31
A148: 2012-11-18 | B148: New York Jets | C148: 27 | D148: St Louis Rams | E148: 13 | F148: 3.5 | G148: 38.5 | H148: Visiting Team | I148: Underdog | J148: Visiting Team | K148: Underdog | L148: No | M148: Yes | N148: - | O148: - | P148: Over | Q148: 14 | R148: 13 | S148: 27
A149: 2012-11-22 | B149: Washington Redskins | C149: 38 | D149: Dallas Cowboys | E149: 31 | F149: 3.5 | G149: 47.5 | H149: Visiting Team | I149: Underdog | J149: Visiting Team | K149: Underdog | L149: No | M149: Yes | N149: - | O149: - | P149: Over | Q149: 7 | R149: 31 | S149: 38
A150: 2012-11-29 | B150: New Orleans Saints | C150: 13 | D150: Atlanta Falcons | E150: 23 | F150: 3.5 | G150: 55 | H150: Home Team | I150: Favorite | J150: Home Team | K150: Favorite | L150: Yes | M150: No | N150: - | O150: - | P150: Under | Q150: 10 | R150: 13 | S150: 23
A151: 2012-12-02 | B151: Seattle Seahawks | C151: 23 | D151: Chicago Bears | E151: 17 | F151: 3.5 | G151: 37 | H151: Visiting Team | I151: Underdog | J151: Visiting Team | K151: Underdog | L151: No | M151: Yes | N151: - | O151: - | P151: Over | Q151: 6 | R151: 17 | S151: 23
A152: 2012-12-09 | B152: Dallas Cowboys | C152: 20 | D152: Cincinnati Bengals | E152: 19 | F152: 3.5 | G152: 46 | H152: Visiting Team | I152: Underdog | J152: Visiting Team | K152: Underdog | L152: No | M152: Yes | N152: - | O152: - | P152: Under | Q152: 1 | R152: 19 | S152: 20
A153: 2012-12-16 | B153: Tampa Bay Buccaneers | C153: 0 | D153: New Orleans Saints | E153: 41 | F153: 3.5 | G153: 55 | H153: Home Team | I153: Favorite | J153: Home Team | K153: Favorite | L153: Yes | M153: No | N153: - | O153: - | P153: Under | Q153: 41 | R153: 0 | S153: 41
A154: 2012-12-23 | B154: Cincinnati Bengals | C154: 13 | D154: Pittsburgh Steelers | E154: 10 | F154: 3.5 | G154: 40 | H154: Visiting Team | I154: Underdog | J154: Visiting Team | K154: Underdog | L154: No | M154: Yes | N154: - | O154: - | P154: Under | Q154: 3 | R154: 10 | S154: 13
A155: 2012-12-30 | B155: New York Jets | C155: 9 | D155: Buffalo Bills | E155: 28 | F155: 3.5 | G155: 41 | H155: Home Team | I155: Favorite | J155: Home Team | K155: Favorite | L155: Yes | M155: No | N155: - | O155: - | P155: Under | Q155: 19 | R155: 9 | S155: 28
A156: 2012-09-05 | B156: Dallas Cowboys | C156: 24 | D156: New York Giants | E156: 17 | F156: 4 | G156: 46 | H156: Visiting Team | I156: Underdog | J156: Visiting Team | K156: Underdog | L156: No | M156: Yes | N156: - | O156: - | P156: Under | Q156: 7 | R156: 17 | S156: 24
A157: 2012-09-30 | B157: Minnesota Vikings | C157: 20 | D157: Detroit Lions | E157: 13 | F157: 4 | G157: 48.5 | H157: Visiting Team | I157: Underdog | J157: Visiting Team | K157: Underdog | L157: No | M157: Yes | N157: - | O157: - | P157: Under | Q157: 7 | R157: 13 | S157: 20
A158: 2012-09-30 | B158: Miami Dolphins | C158: 21 | D158: Arizona Cardinals | E158: 24 | F158: 4 | G158: 39.5 | H158: Home Team | I158: Favorite | J158: Visiting Team | K158: Underdog | L158: No | M158: Yes | N158: - | O158: - | P158: Over | Q158: 3 | R158: 21 | S158: 24
A159: 2012-10-07 | B159: Philadelphia Eagles | C159: 14 | D159: Pittsburgh Steelers | E159: 16 | F159: 4 | G159: 44 | H159: Home Team | I159: Favorite | J159: Visiting Team | K159: Underdog | L159: No | M159: Yes | N159: - | O159: - | P159: Under | Q159: 2 | R159: 14 | S159: 16
A160: 2012-10-14 | B160: Green Bay Packers | C160: 42 | D160: Houston Texans | E160: 24 | F160: 4 | G160: 46.5 | H160: Visiting Team | I160: Underdog | J160: Visiting Team | K160: Underdog | L160: No | M160: Yes | N160: - | O160: - | P160: Over | Q160: 18 | R160: 24 | S160: 42
A161: 2012-11-04 | B161: Minnesota Vikings | C161: 20 | D161: Seattle Seahawks | E161: 30 | F161: 4 | G161: 38.5 | H161: Home Team | I161: Favorite | J161: Home Team | K161: Favorite | L161: Yes | M161: No | N161: - | O161: - | P161: Over | Q161: 10 | R161: 20 | S161: 30
A162: 2012-12-09 | B162: Tennessee Titans | C162: 23 | D162: Indianapolis Colts | E162: 27 | F162: 4 | G162: 47 | H162: Home Team | I162: Favorite | J162: Push | K162: Push | L162: Push | M162: Push | N162: Push | O162: Push | P162: Over | Q162: 4 | R162: 23 | S162: 27
A163: 2012-12-16 | B163: Washington Redskins | C163: 38 | D163: Cleveland Browns | E163: 21 | F163: 4 | G163: 40.5 | H163: Visiting Team | I163: Underdog | J163: Visiting Team | K163: Underdog | L163: No | M163: Yes | N163: - | O163: - | P163: Over | Q163: 17 | R163: 21 | S163: 38
A164: 2012-12-30 | B164: Carolina Panthers | C164: 44 | D164: New Orleans Saints | E164: 38 | F164: 4 | G164: 54 | H164: Visiting Team | I164: Underdog | J164: Visiting Team | K164: Underdog | L164: No | M164: Yes | N164: - | O164: - | P164: Over | Q164: 6 | R164: 38 | S164: 44
A165: 2012-09-16 | B165: New York Jets | C165: 10 | D165: Pittsburgh Steelers | E165: 27 | F165: 4.5 | G165: 43 | H165: Home Team | I165: Favorite | J165: Home Team | K165: Favorite | L165: Yes | M165: No | N165: - | O165: - | P165: Under | Q165: 17 | R165: 10 | S165: 27
A166: 2012-10-21 | B166: Tennessee Titans | C166: 35 | D166: Buffalo Bills | E166: 34 | F166: 4.5 | G166: 46.5 | H166: Visiting Team | I166: Underdog | J166: Visiting Team | K166: Underdog | L166: No | M166: Yes | N166: - | O166: - | P166: Over | Q166: 1 | R166: 34 | S166: 35
A167: 2012-10-28 | B167: Washington Redskins | C167: 12 | D167: Pittsburgh Steelers | E167: 27 | F167: 4.5 | G167: 44 | H167: Home Team | I167: Favorite | J167: Home Team | K167: Favorite | L167: Yes | M167: No | N167: - | O167: - | P167: Under | Q167: 15 | R167: 12 | S167: 27
A168: 2012-11-04 | B168: Dallas Cowboys | C168: 13 | D168: Atlanta Falcons | E168: 19 | F168: 4.5 | G168: 47.5 | H168: Home Team | I168: Favorite | J168: Home Team | K168: Favorite | L168: Yes | M168: No | N168: - | O168: - | P168: Under | Q168: 6 | R168: 13 | S168: 19
A169: 2012-12-09 | B169: New Orleans Saints | C169: 27 | D169: New York Giants | E169: 52 | F169: 4.5 | G169: 51.5 | H169: Home Team | I169: Favorite | J169: Home Team | K169: Favorite | L169: Yes | M169: No | N169: - | O169: - | P169: Over | Q169: 25 | R169: 27 | S169: 52
A170: 2012-12-16 | B170: Kansas City Chiefs | C170: 0 | D170: Oakland Raiders | E170: 15 | F170: 4.5 | G170: 44 | H170: Home Team | I170: Favorite | J170: Home Team | K170: Favorite | L170: Yes | M170: No | N170: - | O170: - | P170: Under | Q170: 15 | R170: 0 | S170: 15
A171: 2012-10-14 | B171: Kansas City Chiefs | C171: 10 | D171: Tampa Bay Buccaneers | E171: 38 | F171: 5 | G171: 39.5 | H171: Home Team | I171: Favorite | J171: Home Team | K171: Favorite | L171: Yes | M171: No | N171: - | O171: - | P171: Over | Q171: 28 | R171: 10 | S171: 38
A172: 2012-10-14 | B172: St Louis Rams | C172: 14 | D172: Miami Dolphins | E172: 17 | F172: 5 | G172: 38 | H172: Home Team | I172: Favorite | J172: Visiting Team | K172: Underdog | L172: No | M172: Yes | N172: - | O172: - | P172: Under | Q172: 3 | R172: 14 | S172: 17
A173: 2012-10-14 | B173: Buffalo Bills | C173: 19 | D173: Arizona Cardinals | E173: 16 | F173: 5 | G173: 44 | H173: Visiting Team | I173: Underdog | J173: Visiting Team | K173: Underdog | L173: No | M173: Yes | N173: - | O173: - | P173: Under | Q173: 3 | R173: 16 | S173: 19
A174: 2012-11-19 | B174: Chicago Bears | C174: 7 | D174: San Francisco 49ers | E174: 32 | F174: 5 | G174: 35 | H174: Home Team | I174: Favorite | J174: Home Team | K174: Favorite | L174: Yes | M174: No | N174: - | O174: - | P174: Over | Q174: 25 | R174: 7 | S174: 32
A175: 2012-12-16 | B175: San Francisco 49ers | C175: 41 | D175: New England Patriots | E175: 34 | F175: 5 | G175: 47.5 | H175: Visiting Team | I175: Underdog | J175: Visiting Team | K175: Underdog | L175: No | M175: Yes | N175: - | O175: - | P175: Over | Q175: 7 | R175: 34 | S175: 41
A176: 2012-12-23 | B176: Buffalo Bills | C176: 10 | D176: Miami Dolphins | E176: 24 | F176: 5 | G176: 43 | H176: Home Team | I176: Favorite | J176: Home Team | K176: Favorite | L176: Yes | M176: No | N176: - | O176: - | P176: Under | Q176: 14 | R176: 10 | S176: 24
A177: 2012-09-09 | B177: San Francisco 49ers | C177: 30 | D177: Green Bay Packers | E177: 22 | F177: 5.5 | G177: 46.5 | H177: Visiting Team | I177: Underdog | J177: Visiting Team | K177: Underdog | L177: No | M177: Yes | N177: - | O177: - | P177: Over | Q177: 8 | R177: 22 | S177: 30
A178: 2012-09-13 | B178: Chicago Bears | C178: 10 | D178: Green Bay Packers | E178: 23 | F178: 5.5 | G178: 51 | H178: Home Team | I178: Favorite | J178: Home Team | K178: Favorite | L178: Yes | M178: No | N178: - | O178: - | P178: Under | Q178: 13 | R178: 10 | S178: 23
A179: 2012-10-25 | B179: Tampa Bay Buccaneers | C179: 36 | D179: Minnesota Vikings | E179: 17 | F179: 5.5 | G179: 43 | H179: Visiting Team | I179: Underdog | J179: Visiting Team | K179: Underdog | L179: No | M179: Yes | N179: - | O179: - | P179: Over | Q179: 19 | R179: 17 | S179: 36
A180: 2012-11-11 | B180: New York Jets | C180: 7 | D180: Seattle Seahawks | E180: 28 | F180: 5.5 | G180: 38.5 | H180: Home Team | I180: Favorite | J180: Home Team | K180: Favorite | L180: Yes | M180: No | N180: - | O180: - | P180: Under | Q180: 21 | R180: 7 | S180: 28
A181: 2012-12-10 | B181: Houston Texans | C181: 14 | D181: New England Patriots | E181: 42 | F181: 5.5 | G181: 51 | H181: Home Team | I181: Favorite | J181: Home Team | K181: Favorite | L181: Yes | M181: No | N181: - | O181: - | P181: Over | Q181: 28 | R181: 14 | S181: 42
A182: 2012-12-30 | B182: Jacksonville Jaguars | C182: 20 | D182: Tennessee Titans | E182: 38 | F182: 5.5 | G182: 42 | H182: Home Team | I182: Favorite | J182: Home Team | K182: Favorite | L182: Yes | M182: No | N182: - | O182: - | P182: Over | Q182: 18 | R182: 20 | S182: 38
A183: 2012-09-16 | B183: Tennessee Titans | C183: 10 | D183: San Diego Chargers | E183: 38 | F183: 6 | G183: 43.5 | H183: Home Team | I183: Favorite | J183: Home Team | K183: Favorite | L183: Yes | M183: No | N183: - | O183: - | P183: Over | Q183: 28 | R183: 10 | S183: 38
A184: 2012-10-07 | B184: Tennessee Titans | C184: 7 | D184: Minnesota Vikings | E184: 30 | F184: 6 | G184: 44 | H184: Home Team | I184: Favorite | J184: Home Team | K184: Favorite | L184: Yes | M184: No | N184: - | O184: - | P184: Under | Q184: 23 | R184: 7 | S184: 30
A185: 2012-10-07 | B185: Denver Broncos | C185: 21 | D185: New England Patriots | E185: 31 | F185: 6 | G185: 51.5 | H185: Home Team | I185: Favorite | J185: Home Team | K185: Favorite | L185: Yes | M185: No | N185: - | O185: - | P185: Over | Q185: 10 | R185: 21 | S185: 31
A186: 2012-10-21 | B186: Jacksonville Jaguars | C186: 23 | D186: Oakland Raiders | E186: 26 | F186: 6 | G186: 44 | H186: Home Team | I186: Favorite | J186: Visiting Team | K186: Underdog | L186: No | M186: Yes | N186: - | O186: - | P186: Over | Q186: 3 | R186: 23 | S186: 26
A187: 2012-12-02 | B187: Arizona Cardinals | C187: 6 | D187: New York Jets | E187: 7 | F187: 6 | G187: 36.5 | H187: Home Team | I187: Favorite | J187: Visiting Team | K187: Underdog | L187: No | M187: Yes | N187: - | O187: - | P187: Under | Q187: 1 | R187: 6 | S187: 7
A188: 2012-12-02 | B188: Jacksonville Jaguars | C188: 18 | D188: Buffalo Bills | E188: 34 | F188: 6 | G188: 42 | H188: Home Team | I188: Favorite | J188: Home Team | K188: Favorite | L188: Yes | M188: No | N188: - | O188: - | P188: Over | Q188: 16 | R188: 18 | S188: 34
A189: 2012-09-30 | B189: Oakland Raiders | C189: 6 | D189: Denver Broncos | E189: 37 | F189: 6.5 | G189: 47 | H189: Home Team | I189: Favorite | J189: Home Team | K189: Favorite | L189: Yes | M189: No | N189: - | O189: - | P189: Under | Q189: 31 | R189: 6 | S189: 37
A190: 2012-10-21 | B190: Arizona Cardinals | C190: 14 | D190: Minnesota Vikings | E190: 21 | F190: 6.5 | G190: 39.5 | H190: Home Team | I190: Favorite | J190: Home Team | K190: Favorite | L190: Yes | M190: No | N190: - | O190: - | P190: Under | Q190: 7 | R190: 14 | S190: 21
A191: 2012-10-21 | B191: Baltimore Ravens | C191: 13 | D191: Houston Texans | E191: 43 | F191: 6.5 | G191: 47.5 | H191: Home Team | I191: Favorite | J191: Home Team | K191: Favorite | L191: Yes | M191: No | N191: - | O191: - | P191: Over | Q191: 30 | R191: 13 | S191: 43
A192: 2012-10-21 | B192: Washington Redskins | C192: 23 | D192: New York Giants | E192: 27 | F192: 6.5 | G192: 51.5 | H192: Home Team | I192: Favorite | J192: Visiting Team | K192: Underdog | L192: No | M192: Yes | N192: - | O192: - | P192: Under | Q192: 4 | R192: 23 | S192: 27
A193: 2012-10-22 | B193: Detroit Lions | C193: 7 | D193: Chicago Bears | E193: 13 | F193: 6.5 | G193: 47 | H193: Home Team | I193: Favorite | J193: Visiting Team | K193: Underdog | L193: No | M193: Yes | N193: - | O193: - | P193: Under | Q193: 6 | R193: 7 | S193: 13
A194: 2012-10-28 | B194: New Orleans Saints | C194: 14 | D194: Denver Broncos | E194: 34 | F194: 6.5 | G194: 55 | H194: =IF(C194<>"",IF($C194=$E194,"Tie Game",IF($C194>$E194,"Visiting Team","Home Team")),"") -> Home Team | I194: =IF(C194<>"",IF(AND(F194>0,E194>C194),"Favorite",IF(AND(F194<0,E194>C194),"Underdog",IF(AND(F194<0,E194<C194),"Favorite",IF(AND(F194>0,E194<C194),"Underdog")))),"") -> Favorite | J194: =IF(C194<>"",IF($C194+$F194=$E194,"Push",IF($C194+$F194>$E194,"Visiting Team","Home Team")),"") -> Home Team | K194: =IF(C194<>"",IF(L194="Yes", "Favorite", IF(O194="Yes", "Favorite", IF(M194 = "Yes", "Underdog", IF(N194 = "Yes", "Underdog",IF(L194 = "Push", "Push"))))),"") -> Favorite | L194: =IF(C194<>"",IF(AND($F194>0,$C194+$F194=$E194),"Push",IF(AND($F194<0,$E194-$F194=$C194),"Push",IF($F194<0,"-",IF(AND($F194>0,$C194+$F194<$E194),"Yes","No")))),"") -> Yes | M194: =IF(C194<>"",IF(AND($F194>0,$C194+$F194=$E194),"Push",IF(AND($F194<0,$E194-$F194=$C194),"Push",IF($F194<0,"-",IF(AND($F194>0,$C194+$F194>$E194),"Yes","No")))),"") -> No | N194: =IF(C194<>"",IF(AND($F194>0,$C194+$F194=$E194),"Push",IF(AND($F194<0,$E194-$F194=$C194),"Push",IF($F194>0,"-",IF(AND($F194<0,$C194+$F194<$E194),"Yes","No")))),"") -> - | O194: =IF(C194<>"",IF(AND($F194>0,$C194+$F194=$E194),"Push",IF(AND($F194<0,$E194-$F194=$C194),"Push",IF($F194>0,"-",IF(AND($F194<0,$C194+$F194>$E194),"Yes","No")))),"") -> - | P194: =IF(C194<>"",IF($C194+$E194=$G194,"Push",IF($C194+$E194>$G194,"Over","Under")),"") -> Under | Q194: =IF(C194<>"",ABS(C194-E194),"") -> 20 | R194: =IF(C194<>"",IF(C194<E194, C194+0, E194+0),"") -> 14 | S194: =IF(C194<>"",IF(E194>C194, E194+0, C194+0),"") -> 34
A195: 2012-11-25 | B195: Minnesota Vikings | C195: 10 | D195: Chicago Bears | E195: 28 | F195: 6.5 | G195: 39 | H195: Home Team | I195: Favorite | J195: Home Team | K195: Favorite | L195: Yes | M195: No | N195: - | O195: - | P195: Under | Q195: 18 | R195: 10 | S195: 28
A196: 2012-12-09 | B196: Detroit Lions | C196: 20 | D196: Green Bay Packers | E196: 27 | F196: 6.5 | G196: 49 | H196: Home Team | I196: Favorite | J196: Home Team | K196: Favorite | L196: Yes | M196: No | N196: - | O196: - | P196: Under | Q196: 7 | R196: 20 | S196: 27
A197: 2012-12-30 | B197: Philadelphia Eagles | C197: 7 | D197: New York Giants | E197: 42 | F197: 6.5 | G197: 44.5 | H197: Home Team | I197: Favorite | J197: Home Team | K197: Favorite | L197: Yes | M197: No | N197: - | O197: - | P197: Over | Q197: 35 | R197: 7 | S197: 42
A198: 2012-09-10 | B198: Cincinnati Bengals | C198: 13 | D198: Baltimore Ravens | E198: 44 | F198: 7 | G198: 43 | H198: Home Team | I198: Favorite | J198: Home Team | K198: Favorite | L198: Yes | M198: No | N198: - | O198: - | P198: Over | Q198: 31 | R198: 13 | S198: 44
A199: 2012-09-16 | B199: Cleveland Browns | C199: 27 | D199: Cincinnati Bengals | E199: 34 | F199: 7 | G199: 39.5 | H199: Home Team | I199: Favorite | J199: Push | K199: Push | L199: Push | M199: Push | N199: Push | O199: Push | P199: Over | Q199: 7 | R199: 27 | S199: 34
A200: 2012-09-16 | B200: Detroit Lions | C200: 19 | D200: San Francisco 49ers | E200: 27 | F200: 7 | G200: 46 | H200: Home Team | I200: Favorite | J200: Home Team | K200: Favorite | L200: Yes | M200: No | N200: - | O200: - | P200: Push | Q200: 8 | R200: 19 | S200: 27
... 80 more rows

Sheet 2011
A1: Date | B1: Visiting Team | C1: Visitor Score | D1: Home Team | E1: Home Score | F1: Visitor Line | G1: Total Line | H1: Who Won Straight Up? Home or Visitor? | I1: Who Won Straight Up? Fav or Dog? | J1: Who Covered the spread? Home or Visitor? | K1: Who Covered the spread? Fav or Dog? | L1: Home Favorite Covered? | M1: Away Dog Covered? | N1: Home Dog Covered? | O1: Away Favorite Covered? | P1: Total Over or Under | Q1: Score Diff | R1: Loser's Score | S1: Winner's Score
A2: 2011-09-08 | B2: New Orleans Saints | C2: 34 | D2: Green Bay Packers | E2: 42 | F2: 5 | G2: 48 | H2: =IF($C2=$E2,"Tie Game",IF($C2>$E2,"Visiting Team","Home Team")) -> Home Team | I2: =IF(AND(F2>0,E2>C2),"Favorite",IF(AND(F2<0,E2>C2),"Underdog",IF(AND(F2<0,E2<C2),"Favorite",IF(AND(F2>0,E2<C2),"Underdog")))) -> Favorite | J2: =IF($C2+$F2=$E2,"Push",IF($C2+$F2>$E2,"Visiting Team","Home Team")) -> Home Team | K2: =IF(L2="Yes", "Favorite", IF(O2="Yes", "Favorite", IF(M2 = "Yes", "Underdog", IF(N2 = "Yes", "Underdog",IF(L2 = "Push", "Push"))))) -> Favorite | L2: =IF(AND($F2>0,$C2+$F2=$E2),"Push",IF(AND($F2<0,$E2-$F2=$C2),"Push",IF($F2<0,"-",IF(AND($F2>0,$C2+$F2<$E2),"Yes","No")))) -> Yes | M2: =IF(AND($F2>0,$C2+$F2=$E2),"Push",IF(AND($F2<0,$E2-$F2=$C2),"Push",IF($F2<0,"-",IF(AND($F2>0,$C2+$F2>$E2),"Yes","No")))) -> No | N2: =IF(AND($F2>0,$C2+$F2=$E2),"Push",IF(AND($F2<0,$E2-$F2=$C2),"Push",IF($F2>0,"-",IF(AND($F2<0,$C2+$F2<$E2),"Yes","No")))) -> - | O2: =IF(AND($F2>0,$C2+$F2=$E2),"Push",IF(AND($F2<0,$E2-$F2=$C2),"Push",IF($F2>0,"-",IF(AND($F2<0,$C2+$F2>$E2),"Yes","No")))) -> - | P2: =IF($C2+$E2=$G2,"Push",IF($C2+$E2>$G2,"Over","Under")) -> Over | Q2: =ABS(C2-E2) -> 8 | R2: =IF(C2<E2, C2+0, E2+0) -> 34 | S2: =IF(E2>C2, E2+0, C2+0) -> 42
A3: 2011-09-11 | B3: Pittsburgh Steelers | C3: 7 | D3: Baltimore Ravens | E3: 35 | F3: 1.5 | G3: 37 | H3: Home Team | I3: Favorite | J3: Home Team | K3: Favorite | L3: =IF(AND($F3>0,$C3+$F3=$E3),"Push",IF(AND($F3<0,$E3-$F3=$C3),"Push",IF($F3<0,"-",IF(AND($F3>0,$C3+$F3<$E3),"Yes","No")))) -> Yes | M3: =IF(AND($F3>0,$C3+$F3=$E3),"Push",IF(AND($F3<0,$E3-$F3=$C3),"Push",IF($F3<0,"-",IF(AND($F3>0,$C3+$F3>$E3),"Yes","No")))) -> No | N3: =IF(AND($F3>0,$C3+$F3=$E3),"Push",IF(AND($F3<0,$E3-$F3=$C3),"Push",IF($F3>0,"-",IF(AND($F3<0,$C3+$F3<$E3),"Yes","No")))) -> - | O3: =IF(AND($F3>0,$C3+$F3=$E3),"Push",IF(AND($F3<0,$E3-$F3=$C3),"Push",IF($F3>0,"-",IF(AND($F3<0,$C3+$F3>$E3),"Yes","No")))) -> - | P3: Over | Q3: =ABS(C3-E3) -> 28 | R3: =IF(C3<E3, C3+0, E3+0) -> 7 | S3: =IF(E3>C3, E3+0, C3+0) -> 35
A4: 2011-09-11 | B4: Detroit Lions | C4: 27 | D4: Tampa Bay Buccaneers | E4: 20 | F4: 1.5 | G4: 43.5 | H4: Visiting Team | I4: Underdog | J4: Visiting Team | K4: Underdog | L4: No | M4: Yes | N4: - | O4: - | P4: Over | Q4: =ABS(C4-E4) -> 7 | R4: =IF(C4<E4, C4+0, E4+0) -> 20 | S4: =IF(E4>C4, E4+0, C4+0) -> 27
A5: 2011-09-11 | B5: Atlanta Falcons | C5: 12 | D5: Chicago Bears | E5: 30 | F5: -1.5 | G5: 41 | H5: Home Team | I5: Underdog | J5: Home Team | K5: Underdog | L5: - | M5: - | N5: Yes | O5: No | P5: Over | Q5: =ABS(C5-E5) -> 18 | R5: =IF(C5<E5, C5+0, E5+0) -> 12 | S5: =IF(E5>C5, E5+0, C5+0) -> 30
A6: 2011-09-11 | B6: Buffalo Bills | C6: 41 | D6: Kansas City Chiefs | E6: 7 | F6: 3.5 | G6: 40 | H6: Visiting Team | I6: Underdog | J6: Visiting Team | K6: Underdog | L6: No | M6: Yes | N6: - | O6: - | P6: Over | Q6: =ABS(C6-E6) -> 34 | R6: 7 | S6: 41
A7: 2011-09-11 | B7: Indianapolis Colts | C7: 7 | D7: Houston Texans | E7: 34 | F7: 9 | G7: 44 | H7: Home Team | I7: Favorite | J7: Home Team | K7: Favorite | L7: Yes | M7: No | N7: - | O7: - | P7: Under | Q7: 27 | R7: 7 | S7: 34
A8: 2011-09-11 | B8: Philadelphia Eagles | C8: 31 | D8: St Louis Rams | E8: 13 | F8: -4 | G8: 44.5 | H8: Visiting Team | I8: Favorite | J8: Visiting Team | K8: Favorite | L8: - | M8: - | N8: No | O8: Yes | P8: Under | Q8: 18 | R8: 13 | S8: 31
A9: 2011-09-11 | B9: Cincinnati Bengals | C9: 27 | D9: Cleveland Browns | E9: 17 | F9: 7 | G9: 36.5 | H9: Visiting Team | I9: Underdog | J9: Visiting Team | K9: Underdog | L9: No | M9: Yes | N9: - | O9: - | P9: Over | Q9: 10 | R9: 17 | S9: 27
A10: 2011-09-11 | B10: Tennessee Titans | C10: 14 | D10: Jacksonville Jaguars | E10: 16 | F10: -1.5 | G10: 38 | H10: Home Team | I10: Underdog | J10: Home Team | K10: Underdog | L10: - | M10: - | N10: Yes | O10: No | P10: Under | Q10: 2 | R10: 14 | S10: 16
A11: 2011-09-11 | B11: New York Giants | C11: 14 | D11: Washington Redskins | E11: 28 | F11: -2 | G11: 40 | H11: Home Team | I11: Underdog | J11: Home Team | K11: Underdog | L11: - | M11: - | N11: Yes | O11: No | P11: Over | Q11: 14 | R11: 14 | S11: 28
A12: 2011-09-11 | B12: Carolina Panthers | C12: 21 | D12: Arizona Cardinals | E12: 28 | F12: 7 | G12: 37.5 | H12: Home Team | I12: Favorite | J12: Push | K12: Push | L12: Push | M12: Push | N12: Push | O12: Push | P12: Over | Q12: 7 | R12: 21 | S12: 28
A13: 2011-09-11 | B13: Seattle Seahawks | C13: 17 | D13: San Francisco 49ers | E13: 33 | F13: 6 | G13: 38 | H13: Home Team | I13: =IF(AND(F13>0,E13>C13),"Favorite",IF(AND(F13<0,E13>C13),"Underdog",IF(AND(F13<0,E13<C13),"Favorite",IF(AND(F13>0,E13<C13),"Underdog")))) -> Favorite | J13: Home Team | K13: Favorite | L13: Yes | M13: No | N13: - | O13: - | P13: Over | Q13: 16 | R13: 17 | S13: 33
A14: 2011-09-11 | B14: Minnesota Vikings | C14: 17 | D14: San Diego Chargers | E14: 24 | F14: 8.5 | G14: 43 | H14: Home Team | I14: =IF(AND(F14>0,E14>C14),"Favorite",IF(AND(F14<0,E14>C14),"Underdog",IF(AND(F14<0,E14<C14),"Favorite",IF(AND(F14>0,E14<C14),"Underdog")))) -> Favorite | J14: Visiting Team | K14: Underdog | L14: No | M14: Yes | N14: - | O14: - | P14: Under | Q14: 7 | R14: 17 | S14: 24
A15: 2011-09-11 | B15: Dallas Cowboys | C15: 24 | D15: New York Jets | E15: 27 | F15: 6 | G15: 41 | H15: Home Team | I15: Favorite | J15: Visiting Team | K15: Underdog | L15: No | M15: Yes | N15: - | O15: - | P15: Over | Q15: 3 | R15: 24 | S15: 27
A16: 2011-09-12 | B16: New England Patriots | C16: 38 | D16: Miami Dolphins | E16: 24 | F16: -7.5 | G16: 47 | H16: Visiting Team | I16: Favorite | J16: Visiting Team | K16: Favorite | L16: - | M16: - | N16: No | O16: Yes | P16: Over | Q16: 14 | R16: 24 | S16: 38
A17: 2011-09-12 | B17: Oakland Raiders | C17: 23 | D17: Denver Broncos | E17: 20 | F17: 3 | G17: 42 | H17: Visiting Team | I17: Underdog | J17: Visiting Team | K17: Underdog | L17: No | M17: Yes | N17: - | O17: - | P17: Over | Q17: 3 | R17: 20 | S17: 23
A18: 2011-09-18 | B18: Chicago Bears | C18: 13 | D18: New Orleans Saints | E18: 30 | F18: 5 | G18: 46.5 | H18: Home Team | I18: Favorite | J18: Home Team | K18: Favorite | L18: Yes | M18: No | N18: - | O18: - | P18: Under | Q18: 17 | R18: 13 | S18: 30
A19: 2011-09-18 | B19: Kansas City Chiefs | C19: 3 | D19: Detroit Lions | E19: 48 | F19: 9 | G19: 45 | H19: Home Team | I19: Favorite | J19: Home Team | K19: Favorite | L19: Yes | M19: No | N19: - | O19: - | P19: Over | Q19: 45 | R19: 3 | S19: 48
A20: 2011-09-18 | B20: Jacksonville Jaguars | C20: 3 | D20: New York Jets | E20: 32 | F20: 9 | G20: 38.5 | H20: Home Team | I20: Favorite | J20: Home Team | K20: Favorite | L20: Yes | M20: No | N20: - | O20: - | P20: Under | Q20: 29 | R20: 3 | S20: 32
A21: 2011-09-18 | B21: Oakland Raiders | C21: 35 | D21: Buffalo Bills | E21: 38 | F21: 4 | G21: 41 | H21: Home Team | I21: Favorite | J21: Visiting Team | K21: Underdog | L21: No | M21: Yes | N21: - | O21: - | P21: Over | Q21: 3 | R21: 35 | S21: 38
A22: 2011-09-18 | B22: Arizona Cardinals | C22: 21 | D22: Washington Redskins | E22: 22 | F22: 4.5 | G22: 45 | H22: Home Team | I22: Favorite | J22: Visiting Team | K22: Underdog | L22: No | M22: Yes | N22: - | O22: - | P22: Under | Q22: 1 | R22: 21 | S22: 22
A23: 2011-09-18 | B23: Baltimore Ravens | C23: 13 | D23: Tennessee Titans | E23: 26 | F23: -6 | G23: 39 | H23: Home Team | I23: Underdog | J23: Home Team | K23: =IF(L23="Yes", "Favorite", IF(O23="Yes", "Favorite", IF(M23 = "Yes", "Underdog", IF(N23 = "Yes", "Underdog",IF(L23 = "Push", "Push"))))) -> Underdog | L23: - | M23: - | N23: Yes | O23: No | P23: Push | Q23: 13 | R23: 13 | S23: 26
A24: 2011-09-18 | B24: Seattle Seahawks | C24: 0 | D24: Pittsburgh Steelers | E24: 24 | F24: 14 | G24: 40 | H24: Home Team | I24: Favorite | J24: Home Team | K24: =IF(L24="Yes", "Favorite", IF(O24="Yes", "Favorite", IF(M24 = "Yes", "Underdog", IF(N24 = "Yes", "Underdog",IF(L24 = "Push", "Push"))))) -> Favorite | L24: Yes | M24: No | N24: - | O24: - | P24: Under | Q24: 24 | R24: 0 | S24: 24
A25: 2011-09-18 | B25: Green Bay Packers | C25: 30 | D25: Carolina Panthers | E25: 23 | F25: -11 | G25: 45 | H25: Visiting Team | I25: Favorite | J25: Home Team | K25: Underdog | L25: - | M25: - | N25: Yes | O25: No | P25: Over | Q25: 7 | R25: 23 | S25: 30
A26: 2011-09-18 | B26: Tampa Bay Buccaneers | C26: 24 | D26: Minnesota Vikings | E26: 20 | F26: 1 | G26: 41 | H26: Visiting Team | I26: Underdog | J26: Visiting Team | K26: Underdog | L26: No | M26: Yes | N26: - | O26: - | P26: Over | Q26: 4 | R26: 20 | S26: 24
A27: 2011-09-18 | B27: Cleveland Browns | C27: 27 | D27: Indianapolis Colts | E27: 19 | F27: -1.5 | G27: 39 | H27: Visiting Team | I27: Favorite | J27: Visiting Team | K27: Favorite | L27: - | M27: - | N27: No | O27: Yes | P27: Over | Q27: 8 | R27: 19 | S27: 27
A28: 2011-09-18 | B28: Dallas Cowboys | C28: 27 | D28: San Francisco 49ers | E28: 24 | F28: -3 | G28: 41.5 | H28: Visiting Team | I28: Favorite | J28: Push | K28: Push | L28: Push | M28: Push | N28: Push | O28: Push | P28: Over | Q28: 3 | R28: 24 | S28: 27
A29: 2011-09-18 | B29: Houston Texans | C29: 23 | D29: Miami Dolphins | E29: 13 | F29: -3 | G29: 47.5 | H29: Visiting Team | I29: Favorite | J29: Visiting Team | K29: Favorite | L29: - | M29: - | N29: No | O29: Yes | P29: Under | Q29: 10 | R29: 13 | S29: 23
A30: 2011-09-18 | B30: San Diego Chargers | C30: 21 | D30: New England Patriots | E30: 35 | F30: 7 | G30: 53.5 | H30: Home Team | I30: Favorite | J30: Home Team | K30: Favorite | L30: Yes | M30: No | N30: - | O30: - | P30: Over | Q30: 14 | R30: 21 | S30: 35
A31: 2011-09-18 | B31: Cincinnati Bengals | C31: 22 | D31: Denver Broncos | E31: 24 | F31: 3 | G31: 41 | H31: Home Team | I31: Favorite | J31: Visiting Team | K31: Underdog | L31: No | M31: Yes | N31: - | O31: - | P31: Over | Q31: 2 | R31: 22 | S31: 24
A32: 2011-09-18 | B32: Philadelphia Eagles | C32: 31 | D32: Atlanta Falcons | E32: 35 | F32: -2.5 | G32: 49.5 | H32: Home Team | I32: Underdog | J32: Home Team | K32: Underdog | L32: - | M32: - | N32: Yes | O32: No | P32: Over | Q32: 4 | R32: 31 | S32: 35
A33: 2011-09-19 | B33: St Louis Rams | C33: 16 | D33: New York Giants | E33: 28 | F33: 7 | G33: 44 | H33: Home Team | I33: Favorite | J33: Home Team | K33: Favorite | L33: Yes | M33: No | N33: - | O33: - | P33: Push | Q33: 12 | R33: 16 | S33: 28
A34: 2011-09-25 | B34: San Francisco 49ers | C34: 13 | D34: Cincinnati Bengals | E34: 8 | F34: 1 | G34: 38.5 | H34: Visiting Team | I34: Underdog | J34: Visiting Team | K34: Underdog | L34: No | M34: Yes | N34: - | O34: - | P34: Under | Q34: 5 | R34: 8 | S34: 13
A35: 2011-09-25 | B35: New England Patriots | C35: 31 | D35: Buffalo Bills | E35: 34 | F35: -7.5 | G35: 54.5 | H35: Home Team | I35: Underdog | J35: Home Team | K35: Underdog | L35: - | M35: - | N35: Yes | O35: No | P35: Over | Q35: 3 | R35: 31 | S35: 34
A36: 2011-09-25 | B36: Houston Texans | C36: 33 | D36: New Orleans Saints | E36: 40 | F36: 4 | G36: 51 | H36: Home Team | I36: Favorite | J36: Home Team | K36: Favorite | L36: Yes | M36: No | N36: - | O36: - | P36: Over | Q36: 7 | R36: 33 | S36: 40
A37: 2011-09-25 | B37: New York Giants | C37: 29 | D37: Philadelphia Eagles | E37: 16 | F37: 8 | G37: 46.5 | H37: Visiting Team | I37: Underdog | J37: Visiting Team | K37: Underdog | L37: No | M37: Yes | N37: - | O37: - | P37: Under | Q37: 13 | R37: 16 | S37: 29
A38: 2011-09-25 | B38: Miami Dolphins | C38: 16 | D38: Cleveland Browns | E38: 17 | F38: -2 | G38: 42.5 | H38: Home Team | I38: Underdog | J38: Home Team | K38: Underdog | L38: - | M38: - | N38: Yes | O38: No | P38: Under | Q38: 1 | R38: 16 | S38: 17
A39: 2011-09-25 | B39: Denver Broncos | C39: 14 | D39: Tennessee Titans | E39: 17 | F39: 7 | G39: 44 | H39: Home Team | I39: Favorite | J39: Visiting Team | K39: Underdog | L39: No | M39: Yes | N39: - | O39: - | P39: Under | Q39: 3 | R39: 14 | S39: 17
A40: 2011-09-25 | B40: Detroit Lions | C40: 26 | D40: Minnesota Vikings | E40: 23 | F40: -3 | G40: 45 | H40: Visiting Team | I40: Favorite | J40: Push | K40: Push | L40: Push | M40: Push | N40: Push | O40: Push | P40: Over | Q40: 3 | R40: 23 | S40: 26
A41: 2011-09-25 | B41: Jacksonville Jaguars | C41: 10 | D41: Carolina Panthers | E41: 16 | F41: 3.5 | G41: 43.5 | H41: Home Team | I41: Favorite | J41: Home Team | K41: Favorite | L41: Yes | M41: No | N41: - | O41: - | P41: Under | Q41: 6 | R41: 10 | S41: 16
A42: 2011-09-25 | B42: Kansas City Chiefs | C42: 17 | D42: San Diego Chargers | E42: 20 | F42: 14.5 | G42: 44.5 | H42: Home Team | I42: Favorite | J42: Visiting Team | K42: Underdog | L42: No | M42: Yes | N42: - | O42: - | P42: Under | Q42: 3 | R42: 17 | S42: 20
A43: 2011-09-25 | B43: New York Jets | C43: 24 | D43: Oakland Raiders | E43: 34 | F43: -3 | G43: 41 | H43: Home Team | I43: Underdog | J43: Home Team | K43: Underdog | L43: - | M43: - | N43: Yes | O43: No | P43: Over | Q43: 10 | R43: 24 | S43: 34
A44: 2011-09-25 | B44: Baltimore Ravens | C44: 37 | D44: St Louis Rams | E44: 7 | F44: -6 | G44: 42 | H44: Visiting Team | I44: Favorite | J44: Visiting Team | K44: Favorite | L44: - | M44: - | N44: No | O44: Yes | P44: Over | Q44: 30 | R44: 7 | S44: 37
A45: 2011-09-25 | B45: Atlanta Falcons | C45: 13 | D45: Tampa Bay Buccaneers | E45: 16 | F45: 1 | G45: 45 | H45: Home Team | I45: Favorite | J45: Home Team | K45: Favorite | L45: Yes | M45: No | N45: - | O45: - | P45: Under | Q45: 3 | R45: 13 | S45: 16
A46: 2011-09-25 | B46: Arizona Cardinals | C46: 10 | D46: Seattle Seahawks | E46: 13 | F46: -3 | G46: 43 | H46: Home Team | I46: Underdog | J46: Home Team | K46: Underdog | L46: - | M46: - | N46: Yes | O46: No | P46: Under | Q46: 3 | R46: 10 | S46: 13
A47: 2011-09-25 | B47: Green Bay Packers | C47: 27 | D47: Chicago Bears | E47: 17 | F47: -5 | G47: 45.5 | H47: Visiting Team | I47: Favorite | J47: Visiting Team | K47: Favorite | L47: - | M47: - | N47: No | O47: Yes | P47: Under | Q47: 10 | R47: 17 | S47: 27
A48: 2011-09-25 | B48: Pittsburgh Steelers | C48: 23 | D48: Indianapolis Colts | E48: 20 | F48: -11 | G48: 39.5 | H48: Visiting Team | I48: Favorite | J48: Home Team | K48: Underdog | L48: - | M48: - | N48: Yes | O48: No | P48: Over | Q48: 3 | R48: 20 | S48: 23
A49: 2011-09-26 | B49: Washington Redskins | C49: 16 | D49: Dallas Cowboys | E49: 18 | F49: 3.5 | G49: 45 | H49: Home Team | I49: Favorite | J49: Visiting Team | K49: Underdog | L49: No | M49: Yes | N49: - | O49: - | P49: Under | Q49: 2 | R49: 16 | S49: 18
A50: 2011-10-02 | B50: Detroit Lions | C50: 34 | D50: Dallas Cowboys | E50: 30 | F50: 2.5 | G50: 46.5 | H50: Visiting Team | I50: Underdog | J50: Visiting Team | K50: Underdog | L50: No | M50: Yes | N50: - | O50: - | P50: Over | Q50: 4 | R50: 30 | S50: 34
A51: 2011-10-02 | B51: New Orleans Saints | C51: 23 | D51: Jacksonville Jaguars | E51: 10 | F51: -9 | G51: 45 | H51: Visiting Team | I51: Favorite | J51: Visiting Team | K51: Favorite | L51: - | M51: - | N51: No | O51: Yes | P51: Under | Q51: 13 | R51: 10 | S51: 23
A52: 2011-10-02 | B52: San Francisco 49ers | C52: 24 | D52: Philadelphia Eagles | E52: 23 | F52: 10 | G52: 43.5 | H52: Visiting Team | I52: Underdog | J52: Visiting Team | K52: Underdog | L52: No | M52: Yes | N52: - | O52: - | P52: Over | Q52: 1 | R52: 23 | S52: 24
A53: 2011-10-02 | B53: Washington Redskins | C53: 17 | D53: St Louis Rams | E53: 10 | F53: -3 | G53: 44 | H53: Visiting Team | I53: Favorite | J53: Visiting Team | K53: Favorite | L53: - | M53: - | N53: No | O53: Yes | P53: Under | Q53: 7 | R53: 10 | S53: 17
A54: 2011-10-02 | B54: Tennessee Titans | C54: 31 | D54: Cleveland Browns | E54: 13 | F54: 1.5 | G54: 37.5 | H54: Visiting Team | I54: Underdog | J54: Visiting Team | K54: Underdog | L54: No | M54: Yes | N54: - | O54: - | P54: Over | Q54: 18 | R54: 13 | S54: 31
A55: 2011-10-02 | B55: Buffalo Bills | C55: 20 | D55: Cincinnati Bengals | E55: 23 | F55: -3 | G55: 43 | H55: Home Team | I55: Underdog | J55: Home Team | K55: Underdog | L55: - | M55: - | N55: Yes | O55: No | P55: Push | Q55: 3 | R55: 20 | S55: 23
A56: 2011-10-02 | B56: Minnesota Vikings | C56: 17 | D56: Kansas City Chiefs | E56: 22 | F56: -3 | G56: 40 | H56: Home Team | I56: Underdog | J56: Home Team | K56: Underdog | L56: - | M56: - | N56: Yes | O56: No | P56: Under | Q56: 5 | R56: 17 | S56: 22
A57: 2011-10-02 | B57: Carolina Panthers | C57: 29 | D57: Chicago Bears | E57: 34 | F57: 7 | G57: 42 | H57: Home Team | I57: Favorite | J57: Visiting Team | K57: Underdog | L57: No | M57: Yes | N57: - | O57: - | P57: Over | Q57: 5 | R57: 29 | S57: 34
A58: 2011-10-02 | B58: Pittsburgh Steelers | C58: 10 | D58: Houston Texans | E58: 17 | F58: 4 | G58: 46.5 | H58: Home Team | I58: Favorite | J58: Home Team | K58: Favorite | L58: Yes | M58: No | N58: - | O58: - | P58: Under | Q58: 7 | R58: 10 | S58: 17
A59: 2011-10-02 | B59: Atlanta Falcons | C59: 30 | D59: Seattle Seahawks | E59: 28 | F59: -6 | G59: 39 | H59: Visiting Team | I59: Favorite | J59: Home Team | K59: Underdog | L59: - | M59: - | N59: Yes | O59: No | P59: Over | Q59: 2 | R59: 28 | S59: 30
A60: 2011-10-02 | B60: New York Giants | C60: 31 | D60: Arizona Cardinals | E60: 27 | F60: -1.5 | G60: 45 | H60: Visiting Team | I60: Favorite | J60: Visiting Team | K60: Favorite | L60: - | M60: - | N60: No | O60: Yes | P60: Over | Q60: 4 | R60: 27 | S60: 31
A61: 2011-10-02 | B61: Miami Dolphins | C61: 16 | D61: San Diego Chargers | E61: 26 | F61: 7 | G61: 45 | H61: Home Team | I61: Favorite | J61: Home Team | K61: Favorite | L61: Yes | M61: No | N61: - | O61: - | P61: =IF($C61+$E61=$G61,"Push",IF($C61+$E61>$G61,"Over","Under")) -> Under | Q61: 10 | R61: 16 | S61: 26
A62: 2011-10-02 | B62: Denver Broncos | C62: 23 | D62: Green Bay Packers | E62: 49 | F62: 12 | G62: 46.5 | H62: Home Team | I62: Favorite | J62: Home Team | K62: Favorite | L62: Yes | M62: No | N62: - | O62: - | P62: =IF($C62+$E62=$G62,"Push",IF($C62+$E62>$G62,"Over","Under")) -> Over | Q62: 26 | R62: 23 | S62: 49
A63: 2011-10-02 | B63: New England Patriots | C63: 31 | D63: Oakland Raiders | E63: 19 | F63: -6.5 | G63: 55.5 | H63: Visiting Team | I63: Favorite | J63: Visiting Team | K63: Favorite | L63: - | M63: - | N63: No | O63: Yes | P63: =IF($C63+$E63=$G63,"Push",IF($C63+$E63>$G63,"Over","Under")) -> Under | Q63: 12 | R63: 19 | S63: 31
A64: 2011-10-02 | B64: New York Jets | C64: 17 | D64: Baltimore Ravens | E64: 34 | F64: 5 | G64: 43.5 | H64: Home Team | I64: Favorite | J64: Home Team | K64: Favorite | L64: Yes | M64: No | N64: - | O64: - | P64: Over | Q64: 17 | R64: 17 | S64: 34
A65: 2011-10-03 | B65: Indianapolis Colts | C65: 17 | D65: Tampa Bay Buccaneers | E65: 24 | F65: 10 | G65: 40.5 | H65: Home Team | I65: Favorite | J65: Visiting Team | K65: Underdog | L65: No | M65: Yes | N65: - | O65: - | P65: Over | Q65: 7 | R65: 17 | S65: 24
A66: 2011-10-09 | B66: Kansas City Chiefs | C66: 28 | D66: Indianapolis Colts | E66: 24 | F66: 1.5 | G66: 38 | H66: =IF($C66=$E66,"Tie Game",IF($C66>$E66,"Visiting Team","Home Team")) -> Visiting Team | I66: Underdog | J66: =IF($C66+$F66=$E66,"Push",IF($C66+$F66>$E66,"Visiting Team","Home Team")) -> Visiting Team | K66: Underdog | L66: No | M66: Yes | N66: - | O66: - | P66: Over | Q66: 4 | R66: 24 | S66: 28
A67: 2011-10-09 | B67: Arizona Cardinals | C67: 10 | D67: Minnesota Vikings | E67: 34 | F67: 3.5 | G67: 45 | H67: Home Team | I67: Favorite | J67: Home Team | K67: Favorite | L67: =IF(AND($F67>0,$C67+$F67=$E67),"Push",IF(AND($F67<0,$E67-$F67=$C67),"Push",IF($F67<0,"-",IF(AND($F67>0,$C67+$F67<$E67),"Yes","No")))) -> Yes | M67: =IF(AND($F67>0,$C67+$F67=$E67),"Push",IF(AND($F67<0,$E67-$F67=$C67),"Push",IF($F67<0,"-",IF(AND($F67>0,$C67+$F67>$E67),"Yes","No")))) -> No | N67: =IF(AND($F67>0,$C67+$F67=$E67),"Push",IF(AND($F67<0,$E67-$F67=$C67),"Push",IF($F67>0,"-",IF(AND($F67<0,$C67+$F67<$E67),"Yes","No")))) -> - | O67: =IF(AND($F67>0,$C67+$F67=$E67),"Push",IF(AND($F67<0,$E67-$F67=$C67),"Push",IF($F67>0,"-",IF(AND($F67<0,$C67+$F67>$E67),"Yes","No")))) -> - | P67: Under | Q67: 24 | R67: 10 | S67: 34
A68: 2011-10-09 | B68: Philadelphia Eagles | C68: 24 | D68: Buffalo Bills | E68: 31 | F68: -3 | G68: 53 | H68: Home Team | I68: Underdog | J68: Home Team | K68: Underdog | L68: - | M68: - | N68: Yes | O68: No | P68: Over | Q68: 7 | R68: 24 | S68: 31
A69: 2011-10-09 | B69: Oakland Raiders | C69: 25 | D69: Houston Texans | E69: 20 | F69: 4.5 | G69: 48.5 | H69: Visiting Team | I69: Underdog | J69: Visiting Team | K69: Underdog | L69: No | M69: Yes | N69: - | O69: - | P69: Under | Q69: 5 | R69: =IF(C69<E69, C69+0, E69+0) -> 20 | S69: =IF(E69>C69, E69+0, C69+0) -> 25
A70: 2011-10-09 | B70: New Orleans Saints | C70: 30 | D70: Carolina Panthers | E70: 27 | F70: -6.5 | G70: 51.5 | H70: Visiting Team | I70: Favorite | J70: Home Team | K70: Underdog | L70: - | M70: - | N70: Yes | O70: No | P70: Over | Q70: =ABS(C70-E70) -> 3 | R70: 27 | S70: 30
A71: 2011-10-09 | B71: Cincinnati Bengals | C71: 30 | D71: Jacksonville Jaguars | E71: 20 | F71: -2.5 | G71: 37 | H71: Visiting Team | I71: Favorite | J71: Visiting Team | K71: Favorite | L71: - | M71: - | N71: No | O71: Yes | P71: Over | Q71: 10 | R71: 20 | S71: 30
A72: 2011-10-09 | B72: Tennessee Titans | C72: 17 | D72: Pittsburgh Steelers | E72: 38 | F72: 3 | G72: 40 | H72: Home Team | I72: Favorite | J72: Home Team | K72: Favorite | L72: Yes | M72: No | N72: - | O72: - | P72: Over | Q72: 21 | R72: 17 | S72: 38
A73: 2011-10-09 | B73: Seattle Seahawks | C73: 36 | D73: New York Giants | E73: 25 | F73: 10 | G73: 43.5 | H73: Visiting Team | I73: Underdog | J73: Visiting Team | K73: Underdog | L73: No | M73: Yes | N73: - | O73: - | P73: Over | Q73: 11 | R73: 25 | S73: 36
A74: 2011-10-09 | B74: Tampa Bay Buccaneers | C74: 3 | D74: San Francisco 49ers | E74: 48 | F74: 3 | G74: 41.5 | H74: Home Team | I74: Favorite | J74: Home Team | K74: Favorite | L74: Yes | M74: No | N74: - | O74: - | P74: Over | Q74: 45 | R74: 3 | S74: 48
A75: 2011-10-09 | B75: New York Jets | C75: 21 | D75: New England Patriots | E75: 30 | F75: 7.5 | G75: 50 | H75: =IF($C75=$E75,"Tie Game",IF($C75>$E75,"Visiting Team","Home Team")) -> Home Team | I75: Favorite | J75: Home Team | K75: Favorite | L75: Yes | M75: No | N75: - | O75: - | P75: Over | Q75: 9 | R75: 21 | S75: 30
A76: 2011-10-09 | B76: San Diego Chargers | C76: 29 | D76: Denver Broncos | E76: 24 | F76: -3.5 | G76: 46.5 | H76: =IF($C76=$E76,"Tie Game",IF($C76>$E76,"Visiting Team","Home Team")) -> Visiting Team | I76: Favorite | J76: Visiting Team | K76: Favorite | L76: - | M76: - | N76: No | O76: Yes | P76: Over | Q76: 5 | R76: 24 | S76: 29
A77: 2011-10-09 | B77: Green Bay Packers | C77: 25 | D77: Atlanta Falcons | E77: 14 | F77: -6.5 | G77: 53 | H77: Visiting Team | I77: Favorite | J77: Visiting Team | K77: Favorite | L77: - | M77: - | N77: No | O77: Yes | P77: Under | Q77: 11 | R77: 14 | S77: 25
A78: 2011-10-10 | B78: Chicago Bears | C78: 13 | D78: Detroit Lions | E78: 24 | F78: 7 | G78: 47 | H78: Home Team | I78: =IF(AND(F78>0,E78>C78),"Favorite",IF(AND(F78<0,E78>C78),"Underdog",IF(AND(F78<0,E78<C78),"Favorite",IF(AND(F78>0,E78<C78),"Underdog")))) -> Favorite | J78: Home Team | K78: Favorite | L78: Yes | M78: No | N78: - | O78: - | P78: Under | Q78: 11 | R78: 13 | S78: 24
A79: 2011-10-16 | B79: St Louis Rams | C79: 3 | D79: Green Bay Packers | E79: 24 | F79: 14 | G79: 47.5 | H79: Home Team | I79: Favorite | J79: Home Team | K79: Favorite | L79: Yes | M79: No | N79: - | O79: - | P79: Under | Q79: 21 | R79: 3 | S79: 24
A80: 2011-10-16 | B80: Jacksonville Jaguars | C80: 13 | D80: Pittsburgh Steelers | E80: 17 | F80: 12.5 | G80: 40 | H80: Home Team | I80: Favorite | J80: Visiting Team | K80: Underdog | L80: No | M80: Yes | N80: - | O80: - | P80: Under | Q80: 4 | R80: 13 | S80: 17
A81: 2011-10-16 | B81: Philadelphia Eagles | C81: 20 | D81: Washington Redskins | E81: 13 | F81: -3 | G81: 46.5 | H81: Visiting Team | I81: Favorite | J81: Visiting Team | K81: Favorite | L81: - | M81: - | N81: No | O81: Yes | P81: Under | Q81: 7 | R81: 13 | S81: 20
A82: 2011-10-16 | B82: San Francisco 49ers | C82: 25 | D82: Detroit Lions | E82: 19 | F82: 5 | G82: 45 | H82: Visiting Team | I82: Underdog | J82: Visiting Team | K82: Underdog | L82: No | M82: Yes | N82: - | O82: - | P82: Under | Q82: 6 | R82: 19 | S82: 25
A83: 2011-10-16 | B83: Carolina Panthers | C83: 17 | D83: Atlanta Falcons | E83: 31 | F83: 3.5 | G83: 49.5 | H83: Home Team | I83: Favorite | J83: Home Team | K83: Favorite | L83: Yes | M83: No | N83: - | O83: - | P83: Under | Q83: 14 | R83: 17 | S83: 31
A84: 2011-10-16 | B84: Indianapolis Colts | C84: 17 | D84: Cincinnati Bengals | E84: 27 | F84: 4.5 | G84: 40.5 | H84: Home Team | I84: Favorite | J84: Home Team | K84: Favorite | L84: Yes | M84: No | N84: - | O84: - | P84: Over | Q84: 10 | R84: 17 | S84: 27
A85: 2011-10-16 | B85: Buffalo Bills | C85: 24 | D85: New York Giants | E85: 27 | F85: 3 | G85: 49 | H85: Home Team | I85: Favorite | J85: Push | K85: Push | L85: Push | M85: Push | N85: Push | O85: Push | P85: Over | Q85: 3 | R85: 24 | S85: 27
A86: 2011-10-16 | B86: Houston Texans | C86: 14 | D86: Baltimore Ravens | E86: 29 | F86: 7 | G86: 43.5 | H86: Home Team | I86: Favorite | J86: Home Team | K86: Favorite | L86: Yes | M86: No | N86: - | O86: - | P86: Under | Q86: 15 | R86: 14 | S86: 29
A87: 2011-10-16 | B87: Cleveland Browns | C87: 17 | D87: Oakland Raiders | E87: 24 | F87: 6.5 | G87: 45 | H87: Home Team | I87: Favorite | J87: Home Team | K87: Favorite | L87: Yes | M87: No | N87: - | O87: - | P87: Under | Q87: 7 | R87: 17 | S87: 24
A88: 2011-10-16 | B88: Dallas Cowboys | C88: 16 | D88: New England Patriots | E88: 20 | F88: 7 | G88: 54.5 | H88: Home Team | I88: Favorite | J88: Visiting Team | K88: =IF(L88="Yes", "Favorite", IF(O88="Yes", "Favorite", IF(M88 = "Yes", "Underdog", IF(N88 = "Yes", "Underdog",IF(L88 = "Push", "Push"))))) -> Underdog | L88: No | M88: Yes | N88: - | O88: - | P88: Under | Q88: =ABS(C88-E88) -> 4 | R88: 16 | S88: 20
A89: 2011-10-16 | B89: New Orleans Saints | C89: 20 | D89: Tampa Bay Buccaneers | E89: 26 | F89: -6.5 | G89: 49.5 | H89: Home Team | I89: Underdog | J89: Home Team | K89: Underdog | L89: - | M89: - | N89: Yes | O89: No | P89: Under | Q89: 6 | R89: 20 | S89: 26
A90: 2011-10-16 | B90: Minnesota Vikings | C90: 10 | D90: Chicago Bears | E90: 39 | F90: 2.5 | G90: 42 | H90: Home Team | I90: Favorite | J90: Home Team | K90: Favorite | L90: Yes | M90: No | N90: - | O90: - | P90: Over | Q90: 29 | R90: 10 | S90: 39
A91: 2011-10-17 | B91: Miami Dolphins | C91: 6 | D91: New York Jets | E91: 24 | F91: 7.5 | G91: 41.5 | H91: Home Team | I91: Favorite | J91: Home Team | K91: Favorite | L91: Yes | M91: No | N91: - | O91: - | P91: Under | Q91: 18 | R91: 6 | S91: 24
A92: 2011-10-23 | B92: Chicago Bears | C92: 24 | D92: Tampa Bay Buccaneers | E92: 18 | F92: -2 | G92: 44 | H92: Visiting Team | I92: Favorite | J92: Visiting Team | K92: Favorite | L92: - | M92: - | N92: No | O92: Yes | P92: Under | Q92: 6 | R92: 18 | S92: 24
A93: 2011-10-23 | B93: Washington Redskins | C93: 20 | D93: Carolina Panthers | E93: 33 | F93: 2.5 | G93: 44.5 | H93: Home Team | I93: Favorite | J93: Home Team | K93: Favorite | L93: Yes | M93: No | N93: - | O93: - | P93: Over | Q93: 13 | R93: 20 | S93: 33
A94: 2011-10-23 | B94: San Diego Chargers | C94: 21 | D94: New York Jets | E94: 27 | F94: -1 | G94: 43.5 | H94: Home Team | I94: Underdog | J94: Home Team | K94: Underdog | L94: - | M94: - | N94: Yes | O94: No | P94: Over | Q94: 6 | R94: 21 | S94: 27
A95: 2011-10-23 | B95: Seattle Seahawks | C95: 3 | D95: Cleveland Browns | E95: 6 | F95: 3 | G95: 41 | H95: Home Team | I95: Favorite | J95: Push | K95: Push | L95: Push | M95: Push | N95: Push | O95: Push | P95: Under | Q95: 3 | R95: 3 | S95: 6
A96: 2011-10-23 | B96: Houston Texans | C96: 41 | D96: Tennessee Titans | E96: 7 | F96: 2.5 | G96: 44 | H96: Visiting Team | I96: Underdog | J96: Visiting Team | K96: Underdog | L96: No | M96: Yes | N96: - | O96: - | P96: Over | Q96: 34 | R96: 7 | S96: 41
A97: 2011-10-23 | B97: Denver Broncos | C97: 18 | D97: Miami Dolphins | E97: 15 | F97: -1 | G97: 41.5 | H97: Visiting Team | I97: Favorite | J97: Visiting Team | K97: Favorite | L97: - | M97: - | N97: No | O97: Yes | P97: Under | Q97: 3 | R97: 15 | S97: 18
A98: 2011-10-23 | B98: Atlanta Falcons | C98: 23 | D98: Detroit Lions | E98: 16 | F98: 4.5 | G98: 47 | H98: Visiting Team | I98: Underdog | J98: Visiting Team | K98: Underdog | L98: No | M98: Yes | N98: - | O98: - | P98: Under | Q98: 7 | R98: 16 | S98: 23
A99: 2011-10-23 | B99: Kansas City Chiefs | C99: 28 | D99: Oakland Raiders | E99: 0 | F99: 3.5 | G99: 41.5 | H99: Visiting Team | I99: Underdog | J99: Visiting Team | K99: Underdog | L99: No | M99: Yes | N99: - | O99: - | P99: Under | Q99: 28 | R99: 0 | S99: 28
A100: 2011-10-23 | B100: Pittsburgh Steelers | C100: 32 | D100: Arizona Cardinals | E100: 20 | F100: -4.5 | G100: 46.5 | H100: Visiting Team | I100: Favorite | J100: Visiting Team | K100: Favorite | L100: - | M100: - | N100: No | O100: Yes | P100: Over | Q100: 12 | R100: 20 | S100: 32
A101: 2011-10-23 | B101: St Louis Rams | C101: 7 | D101: Dallas Cowboys | E101: 34 | F101: 14 | G101: 43 | H101: Home Team | I101: Favorite | J101: Home Team | K101: Favorite | L101: Yes | M101: No | N101: - | O101: - | P101: Under | Q101: 27 | R101: 7 | S101: 34
A102: 2011-10-23 | B102: Green Bay Packers | C102: 33 | D102: Minnesota Vikings | E102: 27 | F102: -11 | G102: 47 | H102: Visiting Team | I102: Favorite | J102: Home Team | K102: Underdog | L102: - | M102: - | N102: Yes | O102: No | P102: Over | Q102: 6 | R102: 27 | S102: 33
A103: 2011-10-23 | B103: Indianapolis Colts | C103: 7 | D103: New Orleans Saints | E103: 62 | F103: 14 | G103: 49 | H103: Home Team | I103: Favorite | J103: Home Team | K103: Favorite | L103: Yes | M103: No | N103: - | O103: - | P103: Over | Q103: 55 | R103: 7 | S103: 62
A104: 2011-10-24 | B104: Baltimore Ravens | C104: 7 | D104: Jacksonville Jaguars | E104: 12 | F104: -10.5 | G104: 39 | H104: Home Team | I104: Underdog | J104: Home Team | K104: Underdog | L104: - | M104: - | N104: Yes | O104: No | P104: Under | Q104: 5 | R104: 7 | S104: 12
A105: 2011-10-30 | B105: Indianapolis Colts | C105: 10 | D105: Tennessee Titans | E105: 27 | F105: 7.5 | G105: 43.5 | H105: Home Team | I105: Favorite | J105: Home Team | K105: Favorite | L105: Yes | M105: No | N105: - | O105: - | P105: Under | Q105: 17 | R105: 10 | S105: 27
A106: 2011-10-30 | B106: Jacksonville Jaguars | C106: 14 | D106: Houston Texans | E106: 24 | F106: 10 | G106: 41 | H106: Home Team | I106: Favorite | J106: Push | K106: Push | L106: Push | M106: Push | N106: Push | O106: Push | P106: Under | Q106: 10 | R106: 14 | S106: 24
A107: 2011-10-30 | B107: Minnesota Vikings | C107: 24 | D107: Carolina Panthers | E107: 21 | F107: 3 | G107: 47 | H107: Visiting Team | I107: Underdog | J107: Visiting Team | K107: Underdog | L107: No | M107: Yes | N107: - | O107: - | P107: Under | Q107: 3 | R107: 21 | S107: 24
A108: 2011-10-30 | B108: New Orleans Saints | C108: 21 | D108: St Louis Rams | E108: 31 | F108: -14 | G108: 48.5 | H108: Home Team | I108: Underdog | J108: Home Team | K108: Underdog | L108: - | M108: - | N108: Yes | O108: No | P108: Over | Q108: 10 | R108: 21 | S108: 31
A109: 2011-10-30 | B109: Arizona Cardinals | C109: 27 | D109: Baltimore Ravens | E109: 30 | F109: 11.5 | G109: 43 | H109: Home Team | I109: Favorite | J109: Visiting Team | K109: Underdog | L109: No | M109: Yes | N109: - | O109: - | P109: Over | Q109: 3 | R109: 27 | S109: 30
A110: 2011-10-30 | B110: Miami Dolphins | C110: 17 | D110: New York Giants | E110: 20 | F110: 10 | G110: 43.5 | H110: Home Team | I110: Favorite | J110: Visiting Team | K110: Underdog | L110: No | M110: Yes | N110: - | O110: - | P110: Under | Q110: 3 | R110: 17 | S110: 20
A111: 2011-10-30 | B111: Washington Redskins | C111: 0 | D111: Buffalo Bills | E111: 23 | F111: 4 | G111: 46.5 | H111: Home Team | I111: Favorite | J111: Home Team | K111: Favorite | L111: Yes | M111: No | N111: - | O111: - | P111: Under | Q111: 23 | R111: 0 | S111: 23
A112: 2011-10-30 | B112: Detroit Lions | C112: 45 | D112: Denver Broncos | E112: 10 | F112: -3.5 | G112: 43.5 | H112: Visiting Team | I112: Favorite | J112: Visiting Team | K112: Favorite | L112: - | M112: - | N112: No | O112: Yes | P112: Over | Q112: 35 | R112: 10 | S112: 45
A113: 2011-10-30 | B113: New England Patriots | C113: 17 | D113: Pittsburgh Steelers | E113: 25 | F113: -3 | G113: 52 | H113: Home Team | I113: Underdog | J113: Home Team | K113: Underdog | L113: - | M113: - | N113: Yes | O113: No | P113: Under | Q113: 8 | R113: 17 | S113: 25
A114: 2011-10-30 | B114: Cleveland Browns | C114: 10 | D114: San Francisco 49ers | E114: 20 | F114: 9.5 | G114: 38.5 | H114: Home Team | I114: Favorite | J114: Home Team | K114: Favorite | L114: Yes | M114: No | N114: - | O114: - | P114: Under | Q114: 10 | R114: 10 | S114: 20
A115: 2011-10-30 | B115: Cincinnati Bengals | C115: 34 | D115: Seattle Seahawks | E115: 12 | F115: -1.5 | G115: 37.5 | H115: Visiting Team | I115: Favorite | J115: Visiting Team | K115: Favorite | L115: - | M115: - | N115: No | O115: Yes | P115: Over | Q115: 22 | R115: 12 | S115: 34
A116: 2011-10-30 | B116: Dallas Cowboys | C116: 7 | D116: Philadelphia Eagles | E116: 34 | F116: 3 | G116: 49.5 | H116: Home Team | I116: Favorite | J116: Home Team | K116: Favorite | L116: Yes | M116: No | N116: - | O116: - | P116: Under | Q116: 27 | R116: 7 | S116: 34
A117: 2011-10-31 | B117: San Diego Chargers | C117: 20 | D117: Kansas City Chiefs | E117: 23 | F117: -3 | G117: 44.5 | H117: Home Team | I117: Underdog | J117: Home Team | K117: Underdog | L117: - | M117: - | N117: Yes | O117: No | P117: Under | Q117: 3 | R117: 20 | S117: 23
A118: 2011-11-06 | B118: Atlanta Falcons | C118: 31 | D118: Indianapolis Colts | E118: 7 | F118: -7 | G118: 45.5 | H118: Visiting Team | I118: Favorite | J118: Visiting Team | K118: Favorite | L118: - | M118: - | N118: No | O118: Yes | P118: Under | Q118: 24 | R118: 7 | S118: 31
A119: 2011-11-06 | B119: Tampa Bay Buccaneers | C119: 16 | D119: New Orleans Saints | E119: 27 | F119: 9 | G119: 50.5 | H119: Home Team | I119: Favorite | J119: Home Team | K119: Favorite | L119: Yes | M119: No | N119: - | O119: - | P119: Under | Q119: 11 | R119: 16 | S119: 27
A120: 2011-11-06 | B120: Cleveland Browns | C120: 12 | D120: Houston Texans | E120: 30 | F120: 10.5 | G120: 41 | H120: Home Team | I120: Favorite | J120: Home Team | K120: Favorite | L120: Yes | M120: No | N120: - | O120: - | P120: Over | Q120: 18 | R120: 12 | S120: 30
A121: 2011-11-06 | B121: New York Jets | C121: 27 | D121: Buffalo Bills | E121: 11 | F121: 2.5 | G121: 45 | H121: Visiting Team | I121: Underdog | J121: Visiting Team | K121: Underdog | L121: No | M121: Yes | N121: - | O121: - | P121: Under | Q121: 16 | R121: 11 | S121: 27
A122: 2011-11-06 | B122: Miami Dolphins | C122: 31 | D122: Kansas City Chiefs | E122: 3 | F122: 4 | G122: 40.5 | H122: Visiting Team | I122: Underdog | J122: Visiting Team | K122: Underdog | L122: No | M122: Yes | N122: - | O122: - | P122: Under | Q122: 28 | R122: 3 | S122: 31
A123: 2011-11-06 | B123: San Francisco 49ers | C123: 19 | D123: Washington Redskins | E123: 11 | F123: -4.5 | G123: 37.5 | H123: Visiting Team | I123: Favorite | J123: Visiting Team | K123: Favorite | L123: - | M123: - | N123: No | O123: Yes | P123: Under | Q123: 8 | R123: 11 | S123: 19
A124: 2011-11-06 | B124: Seattle Seahawks | C124: 13 | D124: Dallas Cowboys | E124: 23 | F124: 11 | G124: 45 | H124: Home Team | I124: Favorite | J124: Visiting Team | K124: Underdog | L124: No | M124: Yes | N124: - | O124: - | P124: Under | Q124: 10 | R124: 13 | S124: 23
A125: 2011-11-06 | B125: Denver Broncos | C125: 38 | D125: Oakland Raiders | E125: 24 | F125: 7.5 | G125: 42.5 | H125: Visiting Team | I125: Underdog | J125: Visiting Team | K125: Underdog | L125: No | M125: Yes | N125: - | O125: - | P125: Over | Q125: 14 | R125: 24 | S125: 38
A126: 2011-11-06 | B126: Cincinnati Bengals | C126: 24 | D126: Tennessee Titans | E126: 17 | F126: 3 | G126: 41.5 | H126: Visiting Team | I126: Underdog | J126: Visiting Team | K126: Underdog | L126: No | M126: Yes | N126: - | O126: - | P126: Under | Q126: 7 | R126: 17 | S126: 24
A127: 2011-11-06 | B127: St Louis Rams | C127: 13 | D127: Arizona Cardinals | E127: 19 | F127: 3 | G127: 41.5 | H127: Home Team | I127: Favorite | J127: Home Team | K127: Favorite | L127: Yes | M127: No | N127: - | O127: - | P127: =IF($C127+$E127=$G127,"Push",IF($C127+$E127>$G127,"Over","Under")) -> Under | Q127: 6 | R127: 13 | S127: 19
A128: 2011-11-06 | B128: New York Giants | C128: 24 | D128: New England Patriots | E128: 20 | F128: 9 | G128: 51 | H128: Visiting Team | I128: Underdog | J128: Visiting Team | K128: Underdog | L128: No | M128: Yes | N128: - | O128: - | P128: Under | Q128: 4 | R128: 20 | S128: 24
A129: 2011-11-06 | B129: Green Bay Packers | C129: 45 | D129: San Diego Chargers | E129: 38 | F129: -6 | G129: 51 | H129: Visiting Team | I129: Favorite | J129: Visiting Team | K129: Favorite | L129: - | M129: - | N129: No | O129: Yes | P129: Over | Q129: 7 | R129: 38 | S129: 45
A130: 2011-11-06 | B130: Baltimore Ravens | C130: 23 | D130: Pittsburgh Steelers | E130: 20 | F130: 3.5 | G130: 42 | H130: Visiting Team | I130: Underdog | J130: =IF($C130+$F130=$E130,"Push",IF($C130+$F130>$E130,"Visiting Team","Home Team")) -> Visiting Team | K130: Underdog | L130: No | M130: Yes | N130: - | O130: - | P130: Over | Q130: 3 | R130: 20 | S130: 23
A131: 2011-11-07 | B131: Chicago Bears | C131: 30 | D131: Philadelphia Eagles | E131: 24 | F131: 8 | G131: 47.5 | H131: Visiting Team | I131: Underdog | J131: Visiting Team | K131: Underdog | L131: =IF(AND($F131>0,$C131+$F131=$E131),"Push",IF(AND($F131<0,$E131-$F131=$C131),"Push",IF($F131<0,"-",IF(AND($F131>0,$C131+$F131<$E131),"Yes","No")))) -> No | M131: =IF(AND($F131>0,$C131+$F131=$E131),"Push",IF(AND($F131<0,$E131-$F131=$C131),"Push",IF($F131<0,"-",IF(AND($F131>0,$C131+$F131>$E131),"Yes","No")))) -> Yes | N131: =IF(AND($F131>0,$C131+$F131=$E131),"Push",IF(AND($F131<0,$E131-$F131=$C131),"Push",IF($F131>0,"-",IF(AND($F131<0,$C131+$F131<$E131),"Yes","No")))) -> - | O131: =IF(AND($F131>0,$C131+$F131=$E131),"Push",IF(AND($F131<0,$E131-$F131=$C131),"Push",IF($F131>0,"-",IF(AND($F131<0,$C131+$F131>$E131),"Yes","No")))) -> - | P131: Over | Q131: 6 | R131: 24 | S131: 30
A132: 2011-11-10 | B132: Oakland Raiders | C132: 24 | D132: San Diego Chargers | E132: 17 | F132: 7 | G132: 48 | H132: Visiting Team | I132: Underdog | J132: Visiting Team | K132: Underdog | L132: No | M132: Yes | N132: - | O132: - | P132: Under | Q132: 7 | R132: 17 | S132: 24
A133: 2011-11-13 | B133: Pittsburgh Steelers | C133: 24 | D133: Cincinnati Bengals | E133: 17 | F133: -4 | G133: 40.5 | H133: Visiting Team | I133: Favorite | J133: Visiting Team | K133: Favorite | L133: - | M133: - | N133: No | O133: Yes | P133: Over | Q133: 7 | R133: =IF(C133<E133, C133+0, E133+0) -> 17 | S133: =IF(E133>C133, E133+0, C133+0) -> 24
A134: 2011-11-13 | B134: Denver Broncos | C134: 17 | D134: Kansas City Chiefs | E134: 10 | F134: 3.5 | G134: 42.5 | H134: Visiting Team | I134: Underdog | J134: Visiting Team | K134: Underdog | L134: No | M134: Yes | N134: - | O134: - | P134: Under | Q134: =ABS(C134-E134) -> 7 | R134: 10 | S134: 17
A135: 2011-11-13 | B135: Jacksonville Jaguars | C135: 17 | D135: Indianapolis Colts | E135: 3 | F135: -3 | G135: 37.5 | H135: Visiting Team | I135: Favorite | J135: Visiting Team | K135: Favorite | L135: - | M135: - | N135: No | O135: Yes | P135: Under | Q135: 14 | R135: 3 | S135: 17
A136: 2011-11-13 | B136: Buffalo Bills | C136: 7 | D136: Dallas Cowboys | E136: 44 | F136: 4.5 | G136: 49 | H136: Home Team | I136: Favorite | J136: Home Team | K136: Favorite | L136: Yes | M136: No | N136: - | O136: - | P136: Over | Q136: 37 | R136: 7 | S136: 44
A137: 2011-11-13 | B137: Houston Texans | C137: 37 | D137: Tampa Bay Buccaneers | E137: 9 | F137: -4 | G137: 45.5 | H137: Visiting Team | I137: Favorite | J137: Visiting Team | K137: Favorite | L137: - | M137: - | N137: No | O137: Yes | P137: Over | Q137: 28 | R137: 9 | S137: 37
A138: 2011-11-13 | B138: Tennessee Titans | C138: 30 | D138: Carolina Panthers | E138: 3 | F138: 3.5 | G138: 47.5 | H138: Visiting Team | I138: Underdog | J138: Visiting Team | K138: Underdog | L138: No | M138: Yes | N138: - | O138: - | P138: Under | Q138: 27 | R138: 3 | S138: 30
A139: 2011-11-13 | B139: Washington Redskins | C139: 9 | D139: Miami Dolphins | E139: 20 | F139: 4 | G139: 38 | H139: Home Team | I139: Favorite | J139: Home Team | K139: Favorite | L139: Yes | M139: No | N139: - | O139: - | P139: Under | Q139: 11 | R139: 9 | S139: 20
A140: 2011-11-13 | B140: New Orleans Saints | C140: 26 | D140: Atlanta Falcons | E140: 23 | F140: 1 | G140: 50 | H140: =IF($C140=$E140,"Tie Game",IF($C140>$E140,"Visiting Team","Home Team")) -> Visiting Team | I140: Underdog | J140: Visiting Team | K140: Underdog | L140: No | M140: Yes | N140: - | O140: - | P140: Under | Q140: 3 | R140: 23 | S140: 26
A141: 2011-11-13 | B141: Detroit Lions | C141: 13 | D141: Chicago Bears | E141: 37 | F141: 3 | G141: 42.5 | H141: Home Team | I141: Favorite | J141: Home Team | K141: Favorite | L141: Yes | M141: No | N141: - | O141: - | P141: Over | Q141: 24 | R141: 13 | S141: 37
A142: 2011-11-13 | B142: St Louis Rams | C142: 13 | D142: Cleveland Browns | E142: 12 | F142: 3 | G142: 36.5 | H142: Visiting Team | I142: =IF(AND(F142>0,E142>C142),"Favorite",IF(AND(F142<0,E142>C142),"Underdog",IF(AND(F142<0,E142<C142),"Favorite",IF(AND(F142>0,E142<C142),"Underdog")))) -> Underdog | J142: Visiting Team | K142: Underdog | L142: No | M142: Yes | N142: - | O142: - | P142: Under | Q142: 1 | R142: 12 | S142: 13
A143: 2011-11-13 | B143: Arizona Cardinals | C143: 21 | D143: Philadelphia Eagles | E143: 17 | F143: 13 | G143: 47.5 | H143: Visiting Team | I143: Underdog | J143: Visiting Team | K143: Underdog | L143: No | M143: Yes | N143: - | O143: - | P143: Under | Q143: 4 | R143: 17 | S143: 21
A144: 2011-11-13 | B144: Baltimore Ravens | C144: 17 | D144: Seattle Seahawks | E144: 22 | F144: -7 | G144: 39 | H144: Home Team | I144: Underdog | J144: Home Team | K144: Underdog | L144: - | M144: - | N144: Yes | O144: No | P144: Push | Q144: 5 | R144: 17 | S144: 22
A145: 2011-11-13 | B145: New York Giants | C145: 20 | D145: San Francisco 49ers | E145: 27 | F145: 4 | G145: 42.5 | H145: Home Team | I145: Favorite | J145: Home Team | K145: Favorite | L145: Yes | M145: No | N145: - | O145: - | P145: Over | Q145: 7 | R145: 20 | S145: 27
A146: 2011-11-13 | B146: New England Patriots | C146: 37 | D146: New York Jets | E146: 16 | F146: 2.5 | G146: 47 | H146: Visiting Team | I146: Underdog | J146: Visiting Team | K146: Underdog | L146: No | M146: Yes | N146: - | O146: - | P146: Over | Q146: 21 | R146: 16 | S146: 37
A147: 2011-11-14 | B147: Minnesota Vikings | C147: 7 | D147: Green Bay Packers | E147: 45 | F147: 13 | G147: 50 | H147: Home Team | I147: Favorite | J147: Home Team | K147: Favorite | L147: Yes | M147: No | N147: - | O147: - | P147: Over | Q147: 38 | R147: 7 | S147: 45
A148: 2011-11-17 | B148: New York Jets | C148: 13 | D148: Denver Broncos | E148: 17 | F148: -6.5 | G148: 38.5 | H148: Home Team | I148: Underdog | J148: Home Team | K148: Underdog | L148: - | M148: - | N148: Yes | O148: No | P148: Under | Q148: 4 | R148: 13 | S148: 17
A149: 2011-11-20 | B149: Tennessee Titans | C149: 17 | D149: Atlanta Falcons | E149: 23 | F149: 6.5 | G149: 44 | H149: Home Team | I149: Favorite | J149: Visiting Team | K149: Underdog | L149: No | M149: Yes | N149: - | O149: - | P149: Under | Q149: 6 | R149: 17 | S149: 23
A150: 2011-11-20 | B150: Buffalo Bills | C150: 8 | D150: Miami Dolphins | E150: 35 | F150: 3 | G150: 44 | H150: Home Team | I150: Favorite | J150: Home Team | K150: Favorite | L150: Yes | M150: No | N150: - | O150: - | P150: Under | Q150: 27 | R150: 8 | S150: 35
A151: 2011-11-20 | B151: Cincinnati Bengals | C151: 24 | D151: Baltimore Ravens | E151: 31 | F151: 7 | G151: 40.5 | H151: Home Team | I151: Favorite | J151: Push | K151: Push | L151: Push | M151: Push | N151: Push | O151: Push | P151: Over | Q151: 7 | R151: 24 | S151: 31
A152: 2011-11-20 | B152: Jacksonville Jaguars | C152: 10 | D152: Cleveland Browns | E152: 14 | F152: 1.5 | G152: 34.5 | H152: Home Team | I152: Favorite | J152: Home Team | K152: =IF(L152="Yes", "Favorite", IF(O152="Yes", "Favorite", IF(M152 = "Yes", "Underdog", IF(N152 = "Yes", "Underdog",IF(L152 = "Push", "Push"))))) -> Favorite | L152: Yes | M152: No | N152: - | O152: - | P152: Under | Q152: 4 | R152: 10 | S152: 14
A153: 2011-11-20 | B153: Oakland Raiders | C153: 27 | D153: Minnesota Vikings | E153: 21 | F153: 2 | G153: 46.5 | H153: Visiting Team | I153: Underdog | J153: Visiting Team | K153: Underdog | L153: No | M153: Yes | N153: - | O153: - | P153: Over | Q153: 6 | R153: 21 | S153: 27
A154: 2011-11-20 | B154: Carolina Panthers | C154: 35 | D154: Detroit Lions | E154: 49 | F154: 7 | G154: 47.5 | H154: Home Team | I154: Favorite | J154: Home Team | K154: Favorite | L154: Yes | M154: No | N154: - | O154: - | P154: Over | Q154: 14 | R154: 35 | S154: 49
A155: 2011-11-20 | B155: Tampa Bay Buccaneers | C155: 26 | D155: Green Bay Packers | E155: 35 | F155: 13.5 | G155: 49 | H155: Home Team | I155: Favorite | J155: Visiting Team | K155: Underdog | L155: No | M155: Yes | N155: - | O155: - | P155: Over | Q155: 9 | R155: 26 | S155: 35
A156: 2011-11-20 | B156: Dallas Cowboys | C156: 27 | D156: Washington Redskins | E156: 24 | F156: -7 | G156: 43 | H156: Visiting Team | I156: Favorite | J156: Home Team | K156: Underdog | L156: - | M156: - | N156: Yes | O156: No | P156: Over | Q156: 3 | R156: 24 | S156: 27
A157: 2011-11-20 | B157: Arizona Cardinals | C157: 7 | D157: San Francisco 49ers | E157: 23 | F157: 10 | G157: 40.5 | H157: Home Team | I157: Favorite | J157: Home Team | K157: Favorite | L157: Yes | M157: No | N157: - | O157: - | P157: Under | Q157: 16 | R157: 7 | S157: 23
A158: 2011-11-20 | B158: Seattle Seahawks | C158: 24 | D158: St Louis Rams | E158: 7 | F158: 3 | G158: 40 | H158: Visiting Team | I158: Underdog | J158: Visiting Team | K158: Underdog | L158: No | M158: Yes | N158: - | O158: - | P158: Under | Q158: 17 | R158: 7 | S158: 24
A159: 2011-11-20 | B159: San Diego Chargers | C159: 20 | D159: Chicago Bears | E159: 31 | F159: 4.5 | G159: 45.5 | H159: Home Team | I159: Favorite | J159: Home Team | K159: Favorite | L159: Yes | M159: No | N159: - | O159: - | P159: Over | Q159: 11 | R159: 20 | S159: 31
A160: 2011-11-20 | B160: Philadelphia Eagles | C160: 17 | D160: New York Giants | E160: 10 | F160: 6 | G160: 45.5 | H160: Visiting Team | I160: Underdog | J160: Visiting Team | K160: Underdog | L160: No | M160: Yes | N160: - | O160: - | P160: Under | Q160: 7 | R160: 10 | S160: 17
A161: 2011-11-21 | B161: Kansas City Chiefs | C161: 3 | D161: New England Patriots | E161: 34 | F161: 17 | G161: 47 | H161: Home Team | I161: Favorite | J161: Home Team | K161: Favorite | L161: Yes | M161: No | N161: - | O161: - | P161: Under | Q161: 31 | R161: 3 | S161: 34
A162: 2011-11-24 | B162: Green Bay Packers | C162: 27 | D162: Detroit Lions | E162: 15 | F162: -4.5 | G162: 55 | H162: Visiting Team | I162: Favorite | J162: Visiting Team | K162: Favorite | L162: - | M162: - | N162: No | O162: Yes | P162: Under | Q162: 12 | R162: 15 | S162: 27
A163: 2011-11-24 | B163: Miami Dolphins | C163: 19 | D163: Dallas Cowboys | E163: 20 | F163: 7 | G163: 46 | H163: Home Team | I163: Favorite | J163: Visiting Team | K163: Underdog | L163: No | M163: Yes | N163: - | O163: - | P163: Under | Q163: 1 | R163: 19 | S163: 20
A164: 2011-11-24 | B164: San Francisco 49ers | C164: 6 | D164: Baltimore Ravens | E164: 16 | F164: 3.5 | G164: 40.5 | H164: Home Team | I164: Favorite | J164: Home Team | K164: Favorite | L164: Yes | M164: No | N164: - | O164: - | P164: Under | Q164: 10 | R164: 6 | S164: 16
A165: 2011-11-27 | B165: Arizona Cardinals | C165: 23 | D165: St Louis Rams | E165: 20 | F165: 2.5 | G165: 40 | H165: Visiting Team | I165: Underdog | J165: Visiting Team | K165: Underdog | L165: No | M165: Yes | N165: - | O165: - | P165: Over | Q165: 3 | R165: 20 | S165: 23
A166: 2011-11-27 | B166: Buffalo Bills | C166: 24 | D166: New York Jets | E166: 28 | F166: 9.5 | G166: 42.5 | H166: Home Team | I166: Favorite | J166: Visiting Team | K166: Underdog | L166: No | M166: Yes | N166: - | O166: - | P166: Over | Q166: 4 | R166: 24 | S166: 28
A167: 2011-11-27 | B167: Cleveland Browns | C167: 20 | D167: Cincinnati Bengals | E167: 23 | F167: 7 | G167: 38 | H167: Home Team | I167: Favorite | J167: Visiting Team | K167: Underdog | L167: No | M167: Yes | N167: - | O167: - | P167: Over | Q167: 3 | R167: 20 | S167: 23
A168: 2011-11-27 | B168: Houston Texans | C168: 20 | D168: Jacksonville Jaguars | E168: 13 | F168: -6.5 | G168: 37 | H168: Visiting Team | I168: Favorite | J168: Visiting Team | K168: Favorite | L168: - | M168: - | N168: No | O168: Yes | P168: Under | Q168: 7 | R168: 13 | S168: 20
A169: 2011-11-27 | B169: Carolina Panthers | C169: 27 | D169: Indianapolis Colts | E169: 19 | F169: -3.5 | G169: 46.5 | H169: Visiting Team | I169: Favorite | J169: Visiting Team | K169: Favorite | L169: - | M169: - | N169: No | O169: Yes | P169: Under | Q169: 8 | R169: 19 | S169: 27
A170: 2011-11-27 | B170: Tampa Bay Buccaneers | C170: 17 | D170: Tennessee Titans | E170: 23 | F170: 3 | G170: 44 | H170: Home Team | I170: Favorite | J170: Home Team | K170: Favorite | L170: Yes | M170: No | N170: - | O170: - | P170: Under | Q170: 6 | R170: 17 | S170: 23
A171: 2011-11-27 | B171: Minnesota Vikings | C171: 14 | D171: Atlanta Falcons | E171: 24 | F171: 10 | G171: 44 | H171: Home Team | I171: Favorite | J171: Push | K171: Push | L171: Push | M171: Push | N171: Push | O171: Push | P171: Under | Q171: 10 | R171: 14 | S171: 24
A172: 2011-11-27 | B172: Chicago Bears | C172: 20 | D172: Oakland Raiders | E172: 25 | F172: 3 | G172: 41 | H172: Home Team | I172: Favorite | J172: Home Team | K172: Favorite | L172: Yes | M172: No | N172: - | O172: - | P172: Over | Q172: 5 | R172: 20 | S172: 25
A173: 2011-11-27 | B173: Washington Redskins | C173: 23 | D173: Seattle Seahawks | E173: 17 | F173: 3 | G173: 37.5 | H173: Visiting Team | I173: Underdog | J173: Visiting Team | K173: Underdog | L173: No | M173: Yes | N173: - | O173: - | P173: Over | Q173: 6 | R173: 17 | S173: 23
A174: 2011-11-27 | B174: New England Patriots | C174: 38 | D174: Philadelphia Eagles | E174: 20 | F174: -3.5 | G174: 50.5 | H174: Visiting Team | I174: Favorite | J174: Visiting Team | K174: Favorite | L174: - | M174: - | N174: No | O174: Yes | P174: Over | Q174: 18 | R174: 20 | S174: 38
A175: 2011-11-27 | B175: Denver Broncos | C175: 16 | D175: San Diego Chargers | E175: 13 | F175: 5.5 | G175: 42 | H175: Visiting Team | I175: Underdog | J175: Visiting Team | K175: Underdog | L175: No | M175: Yes | N175: - | O175: - | P175: Under | Q175: 3 | R175: 13 | S175: 16
A176: 2011-11-27 | B176: Pittsburgh Steelers | C176: 13 | D176: Kansas City Chiefs | E176: 9 | F176: -10.5 | G176: 40.5 | H176: Visiting Team | I176: Favorite | J176: Home Team | K176: Underdog | L176: - | M176: - | N176: Yes | O176: No | P176: Under | Q176: 4 | R176: 9 | S176: 13
A177: 2011-11-28 | B177: New York Giants | C177: 24 | D177: New Orleans Saints | E177: 49 | F177: 7 | G177: 51 | H177: Home Team | I177: Favorite | J177: Home Team | K177: Favorite | L177: Yes | M177: No | N177: - | O177: - | P177: Over | Q177: 25 | R177: 24 | S177: 49
A178: 2011-12-01 | B178: Philadelphia Eagles | C178: 14 | D178: Seattle Seahawks | E178: 31 | F178: -3 | G178: 43.5 | H178: Home Team | I178: Underdog | J178: Home Team | K178: Underdog | L178: - | M178: - | N178: Yes | O178: No | P178: Over | Q178: 17 | R178: 14 | S178: 31
A179: 2011-12-04 | B179: Tennessee Titans | C179: 23 | D179: Buffalo Bills | E179: 17 | F179: 1 | G179: 44 | H179: Visiting Team | I179: Underdog | J179: Visiting Team | K179: Underdog | L179: No | M179: Yes | N179: - | O179: - | P179: Under | Q179: 6 | R179: 17 | S179: 23
A180: 2011-12-04 | B180: Kansas City Chiefs | C180: 10 | D180: Chicago Bears | E180: 3 | F180: 9 | G180: 35 | H180: Visiting Team | I180: Underdog | J180: Visiting Team | K180: Underdog | L180: No | M180: Yes | N180: - | O180: - | P180: Under | Q180: 7 | R180: 3 | S180: 10
A181: 2011-12-04 | B181: Oakland Raiders | C181: 14 | D181: Miami Dolphins | E181: 34 | F181: 3 | G181: 43 | H181: Home Team | I181: Favorite | J181: Home Team | K181: Favorite | L181: Yes | M181: No | N181: - | O181: - | P181: Over | Q181: 20 | R181: 14 | S181: 34
A182: 2011-12-04 | B182: Cincinnati Bengals | C182: 7 | D182: Pittsburgh Steelers | E182: 35 | F182: 7 | G182: 43 | H182: Home Team | I182: Favorite | J182: Home Team | K182: Favorite | L182: Yes | M182: No | N182: - | O182: - | P182: Under | Q182: 28 | R182: 7 | S182: 35
A183: 2011-12-04 | B183: Baltimore Ravens | C183: 24 | D183: Cleveland Browns | E183: 10 | F183: -7 | G183: 38.5 | H183: Visiting Team | I183: Favorite | J183: Visiting Team | K183: Favorite | L183: - | M183: - | N183: No | O183: Yes | P183: Under | Q183: 14 | R183: 10 | S183: 24
A184: 2011-12-04 | B184: New York Jets | C184: 34 | D184: Washington Redskins | E184: 19 | F184: -3 | G184: 38.5 | H184: Visiting Team | I184: Favorite | J184: Visiting Team | K184: Favorite | L184: - | M184: - | N184: No | O184: Yes | P184: Over | Q184: 15 | R184: 19 | S184: 34
A185: 2011-12-04 | B185: Atlanta Falcons | C185: 10 | D185: Houston Texans | E185: 17 | F185: -2 | G185: 38 | H185: Home Team | I185: Underdog | J185: Home Team | K185: Underdog | L185: - | M185: - | N185: Yes | O185: No | P185: Under | Q185: 7 | R185: 10 | S185: 17
A186: 2011-12-04 | B186: Carolina Panthers | C186: 38 | D186: Tampa Bay Buccaneers | E186: 19 | F186: -2.5 | G186: 46.5 | H186: Visiting Team | I186: Favorite | J186: Visiting Team | K186: Favorite | L186: - | M186: - | N186: No | O186: Yes | P186: Over | Q186: 19 | R186: 19 | S186: 38
A187: 2011-12-04 | B187: Detroit Lions | C187: 17 | D187: New Orleans Saints | E187: 31 | F187: 9 | G187: 54.5 | H187: Home Team | I187: Favorite | J187: Home Team | K187: Favorite | L187: Yes | M187: No | N187: - | O187: - | P187: Under | Q187: 14 | R187: 17 | S187: 31
A188: 2011-12-04 | B188: Denver Broncos | C188: 35 | D188: Minnesota Vikings | E188: 32 | F188: 1.5 | G188: 37.5 | H188: Visiting Team | I188: Underdog | J188: Visiting Team | K188: Underdog | L188: No | M188: Yes | N188: - | O188: - | P188: Over | Q188: 3 | R188: 32 | S188: 35
A189: 2011-12-04 | B189: St Louis Rams | C189: 0 | D189: San Francisco 49ers | E189: 26 | F189: 14.5 | G189: 38.5 | H189: Home Team | I189: Favorite | J189: Home Team | K189: Favorite | L189: Yes | M189: No | N189: - | O189: - | P189: Under | Q189: 26 | R189: 0 | S189: 26
A190: 2011-12-04 | B190: Dallas Cowboys | C190: 13 | D190: Arizona Cardinals | E190: 19 | F190: -4.5 | G190: 46.5 | H190: Home Team | I190: Underdog | J190: Home Team | K190: Underdog | L190: - | M190: - | N190: Yes | O190: No | P190: Under | Q190: 6 | R190: 13 | S190: 19
A191: 2011-12-04 | B191: Green Bay Packers | C191: 38 | D191: New York Giants | E191: 35 | F191: -7 | G191: 54 | H191: Visiting Team | I191: Favorite | J191: Home Team | K191: Underdog | L191: - | M191: - | N191: Yes | O191: No | P191: =IF($C191+$E191=$G191,"Push",IF($C191+$E191>$G191,"Over","Under")) -> Over | Q191: 3 | R191: 35 | S191: 38
A192: 2011-12-04 | B192: Indianapolis Colts | C192: 24 | D192: New England Patriots | E192: 31 | F192: 20.5 | G192: 48.5 | H192: Home Team | I192: Favorite | J192: Visiting Team | K192: Underdog | L192: No | M192: Yes | N192: - | O192: - | P192: Over | Q192: 7 | R192: 24 | S192: 31
A193: 2011-12-05 | B193: San Diego Chargers | C193: 38 | D193: Jacksonville Jaguars | E193: 14 | F193: -3 | G193: 39.5 | H193: Visiting Team | I193: Favorite | J193: Visiting Team | K193: Favorite | L193: - | M193: - | N193: No | O193: Yes | P193: Over | Q193: 24 | R193: 14 | S193: 38
A194: 2011-12-08 | B194: Cleveland Browns | C194: 3 | D194: Pittsburgh Steelers | E194: 14 | F194: 14 | G194: 40 | H194: Home Team | I194: Favorite | J194: =IF($C194+$F194=$E194,"Push",IF($C194+$F194>$E194,"Visiting Team","Home Team")) -> Visiting Team | K194: Underdog | L194: No | M194: Yes | N194: - | O194: - | P194: Under | Q194: 11 | R194: 3 | S194: 14
A195: 2011-12-11 | B195: Indianapolis Colts | C195: 10 | D195: Baltimore Ravens | E195: 24 | F195: 16.5 | G195: 41.5 | H195: Home Team | I195: Favorite | J195: Visiting Team | K195: Underdog | L195: =IF(AND($F195>0,$C195+$F195=$E195),"Push",IF(AND($F195<0,$E195-$F195=$C195),"Push",IF($F195<0,"-",IF(AND($F195>0,$C195+$F195<$E195),"Yes","No")))) -> No | M195: =IF(AND($F195>0,$C195+$F195=$E195),"Push",IF(AND($F195<0,$E195-$F195=$C195),"Push",IF($F195<0,"-",IF(AND($F195>0,$C195+$F195>$E195),"Yes","No")))) -> Yes | N195: =IF(AND($F195>0,$C195+$F195=$E195),"Push",IF(AND($F195<0,$E195-$F195=$C195),"Push",IF($F195>0,"-",IF(AND($F195<0,$C195+$F195<$E195),"Yes","No")))) -> - | O195: =IF(AND($F195>0,$C195+$F195=$E195),"Push",IF(AND($F195<0,$E195-$F195=$C195),"Push",IF($F195>0,"-",IF(AND($F195<0,$C195+$F195>$E195),"Yes","No")))) -> - | P195: Under | Q195: 14 | R195: 10 | S195: 24
A196: 2011-12-11 | B196: Houston Texans | C196: 20 | D196: Cincinnati Bengals | E196: 19 | F196: 3 | G196: 37 | H196: Visiting Team | I196: Underdog | J196: Visiting Team | K196: Underdog | L196: No | M196: Yes | N196: - | O196: - | P196: Over | Q196: 1 | R196: 19 | S196: 20
A197: 2011-12-11 | B197: Oakland Raiders | C197: 16 | D197: Green Bay Packers | E197: 46 | F197: 11.5 | G197: 49.5 | H197: Home Team | I197: Favorite | J197: Home Team | K197: Favorite | L197: Yes | M197: No | N197: - | O197: - | P197: Over | Q197: 30 | R197: =IF(C197<E197, C197+0, E197+0) -> 16 | S197: =IF(E197>C197, E197+0, C197+0) -> 46
A198: 2011-12-11 | B198: Kansas City Chiefs | C198: 10 | D198: New York Jets | E198: 37 | F198: 10.5 | G198: 35.5 | H198: Home Team | I198: Favorite | J198: Home Team | K198: Favorite | L198: Yes | M198: No | N198: - | O198: - | P198: Over | Q198: =ABS(C198-E198) -> 27 | R198: 10 | S198: 37
A199: 2011-12-11 | B199: Minnesota Vikings | C199: 28 | D199: Detroit Lions | E199: 34 | F199: 10 | G199: 47 | H199: Home Team | I199: Favorite | J199: Visiting Team | K199: Underdog | L199: No | M199: Yes | N199: - | O199: - | P199: Over | Q199: 6 | R199: 28 | S199: 34
A200: 2011-12-11 | B200: New Orleans Saints | C200: 22 | D200: Tennessee Titans | E200: 17 | F200: -3.5 | G200: 48 | H200: Visiting Team | I200: Favorite | J200: Visiting Team | K200: Favorite | L200: - | M200: - | N200: No | O200: Yes | P200: Under | Q200: 5 | R200: 17 | S200: 22
... 80 more rows

Sheet 2010
A1: Date | B1: Visiting Team | C1: Visitor Score | D1: Home Team | E1: Home Score | F1: Visitor Line | G1: Total Line | H1: Who Won Straight Up? Home or Visitor? | I1: Who Won Straight Up? Fav or Dog? | J1: Who Covered the spread? Home or Visitor? | K1: Who Covered the spread? Fav or Dog? | L1: Home Favorite Covered? | M1: Away Dog Covered? | N1: Home Dog Covered? | O1: Away Favorite Covered? | P1: Total Over or Under | Q1: Score Diff | R1: Loser's Score | S1: Winner's Score
A2: 2010-09-09 | B2: Minnesota Vikings | C2: 9 | D2: New Orleans Saints | E2: 14 | F2: 5 | G2: 49.5 | H2: =IF($C2=$E2,"Tie Game",IF($C2>$E2,"Visiting Team","Home Team")) -> Home Team | I2: =IF(AND(F2>0,E2>C2),"Favorite",IF(AND(F2<0,E2>C2),"Underdog",IF(AND(F2<0,E2<C2),"Favorite",IF(AND(F2>0,E2<C2),"Underdog")))) -> Favorite | J2: =IF($C2+$F2=$E2,"Push",IF($C2+$F2>$E2,"Visiting Team","Home Team")) -> Push | K2: =IF(L2="Yes", "Favorite", IF(O2="Yes", "Favorite", IF(M2 = "Yes", "Underdog", IF(N2 = "Yes", "Underdog",IF(L2 = "Push", "Push"))))) -> Push | L2: =IF(AND($F2>0,$C2+$F2=$E2),"Push",IF(AND($F2<0,$E2-$F2=$C2),"Push",IF($F2<0,"-",IF(AND($F2>0,$C2+$F2<$E2),"Yes","No")))) -> Push | M2: =IF(AND($F2>0,$C2+$F2=$E2),"Push",IF(AND($F2<0,$E2-$F2=$C2),"Push",IF($F2<0,"-",IF(AND($F2>0,$C2+$F2>$E2),"Yes","No")))) -> Push | N2: =IF(AND($F2>0,$C2+$F2=$E2),"Push",IF(AND($F2<0,$E2-$F2=$C2),"Push",IF($F2>0,"-",IF(AND($F2<0,$C2+$F2<$E2),"Yes","No")))) -> Push | O2: =IF(AND($F2>0,$C2+$F2=$E2),"Push",IF(AND($F2<0,$E2-$F2=$C2),"Push",IF($F2>0,"-",IF(AND($F2<0,$C2+$F2>$E2),"Yes","No")))) -> Push | P2: =IF($C2+$E2=$G2,"Push",IF($C2+$E2>$G2,"Over","Under")) -> Under | Q2: =ABS(C2-E2) -> 5 | R2: =IF(C2<E2, C2+0, E2+0) -> 9 | S2: =IF(E2>C2, E2+0, C2+0) -> 14
A3: 2010-09-12 | B3: Carolina Panthers | C3: 18 | D3: New York Giants | E3: 31 | F3: 6 | G3: 41 | H3: Home Team | I3: Favorite | J3: Home Team | K3: Favorite | L3: =IF(AND($F3>0,$C3+$F3=$E3),"Push",IF(AND($F3<0,$E3-$F3=$C3),"Push",IF($F3<0,"-",IF(AND($F3>0,$C3+$F3<$E3),"Yes","No")))) -> Yes | M3: =IF(AND($F3>0,$C3+$F3=$E3),"Push",IF(AND($F3<0,$E3-$F3=$C3),"Push",IF($F3<0,"-",IF(AND($F3>0,$C3+$F3>$E3),"Yes","No")))) -> No | N3: =IF(AND($F3>0,$C3+$F3=$E3),"Push",IF(AND($F3<0,$E3-$F3=$C3),"Push",IF($F3>0,"-",IF(AND($F3<0,$C3+$F3<$E3),"Yes","No")))) -> - | O3: =IF(AND($F3>0,$C3+$F3=$E3),"Push",IF(AND($F3<0,$E3-$F3=$C3),"Push",IF($F3>0,"-",IF(AND($F3<0,$C3+$F3>$E3),"Yes","No")))) -> - | P3: Over | Q3: =ABS(C3-E3) -> 13 | R3: =IF(C3<E3, C3+0, E3+0) -> 18 | S3: =IF(E3>C3, E3+0, C3+0) -> 31
A4: 2010-09-12 | B4: Miami Dolphins | C4: 15 | D4: Buffalo Bills | E4: 10 | F4: -3 | G4: 39 | H4: Visiting Team | I4: Favorite | J4: Visiting Team | K4: Favorite | L4: - | M4: - | N4: No | O4: Yes | P4: Under | Q4: =ABS(C4-E4) -> 5 | R4: =IF(C4<E4, C4+0, E4+0) -> 10 | S4: =IF(E4>C4, E4+0, C4+0) -> 15
A5: 2010-09-12 | B5: Atlanta Falcons | C5: 9 | D5: Pittsburgh Steelers | E5: 15 | F5: -1.5 | G5: 39.5 | H5: Home Team | I5: Underdog | J5: Home Team | K5: Underdog | L5: - | M5: - | N5: Yes | O5: No | P5: Under | Q5: =ABS(C5-E5) -> 6 | R5: =IF(C5<E5, C5+0, E5+0) -> 9 | S5: =IF(E5>C5, E5+0, C5+0) -> 15
A6: 2010-09-12 | B6: Detroit Lions | C6: 14 | D6: Chicago Bears | E6: 19 | F6: 6.5 | G6: 45 | H6: Home Team | I6: Favorite | J6: Visiting Team | K6: Underdog | L6: No | M6: Yes | N6: - | O6: - | P6: Under | Q6: =ABS(C6-E6) -> 5 | R6: 14 | S6: 19
A7: 2010-09-12 | B7: Cincinnati Bengals | C7: 24 | D7: New England Patriots | E7: 38 | F7: 5.5 | G7: 45 | H7: Home Team | I7: Favorite | J7: Home Team | K7: Favorite | L7: Yes | M7: No | N7: - | O7: - | P7: Over | Q7: 14 | R7: 24 | S7: 38
A8: 2010-09-12 | B8: Cleveland Browns | C8: 14 | D8: Tampa Bay Buccaneers | E8: 17 | F8: 2.5 | G8: 37 | H8: Home Team | I8: Favorite | J8: Home Team | K8: Favorite | L8: Yes | M8: No | N8: - | O8: - | P8: Under | Q8: 3 | R8: 14 | S8: 17
A9: 2010-09-12 | B9: Denver Broncos | C9: 17 | D9: Jacksonville Jaguars | E9: 24 | F9: 3 | G9: 41.5 | H9: Home Team | I9: Favorite | J9: Home Team | K9: Favorite | L9: Yes | M9: No | N9: - | O9: - | P9: Under | Q9: 7 | R9: 17 | S9: 24
A10: 2010-09-12 | B10: Indianapolis Colts | C10: 24 | D10: Houston Texans | E10: 34 | F10: -1 | G10: 48 | H10: Home Team | I10: Underdog | J10: Home Team | K10: Underdog | L10: - | M10: - | N10: Yes | O10: No | P10: Over | Q10: 10 | R10: 24 | S10: 34
A11: 2010-09-12 | B11: Oakland Raiders | C11: 13 | D11: Tennessee Titans | E11: 38 | F11: 6.5 | G11: 40 | H11: Home Team | I11: Favorite | J11: Home Team | K11: Favorite | L11: Yes | M11: No | N11: - | O11: - | P11: Over | Q11: 25 | R11: 13 | S11: 38
A12: 2010-09-12 | B12: Green Bay Packers | C12: 27 | D12: Philadelphia Eagles | E12: 20 | F12: -3 | G12: 48 | H12: Visiting Team | I12: Favorite | J12: Visiting Team | K12: Favorite | L12: - | M12: - | N12: No | O12: Yes | P12: Under | Q12: 7 | R12: 20 | S12: 27
A13: 2010-09-12 | B13: San Francisco 49ers | C13: 6 | D13: Seattle Seahawks | E13: 31 | F13: -3 | G13: 37 | H13: Home Team | I13: =IF(AND(F13>0,E13>C13),"Favorite",IF(AND(F13<0,E13>C13),"Underdog",IF(AND(F13<0,E13<C13),"Favorite",IF(AND(F13>0,E13<C13),"Underdog")))) -> Underdog | J13: Home Team | K13: Underdog | L13: - | M13: - | N13: Yes | O13: No | P13: Push | Q13: 25 | R13: 6 | S13: 31
A14: 2010-09-12 | B14: Arizona Cardinals | C14: 17 | D14: St Louis Rams | E14: 13 | F14: -3 | G14: 39.5 | H14: Visiting Team | I14: =IF(AND(F14>0,E14>C14),"Favorite",IF(AND(F14<0,E14>C14),"Underdog",IF(AND(F14<0,E14<C14),"Favorite",IF(AND(F14>0,E14<C14),"Underdog")))) -> Favorite | J14: Visiting Team | K14: Favorite | L14: - | M14: - | N14: No | O14: Yes | P14: Under | Q14: 4 | R14: 13 | S14: 17
A15: 2010-09-12 | B15: Dallas Cowboys | C15: 7 | D15: Washington Redskins | E15: 13 | F15: -3 | G15: 40 | H15: Home Team | I15: Underdog | J15: Home Team | K15: Underdog | L15: - | M15: - | N15: Yes | O15: No | P15: Under | Q15: 6 | R15: 7 | S15: 13
A16: 2010-09-13 | B16: Baltimore Ravens | C16: 10 | D16: New York Jets | E16: 9 | F16: 1 | G16: 36.5 | H16: Visiting Team | I16: Underdog | J16: Visiting Team | K16: Underdog | L16: No | M16: Yes | N16: - | O16: - | P16: Under | Q16: 1 | R16: 9 | S16: 10
A17: 2010-09-13 | B17: San Diego Chargers | C17: 14 | D17: Kansas City Chiefs | E17: 21 | F17: -4 | G17: 45.5 | H17: Home Team | I17: Underdog | J17: Home Team | K17: Underdog | L17: - | M17: - | N17: Yes | O17: No | P17: Under | Q17: 7 | R17: 14 | S17: 21
A18: 2010-09-19 | B18: Kansas City Chiefs | C18: 16 | D18: Cleveland Browns | E18: 14 | F18: 3 | G18: 38 | H18: Visiting Team | I18: Underdog | J18: Visiting Team | K18: Underdog | L18: No | M18: Yes | N18: - | O18: - | P18: Under | Q18: 2 | R18: 14 | S18: 16
A19: 2010-09-19 | B19: Buffalo Bills | C19: 7 | D19: Green Bay Packers | E19: 34 | F19: 13 | G19: 43 | H19: Home Team | I19: Favorite | J19: Home Team | K19: Favorite | L19: Yes | M19: No | N19: - | O19: - | P19: Under | Q19: 27 | R19: 7 | S19: 34
A20: 2010-09-19 | B20: Baltimore Ravens | C20: 10 | D20: Cincinnati Bengals | E20: 15 | F20: -3 | G20: 39.5 | H20: Home Team | I20: Underdog | J20: Home Team | K20: Underdog | L20: - | M20: - | N20: Yes | O20: No | P20: Under | Q20: 5 | R20: 10 | S20: 15
A21: 2010-09-19 | B21: Pittsburgh Steelers | C21: 19 | D21: Tennessee Titans | E21: 11 | F21: 6 | G21: 37 | H21: Visiting Team | I21: Underdog | J21: Visiting Team | K21: Underdog | L21: No | M21: Yes | N21: - | O21: - | P21: Under | Q21: 8 | R21: 11 | S21: 19
A22: 2010-09-19 | B22: Philadelphia Eagles | C22: 35 | D22: Detroit Lions | E22: 32 | F22: -6.5 | G22: 41 | H22: Visiting Team | I22: Favorite | J22: Home Team | K22: Underdog | L22: - | M22: - | N22: Yes | O22: No | P22: Over | Q22: 3 | R22: 32 | S22: 35
A23: 2010-09-19 | B23: Chicago Bears | C23: 27 | D23: Dallas Cowboys | E23: 20 | F23: 7 | G23: 41.5 | H23: Visiting Team | I23: Underdog | J23: Visiting Team | K23: =IF(L23="Yes", "Favorite", IF(O23="Yes", "Favorite", IF(M23 = "Yes", "Underdog", IF(N23 = "Yes", "Underdog",IF(L23 = "Push", "Push"))))) -> Underdog | L23: No | M23: Yes | N23: - | O23: - | P23: Over | Q23: 7 | R23: 20 | S23: 27
A24: 2010-09-19 | B24: Tampa Bay Buccaneers | C24: 20 | D24: Carolina Panthers | E24: 7 | F24: 4 | G24: 37.5 | H24: Visiting Team | I24: Underdog | J24: Visiting Team | K24: =IF(L24="Yes", "Favorite", IF(O24="Yes", "Favorite", IF(M24 = "Yes", "Underdog", IF(N24 = "Yes", "Underdog",IF(L24 = "Push", "Push"))))) -> Underdog | L24: No | M24: Yes | N24: - | O24: - | P24: Under | Q24: 13 | R24: 7 | S24: 20
A25: 2010-09-19 | B25: Arizona Cardinals | C25: 7 | D25: Atlanta Falcons | E25: 41 | F25: 7 | G25: 43.5 | H25: Home Team | I25: Favorite | J25: Home Team | K25: Favorite | L25: Yes | M25: No | N25: - | O25: - | P25: Over | Q25: 34 | R25: 7 | S25: 41
A26: 2010-09-19 | B26: Miami Dolphins | C26: 14 | D26: Minnesota Vikings | E26: 10 | F26: 6 | G26: 41 | H26: Visiting Team | I26: Underdog | J26: Visiting Team | K26: Underdog | L26: No | M26: Yes | N26: - | O26: - | P26: Under | Q26: 4 | R26: 10 | S26: 14
A27: 2010-09-19 | B27: St Louis Rams | C27: 14 | D27: Oakland Raiders | E27: 16 | F27: 3 | G27: 37.5 | H27: Home Team | I27: Favorite | J27: Visiting Team | K27: Underdog | L27: No | M27: Yes | N27: - | O27: - | P27: Under | Q27: 2 | R27: 14 | S27: 16
A28: 2010-09-19 | B28: Seattle Seahawks | C28: 14 | D28: Denver Broncos | E28: 31 | F28: 3.5 | G28: 41 | H28: Home Team | I28: Favorite | J28: Home Team | K28: Favorite | L28: Yes | M28: No | N28: - | O28: - | P28: Over | Q28: 17 | R28: 14 | S28: 31
A29: 2010-09-19 | B29: Houston Texans | C29: 30 | D29: Washington Redskins | E29: 27 | F29: -3 | G29: 42.5 | H29: Visiting Team | I29: Favorite | J29: Push | K29: Push | L29: Push | M29: Push | N29: Push | O29: Push | P29: Over | Q29: 3 | R29: 27 | S29: 30
A30: 2010-09-19 | B30: Jacksonville Jaguars | C30: 13 | D30: San Diego Chargers | E30: 38 | F30: 7 | G30: 45 | H30: Home Team | I30: Favorite | J30: Home Team | K30: Favorite | L30: Yes | M30: No | N30: - | O30: - | P30: Over | Q30: 25 | R30: 13 | S30: 38
A31: 2010-09-19 | B31: New England Patriots | C31: 14 | D31: New York Jets | E31: 28 | F31: -3 | G31: 39.5 | H31: Home Team | I31: Underdog | J31: Home Team | K31: Underdog | L31: - | M31: - | N31: Yes | O31: No | P31: Over | Q31: 14 | R31: 14 | S31: 28
A32: 2010-09-19 | B32: New York Giants | C32: 14 | D32: Indianapolis Colts | E32: 38 | F32: 4 | G32: 48.5 | H32: Home Team | I32: Favorite | J32: Home Team | K32: Favorite | L32: Yes | M32: No | N32: - | O32: - | P32: Over | Q32: 24 | R32: 14 | S32: 38
A33: 2010-09-20 | B33: New Orleans Saints | C33: 25 | D33: San Francisco 49ers | E33: 22 | F33: -5 | G33: 43.5 | H33: Visiting Team | I33: Favorite | J33: Home Team | K33: Underdog | L33: - | M33: - | N33: Yes | O33: No | P33: Over | Q33: 3 | R33: 22 | S33: 25
A34: 2010-09-26 | B34: Tennessee Titans | C34: 29 | D34: New York Giants | E34: 10 | F34: 3 | G34: 43.5 | H34: Visiting Team | I34: Underdog | J34: Visiting Team | K34: Underdog | L34: No | M34: Yes | N34: - | O34: - | P34: Under | Q34: 19 | R34: 10 | S34: 29
A35: 2010-09-26 | B35: Buffalo Bills | C35: 30 | D35: New England Patriots | E35: 38 | F35: 14.5 | G35: 43 | H35: Home Team | I35: Favorite | J35: Visiting Team | K35: Underdog | L35: No | M35: Yes | N35: - | O35: - | P35: Over | Q35: 8 | R35: 30 | S35: 38
A36: 2010-09-26 | B36: Cleveland Browns | C36: 17 | D36: Baltimore Ravens | E36: 24 | F36: 12.5 | G36: 36.5 | H36: Home Team | I36: Favorite | J36: Visiting Team | K36: Underdog | L36: No | M36: Yes | N36: - | O36: - | P36: Over | Q36: 7 | R36: 17 | S36: 24
A37: 2010-09-26 | B37: Pittsburgh Steelers | C37: 38 | D37: Tampa Bay Buccaneers | E37: 13 | F37: -3 | G37: 33 | H37: Visiting Team | I37: Favorite | J37: Visiting Team | K37: Favorite | L37: - | M37: - | N37: No | O37: Yes | P37: Over | Q37: 25 | R37: 13 | S37: 38
A38: 2010-09-26 | B38: Cincinnati Bengals | C38: 20 | D38: Carolina Panthers | E38: 7 | F38: -3.5 | G38: 37 | H38: Visiting Team | I38: Favorite | J38: Visiting Team | K38: Favorite | L38: - | M38: - | N38: No | O38: Yes | P38: Under | Q38: 13 | R38: 7 | S38: 20
A39: 2010-09-26 | B39: Atlanta Falcons | C39: 27 | D39: New Orleans Saints | E39: 24 | F39: 3 | G39: 49.5 | H39: Visiting Team | I39: Underdog | J39: Visiting Team | K39: Underdog | L39: No | M39: Yes | N39: - | O39: - | P39: Over | Q39: 3 | R39: 24 | S39: 27
A40: 2010-09-26 | B40: San Francisco 49ers | C40: 10 | D40: Kansas City Chiefs | E40: 31 | F40: -3 | G40: 38 | H40: Home Team | I40: Underdog | J40: Home Team | K40: Underdog | L40: - | M40: - | N40: Yes | O40: No | P40: Over | Q40: 21 | R40: 10 | S40: 31
A41: 2010-09-26 | B41: Detroit Lions | C41: 10 | D41: Minnesota Vikings | E41: 24 | F41: 13 | G41: 43 | H41: Home Team | I41: Favorite | J41: Home Team | K41: Favorite | L41: Yes | M41: No | N41: - | O41: - | P41: Under | Q41: 14 | R41: 10 | S41: 24
A42: 2010-09-26 | B42: Dallas Cowboys | C42: 27 | D42: Houston Texans | E42: 13 | F42: 2.5 | G42: 47.5 | H42: Visiting Team | I42: Underdog | J42: Visiting Team | K42: Underdog | L42: No | M42: Yes | N42: - | O42: - | P42: Under | Q42: 14 | R42: 13 | S42: 27
A43: 2010-09-26 | B43: Washington Redskins | C43: 16 | D43: St Louis Rams | E43: 30 | F43: -5 | G43: 39 | H43: Home Team | I43: Underdog | J43: Home Team | K43: Underdog | L43: - | M43: - | N43: Yes | O43: No | P43: Over | Q43: 14 | R43: 16 | S43: 30
A44: 2010-09-26 | B44: Philadelphia Eagles | C44: 28 | D44: Jacksonville Jaguars | E44: 3 | F44: -3 | G44: 45 | H44: Visiting Team | I44: Favorite | J44: Visiting Team | K44: Favorite | L44: - | M44: - | N44: No | O44: Yes | P44: Under | Q44: 25 | R44: 3 | S44: 28
A45: 2010-09-26 | B45: Indianapolis Colts | C45: 27 | D45: Denver Broncos | E45: 13 | F45: -6 | G45: 47 | H45: Visiting Team | I45: Favorite | J45: Visiting Team | K45: Favorite | L45: - | M45: - | N45: No | O45: Yes | P45: Under | Q45: 14 | R45: 13 | S45: 27
A46: 2010-09-26 | B46: San Diego Chargers | C46: 20 | D46: Seattle Seahawks | E46: 27 | F46: -4 | G46: 44 | H46: Home Team | I46: Underdog | J46: Home Team | K46: Underdog | L46: - | M46: - | N46: Yes | O46: No | P46: Over | Q46: 7 | R46: 20 | S46: 27
A47: 2010-09-26 | B47: Oakland Raiders | C47: 23 | D47: Arizona Cardinals | E47: 24 | F47: 5.5 | G47: 39 | H47: Home Team | I47: Favorite | J47: Visiting Team | K47: Underdog | L47: No | M47: Yes | N47: - | O47: - | P47: Over | Q47: 1 | R47: 23 | S47: 24
A48: 2010-09-26 | B48: New York Jets | C48: 31 | D48: Miami Dolphins | E48: 23 | F48: 2.5 | G48: 36 | H48: Visiting Team | I48: Underdog | J48: Visiting Team | K48: Underdog | L48: No | M48: Yes | N48: - | O48: - | P48: Over | Q48: 8 | R48: 23 | S48: 31
A49: 2010-09-27 | B49: Green Bay Packers | C49: 17 | D49: Chicago Bears | E49: 20 | F49: -3 | G49: 46.5 | H49: Home Team | I49: Underdog | J49: Home Team | K49: Underdog | L49: - | M49: - | N49: Yes | O49: No | P49: Under | Q49: 3 | R49: 17 | S49: 20
A50: 2010-10-03 | B50: Denver Broncos | C50: 26 | D50: Tennessee Titans | E50: 20 | F50: 6.5 | G50: 43.5 | H50: Visiting Team | I50: Underdog | J50: Visiting Team | K50: Underdog | L50: No | M50: Yes | N50: - | O50: - | P50: Over | Q50: 6 | R50: 20 | S50: 26
A51: 2010-10-03 | B51: Baltimore Ravens | C51: 17 | D51: Pittsburgh Steelers | E51: 14 | F51: 2.5 | G51: 34.5 | H51: Visiting Team | I51: Underdog | J51: Visiting Team | K51: Underdog | L51: No | M51: Yes | N51: - | O51: - | P51: Under | Q51: 3 | R51: 14 | S51: 17
A52: 2010-10-03 | B52: Cincinnati Bengals | C52: 20 | D52: Cleveland Browns | E52: 23 | F52: -2.5 | G52: 37 | H52: Home Team | I52: Underdog | J52: Home Team | K52: Underdog | L52: - | M52: - | N52: Yes | O52: No | P52: Over | Q52: 3 | R52: 20 | S52: 23
A53: 2010-10-03 | B53: Detroit Lions | C53: 26 | D53: Green Bay Packers | E53: 28 | F53: 14.5 | G53: 46 | H53: Home Team | I53: Favorite | J53: Visiting Team | K53: Underdog | L53: No | M53: Yes | N53: - | O53: - | P53: Over | Q53: 2 | R53: 26 | S53: 28
A54: 2010-10-03 | B54: Carolina Panthers | C54: 14 | D54: New Orleans Saints | E54: 16 | F54: 12.5 | G54: 44 | H54: Home Team | I54: Favorite | J54: Visiting Team | K54: Underdog | L54: No | M54: Yes | N54: - | O54: - | P54: Under | Q54: 2 | R54: 14 | S54: 16
A55: 2010-10-03 | B55: San Francisco 49ers | C55: 14 | D55: Atlanta Falcons | E55: 16 | F55: 7 | G55: 42.5 | H55: Home Team | I55: Favorite | J55: Visiting Team | K55: Underdog | L55: No | M55: Yes | N55: - | O55: - | P55: Under | Q55: 2 | R55: 14 | S55: 16
A56: 2010-10-03 | B56: Seattle Seahawks | C56: 3 | D56: St Louis Rams | E56: 20 | F56: -2 | G56: 40 | H56: Home Team | I56: Underdog | J56: Home Team | K56: Underdog | L56: - | M56: - | N56: Yes | O56: No | P56: Under | Q56: 17 | R56: 3 | S56: 20
A57: 2010-10-03 | B57: New York Jets | C57: 38 | D57: Buffalo Bills | E57: 14 | F57: -6 | G57: 37 | H57: Visiting Team | I57: Favorite | J57: Visiting Team | K57: Favorite | L57: - | M57: - | N57: No | O57: Yes | P57: Over | Q57: 24 | R57: 14 | S57: 38
A58: 2010-10-03 | B58: Indianapolis Colts | C58: 28 | D58: Jacksonville Jaguars | E58: 31 | F58: -7 | G58: 46 | H58: Home Team | I58: Underdog | J58: Home Team | K58: Underdog | L58: - | M58: - | N58: Yes | O58: No | P58: Over | Q58: 3 | R58: 28 | S58: 31
A59: 2010-10-03 | B59: Houston Texans | C59: 31 | D59: Oakland Raiders | E59: 24 | F59: -3.5 | G59: 44 | H59: Visiting Team | I59: Favorite | J59: Visiting Team | K59: Favorite | L59: - | M59: - | N59: No | O59: Yes | P59: Over | Q59: 7 | R59: 24 | S59: 31
A60: 2010-10-03 | B60: Arizona Cardinals | C60: 10 | D60: San Diego Chargers | E60: 41 | F60: 9.5 | G60: 46.5 | H60: Home Team | I60: Favorite | J60: Home Team | K60: Favorite | L60: Yes | M60: No | N60: - | O60: - | P60: Over | Q60: 31 | R60: 10 | S60: 41
A61: 2010-10-03 | B61: Washington Redskins | C61: 17 | D61: Philadelphia Eagles | E61: 12 | F61: 5 | G61: 43.5 | H61: Visiting Team | I61: Underdog | J61: Visiting Team | K61: Underdog | L61: No | M61: Yes | N61: - | O61: - | P61: =IF($C61+$E61=$G61,"Push",IF($C61+$E61>$G61,"Over","Under")) -> Under | Q61: 5 | R61: 12 | S61: 17
A62: 2010-10-03 | B62: Chicago Bears | C62: 3 | D62: New York Giants | E62: 17 | F62: 3.5 | G62: 44 | H62: Home Team | I62: Favorite | J62: Home Team | K62: Favorite | L62: Yes | M62: No | N62: - | O62: - | P62: =IF($C62+$E62=$G62,"Push",IF($C62+$E62>$G62,"Over","Under")) -> Under | Q62: 14 | R62: 3 | S62: 17
A63: 2010-10-04 | B63: New England Patriots | C63: 41 | D63: Miami Dolphins | E63: 14 | F63: -1 | G63: 48 | H63: Visiting Team | I63: Favorite | J63: Visiting Team | K63: Favorite | L63: - | M63: - | N63: No | O63: Yes | P63: =IF($C63+$E63=$G63,"Push",IF($C63+$E63>$G63,"Over","Under")) -> Over | Q63: 27 | R63: 14 | S63: 41
A64: 2010-10-10 | B64: Denver Broncos | C64: 17 | D64: Baltimore Ravens | E64: 31 | F64: 8 | G64: 39.5 | H64: Home Team | I64: Favorite | J64: Home Team | K64: Favorite | L64: Yes | M64: No | N64: - | O64: - | P64: Over | Q64: 14 | R64: 17 | S64: 31
A65: 2010-10-10 | B65: Jacksonville Jaguars | C65: 36 | D65: Buffalo Bills | E65: 26 | F65: 2.5 | G65: 41.5 | H65: Visiting Team | I65: Underdog | J65: Visiting Team | K65: Underdog | L65: No | M65: Yes | N65: - | O65: - | P65: Over | Q65: 10 | R65: 26 | S65: 36
A66: 2010-10-10 | B66: Kansas City Chiefs | C66: 9 | D66: Indianapolis Colts | E66: 19 | F66: 7.5 | G66: 46.5 | H66: =IF($C66=$E66,"Tie Game",IF($C66>$E66,"Visiting Team","Home Team")) -> Home Team | I66: Favorite | J66: =IF($C66+$F66=$E66,"Push",IF($C66+$F66>$E66,"Visiting Team","Home Team")) -> Home Team | K66: Favorite | L66: Yes | M66: No | N66: - | O66: - | P66: Under | Q66: 10 | R66: 9 | S66: 19
A67: 2010-10-10 | B67: St Louis Rams | C67: 6 | D67: Detroit Lions | E67: 44 | F67: 3 | G67: 42.5 | H67: Home Team | I67: Favorite | J67: Home Team | K67: Favorite | L67: =IF(AND($F67>0,$C67+$F67=$E67),"Push",IF(AND($F67<0,$E67-$F67=$C67),"Push",IF($F67<0,"-",IF(AND($F67>0,$C67+$F67<$E67),"Yes","No")))) -> Yes | M67: =IF(AND($F67>0,$C67+$F67=$E67),"Push",IF(AND($F67<0,$E67-$F67=$C67),"Push",IF($F67<0,"-",IF(AND($F67>0,$C67+$F67>$E67),"Yes","No")))) -> No | N67: =IF(AND($F67>0,$C67+$F67=$E67),"Push",IF(AND($F67<0,$E67-$F67=$C67),"Push",IF($F67>0,"-",IF(AND($F67<0,$C67+$F67<$E67),"Yes","No")))) -> - | O67: =IF(AND($F67>0,$C67+$F67=$E67),"Push",IF(AND($F67<0,$E67-$F67=$C67),"Push",IF($F67>0,"-",IF(AND($F67<0,$C67+$F67>$E67),"Yes","No")))) -> - | P67: Over | Q67: 38 | R67: 6 | S67: 44
A68: 2010-10-10 | B68: Atlanta Falcons | C68: 20 | D68: Cleveland Browns | E68: 10 | F68: -3 | G68: 41.5 | H68: Visiting Team | I68: Favorite | J68: Visiting Team | K68: Favorite | L68: - | M68: - | N68: No | O68: Yes | P68: Under | Q68: 10 | R68: 10 | S68: 20
A69: 2010-10-10 | B69: Tampa Bay Buccaneers | C69: 24 | D69: Cincinnati Bengals | E69: 21 | F69: 7 | G69: 38.5 | H69: Visiting Team | I69: Underdog | J69: Visiting Team | K69: Underdog | L69: No | M69: Yes | N69: - | O69: - | P69: Over | Q69: 3 | R69: =IF(C69<E69, C69+0, E69+0) -> 21 | S69: =IF(E69>C69, E69+0, C69+0) -> 24
A70: 2010-10-10 | B70: Chicago Bears | C70: 23 | D70: Carolina Panthers | E70: 6 | F70: 3 | G70: 33 | H70: Visiting Team | I70: Underdog | J70: Visiting Team | K70: Underdog | L70: No | M70: Yes | N70: - | O70: - | P70: Under | Q70: =ABS(C70-E70) -> 17 | R70: 6 | S70: 23
A71: 2010-10-10 | B71: Green Bay Packers | C71: 13 | D71: Washington Redskins | E71: 16 | F71: -3 | G71: 45.5 | H71: Home Team | I71: Underdog | J71: Home Team | K71: Underdog | L71: - | M71: - | N71: Yes | O71: No | P71: Under | Q71: 3 | R71: 13 | S71: 16
A72: 2010-10-10 | B72: New York Giants | C72: 34 | D72: Houston Texans | E72: 10 | F72: 3 | G72: 48.5 | H72: Visiting Team | I72: Underdog | J72: Visiting Team | K72: Underdog | L72: No | M72: Yes | N72: - | O72: - | P72: Under | Q72: 24 | R72: 10 | S72: 34
A73: 2010-10-10 | B73: New Orleans Saints | C73: 20 | D73: Arizona Cardinals | E73: 30 | F73: -7 | G73: 45.5 | H73: Home Team | I73: Underdog | J73: Home Team | K73: Underdog | L73: - | M73: - | N73: Yes | O73: No | P73: Over | Q73: 10 | R73: 20 | S73: 30
A74: 2010-10-10 | B74: San Diego Chargers | C74: 27 | D74: Oakland Raiders | E74: 35 | F74: -7 | G74: 44 | H74: Home Team | I74: Underdog | J74: Home Team | K74: Underdog | L74: - | M74: - | N74: Yes | O74: No | P74: Over | Q74: 8 | R74: 27 | S74: 35
A75: 2010-10-10 | B75: Tennessee Titans | C75: 34 | D75: Dallas Cowboys | E75: 27 | F75: 7 | G75: 43 | H75: =IF($C75=$E75,"Tie Game",IF($C75>$E75,"Visiting Team","Home Team")) -> Visiting Team | I75: Underdog | J75: Visiting Team | K75: Underdog | L75: No | M75: Yes | N75: - | O75: - | P75: Over | Q75: 7 | R75: 27 | S75: 34
A76: 2010-10-10 | B76: Philadelphia Eagles | C76: 27 | D76: San Francisco 49ers | E76: 24 | F76: 3 | G76: 38.5 | H76: =IF($C76=$E76,"Tie Game",IF($C76>$E76,"Visiting Team","Home Team")) -> Visiting Team | I76: Underdog | J76: Visiting Team | K76: Underdog | L76: No | M76: Yes | N76: - | O76: - | P76: Over | Q76: 3 | R76: 24 | S76: 27
A77: 2010-10-11 | B77: Minnesota Vikings | C77: 20 | D77: New York Jets | E77: 29 | F77: 4.5 | G77: 40 | H77: Home Team | I77: Favorite | J77: Home Team | K77: Favorite | L77: Yes | M77: No | N77: - | O77: - | P77: Over | Q77: 9 | R77: 20 | S77: 29
A78: 2010-10-17 | B78: San Diego Chargers | C78: 17 | D78: St Louis Rams | E78: 20 | F78: -8.5 | G78: 45 | H78: Home Team | I78: =IF(AND(F78>0,E78>C78),"Favorite",IF(AND(F78<0,E78>C78),"Underdog",IF(AND(F78<0,E78<C78),"Favorite",IF(AND(F78>0,E78<C78),"Underdog")))) -> Underdog | J78: Home Team | K78: Underdog | L78: - | M78: - | N78: Yes | O78: No | P78: Under | Q78: 3 | R78: 17 | S78: 20
A79: 2010-10-17 | B79: Kansas City Chiefs | C79: 31 | D79: Houston Texans | E79: 35 | F79: 4.5 | G79: 46 | H79: Home Team | I79: Favorite | J79: Visiting Team | K79: Underdog | L79: No | M79: Yes | N79: - | O79: - | P79: Over | Q79: 4 | R79: 31 | S79: 35
A80: 2010-10-17 | B80: Baltimore Ravens | C80: 20 | D80: New England Patriots | E80: 23 | F80: 3 | G80: 44.5 | H80: Home Team | I80: Favorite | J80: Push | K80: Push | L80: Push | M80: Push | N80: Push | O80: Push | P80: Under | Q80: 3 | R80: 20 | S80: 23
A81: 2010-10-17 | B81: New Orleans Saints | C81: 31 | D81: Tampa Bay Buccaneers | E81: 6 | F81: -5.5 | G81: 44 | H81: Visiting Team | I81: Favorite | J81: Visiting Team | K81: Favorite | L81: - | M81: - | N81: No | O81: Yes | P81: Under | Q81: 25 | R81: 6 | S81: 31
A82: 2010-10-17 | B82: Atlanta Falcons | C82: 17 | D82: Philadelphia Eagles | E82: 31 | F82: 1.5 | G82: 43 | H82: Home Team | I82: Favorite | J82: Home Team | K82: Favorite | L82: Yes | M82: No | N82: - | O82: - | P82: Over | Q82: 14 | R82: 17 | S82: 31
A83: 2010-10-17 | B83: Detroit Lions | C83: 20 | D83: New York Giants | E83: 28 | F83: 10 | G83: 45.5 | H83: Home Team | I83: Favorite | J83: Visiting Team | K83: Underdog | L83: No | M83: Yes | N83: - | O83: - | P83: Over | Q83: 8 | R83: 20 | S83: 28
A84: 2010-10-17 | B84: Seattle Seahawks | C84: 23 | D84: Chicago Bears | E84: 20 | F84: 6 | G84: 38 | H84: Visiting Team | I84: Underdog | J84: Visiting Team | K84: Underdog | L84: No | M84: Yes | N84: - | O84: - | P84: Over | Q84: 3 | R84: 20 | S84: 23
A85: 2010-10-17 | B85: Miami Dolphins | C85: 23 | D85: Green Bay Packers | E85: 20 | F85: 3 | G85: 44 | H85: Visiting Team | I85: Underdog | J85: Visiting Team | K85: Underdog | L85: No | M85: Yes | N85: - | O85: - | P85: Under | Q85: 3 | R85: 20 | S85: 23
A86: 2010-10-17 | B86: Cleveland Browns | C86: 10 | D86: Pittsburgh Steelers | E86: 28 | F86: 14 | G86: 37.5 | H86: Home Team | I86: Favorite | J86: Home Team | K86: Favorite | L86: Yes | M86: No | N86: - | O86: - | P86: Over | Q86: 18 | R86: 10 | S86: 28
A87: 2010-10-17 | B87: New York Jets | C87: 24 | D87: Denver Broncos | E87: 20 | F87: -3.5 | G87: 43 | H87: Visiting Team | I87: Favorite | J87: Visiting Team | K87: Favorite | L87: - | M87: - | N87: No | O87: Yes | P87: Over | Q87: 4 | R87: 20 | S87: 24
A88: 2010-10-17 | B88: Oakland Raiders | C88: 9 | D88: San Francisco 49ers | E88: 17 | F88: 7 | G88: 41 | H88: Home Team | I88: Favorite | J88: Home Team | K88: =IF(L88="Yes", "Favorite", IF(O88="Yes", "Favorite", IF(M88 = "Yes", "Underdog", IF(N88 = "Yes", "Underdog",IF(L88 = "Push", "Push"))))) -> Favorite | L88: Yes | M88: No | N88: - | O88: - | P88: Under | Q88: =ABS(C88-E88) -> 8 | R88: 9 | S88: 17
A89: 2010-10-17 | B89: Dallas Cowboys | C89: 21 | D89: Minnesota Vikings | E89: 24 | F89: 1.5 | G89: 44 | H89: Home Team | I89: Favorite | J89: Home Team | K89: Favorite | L89: Yes | M89: No | N89: - | O89: - | P89: Over | Q89: 3 | R89: 21 | S89: 24
A90: 2010-10-17 | B90: Indianapolis Colts | C90: 27 | D90: Washington Redskins | E90: 24 | F90: -3 | G90: 45 | H90: Visiting Team | I90: Favorite | J90: Push | K90: Push | L90: Push | M90: Push | N90: Push | O90: Push | P90: Over | Q90: 3 | R90: 24 | S90: 27
A91: 2010-10-18 | B91: Tennessee Titans | C91: 30 | D91: Jacksonville Jaguars | E91: 3 | F91: -3 | G91: 43.5 | H91: Visiting Team | I91: Favorite | J91: Visiting Team | K91: Favorite | L91: - | M91: - | N91: No | O91: Yes | P91: Under | Q91: 27 | R91: 3 | S91: 30
A92: 2010-10-24 | B92: Pittsburgh Steelers | C92: 23 | D92: Miami Dolphins | E92: 22 | F92: -3 | G92: 40.5 | H92: Visiting Team | I92: Favorite | J92: Home Team | K92: Underdog | L92: - | M92: - | N92: Yes | O92: No | P92: Over | Q92: 1 | R92: 22 | S92: 23
A93: 2010-10-24 | B93: Cincinnati Bengals | C93: 32 | D93: Atlanta Falcons | E93: 39 | F93: 3.5 | G93: 43 | H93: Home Team | I93: Favorite | J93: Home Team | K93: Favorite | L93: Yes | M93: No | N93: - | O93: - | P93: Over | Q93: 7 | R93: 32 | S93: 39
A94: 2010-10-24 | B94: Jacksonville Jaguars | C94: 20 | D94: Kansas City Chiefs | E94: 42 | F94: 9 | G94: 39 | H94: Home Team | I94: Favorite | J94: Home Team | K94: Favorite | L94: Yes | M94: No | N94: - | O94: - | P94: Over | Q94: 22 | R94: 20 | S94: 42
A95: 2010-10-24 | B95: Philadelphia Eagles | C95: 19 | D95: Tennessee Titans | E95: 37 | F95: 3 | G95: 42 | H95: Home Team | I95: Favorite | J95: Home Team | K95: Favorite | L95: Yes | M95: No | N95: - | O95: - | P95: Over | Q95: 18 | R95: 19 | S95: 37
A96: 2010-10-24 | B96: Washington Redskins | C96: 17 | D96: Chicago Bears | E96: 14 | F96: 3 | G96: 40 | H96: Visiting Team | I96: Underdog | J96: Visiting Team | K96: Underdog | L96: No | M96: Yes | N96: - | O96: - | P96: Under | Q96: 3 | R96: 14 | S96: 17
A97: 2010-10-24 | B97: Cleveland Browns | C97: 30 | D97: New Orleans Saints | E97: 17 | F97: 12.5 | G97: 44 | H97: Visiting Team | I97: Underdog | J97: Visiting Team | K97: Underdog | L97: No | M97: Yes | N97: - | O97: - | P97: Over | Q97: 13 | R97: 17 | S97: 30
A98: 2010-10-24 | B98: Buffalo Bills | C98: 34 | D98: Baltimore Ravens | E98: 37 | F98: 12.5 | G98: 40 | H98: Home Team | I98: Favorite | J98: Visiting Team | K98: Underdog | L98: No | M98: Yes | N98: - | O98: - | P98: Over | Q98: 3 | R98: 34 | S98: 37
A99: 2010-10-24 | B99: San Francisco 49ers | C99: 20 | D99: Carolina Panthers | E99: 23 | F99: -2.5 | G99: 35.5 | H99: Home Team | I99: Underdog | J99: Home Team | K99: Underdog | L99: - | M99: - | N99: Yes | O99: No | P99: Over | Q99: 3 | R99: 20 | S99: 23
A100: 2010-10-24 | B100: St Louis Rams | C100: 17 | D100: Tampa Bay Buccaneers | E100: 18 | F100: 3 | G100: 39 | H100: Home Team | I100: Favorite | J100: Visiting Team | K100: Underdog | L100: No | M100: Yes | N100: - | O100: - | P100: Under | Q100: 1 | R100: 17 | S100: 18
A101: 2010-10-24 | B101: Arizona Cardinals | C101: 10 | D101: Seattle Seahawks | E101: 22 | F101: 6.5 | G101: 40.5 | H101: Home Team | I101: Favorite | J101: Home Team | K101: Favorite | L101: Yes | M101: No | N101: - | O101: - | P101: Under | Q101: 12 | R101: 10 | S101: 22
A102: 2010-10-24 | B102: New England Patriots | C102: 23 | D102: San Diego Chargers | E102: 20 | F102: 1.5 | G102: 49.5 | H102: Visiting Team | I102: Underdog | J102: Visiting Team | K102: Underdog | L102: No | M102: Yes | N102: - | O102: - | P102: Under | Q102: 3 | R102: 20 | S102: 23
A103: 2010-10-24 | B103: Oakland Raiders | C103: 59 | D103: Denver Broncos | E103: 14 | F103: 7 | G103: 43 | H103: Visiting Team | I103: Underdog | J103: Visiting Team | K103: Underdog | L103: No | M103: Yes | N103: - | O103: - | P103: Over | Q103: 45 | R103: 14 | S103: 59
A104: 2010-10-24 | B104: Minnesota Vikings | C104: 24 | D104: Green Bay Packers | E104: 28 | F104: 2.5 | G104: 44.5 | H104: Home Team | I104: Favorite | J104: Home Team | K104: Favorite | L104: Yes | M104: No | N104: - | O104: - | P104: Over | Q104: 4 | R104: 24 | S104: 28
A105: 2010-10-25 | B105: New York Giants | C105: 41 | D105: Dallas Cowboys | E105: 35 | F105: 3.5 | G105: 45.5 | H105: Visiting Team | I105: Underdog | J105: Visiting Team | K105: Underdog | L105: No | M105: Yes | N105: - | O105: - | P105: Over | Q105: 6 | R105: 35 | S105: 41
A106: 2010-10-31 | B106: Denver Broncos | C106: 16 | D106: San Francisco 49ers | E106: 24 | F106: 2.5 | G106: 41.5 | H106: Home Team | I106: Favorite | J106: Home Team | K106: Favorite | L106: Yes | M106: No | N106: - | O106: - | P106: Under | Q106: 8 | R106: 16 | S106: 24
A107: 2010-10-31 | B107: Jacksonville Jaguars | C107: 35 | D107: Dallas Cowboys | E107: 17 | F107: 6.5 | G107: 44 | H107: Visiting Team | I107: Underdog | J107: Visiting Team | K107: Underdog | L107: No | M107: Yes | N107: - | O107: - | P107: Over | Q107: 18 | R107: 17 | S107: 35
A108: 2010-10-31 | B108: Washington Redskins | C108: 25 | D108: Detroit Lions | E108: 37 | F108: 3 | G108: 45 | H108: Home Team | I108: Favorite | J108: Home Team | K108: Favorite | L108: Yes | M108: No | N108: - | O108: - | P108: Over | Q108: 12 | R108: 25 | S108: 37
A109: 2010-10-31 | B109: Green Bay Packers | C109: 9 | D109: New York Jets | E109: 0 | F109: 6 | G109: 42 | H109: Visiting Team | I109: Underdog | J109: Visiting Team | K109: Underdog | L109: No | M109: Yes | N109: - | O109: - | P109: Under | Q109: 9 | R109: 0 | S109: 9
A110: 2010-10-31 | B110: Carolina Panthers | C110: 10 | D110: St Louis Rams | E110: 20 | F110: 2.5 | G110: 37 | H110: Home Team | I110: Favorite | J110: Home Team | K110: Favorite | L110: Yes | M110: No | N110: - | O110: - | P110: Under | Q110: 10 | R110: 10 | S110: 20
A111: 2010-10-31 | B111: Miami Dolphins | C111: 22 | D111: Cincinnati Bengals | E111: 14 | F111: 1 | G111: 44 | H111: Visiting Team | I111: Underdog | J111: Visiting Team | K111: Underdog | L111: No | M111: Yes | N111: - | O111: - | P111: Under | Q111: 8 | R111: 14 | S111: 22
A112: 2010-10-31 | B112: Buffalo Bills | C112: 10 | D112: Kansas City Chiefs | E112: 13 | F112: 7 | G112: 46 | H112: Home Team | I112: Favorite | J112: Visiting Team | K112: Underdog | L112: No | M112: Yes | N112: - | O112: - | P112: Under | Q112: 3 | R112: 10 | S112: 13
A113: 2010-10-31 | B113: Tennessee Titans | C113: 25 | D113: San Diego Chargers | E113: 33 | F113: 6 | G113: 45 | H113: Home Team | I113: Favorite | J113: Home Team | K113: Favorite | L113: Yes | M113: No | N113: - | O113: - | P113: Over | Q113: 8 | R113: 25 | S113: 33
A114: 2010-10-31 | B114: Tampa Bay Buccaneers | C114: 38 | D114: Arizona Cardinals | E114: 35 | F114: 3 | G114: 38 | H114: Visiting Team | I114: Underdog | J114: Visiting Team | K114: Underdog | L114: No | M114: Yes | N114: - | O114: - | P114: Over | Q114: 3 | R114: 35 | S114: 38
A115: 2010-10-31 | B115: Seattle Seahawks | C115: 3 | D115: Oakland Raiders | E115: 33 | F115: 2 | G115: 40.5 | H115: Home Team | I115: Favorite | J115: Home Team | K115: Favorite | L115: Yes | M115: No | N115: - | O115: - | P115: Under | Q115: 30 | R115: 3 | S115: 33
A116: 2010-10-31 | B116: Minnesota Vikings | C116: 18 | D116: New England Patriots | E116: 28 | F116: 5.5 | G116: 45 | H116: Home Team | I116: Favorite | J116: Home Team | K116: Favorite | L116: Yes | M116: No | N116: - | O116: - | P116: Over | Q116: 10 | R116: 18 | S116: 28
A117: 2010-10-31 | B117: Pittsburgh Steelers | C117: 10 | D117: New Orleans Saints | E117: 20 | F117: 1 | G117: 45.5 | H117: Home Team | I117: Favorite | J117: Home Team | K117: Favorite | L117: Yes | M117: No | N117: - | O117: - | P117: Under | Q117: 10 | R117: 10 | S117: 20
A118: 2010-11-01 | B118: Houston Texans | C118: 17 | D118: Indianapolis Colts | E118: 30 | F118: 5.5 | G118: 51 | H118: Home Team | I118: Favorite | J118: Home Team | K118: Favorite | L118: Yes | M118: No | N118: - | O118: - | P118: Under | Q118: 13 | R118: 17 | S118: 30
A119: 2010-11-07 | B119: Chicago Bears | C119: 22 | D119: Buffalo Bills | E119: 19 | F119: -3 | G119: 41.5 | H119: Visiting Team | I119: Favorite | J119: Push | K119: Push | L119: Push | M119: Push | N119: Push | O119: Push | P119: Under | Q119: 3 | R119: 19 | S119: 22
A120: 2010-11-07 | B120: San Diego Chargers | C120: 29 | D120: Houston Texans | E120: 23 | F120: -3 | G120: 49.5 | H120: Visiting Team | I120: Favorite | J120: Visiting Team | K120: Favorite | L120: - | M120: - | N120: No | O120: Yes | P120: Over | Q120: 6 | R120: 23 | S120: 29
A121: 2010-11-07 | B121: New Orleans Saints | C121: 34 | D121: Carolina Panthers | E121: 3 | F121: -6.5 | G121: 40.5 | H121: Visiting Team | I121: Favorite | J121: Visiting Team | K121: Favorite | L121: - | M121: - | N121: No | O121: Yes | P121: Under | Q121: 31 | R121: 3 | S121: 34
A122: 2010-11-07 | B122: Arizona Cardinals | C122: 24 | D122: Minnesota Vikings | E122: 27 | F122: 7.5 | G122: 42.5 | H122: Home Team | I122: Favorite | J122: Visiting Team | K122: Underdog | L122: No | M122: Yes | N122: - | O122: - | P122: Over | Q122: 3 | R122: 24 | S122: 27
A123: 2010-11-07 | B123: Tampa Bay Buccaneers | C123: 21 | D123: Atlanta Falcons | E123: 27 | F123: 9 | G123: 45.5 | H123: Home Team | I123: Favorite | J123: Visiting Team | K123: Underdog | L123: No | M123: Yes | N123: - | O123: - | P123: Over | Q123: 6 | R123: 21 | S123: 27
A124: 2010-11-07 | B124: New York Jets | C124: 23 | D124: Detroit Lions | E124: 20 | F124: -5.5 | G124: 42 | H124: Visiting Team | I124: Favorite | J124: Home Team | K124: Underdog | L124: - | M124: - | N124: Yes | O124: No | P124: Over | Q124: 3 | R124: 20 | S124: 23
A125: 2010-11-07 | B125: Miami Dolphins | C125: 10 | D125: Baltimore Ravens | E125: 26 | F125: 5 | G125: 41 | H125: Home Team | I125: Favorite | J125: Home Team | K125: Favorite | L125: Yes | M125: No | N125: - | O125: - | P125: Under | Q125: 16 | R125: 10 | S125: 26
A126: 2010-11-07 | B126: New England Patriots | C126: 14 | D126: Cleveland Browns | E126: 34 | F126: -4 | G126: 43.5 | H126: Home Team | I126: Underdog | J126: Home Team | K126: Underdog | L126: - | M126: - | N126: Yes | O126: No | P126: Over | Q126: 20 | R126: 14 | S126: 34
A127: 2010-11-07 | B127: New York Giants | C127: 41 | D127: Seattle Seahawks | E127: 7 | F127: -7.5 | G127: 40.5 | H127: Visiting Team | I127: Favorite | J127: Visiting Team | K127: Favorite | L127: - | M127: - | N127: No | O127: Yes | P127: =IF($C127+$E127=$G127,"Push",IF($C127+$E127>$G127,"Over","Under")) -> Over | Q127: 34 | R127: 7 | S127: 41
A128: 2010-11-07 | B128: Kansas City Chiefs | C128: 20 | D128: Oakland Raiders | E128: 23 | F128: 0 | G128: 41 | H128: Home Team | I128: FALSE | J128: Home Team | K128: FALSE | L128: No | M128: No | N128: No | O128: No | P128: Over | Q128: 3 | R128: 20 | S128: 23
A129: 2010-11-07 | B129: Indianapolis Colts | C129: 24 | D129: Philadelphia Eagles | E129: 26 | F129: 3 | G129: 47 | H129: Home Team | I129: Favorite | J129: Visiting Team | K129: Underdog | L129: No | M129: Yes | N129: - | O129: - | P129: Over | Q129: 2 | R129: 24 | S129: 26
A130: 2010-11-07 | B130: Dallas Cowboys | C130: 7 | D130: Green Bay Packers | E130: 45 | F130: 7 | G130: 45.5 | H130: Home Team | I130: Favorite | J130: =IF($C130+$F130=$E130,"Push",IF($C130+$F130>$E130,"Visiting Team","Home Team")) -> Home Team | K130: Favorite | L130: Yes | M130: No | N130: - | O130: - | P130: Over | Q130: 38 | R130: 7 | S130: 45
A131: 2010-11-08 | B131: Pittsburgh Steelers | C131: 27 | D131: Cincinnati Bengals | E131: 21 | F131: -5.5 | G131: 41.5 | H131: Visiting Team | I131: Favorite | J131: Visiting Team | K131: Favorite | L131: =IF(AND($F131>0,$C131+$F131=$E131),"Push",IF(AND($F131<0,$E131-$F131=$C131),"Push",IF($F131<0,"-",IF(AND($F131>0,$C131+$F131<$E131),"Yes","No")))) -> - | M131: =IF(AND($F131>0,$C131+$F131=$E131),"Push",IF(AND($F131<0,$E131-$F131=$C131),"Push",IF($F131<0,"-",IF(AND($F131>0,$C131+$F131>$E131),"Yes","No")))) -> - | N131: =IF(AND($F131>0,$C131+$F131=$E131),"Push",IF(AND($F131<0,$E131-$F131=$C131),"Push",IF($F131>0,"-",IF(AND($F131<0,$C131+$F131<$E131),"Yes","No")))) -> No | O131: =IF(AND($F131>0,$C131+$F131=$E131),"Push",IF(AND($F131<0,$E131-$F131=$C131),"Push",IF($F131>0,"-",IF(AND($F131<0,$C131+$F131>$E131),"Yes","No")))) -> Yes | P131: Over | Q131: 6 | R131: 21 | S131: 27
A132: 2010-11-11 | B132: Baltimore Ravens | C132: 21 | D132: Atlanta Falcons | E132: 26 | F132: 1 | G132: 44 | H132: Home Team | I132: Favorite | J132: Home Team | K132: Favorite | L132: Yes | M132: No | N132: - | O132: - | P132: Over | Q132: 5 | R132: 21 | S132: 26
A133: 2010-11-14 | B133: Cincinnati Bengals | C133: 17 | D133: Indianapolis Colts | E133: 23 | F133: 7 | G133: 47 | H133: Home Team | I133: Favorite | J133: Visiting Team | K133: Underdog | L133: No | M133: Yes | N133: - | O133: - | P133: Under | Q133: 6 | R133: =IF(C133<E133, C133+0, E133+0) -> 17 | S133: =IF(E133>C133, E133+0, C133+0) -> 23
A134: 2010-11-14 | B134: Houston Texans | C134: 24 | D134: Jacksonville Jaguars | E134: 31 | F134: 0 | G134: 48.5 | H134: Home Team | I134: FALSE | J134: Home Team | K134: FALSE | L134: No | M134: No | N134: No | O134: No | P134: Over | Q134: =ABS(C134-E134) -> 7 | R134: 24 | S134: 31
A135: 2010-11-14 | B135: Tennessee Titans | C135: 17 | D135: Miami Dolphins | E135: 29 | F135: 1 | G135: 43 | H135: Home Team | I135: Favorite | J135: Home Team | K135: Favorite | L135: Yes | M135: No | N135: - | O135: - | P135: Over | Q135: 12 | R135: 17 | S135: 29
A136: 2010-11-14 | B136: Minnesota Vikings | C136: 13 | D136: Chicago Bears | E136: 27 | F136: -1 | G136: 41.5 | H136: Home Team | I136: Underdog | J136: Home Team | K136: Underdog | L136: - | M136: - | N136: Yes | O136: No | P136: Under | Q136: 14 | R136: 13 | S136: 27
A137: 2010-11-14 | B137: Detroit Lions | C137: 12 | D137: Buffalo Bills | E137: 14 | F137: 1.5 | G137: 45 | H137: Home Team | I137: Favorite | J137: Home Team | K137: Favorite | L137: Yes | M137: No | N137: - | O137: - | P137: Under | Q137: 2 | R137: 12 | S137: 14
A138: 2010-11-14 | B138: New York Jets | C138: 26 | D138: Cleveland Browns | E138: 20 | F138: -3.5 | G138: 37 | H138: Visiting Team | I138: Favorite | J138: Visiting Team | K138: Favorite | L138: - | M138: - | N138: No | O138: Yes | P138: Over | Q138: 6 | R138: 20 | S138: 26
A139: 2010-11-14 | B139: Carolina Panthers | C139: 16 | D139: Tampa Bay Buccaneers | E139: 31 | F139: 7 | G139: 37 | H139: Home Team | I139: Favorite | J139: Home Team | K139: Favorite | L139: Yes | M139: No | N139: - | O139: - | P139: Over | Q139: 15 | R139: 16 | S139: 31
A140: 2010-11-14 | B140: Kansas City Chiefs | C140: 29 | D140: Denver Broncos | E140: 49 | F140: -1 | G140: 44.5 | H140: =IF($C140=$E140,"Tie Game",IF($C140>$E140,"Visiting Team","Home Team")) -> Home Team | I140: Underdog | J140: Home Team | K140: Underdog | L140: - | M140: - | N140: Yes | O140: No | P140: Over | Q140: 20 | R140: 29 | S140: 49
A141: 2010-11-14 | B141: St Louis Rams | C141: 20 | D141: San Francisco 49ers | E141: 23 | F141: 4.5 | G141: 39 | H141: Home Team | I141: Favorite | J141: Visiting Team | K141: Underdog | L141: No | M141: Yes | N141: - | O141: - | P141: Over | Q141: 3 | R141: 20 | S141: 23
A142: 2010-11-14 | B142: Seattle Seahawks | C142: 36 | D142: Arizona Cardinals | E142: 18 | F142: 4 | G142: 41.5 | H142: Visiting Team | I142: =IF(AND(F142>0,E142>C142),"Favorite",IF(AND(F142<0,E142>C142),"Underdog",IF(AND(F142<0,E142<C142),"Favorite",IF(AND(F142>0,E142<C142),"Underdog")))) -> Underdog | J142: Visiting Team | K142: Underdog | L142: No | M142: Yes | N142: - | O142: - | P142: Over | Q142: 18 | R142: 18 | S142: 36
A143: 2010-11-14 | B143: Dallas Cowboys | C143: 33 | D143: New York Giants | E143: 20 | F143: 12.5 | G143: 46.5 | H143: Visiting Team | I143: Underdog | J143: Visiting Team | K143: Underdog | L143: No | M143: Yes | N143: - | O143: - | P143: Over | Q143: 13 | R143: 20 | S143: 33
A144: 2010-11-14 | B144: New England Patriots | C144: 39 | D144: Pittsburgh Steelers | E144: 26 | F144: 4.5 | G144: 45 | H144: Visiting Team | I144: Underdog | J144: Visiting Team | K144: Underdog | L144: No | M144: Yes | N144: - | O144: - | P144: Over | Q144: 13 | R144: 26 | S144: 39
A145: 2010-11-15 | B145: Philadelphia Eagles | C145: 59 | D145: Washington Redskins | E145: 28 | F145: -3.5 | G145: 43.5 | H145: Visiting Team | I145: Favorite | J145: Visiting Team | K145: Favorite | L145: - | M145: - | N145: No | O145: Yes | P145: Over | Q145: 31 | R145: 28 | S145: 59
A146: 2010-11-18 | B146: Chicago Bears | C146: 16 | D146: Miami Dolphins | E146: 0 | F146: 2 | G146: 40 | H146: Visiting Team | I146: Underdog | J146: Visiting Team | K146: Underdog | L146: No | M146: Yes | N146: - | O146: - | P146: Under | Q146: 16 | R146: 0 | S146: 16
A147: 2010-11-21 | B147: Oakland Raiders | C147: 3 | D147: Pittsburgh Steelers | E147: 35 | F147: 7 | G147: 41 | H147: Home Team | I147: Favorite | J147: Home Team | K147: Favorite | L147: Yes | M147: No | N147: - | O147: - | P147: Under | Q147: 32 | R147: 3 | S147: 35
A148: 2010-11-21 | B148: Houston Texans | C148: 27 | D148: New York Jets | E148: 30 | F148: 6.5 | G148: 46 | H148: Home Team | I148: Favorite | J148: Visiting Team | K148: Underdog | L148: No | M148: Yes | N148: - | O148: - | P148: Over | Q148: 3 | R148: 27 | S148: 30
A149: 2010-11-21 | B149: Baltimore Ravens | C149: 37 | D149: Carolina Panthers | E149: 13 | F149: -13.5 | G149: 37 | H149: Visiting Team | I149: Favorite | J149: Visiting Team | K149: Favorite | L149: - | M149: - | N149: No | O149: Yes | P149: Over | Q149: 24 | R149: 13 | S149: 37
A150: 2010-11-21 | B150: Washington Redskins | C150: 19 | D150: Tennessee Titans | E150: 16 | F150: 7 | G150: 44.5 | H150: Visiting Team | I150: Underdog | J150: Visiting Team | K150: Underdog | L150: No | M150: Yes | N150: - | O150: - | P150: Under | Q150: 3 | R150: 16 | S150: 19
A151: 2010-11-21 | B151: Detroit Lions | C151: 19 | D151: Dallas Cowboys | E151: 35 | F151: 7 | G151: 44.5 | H151: Home Team | I151: Favorite | J151: Home Team | K151: Favorite | L151: Yes | M151: No | N151: - | O151: - | P151: Over | Q151: 16 | R151: 19 | S151: 35
A152: 2010-11-21 | B152: Green Bay Packers | C152: 31 | D152: Minnesota Vikings | E152: 3 | F152: -3 | G152: 45 | H152: Visiting Team | I152: Favorite | J152: Visiting Team | K152: =IF(L152="Yes", "Favorite", IF(O152="Yes", "Favorite", IF(M152 = "Yes", "Underdog", IF(N152 = "Yes", "Underdog",IF(L152 = "Push", "Push"))))) -> Favorite | L152: - | M152: - | N152: No | O152: Yes | P152: Under | Q152: 28 | R152: 3 | S152: 31
A153: 2010-11-21 | B153: Buffalo Bills | C153: 49 | D153: Cincinnati Bengals | E153: 31 | F153: 4 | G153: 41 | H153: Visiting Team | I153: Underdog | J153: Visiting Team | K153: Underdog | L153: No | M153: Yes | N153: - | O153: - | P153: Over | Q153: 18 | R153: 31 | S153: 49
A154: 2010-11-21 | B154: Cleveland Browns | C154: 20 | D154: Jacksonville Jaguars | E154: 24 | F154: 2.5 | G154: 43 | H154: Home Team | I154: Favorite | J154: Home Team | K154: Favorite | L154: Yes | M154: No | N154: - | O154: - | P154: Over | Q154: 4 | R154: 20 | S154: 24
A155: 2010-11-21 | B155: Arizona Cardinals | C155: 13 | D155: Kansas City Chiefs | E155: 31 | F155: 7 | G155: 45 | H155: Home Team | I155: Favorite | J155: Home Team | K155: Favorite | L155: Yes | M155: No | N155: - | O155: - | P155: Under | Q155: 18 | R155: 13 | S155: 31
A156: 2010-11-21 | B156: Seattle Seahawks | C156: 19 | D156: New Orleans Saints | E156: 34 | F156: 11 | G156: 45 | H156: Home Team | I156: Favorite | J156: Home Team | K156: Favorite | L156: Yes | M156: No | N156: - | O156: - | P156: Over | Q156: 15 | R156: 19 | S156: 34
A157: 2010-11-21 | B157: Atlanta Falcons | C157: 34 | D157: St Louis Rams | E157: 17 | F157: -3.5 | G157: 43.5 | H157: Visiting Team | I157: Favorite | J157: Visiting Team | K157: Favorite | L157: - | M157: - | N157: No | O157: Yes | P157: Over | Q157: 17 | R157: 17 | S157: 34
A158: 2010-11-21 | B158: Tampa Bay Buccaneers | C158: 21 | D158: San Francisco 49ers | E158: 0 | F158: 3.5 | G158: 41.5 | H158: Visiting Team | I158: Underdog | J158: Visiting Team | K158: Underdog | L158: No | M158: Yes | N158: - | O158: - | P158: Under | Q158: 21 | R158: 0 | S158: 21
A159: 2010-11-21 | B159: Indianapolis Colts | C159: 28 | D159: New England Patriots | E159: 31 | F159: 4.5 | G159: 50 | H159: Home Team | I159: Favorite | J159: Visiting Team | K159: Underdog | L159: No | M159: Yes | N159: - | O159: - | P159: Over | Q159: 3 | R159: 28 | S159: 31
A160: 2010-11-21 | B160: New York Giants | C160: 17 | D160: Philadelphia Eagles | E160: 27 | F160: 3.5 | G160: 48 | H160: Home Team | I160: Favorite | J160: Home Team | K160: Favorite | L160: Yes | M160: No | N160: - | O160: - | P160: Under | Q160: 10 | R160: 17 | S160: 27
A161: 2010-11-22 | B161: Denver Broncos | C161: 14 | D161: San Diego Chargers | E161: 35 | F161: 9 | G161: 50 | H161: Home Team | I161: Favorite | J161: Home Team | K161: Favorite | L161: Yes | M161: No | N161: - | O161: - | P161: Under | Q161: 21 | R161: 14 | S161: 35
A162: 2010-11-25 | B162: New England Patriots | C162: 45 | D162: Detroit Lions | E162: 24 | F162: -7.5 | G162: 50.5 | H162: Visiting Team | I162: Favorite | J162: Visiting Team | K162: Favorite | L162: - | M162: - | N162: No | O162: Yes | P162: Over | Q162: 21 | R162: 24 | S162: 45
A163: 2010-11-25 | B163: New Orleans Saints | C163: 30 | D163: Dallas Cowboys | E163: 27 | F163: -4.5 | G163: 49 | H163: Visiting Team | I163: Favorite | J163: Home Team | K163: Underdog | L163: - | M163: - | N163: Yes | O163: No | P163: Over | Q163: 3 | R163: 27 | S163: 30
A164: 2010-11-25 | B164: Cincinnati Bengals | C164: 10 | D164: New York Jets | E164: 26 | F164: 9.5 | G164: 43.5 | H164: Home Team | I164: Favorite | J164: Home Team | K164: Favorite | L164: Yes | M164: No | N164: - | O164: - | P164: Under | Q164: 16 | R164: 10 | S164: 26
A165: 2010-11-28 | B165: Minnesota Vikings | C165: 17 | D165: Washington Redskins | E165: 13 | F165: -2.5 | G165: 44 | H165: Visiting Team | I165: Favorite | J165: Visiting Team | K165: Favorite | L165: - | M165: - | N165: No | O165: Yes | P165: Under | Q165: 4 | R165: 13 | S165: 17
A166: 2010-11-28 | B166: Pittsburgh Steelers | C166: 19 | D166: Buffalo Bills | E166: 16 | F166: -7 | G166: 44 | H166: Visiting Team | I166: Favorite | J166: Home Team | K166: Underdog | L166: - | M166: - | N166: Yes | O166: No | P166: Under | Q166: 3 | R166: 16 | S166: 19
A167: 2010-11-28 | B167: Tennessee Titans | C167: 0 | D167: Houston Texans | E167: 20 | F167: 5 | G167: 46.5 | H167: Home Team | I167: Favorite | J167: Home Team | K167: Favorite | L167: Yes | M167: No | N167: - | O167: - | P167: Under | Q167: 20 | R167: 0 | S167: 20
A168: 2010-11-28 | B168: Jacksonville Jaguars | C168: 20 | D168: New York Giants | E168: 24 | F168: 7.5 | G168: 44 | H168: Home Team | I168: Favorite | J168: Visiting Team | K168: Underdog | L168: No | M168: Yes | N168: - | O168: - | P168: Push | Q168: 4 | R168: 20 | S168: 24
A169: 2010-11-28 | B169: Carolina Panthers | C169: 23 | D169: Cleveland Browns | E169: 24 | F169: 7.5 | G169: 37.5 | H169: Home Team | I169: Favorite | J169: Visiting Team | K169: Underdog | L169: No | M169: Yes | N169: - | O169: - | P169: Over | Q169: 1 | R169: 23 | S169: 24
A170: 2010-11-28 | B170: Tampa Bay Buccaneers | C170: 10 | D170: Baltimore Ravens | E170: 17 | F170: 7.5 | G170: 41.5 | H170: Home Team | I170: Favorite | J170: Visiting Team | K170: Underdog | L170: No | M170: Yes | N170: - | O170: - | P170: Under | Q170: 7 | R170: 10 | S170: 17
A171: 2010-11-28 | B171: Philadelphia Eagles | C171: 26 | D171: Chicago Bears | E171: 31 | F171: -3.5 | G171: 43 | H171: Home Team | I171: Underdog | J171: Home Team | K171: Underdog | L171: - | M171: - | N171: Yes | O171: No | P171: Over | Q171: 5 | R171: 26 | S171: 31
A172: 2010-11-28 | B172: Green Bay Packers | C172: 17 | D172: Atlanta Falcons | E172: 20 | F172: 2 | G172: 48 | H172: Home Team | I172: Favorite | J172: Home Team | K172: Favorite | L172: Yes | M172: No | N172: - | O172: - | P172: Under | Q172: 3 | R172: 17 | S172: 20
A173: 2010-11-28 | B173: Miami Dolphins | C173: 33 | D173: Oakland Raiders | E173: 17 | F173: 3 | G173: 38 | H173: Visiting Team | I173: Underdog | J173: Visiting Team | K173: Underdog | L173: No | M173: Yes | N173: - | O173: - | P173: Over | Q173: 16 | R173: 17 | S173: 33
A174: 2010-11-28 | B174: Kansas City Chiefs | C174: 42 | D174: Seattle Seahawks | E174: 24 | F174: -2 | G174: 45 | H174: Visiting Team | I174: Favorite | J174: Visiting Team | K174: Favorite | L174: - | M174: - | N174: No | O174: Yes | P174: Over | Q174: 18 | R174: 24 | S174: 42
A175: 2010-11-28 | B175: St Louis Rams | C175: 36 | D175: Denver Broncos | E175: 33 | F175: 3 | G175: 45 | H175: Visiting Team | I175: Underdog | J175: Visiting Team | K175: Underdog | L175: No | M175: Yes | N175: - | O175: - | P175: Over | Q175: 3 | R175: 33 | S175: 36
A176: 2010-11-28 | B176: San Diego Chargers | C176: 36 | D176: Indianapolis Colts | E176: 14 | F176: 2 | G176: 51 | H176: Visiting Team | I176: Underdog | J176: Visiting Team | K176: Underdog | L176: No | M176: Yes | N176: - | O176: - | P176: Under | Q176: 22 | R176: 14 | S176: 36
A177: 2010-11-29 | B177: San Francisco 49ers | C177: 27 | D177: Arizona Cardinals | E177: 6 | F177: -2 | G177: 42 | H177: Visiting Team | I177: Favorite | J177: Visiting Team | K177: Favorite | L177: - | M177: - | N177: No | O177: Yes | P177: Under | Q177: 21 | R177: 6 | S177: 27
A178: 2010-12-02 | B178: Houston Texans | C178: 24 | D178: Philadelphia Eagles | E178: 34 | F178: 8 | G178: 49.5 | H178: Home Team | I178: Favorite | J178: Home Team | K178: Favorite | L178: Yes | M178: No | N178: - | O178: - | P178: Over | Q178: 10 | R178: 24 | S178: 34
A179: 2010-12-05 | B179: Buffalo Bills | C179: 14 | D179: Minnesota Vikings | E179: 38 | F179: 5 | G179: 44 | H179: Home Team | I179: Favorite | J179: Home Team | K179: Favorite | L179: Yes | M179: No | N179: - | O179: - | P179: Over | Q179: 24 | R179: 14 | S179: 38
A180: 2010-12-05 | B180: Cleveland Browns | C180: 13 | D180: Miami Dolphins | E180: 10 | F180: 6 | G180: 43.5 | H180: Visiting Team | I180: Underdog | J180: Visiting Team | K180: Underdog | L180: No | M180: Yes | N180: - | O180: - | P180: Under | Q180: 3 | R180: 10 | S180: 13
A181: 2010-12-05 | B181: Jacksonville Jaguars | C181: 17 | D181: Tennessee Titans | E181: 6 | F181: 3 | G181: 43.5 | H181: Visiting Team | I181: Underdog | J181: Visiting Team | K181: Underdog | L181: No | M181: Yes | N181: - | O181: - | P181: Under | Q181: 11 | R181: 6 | S181: 17
A182: 2010-12-05 | B182: Denver Broncos | C182: 6 | D182: Kansas City Chiefs | E182: 10 | F182: 8 | G182: 48.5 | H182: Home Team | I182: Favorite | J182: Visiting Team | K182: Underdog | L182: No | M182: Yes | N182: - | O182: - | P182: Under | Q182: 4 | R182: 6 | S182: 10
A183: 2010-12-05 | B183: Washington Redskins | C183: 7 | D183: New York Giants | E183: 31 | F183: 7.5 | G183: 43 | H183: Home Team | I183: Favorite | J183: Home Team | K183: Favorite | L183: Yes | M183: No | N183: - | O183: - | P183: Under | Q183: 24 | R183: 7 | S183: 31
A184: 2010-12-05 | B184: Chicago Bears | C184: 24 | D184: Detroit Lions | E184: 20 | F184: -5.5 | G184: 43.5 | H184: Visiting Team | I184: Favorite | J184: Home Team | K184: Underdog | L184: - | M184: - | N184: Yes | O184: No | P184: Over | Q184: 4 | R184: 20 | S184: 24
A185: 2010-12-05 | B185: San Francisco 49ers | C185: 16 | D185: Green Bay Packers | E185: 34 | F185: 9 | G185: 41 | H185: Home Team | I185: Favorite | J185: Home Team | K185: Favorite | L185: Yes | M185: No | N185: - | O185: - | P185: Over | Q185: 18 | R185: 16 | S185: 34
A186: 2010-12-05 | B186: New Orleans Saints | C186: 34 | D186: Cincinnati Bengals | E186: 30 | F186: -7 | G186: 45.5 | H186: Visiting Team | I186: Favorite | J186: Home Team | K186: Underdog | L186: - | M186: - | N186: Yes | O186: No | P186: Over | Q186: 4 | R186: 30 | S186: 34
A187: 2010-12-05 | B187: Atlanta Falcons | C187: 28 | D187: Tampa Bay Buccaneers | E187: 24 | F187: -3 | G187: 43.5 | H187: Visiting Team | I187: Favorite | J187: Visiting Team | K187: Favorite | L187: - | M187: - | N187: No | O187: Yes | P187: Over | Q187: 4 | R187: 24 | S187: 28
A188: 2010-12-05 | B188: Oakland Raiders | C188: 28 | D188: San Diego Chargers | E188: 13 | F188: 13 | G188: 44.5 | H188: Visiting Team | I188: Underdog | J188: Visiting Team | K188: Underdog | L188: No | M188: Yes | N188: - | O188: - | P188: Under | Q188: 15 | R188: 13 | S188: 28
A189: 2010-12-05 | B189: Carolina Panthers | C189: 14 | D189: Seattle Seahawks | E189: 31 | F189: 5 | G189: 40 | H189: Home Team | I189: Favorite | J189: Home Team | K189: Favorite | L189: Yes | M189: No | N189: - | O189: - | P189: Over | Q189: 17 | R189: 14 | S189: 31
A190: 2010-12-05 | B190: Dallas Cowboys | C190: 38 | D190: Indianapolis Colts | E190: 35 | F190: 5.5 | G190: 48 | H190: Visiting Team | I190: Underdog | J190: Visiting Team | K190: Underdog | L190: No | M190: Yes | N190: - | O190: - | P190: Over | Q190: 3 | R190: 35 | S190: 38
A191: 2010-12-05 | B191: St Louis Rams | C191: 19 | D191: Arizona Cardinals | E191: 6 | F191: -3.5 | G191: 44 | H191: Visiting Team | I191: Favorite | J191: Visiting Team | K191: Favorite | L191: - | M191: - | N191: No | O191: Yes | P191: =IF($C191+$E191=$G191,"Push",IF($C191+$E191>$G191,"Over","Under")) -> Under | Q191: 13 | R191: 6 | S191: 19
A192: 2010-12-05 | B192: Pittsburgh Steelers | C192: 13 | D192: Baltimore Ravens | E192: 10 | F192: 3 | G192: 39 | H192: Visiting Team | I192: Underdog | J192: Visiting Team | K192: Underdog | L192: No | M192: Yes | N192: - | O192: - | P192: Under | Q192: 3 | R192: 10 | S192: 13
A193: 2010-12-06 | B193: New York Jets | C193: 3 | D193: New England Patriots | E193: 45 | F193: 4 | G193: 44.5 | H193: Home Team | I193: Favorite | J193: Home Team | K193: Favorite | L193: Yes | M193: No | N193: - | O193: - | P193: Over | Q193: 42 | R193: 3 | S193: 45
A194: 2010-12-09 | B194: Indianapolis Colts | C194: 30 | D194: Tennessee Titans | E194: 28 | F194: -4 | G194: 44 | H194: Visiting Team | I194: Favorite | J194: =IF($C194+$F194=$E194,"Push",IF($C194+$F194>$E194,"Visiting Team","Home Team")) -> Home Team | K194: Underdog | L194: - | M194: - | N194: Yes | O194: No | P194: Over | Q194: 2 | R194: 28 | S194: 30
A195: 2010-12-12 | B195: Oakland Raiders | C195: 31 | D195: Jacksonville Jaguars | E195: 38 | F195: 3.5 | G195: 41.5 | H195: Home Team | I195: Favorite | J195: Home Team | K195: Favorite | L195: =IF(AND($F195>0,$C195+$F195=$E195),"Push",IF(AND($F195<0,$E195-$F195=$C195),"Push",IF($F195<0,"-",IF(AND($F195>0,$C195+$F195<$E195),"Yes","No")))) -> Yes | M195: =IF(AND($F195>0,$C195+$F195=$E195),"Push",IF(AND($F195<0,$E195-$F195=$C195),"Push",IF($F195<0,"-",IF(AND($F195>0,$C195+$F195>$E195),"Yes","No")))) -> No | N195: =IF(AND($F195>0,$C195+$F195=$E195),"Push",IF(AND($F195<0,$E195-$F195=$C195),"Push",IF($F195>0,"-",IF(AND($F195<0,$C195+$F195<$E195),"Yes","No")))) -> - | O195: =IF(AND($F195>0,$C195+$F195=$E195),"Push",IF(AND($F195<0,$E195-$F195=$C195),"Push",IF($F195>0,"-",IF(AND($F195<0,$C195+$F195>$E195),"Yes","No")))) -> - | P195: Over | Q195: 7 | R195: 31 | S195: 38
A196: 2010-12-12 | B196: Cincinnati Bengals | C196: 7 | D196: Pittsburgh Steelers | E196: 23 | F196: 8 | G196: 39.5 | H196: Home Team | I196: Favorite | J196: Home Team | K196: Favorite | L196: Yes | M196: No | N196: - | O196: - | P196: Under | Q196: 16 | R196: 7 | S196: 23
A197: 2010-12-12 | B197: New England Patriots | C197: 36 | D197: Chicago Bears | E197: 7 | F197: -3 | G197: 37 | H197: Visiting Team | I197: Favorite | J197: Visiting Team | K197: Favorite | L197: - | M197: - | N197: No | O197: Yes | P197: Over | Q197: 29 | R197: =IF(C197<E197, C197+0, E197+0) -> 7 | S197: =IF(E197>C197, E197+0, C197+0) -> 36
A198: 2010-12-12 | B198: Cleveland Browns | C198: 6 | D198: Buffalo Bills | E198: 13 | F198: 0 | G198: 39 | H198: Home Team | I198: FALSE | J198: Home Team | K198: FALSE | L198: No | M198: No | N198: No | O198: No | P198: Under | Q198: =ABS(C198-E198) -> 7 | R198: 6 | S198: 13
A199: 2010-12-12 | B199: Green Bay Packers | C199: 3 | D199: Detroit Lions | E199: 7 | F199: -7 | G199: 46 | H199: Home Team | I199: Underdog | J199: Home Team | K199: Underdog | L199: - | M199: - | N199: Yes | O199: No | P199: Under | Q199: 4 | R199: 3 | S199: 7
A200: 2010-12-12 | B200: Atlanta Falcons | C200: 31 | D200: Carolina Panthers | E200: 10 | F200: -7.5 | G200: 41 | H200: Visiting Team | I200: Favorite | J200: Visiting Team | K200: Favorite | L200: - | M200: - | N200: No | O200: Yes | P200: Push | Q200: 21 | R200: 10 | S200: 31
... 80 more rows

Sheet 2009
A1: Date | B1: Visiting Team | C1: Visitor Score | D1: Home Team | E1: Home Score | F1: Visitor Line | G1: Total Line | H1: Who Won Straight Up? Home or Visitor? | I1: Who Won Straight Up? Fav or Dog? | J1: Who Covered the spread? Home or Visitor? | K1: Who Covered the spread? Fav or Dog? | L1: Home Favorite Covered? | M1: Away Dog Covered? | N1: Home Dog Covered? | O1: Away Favorite Covered? | P1: Total Over or Under | Q1: Score Diff | R1: Loser's Score | S1: Winner's Score
A2: 2009-09-10 | B2: Tennessee Titans | C2: 10 | D2: Pittsburgh Steelers | E2: 13 | F2: 6.5 | G2: 35 | H2: =IF($C2=$E2,"Tie Game",IF($C2>$E2,"Visiting Team","Home Team")) -> Home Team | I2: =IF(AND(F2>0,E2>C2),"Favorite",IF(AND(F2<0,E2>C2),"Underdog",IF(AND(F2<0,E2<C2),"Favorite",IF(AND(F2>0,E2<C2),"Underdog")))) -> Favorite | J2: =IF($C2+$F2=$E2,"Push",IF($C2+$F2>$E2,"Visiting Team","Home Team")) -> Visiting Team | K2: =IF(L2="Yes", "Favorite", IF(O2="Yes", "Favorite", IF(M2 = "Yes", "Underdog", IF(N2 = "Yes", "Underdog",IF(L2 = "Push", "Push"))))) -> Underdog | L2: =IF(AND($F2>0,$C2+$F2=$E2),"Push",IF(AND($F2<0,$E2-$F2=$C2),"Push",IF($F2<0,"-",IF(AND($F2>0,$C2+$F2<$E2),"Yes","No")))) -> No | M2: =IF(AND($F2>0,$C2+$F2=$E2),"Push",IF(AND($F2<0,$E2-$F2=$C2),"Push",IF($F2<0,"-",IF(AND($F2>0,$C2+$F2>$E2),"Yes","No")))) -> Yes | N2: =IF(AND($F2>0,$C2+$F2=$E2),"Push",IF(AND($F2<0,$E2-$F2=$C2),"Push",IF($F2>0,"-",IF(AND($F2<0,$C2+$F2<$E2),"Yes","No")))) -> - | O2: =IF(AND($F2>0,$C2+$F2=$E2),"Push",IF(AND($F2<0,$E2-$F2=$C2),"Push",IF($F2>0,"-",IF(AND($F2<0,$C2+$F2>$E2),"Yes","No")))) -> - | P2: =IF($C2+$E2=$G2,"Push",IF($C2+$E2>$G2,"Over","Under")) -> Under | Q2: =ABS(C2-E2) -> 3 | R2: =IF(C2<E2, C2+0, E2+0) -> 10 | S2: =IF(E2>C2, E2+0, C2+0) -> 13
A3: 2009-09-13 | B3: Miami Dolphins | C3: 7 | D3: Atlanta Falcons | E3: 19 | F3: 4 | G3: 44.5 | H3: Home Team | I3: Favorite | J3: Home Team | K3: Favorite | L3: =IF(AND($F3>0,$C3+$F3=$E3),"Push",IF(AND($F3<0,$E3-$F3=$C3),"Push",IF($F3<0,"-",IF(AND($F3>0,$C3+$F3<$E3),"Yes","No")))) -> Yes | M3: =IF(AND($F3>0,$C3+$F3=$E3),"Push",IF(AND($F3<0,$E3-$F3=$C3),"Push",IF($F3<0,"-",IF(AND($F3>0,$C3+$F3>$E3),"Yes","No")))) -> No | N3: =IF(AND($F3>0,$C3+$F3=$E3),"Push",IF(AND($F3<0,$E3-$F3=$C3),"Push",IF($F3>0,"-",IF(AND($F3<0,$C3+$F3<$E3),"Yes","No")))) -> - | O3: =IF(AND($F3>0,$C3+$F3=$E3),"Push",IF(AND($F3<0,$E3-$F3=$C3),"Push",IF($F3>0,"-",IF(AND($F3<0,$C3+$F3>$E3),"Yes","No")))) -> - | P3: Under | Q3: =ABS(C3-E3) -> 12 | R3: =IF(C3<E3, C3+0, E3+0) -> 7 | S3: =IF(E3>C3, E3+0, C3+0) -> 19
A4: 2009-09-13 | B4: Kansas City Chiefs | C4: 24 | D4: Baltimore Ravens | E4: 38 | F4: 13 | G4: 36.5 | H4: Home Team | I4: Favorite | J4: Home Team | K4: Favorite | L4: Yes | M4: No | N4: - | O4: - | P4: Over | Q4: =ABS(C4-E4) -> 14 | R4: =IF(C4<E4, C4+0, E4+0) -> 24 | S4: =IF(E4>C4, E4+0, C4+0) -> 38
A5: 2009-09-13 | B5: Philadelphia Eagles | C5: 38 | D5: Carolina Panthers | E5: 10 | F5: -2.5 | G5: 43.5 | H5: Visiting Team | I5: Favorite | J5: Visiting Team | K5: Favorite | L5: - | M5: - | N5: No | O5: Yes | P5: Over | Q5: =ABS(C5-E5) -> 28 | R5: =IF(C5<E5, C5+0, E5+0) -> 10 | S5: =IF(E5>C5, E5+0, C5+0) -> 38
A6: 2009-09-13 | B6: Denver Broncos | C6: 12 | D6: Cincinnati Bengals | E6: 7 | F6: 5 | G6: 41 | H6: Visiting Team | I6: Underdog | J6: Visiting Team | K6: Underdog | L6: No | M6: Yes | N6: - | O6: - | P6: Under | Q6: =ABS(C6-E6) -> 5 | R6: 7 | S6: 12
A7: 2009-09-13 | B7: Minnesota Vikings | C7: 34 | D7: Cleveland Browns | E7: 20 | F7: -4.5 | G7: 40 | H7: Visiting Team | I7: Favorite | J7: Visiting Team | K7: Favorite | L7: - | M7: - | N7: No | O7: Yes | P7: Over | Q7: 14 | R7: 20 | S7: 34
A8: 2009-09-13 | B8: New York Jets | C8: 24 | D8: Houston Texans | E8: 7 | F8: 4.5 | G8: 45 | H8: Visiting Team | I8: Underdog | J8: Visiting Team | K8: Underdog | L8: No | M8: Yes | N8: - | O8: - | P8: Under | Q8: 17 | R8: 7 | S8: 24
A9: 2009-09-13 | B9: Jacksonville Jaguars | C9: 12 | D9: Indianapolis Colts | E9: 14 | F9: 6 | G9: 45 | H9: Home Team | I9: Favorite | J9: Visiting Team | K9: Underdog | L9: No | M9: Yes | N9: - | O9: - | P9: Under | Q9: 2 | R9: 12 | S9: 14
A10: 2009-09-13 | B10: Detroit Lions | C10: 27 | D10: New Orleans Saints | E10: 45 | F10: 14 | G10: 50 | H10: Home Team | I10: Favorite | J10: Home Team | K10: Favorite | L10: Yes | M10: No | N10: - | O10: - | P10: Over | Q10: 18 | R10: 27 | S10: 45
A11: 2009-09-13 | B11: Dallas Cowboys | C11: 34 | D11: Tampa Bay Buccaneers | E11: 21 | F11: -5 | G11: 40 | H11: Visiting Team | I11: Favorite | J11: Visiting Team | K11: Favorite | L11: - | M11: - | N11: No | O11: Yes | P11: Over | Q11: 13 | R11: 21 | S11: 34
A12: 2009-09-13 | B12: San Francisco 49ers | C12: 20 | D12: Arizona Cardinals | E12: 16 | F12: 4.5 | G12: 45 | H12: Visiting Team | I12: Underdog | J12: Visiting Team | K12: Underdog | L12: No | M12: Yes | N12: - | O12: - | P12: Under | Q12: 4 | R12: 16 | S12: 20
A13: 2009-09-13 | B13: Washington Redskins | C13: 17 | D13: New York Giants | E13: 23 | F13: 6 | G13: 37 | H13: Home Team | I13: =IF(AND(F13>0,E13>C13),"Favorite",IF(AND(F13<0,E13>C13),"Underdog",IF(AND(F13<0,E13<C13),"Favorite",IF(AND(F13>0,E13<C13),"Underdog")))) -> Favorite | J13: Push | K13: Push | L13: Push | M13: Push | N13: Push | O13: Push | P13: Over | Q13: 6 | R13: 17 | S13: 23
A14: 2009-09-13 | B14: St Louis Rams | C14: 0 | D14: Seattle Seahawks | E14: 28 | F14: 7 | G14: 41 | H14: Home Team | I14: =IF(AND(F14>0,E14>C14),"Favorite",IF(AND(F14<0,E14>C14),"Underdog",IF(AND(F14<0,E14<C14),"Favorite",IF(AND(F14>0,E14<C14),"Underdog")))) -> Favorite | J14: Home Team | K14: Favorite | L14: Yes | M14: No | N14: - | O14: - | P14: Under | Q14: 28 | R14: 0 | S14: 28
A15: 2009-09-13 | B15: Chicago Bears | C15: 15 | D15: Green Bay Packers | E15: 21 | F15: 5 | G15: 47 | H15: Home Team | I15: Favorite | J15: Home Team | K15: Favorite | L15: Yes | M15: No | N15: - | O15: - | P15: Under | Q15: 6 | R15: 15 | S15: 21
A16: 2009-09-14 | B16: Buffalo Bills | C16: 24 | D16: New England Patriots | E16: 25 | F16: 13.5 | G16: 47.5 | H16: Home Team | I16: Favorite | J16: Visiting Team | K16: Underdog | L16: No | M16: Yes | N16: - | O16: - | P16: Over | Q16: 1 | R16: 24 | S16: 25
A17: 2009-09-14 | B17: San Diego Chargers | C17: 24 | D17: Oakland Raiders | E17: 20 | F17: -10 | G17: 43 | H17: Visiting Team | I17: Favorite | J17: Home Team | K17: Underdog | L17: - | M17: - | N17: Yes | O17: No | P17: Over | Q17: 4 | R17: 20 | S17: 24
A18: 2009-09-20 | B18: Oakland Raiders | C18: 13 | D18: Kansas City Chiefs | E18: 10 | F18: 1.5 | G18: 40 | H18: Visiting Team | I18: Underdog | J18: Visiting Team | K18: Underdog | L18: No | M18: Yes | N18: - | O18: - | P18: Under | Q18: 3 | R18: 10 | S18: 13
A19: 2009-09-20 | B19: Houston Texans | C19: 34 | D19: Tennessee Titans | E19: 31 | F19: 7 | G19: 40.5 | H19: Visiting Team | I19: Underdog | J19: Visiting Team | K19: Underdog | L19: No | M19: Yes | N19: - | O19: - | P19: Over | Q19: 3 | R19: 31 | S19: 34
A20: 2009-09-20 | B20: New England Patriots | C20: 9 | D20: New York Jets | E20: 16 | F20: -3.5 | G20: 45 | H20: Home Team | I20: Underdog | J20: Home Team | K20: Underdog | L20: - | M20: - | N20: Yes | O20: No | P20: Under | Q20: 7 | R20: 9 | S20: 16
A21: 2009-09-20 | B21: Cincinnati Bengals | C21: 31 | D21: Green Bay Packers | E21: 24 | F21: 7.5 | G21: 42 | H21: Visiting Team | I21: Underdog | J21: Visiting Team | K21: Underdog | L21: No | M21: Yes | N21: - | O21: - | P21: Over | Q21: 7 | R21: 24 | S21: 31
A22: 2009-09-20 | B22: Minnesota Vikings | C22: 27 | D22: Detroit Lions | E22: 13 | F22: -10 | G22: 45 | H22: Visiting Team | I22: Favorite | J22: Visiting Team | K22: Favorite | L22: - | M22: - | N22: No | O22: Yes | P22: Under | Q22: 14 | R22: 13 | S22: 27
A23: 2009-09-20 | B23: New Orleans Saints | C23: 48 | D23: Philadelphia Eagles | E23: 22 | F23: -2.5 | G23: 46 | H23: Visiting Team | I23: Favorite | J23: Visiting Team | K23: =IF(L23="Yes", "Favorite", IF(O23="Yes", "Favorite", IF(M23 = "Yes", "Underdog", IF(N23 = "Yes", "Underdog",IF(L23 = "Push", "Push"))))) -> Favorite | L23: - | M23: - | N23: No | O23: Yes | P23: Over | Q23: 26 | R23: 22 | S23: 48
A24: 2009-09-20 | B24: Carolina Panthers | C24: 20 | D24: Atlanta Falcons | E24: 28 | F24: 5.5 | G24: 43.5 | H24: Home Team | I24: Favorite | J24: Home Team | K24: =IF(L24="Yes", "Favorite", IF(O24="Yes", "Favorite", IF(M24 = "Yes", "Underdog", IF(N24 = "Yes", "Underdog",IF(L24 = "Push", "Push"))))) -> Favorite | L24: Yes | M24: No | N24: - | O24: - | P24: Over | Q24: 8 | R24: 20 | S24: 28
A25: 2009-09-20 | B25: St Louis Rams | C25: 7 | D25: Washington Redskins | E25: 9 | F25: 10 | G25: 37 | H25: Home Team | I25: Favorite | J25: Visiting Team | K25: Underdog | L25: No | M25: Yes | N25: - | O25: - | P25: Under | Q25: 2 | R25: 7 | S25: 9
A26: 2009-09-20 | B26: Arizona Cardinals | C26: 31 | D26: Jacksonville Jaguars | E26: 17 | F26: 3 | G26: 44 | H26: Visiting Team | I26: Underdog | J26: Visiting Team | K26: Underdog | L26: No | M26: Yes | N26: - | O26: - | P26: Over | Q26: 14 | R26: 17 | S26: 31
A27: 2009-09-20 | B27: Seattle Seahawks | C27: 10 | D27: San Francisco 49ers | E27: 23 | F27: 1 | G27: 38.5 | H27: Home Team | I27: Favorite | J27: Home Team | K27: Favorite | L27: Yes | M27: No | N27: - | O27: - | P27: Under | Q27: 13 | R27: 10 | S27: 23
A28: 2009-09-20 | B28: Tampa Bay Buccaneers | C28: 20 | D28: Buffalo Bills | E28: 33 | F28: 4 | G28: 42 | H28: Home Team | I28: Favorite | J28: Home Team | K28: Favorite | L28: Yes | M28: No | N28: - | O28: - | P28: Over | Q28: 13 | R28: 20 | S28: 33
A29: 2009-09-20 | B29: Cleveland Browns | C29: 6 | D29: Denver Broncos | E29: 27 | F29: 3 | G29: 38.5 | H29: Home Team | I29: Favorite | J29: Home Team | K29: Favorite | L29: Yes | M29: No | N29: - | O29: - | P29: Under | Q29: 21 | R29: 6 | S29: 27
A30: 2009-09-20 | B30: Baltimore Ravens | C30: 31 | D30: San Diego Chargers | E30: 26 | F30: 1 | G30: 41 | H30: Visiting Team | I30: Underdog | J30: Visiting Team | K30: Underdog | L30: No | M30: Yes | N30: - | O30: - | P30: Over | Q30: 5 | R30: 26 | S30: 31
A31: 2009-09-20 | B31: Pittsburgh Steelers | C31: 14 | D31: Chicago Bears | E31: 17 | F31: -3 | G31: 38.5 | H31: Home Team | I31: Underdog | J31: Home Team | K31: Underdog | L31: - | M31: - | N31: Yes | O31: No | P31: Under | Q31: 3 | R31: 14 | S31: 17
A32: 2009-09-20 | B32: New York Giants | C32: 33 | D32: Dallas Cowboys | E32: 31 | F32: 3 | G32: 45.5 | H32: Visiting Team | I32: Underdog | J32: Visiting Team | K32: Underdog | L32: No | M32: Yes | N32: - | O32: - | P32: Over | Q32: 2 | R32: 31 | S32: 33
A33: 2009-09-21 | B33: Indianapolis Colts | C33: 27 | D33: Miami Dolphins | E33: 23 | F33: -3 | G33: 41 | H33: Visiting Team | I33: Favorite | J33: Visiting Team | K33: Favorite | L33: - | M33: - | N33: No | O33: Yes | P33: Over | Q33: 4 | R33: 23 | S33: 27
A34: 2009-09-27 | B34: Tennessee Titans | C34: 17 | D34: New York Jets | E34: 24 | F34: 1 | G34: 36 | H34: Home Team | I34: Favorite | J34: Home Team | K34: Favorite | L34: Yes | M34: No | N34: - | O34: - | P34: Over | Q34: 7 | R34: 17 | S34: 24
A35: 2009-09-27 | B35: Jacksonville Jaguars | C35: 31 | D35: Houston Texans | E35: 24 | F35: 4.5 | G35: 47.5 | H35: Visiting Team | I35: Underdog | J35: Visiting Team | K35: Underdog | L35: No | M35: Yes | N35: - | O35: - | P35: Over | Q35: 7 | R35: 24 | S35: 31
A36: 2009-09-27 | B36: Kansas City Chiefs | C36: 14 | D36: Philadelphia Eagles | E36: 34 | F36: 7.5 | G36: 39 | H36: Home Team | I36: Favorite | J36: Home Team | K36: Favorite | L36: Yes | M36: No | N36: - | O36: - | P36: Over | Q36: 20 | R36: 14 | S36: 34
A37: 2009-09-27 | B37: Cleveland Browns | C37: 3 | D37: Baltimore Ravens | E37: 34 | F37: 13.5 | G37: 38.5 | H37: Home Team | I37: Favorite | J37: Home Team | K37: Favorite | L37: Yes | M37: No | N37: - | O37: - | P37: Under | Q37: 31 | R37: 3 | S37: 34
A38: 2009-09-27 | B38: New York Giants | C38: 24 | D38: Tampa Bay Buccaneers | E38: 0 | F38: -6.5 | G38: 46 | H38: Visiting Team | I38: Favorite | J38: Visiting Team | K38: Favorite | L38: - | M38: - | N38: No | O38: Yes | P38: Under | Q38: 24 | R38: 0 | S38: 24
A39: 2009-09-27 | B39: Washington Redskins | C39: 14 | D39: Detroit Lions | E39: 19 | F39: -6 | G39: 39.5 | H39: Home Team | I39: Underdog | J39: Home Team | K39: Underdog | L39: - | M39: - | N39: Yes | O39: No | P39: Under | Q39: 5 | R39: 14 | S39: 19
A40: 2009-09-27 | B40: Green Bay Packers | C40: 36 | D40: St Louis Rams | E40: 17 | F40: -6.5 | G40: 43 | H40: Visiting Team | I40: Favorite | J40: Visiting Team | K40: Favorite | L40: - | M40: - | N40: No | O40: Yes | P40: Over | Q40: 19 | R40: 17 | S40: 36
A41: 2009-09-27 | B41: San Francisco 49ers | C41: 24 | D41: Minnesota Vikings | E41: 27 | F41: 7 | G41: 39.5 | H41: Home Team | I41: Favorite | J41: Visiting Team | K41: Underdog | L41: No | M41: Yes | N41: - | O41: - | P41: Over | Q41: 3 | R41: 24 | S41: 27
A42: 2009-09-27 | B42: Atlanta Falcons | C42: 10 | D42: New England Patriots | E42: 26 | F42: 4.5 | G42: 45.5 | H42: Home Team | I42: Favorite | J42: Home Team | K42: Favorite | L42: Yes | M42: No | N42: - | O42: - | P42: Under | Q42: 16 | R42: 10 | S42: 26
A43: 2009-09-27 | B43: Chicago Bears | C43: 25 | D43: Seattle Seahawks | E43: 19 | F43: -2.5 | G43: 37.5 | H43: Visiting Team | I43: Favorite | J43: Visiting Team | K43: Favorite | L43: - | M43: - | N43: No | O43: Yes | P43: Over | Q43: 6 | R43: 19 | S43: 25
A44: 2009-09-27 | B44: New Orleans Saints | C44: 27 | D44: Buffalo Bills | E44: 7 | F44: -5.5 | G44: 51.5 | H44: Visiting Team | I44: Favorite | J44: Visiting Team | K44: Favorite | L44: - | M44: - | N44: No | O44: Yes | P44: Under | Q44: 20 | R44: 7 | S44: 27
A45: 2009-09-27 | B45: Miami Dolphins | C45: 13 | D45: San Diego Chargers | E45: 23 | F45: 5.5 | G45: 45.5 | H45: Home Team | I45: Favorite | J45: Home Team | K45: Favorite | L45: Yes | M45: No | N45: - | O45: - | P45: Under | Q45: 10 | R45: 13 | S45: 23
A46: 2009-09-27 | B46: Pittsburgh Steelers | C46: 20 | D46: Cincinnati Bengals | E46: 23 | F46: -3.5 | G46: 37 | H46: Home Team | I46: Underdog | J46: Home Team | K46: Underdog | L46: - | M46: - | N46: Yes | O46: No | P46: Over | Q46: 3 | R46: 20 | S46: 23
A47: 2009-09-27 | B47: Denver Broncos | C47: 23 | D47: Oakland Raiders | E47: 3 | F47: -2.5 | G47: 38 | H47: Visiting Team | I47: Favorite | J47: Visiting Team | K47: Favorite | L47: - | M47: - | N47: No | O47: Yes | P47: Under | Q47: 20 | R47: 3 | S47: 23
A48: 2009-09-27 | B48: Indianapolis Colts | C48: 31 | D48: Arizona Cardinals | E48: 10 | F48: 3 | G48: 49 | H48: Visiting Team | I48: Underdog | J48: Visiting Team | K48: Underdog | L48: No | M48: Yes | N48: - | O48: - | P48: Under | Q48: 21 | R48: 10 | S48: 31
A49: 2009-09-28 | B49: Carolina Panthers | C49: 7 | D49: Dallas Cowboys | E49: 21 | F49: 8.5 | G49: 48.5 | H49: Home Team | I49: Favorite | J49: Home Team | K49: Favorite | L49: Yes | M49: No | N49: - | O49: - | P49: Under | Q49: 14 | R49: 7 | S49: 21
A50: 2009-10-04 | B50: Oakland Raiders | C50: 6 | D50: Houston Texans | E50: 29 | F50: 8 | G50: 43 | H50: Home Team | I50: Favorite | J50: Home Team | K50: Favorite | L50: Yes | M50: No | N50: - | O50: - | P50: Under | Q50: 23 | R50: 6 | S50: 29
A51: 2009-10-04 | B51: Tennessee Titans | C51: 17 | D51: Jacksonville Jaguars | E51: 37 | F51: -3.5 | G51: 42 | H51: Home Team | I51: Underdog | J51: Home Team | K51: Underdog | L51: - | M51: - | N51: Yes | O51: No | P51: Over | Q51: 20 | R51: 17 | S51: 37
A52: 2009-10-04 | B52: Baltimore Ravens | C52: 21 | D52: New England Patriots | E52: 27 | F52: 2 | G52: 45 | H52: Home Team | I52: Favorite | J52: Home Team | K52: Favorite | L52: Yes | M52: No | N52: - | O52: - | P52: Over | Q52: 6 | R52: 21 | S52: 27
A53: 2009-10-04 | B53: Cincinnati Bengals | C53: 23 | D53: Cleveland Browns | E53: 20 | F53: -6.5 | G53: 37.5 | H53: Visiting Team | I53: Favorite | J53: Home Team | K53: Underdog | L53: - | M53: - | N53: Yes | O53: No | P53: Over | Q53: 3 | R53: 20 | S53: 23
A54: 2009-10-04 | B54: New York Giants | C54: 27 | D54: Kansas City Chiefs | E54: 16 | F54: -9.5 | G54: 43 | H54: Visiting Team | I54: Favorite | J54: Visiting Team | K54: Favorite | L54: - | M54: - | N54: No | O54: Yes | P54: Push | Q54: 11 | R54: 16 | S54: 27
A55: 2009-10-04 | B55: Detroit Lions | C55: 24 | D55: Chicago Bears | E55: 48 | F55: 9.5 | G55: 43 | H55: Home Team | I55: Favorite | J55: Home Team | K55: Favorite | L55: Yes | M55: No | N55: - | O55: - | P55: Over | Q55: 24 | R55: 24 | S55: 48
A56: 2009-10-04 | B56: Tampa Bay Buccaneers | C56: 13 | D56: Washington Redskins | E56: 16 | F56: 9 | G56: 35.5 | H56: Home Team | I56: Favorite | J56: Visiting Team | K56: Underdog | L56: No | M56: Yes | N56: - | O56: - | P56: Under | Q56: 3 | R56: 13 | S56: 16
A57: 2009-10-04 | B57: Seattle Seahawks | C57: 17 | D57: Indianapolis Colts | E57: 34 | F57: 10.5 | G57: 43.5 | H57: Home Team | I57: Favorite | J57: Home Team | K57: Favorite | L57: Yes | M57: No | N57: - | O57: - | P57: Over | Q57: 17 | R57: 17 | S57: 34
A58: 2009-10-04 | B58: New York Jets | C58: 10 | D58: New Orleans Saints | E58: 24 | F58: 7.5 | G58: 47 | H58: Home Team | I58: Favorite | J58: Home Team | K58: Favorite | L58: Yes | M58: No | N58: - | O58: - | P58: Under | Q58: 14 | R58: 10 | S58: 24
A59: 2009-10-04 | B59: Buffalo Bills | C59: 10 | D59: Miami Dolphins | E59: 38 | F59: 1.5 | G59: 37.5 | H59: Home Team | I59: Favorite | J59: Home Team | K59: Favorite | L59: Yes | M59: No | N59: - | O59: - | P59: Over | Q59: 28 | R59: 10 | S59: 38
A60: 2009-10-04 | B60: St Louis Rams | C60: 0 | D60: San Francisco 49ers | E60: 35 | F60: 9.5 | G60: 36.5 | H60: Home Team | I60: Favorite | J60: Home Team | K60: Favorite | L60: Yes | M60: No | N60: - | O60: - | P60: Under | Q60: 35 | R60: 0 | S60: 35
A61: 2009-10-04 | B61: Dallas Cowboys | C61: 10 | D61: Denver Broncos | E61: 17 | F61: -3 | G61: 44 | H61: Home Team | I61: Underdog | J61: Home Team | K61: Underdog | L61: - | M61: - | N61: Yes | O61: No | P61: =IF($C61+$E61=$G61,"Push",IF($C61+$E61>$G61,"Over","Under")) -> Under | Q61: 7 | R61: 10 | S61: 17
A62: 2009-10-04 | B62: San Diego Chargers | C62: 28 | D62: Pittsburgh Steelers | E62: 38 | F62: 5.5 | G62: 43.5 | H62: Home Team | I62: Favorite | J62: Home Team | K62: Favorite | L62: Yes | M62: No | N62: - | O62: - | P62: =IF($C62+$E62=$G62,"Push",IF($C62+$E62>$G62,"Over","Under")) -> Over | Q62: 10 | R62: 28 | S62: 38
A63: 2009-10-05 | B63: Green Bay Packers | C63: 23 | D63: Minnesota Vikings | E63: 30 | F63: 5 | G63: 46.5 | H63: Home Team | I63: Favorite | J63: Home Team | K63: Favorite | L63: Yes | M63: No | N63: - | O63: - | P63: =IF($C63+$E63=$G63,"Push",IF($C63+$E63>$G63,"Over","Under")) -> Over | Q63: 7 | R63: 23 | S63: 30
A64: 2009-10-11 | B64: Minnesota Vikings | C64: 38 | D64: St Louis Rams | E64: 10 | F64: -10.5 | G64: 41 | H64: Visiting Team | I64: Favorite | J64: Visiting Team | K64: Favorite | L64: - | M64: - | N64: No | O64: Yes | P64: Over | Q64: 28 | R64: 10 | S64: 38
A65: 2009-10-11 | B65: Dallas Cowboys | C65: 26 | D65: Kansas City Chiefs | E65: 20 | F65: -7 | G65: 43.5 | H65: Visiting Team | I65: Favorite | J65: Home Team | K65: Underdog | L65: - | M65: - | N65: Yes | O65: No | P65: Over | Q65: 6 | R65: 20 | S65: 26
A66: 2009-10-11 | B66: Washington Redskins | C66: 17 | D66: Carolina Panthers | E66: 20 | F66: 5.5 | G66: 38 | H66: =IF($C66=$E66,"Tie Game",IF($C66>$E66,"Visiting Team","Home Team")) -> Home Team | I66: Favorite | J66: =IF($C66+$F66=$E66,"Push",IF($C66+$F66>$E66,"Visiting Team","Home Team")) -> Visiting Team | K66: Underdog | L66: No | M66: Yes | N66: - | O66: - | P66: Under | Q66: 3 | R66: 17 | S66: 20
A67: 2009-10-11 | B67: Tampa Bay Buccaneers | C67: 14 | D67: Philadelphia Eagles | E67: 33 | F67: 15.5 | G67: 42 | H67: Home Team | I67: Favorite | J67: Home Team | K67: Favorite | L67: =IF(AND($F67>0,$C67+$F67=$E67),"Push",IF(AND($F67<0,$E67-$F67=$C67),"Push",IF($F67<0,"-",IF(AND($F67>0,$C67+$F67<$E67),"Yes","No")))) -> Yes | M67: =IF(AND($F67>0,$C67+$F67=$E67),"Push",IF(AND($F67<0,$E67-$F67=$C67),"Push",IF($F67<0,"-",IF(AND($F67>0,$C67+$F67>$E67),"Yes","No")))) -> No | N67: =IF(AND($F67>0,$C67+$F67=$E67),"Push",IF(AND($F67<0,$E67-$F67=$C67),"Push",IF($F67>0,"-",IF(AND($F67<0,$C67+$F67<$E67),"Yes","No")))) -> - | O67: =IF(AND($F67>0,$C67+$F67=$E67),"Push",IF(AND($F67<0,$E67-$F67=$C67),"Push",IF($F67>0,"-",IF(AND($F67<0,$C67+$F67>$E67),"Yes","No")))) -> - | P67: Over | Q67: 19 | R67: 14 | S67: 33
A68: 2009-10-11 | B68: Oakland Raiders | C68: 7 | D68: New York Giants | E68: 44 | F68: 15 | G68: 38.5 | H68: Home Team | I68: Favorite | J68: Home Team | K68: Favorite | L68: Yes | M68: No | N68: - | O68: - | P68: Over | Q68: 37 | R68: 7 | S68: 44
A69: 2009-10-11 | B69: Cleveland Browns | C69: 6 | D69: Buffalo Bills | E69: 3 | F69: 5.5 | G69: 42 | H69: Visiting Team | I69: Underdog | J69: Visiting Team | K69: Underdog | L69: No | M69: Yes | N69: - | O69: - | P69: Under | Q69: 3 | R69: =IF(C69<E69, C69+0, E69+0) -> 3 | S69: =IF(E69>C69, E69+0, C69+0) -> 6
A70: 2009-10-11 | B70: Cincinnati Bengals | C70: 17 | D70: Baltimore Ravens | E70: 14 | F70: 9 | G70: 42.5 | H70: Visiting Team | I70: Underdog | J70: Visiting Team | K70: Underdog | L70: No | M70: Yes | N70: - | O70: - | P70: Under | Q70: =ABS(C70-E70) -> 3 | R70: 14 | S70: 17
A71: 2009-10-11 | B71: Pittsburgh Steelers | C71: 28 | D71: Detroit Lions | E71: 20 | F71: -11 | G71: 44 | H71: Visiting Team | I71: Favorite | J71: Home Team | K71: Underdog | L71: - | M71: - | N71: Yes | O71: No | P71: Over | Q71: 8 | R71: 20 | S71: 28
A72: 2009-10-11 | B72: Atlanta Falcons | C72: 45 | D72: San Francisco 49ers | E72: 10 | F72: 1 | G72: 39.5 | H72: Visiting Team | I72: Underdog | J72: Visiting Team | K72: Underdog | L72: No | M72: Yes | N72: - | O72: - | P72: Over | Q72: 35 | R72: 10 | S72: 45
A73: 2009-10-11 | B73: New England Patriots | C73: 17 | D73: Denver Broncos | E73: 20 | F73: -3 | G73: 41.5 | H73: Home Team | I73: Underdog | J73: Home Team | K73: Underdog | L73: - | M73: - | N73: Yes | O73: No | P73: Under | Q73: 3 | R73: 17 | S73: 20
A74: 2009-10-11 | B74: Houston Texans | C74: 21 | D74: Arizona Cardinals | E74: 28 | F74: 6 | G74: 51 | H74: Home Team | I74: Favorite | J74: Home Team | K74: Favorite | L74: Yes | M74: No | N74: - | O74: - | P74: Under | Q74: 7 | R74: 21 | S74: 28
A75: 2009-10-11 | B75: Jacksonville Jaguars | C75: 0 | D75: Seattle Seahawks | E75: 41 | F75: 2 | G75: 44.5 | H75: =IF($C75=$E75,"Tie Game",IF($C75>$E75,"Visiting Team","Home Team")) -> Home Team | I75: Favorite | J75: Home Team | K75: Favorite | L75: Yes | M75: No | N75: - | O75: - | P75: Under | Q75: 41 | R75: 0 | S75: 41
A76: 2009-10-11 | B76: Indianapolis Colts | C76: 31 | D76: Tennessee Titans | E76: 9 | F76: -3.5 | G76: 44 | H76: =IF($C76=$E76,"Tie Game",IF($C76>$E76,"Visiting Team","Home Team")) -> Visiting Team | I76: Favorite | J76: Visiting Team | K76: Favorite | L76: - | M76: - | N76: No | O76: Yes | P76: Under | Q76: 22 | R76: 9 | S76: 31
A77: 2009-10-12 | B77: New York Jets | C77: 27 | D77: Miami Dolphins | E77: 31 | F77: -3 | G77: 36.5 | H77: Home Team | I77: Underdog | J77: Home Team | K77: Underdog | L77: - | M77: - | N77: Yes | O77: No | P77: Over | Q77: 4 | R77: 27 | S77: 31
A78: 2009-10-18 | B78: Kansas City Chiefs | C78: 14 | D78: Washington Redskins | E78: 6 | F78: 6.5 | G78: 36.5 | H78: Visiting Team | I78: =IF(AND(F78>0,E78>C78),"Favorite",IF(AND(F78<0,E78>C78),"Underdog",IF(AND(F78<0,E78<C78),"Favorite",IF(AND(F78>0,E78<C78),"Underdog")))) -> Underdog | J78: Visiting Team | K78: Underdog | L78: No | M78: Yes | N78: - | O78: - | P78: Under | Q78: 8 | R78: 6 | S78: 14
A79: 2009-10-18 | B79: Houston Texans | C79: 28 | D79: Cincinnati Bengals | E79: 17 | F79: 3.5 | G79: 46.5 | H79: Visiting Team | I79: Underdog | J79: Visiting Team | K79: Underdog | L79: No | M79: Yes | N79: - | O79: - | P79: Under | Q79: 11 | R79: 17 | S79: 28
A80: 2009-10-18 | B80: Cleveland Browns | C80: 14 | D80: Pittsburgh Steelers | E80: 27 | F80: 14 | G80: 38 | H80: Home Team | I80: Favorite | J80: Visiting Team | K80: Underdog | L80: No | M80: Yes | N80: - | O80: - | P80: Over | Q80: 13 | R80: 14 | S80: 27
A81: 2009-10-18 | B81: Baltimore Ravens | C81: 31 | D81: Minnesota Vikings | E81: 33 | F81: 3 | G81: 45.5 | H81: Home Team | I81: Favorite | J81: Visiting Team | K81: Underdog | L81: No | M81: Yes | N81: - | O81: - | P81: Over | Q81: 2 | R81: 31 | S81: 33
A82: 2009-10-18 | B82: St Louis Rams | C82: 20 | D82: Jacksonville Jaguars | E82: 23 | F82: 9.5 | G82: 42.5 | H82: Home Team | I82: Favorite | J82: Visiting Team | K82: Underdog | L82: No | M82: Yes | N82: - | O82: - | P82: Over | Q82: 3 | R82: 20 | S82: 23
A83: 2009-10-18 | B83: New York Giants | C83: 27 | D83: New Orleans Saints | E83: 48 | F83: 3 | G83: 47.5 | H83: Home Team | I83: Favorite | J83: Home Team | K83: Favorite | L83: Yes | M83: No | N83: - | O83: - | P83: Over | Q83: 21 | R83: 27 | S83: 48
A84: 2009-10-18 | B84: Carolina Panthers | C84: 28 | D84: Tampa Bay Buccaneers | E84: 21 | F84: -3 | G84: 40.5 | H84: Visiting Team | I84: Favorite | J84: Visiting Team | K84: Favorite | L84: - | M84: - | N84: No | O84: Yes | P84: Over | Q84: 7 | R84: 21 | S84: 28
A85: 2009-10-18 | B85: Detroit Lions | C85: 0 | D85: Green Bay Packers | E85: 26 | F85: 14 | G85: 48 | H85: Home Team | I85: Favorite | J85: Home Team | K85: Favorite | L85: Yes | M85: No | N85: - | O85: - | P85: Under | Q85: 26 | R85: 0 | S85: 26
A86: 2009-10-18 | B86: Philadelphia Eagles | C86: 9 | D86: Oakland Raiders | E86: 13 | F86: -14 | G86: 40.5 | H86: Home Team | I86: Underdog | J86: Home Team | K86: Underdog | L86: - | M86: - | N86: Yes | O86: No | P86: Under | Q86: 4 | R86: 9 | S86: 13
A87: 2009-10-18 | B87: Arizona Cardinals | C87: 27 | D87: Seattle Seahawks | E87: 3 | F87: 3 | G87: 46 | H87: Visiting Team | I87: Underdog | J87: Visiting Team | K87: Underdog | L87: No | M87: Yes | N87: - | O87: - | P87: Under | Q87: 24 | R87: 3 | S87: 27
A88: 2009-10-18 | B88: Buffalo Bills | C88: 16 | D88: New York Jets | E88: 13 | F88: 9.5 | G88: 35.5 | H88: Visiting Team | I88: Underdog | J88: Visiting Team | K88: =IF(L88="Yes", "Favorite", IF(O88="Yes", "Favorite", IF(M88 = "Yes", "Underdog", IF(N88 = "Yes", "Underdog",IF(L88 = "Push", "Push"))))) -> Underdog | L88: No | M88: Yes | N88: - | O88: - | P88: Under | Q88: =ABS(C88-E88) -> 3 | R88: 13 | S88: 16
A89: 2009-10-18 | B89: Tennessee Titans | C89: 0 | D89: New England Patriots | E89: 59 | F89: 9 | G89: 37.5 | H89: Home Team | I89: Favorite | J89: Home Team | K89: Favorite | L89: Yes | M89: No | N89: - | O89: - | P89: Over | Q89: 59 | R89: 0 | S89: 59
A90: 2009-10-18 | B90: Chicago Bears | C90: 14 | D90: Atlanta Falcons | E90: 21 | F90: 3.5 | G90: 45.5 | H90: Home Team | I90: Favorite | J90: Home Team | K90: Favorite | L90: Yes | M90: No | N90: - | O90: - | P90: Under | Q90: 7 | R90: 14 | S90: 21
A91: 2009-10-19 | B91: Denver Broncos | C91: 34 | D91: San Diego Chargers | E91: 23 | F91: 3.5 | G91: 45 | H91: Visiting Team | I91: Underdog | J91: Visiting Team | K91: Underdog | L91: No | M91: Yes | N91: - | O91: - | P91: Over | Q91: 11 | R91: 23 | S91: 34
A92: 2009-10-25 | B92: San Diego Chargers | C92: 37 | D92: Kansas City Chiefs | E92: 7 | F92: -5.5 | G92: 44 | H92: Visiting Team | I92: Favorite | J92: Visiting Team | K92: Favorite | L92: - | M92: - | N92: No | O92: Yes | P92: Push | Q92: 30 | R92: 7 | S92: 37
A93: 2009-10-25 | B93: Indianapolis Colts | C93: 42 | D93: St Louis Rams | E93: 6 | F93: -14.5 | G93: 45 | H93: Visiting Team | I93: Favorite | J93: Visiting Team | K93: Favorite | L93: - | M93: - | N93: No | O93: Yes | P93: Over | Q93: 36 | R93: 6 | S93: 42
A94: 2009-10-25 | B94: Chicago Bears | C94: 10 | D94: Cincinnati Bengals | E94: 45 | F94: -2 | G94: 43 | H94: Home Team | I94: Underdog | J94: Home Team | K94: Underdog | L94: - | M94: - | N94: Yes | O94: No | P94: Over | Q94: 35 | R94: 10 | S94: 45
A95: 2009-10-25 | B95: Green Bay Packers | C95: 31 | D95: Cleveland Browns | E95: 3 | F95: -9 | G95: 41.5 | H95: Visiting Team | I95: Favorite | J95: Visiting Team | K95: Favorite | L95: - | M95: - | N95: No | O95: Yes | P95: Under | Q95: 28 | R95: 3 | S95: 31
A96: 2009-10-25 | B96: Minnesota Vikings | C96: 17 | D96: Pittsburgh Steelers | E96: 27 | F96: 6 | G96: 46.5 | H96: Home Team | I96: Favorite | J96: Home Team | K96: Favorite | L96: Yes | M96: No | N96: - | O96: - | P96: Under | Q96: 10 | R96: 17 | S96: 27
A97: 2009-10-25 | B97: New England Patriots | C97: 35 | D97: Tampa Bay Buccaneers | E97: 7 | F97: -15.5 | G97: 44.5 | H97: Visiting Team | I97: Favorite | J97: Visiting Team | K97: Favorite | L97: - | M97: - | N97: No | O97: Yes | P97: Under | Q97: 28 | R97: 7 | S97: 35
A98: 2009-10-25 | B98: San Francisco 49ers | C98: 21 | D98: Houston Texans | E98: 24 | F98: 3 | G98: 44.5 | H98: Home Team | I98: Favorite | J98: Push | K98: Push | L98: Push | M98: Push | N98: Push | O98: Push | P98: Over | Q98: 3 | R98: 21 | S98: 24
A99: 2009-10-25 | B99: New York Jets | C99: 38 | D99: Oakland Raiders | E99: 0 | F99: -6 | G99: 34 | H99: Visiting Team | I99: Favorite | J99: Visiting Team | K99: Favorite | L99: - | M99: - | N99: No | O99: Yes | P99: Over | Q99: 38 | R99: 0 | S99: 38
A100: 2009-10-25 | B100: Buffalo Bills | C100: 20 | D100: Carolina Panthers | E100: 9 | F100: 7 | G100: 37 | H100: Visiting Team | I100: Underdog | J100: Visiting Team | K100: Underdog | L100: No | M100: Yes | N100: - | O100: - | P100: Under | Q100: 11 | R100: 9 | S100: 20
A101: 2009-10-25 | B101: New Orleans Saints | C101: 46 | D101: Miami Dolphins | E101: 34 | F101: -6.5 | G101: 48 | H101: Visiting Team | I101: Favorite | J101: Visiting Team | K101: Favorite | L101: - | M101: - | N101: No | O101: Yes | P101: Over | Q101: 12 | R101: 34 | S101: 46
A102: 2009-10-25 | B102: Atlanta Falcons | C102: 21 | D102: Dallas Cowboys | E102: 37 | F102: 5 | G102: 48 | H102: Home Team | I102: Favorite | J102: Home Team | K102: Favorite | L102: Yes | M102: No | N102: - | O102: - | P102: Over | Q102: 16 | R102: 21 | S102: 37
A103: 2009-10-25 | B103: Arizona Cardinals | C103: 24 | D103: New York Giants | E103: 17 | F103: 8 | G103: 47 | H103: Visiting Team | I103: Underdog | J103: Visiting Team | K103: Underdog | L103: No | M103: Yes | N103: - | O103: - | P103: Under | Q103: 7 | R103: 17 | S103: 24
A104: 2009-10-26 | B104: Philadelphia Eagles | C104: 27 | D104: Washington Redskins | E104: 17 | F104: -9 | G104: 38 | H104: Visiting Team | I104: Favorite | J104: Visiting Team | K104: Favorite | L104: - | M104: - | N104: No | O104: Yes | P104: Over | Q104: 10 | R104: 17 | S104: 27
A105: 2009-11-01 | B105: Denver Broncos | C105: 7 | D105: Baltimore Ravens | E105: 30 | F105: 3.5 | G105: 42 | H105: Home Team | I105: Favorite | J105: Home Team | K105: Favorite | L105: Yes | M105: No | N105: - | O105: - | P105: Under | Q105: 23 | R105: 7 | S105: 30
A106: 2009-11-01 | B106: Cleveland Browns | C106: 6 | D106: Chicago Bears | E106: 30 | F106: 13.5 | G106: 40 | H106: Home Team | I106: Favorite | J106: Home Team | K106: Favorite | L106: Yes | M106: No | N106: - | O106: - | P106: Under | Q106: 24 | R106: 6 | S106: 30
A107: 2009-11-01 | B107: Houston Texans | C107: 31 | D107: Buffalo Bills | E107: 10 | F107: -3.5 | G107: 41.5 | H107: Visiting Team | I107: Favorite | J107: Visiting Team | K107: Favorite | L107: - | M107: - | N107: No | O107: Yes | P107: Under | Q107: 21 | R107: 10 | S107: 31
A108: 2009-11-01 | B108: Minnesota Vikings | C108: 38 | D108: Green Bay Packers | E108: 26 | F108: 3 | G108: 47 | H108: Visiting Team | I108: Underdog | J108: Visiting Team | K108: Underdog | L108: No | M108: Yes | N108: - | O108: - | P108: Over | Q108: 12 | R108: 26 | S108: 38
A109: 2009-11-01 | B109: San Francisco 49ers | C109: 14 | D109: Indianapolis Colts | E109: 18 | F109: 13.5 | G109: 44.5 | H109: Home Team | I109: Favorite | J109: Visiting Team | K109: Underdog | L109: No | M109: Yes | N109: - | O109: - | P109: Under | Q109: 4 | R109: 14 | S109: 18
A110: 2009-11-01 | B110: Miami Dolphins | C110: 30 | D110: New York Jets | E110: 25 | F110: 3.5 | G110: 40.5 | H110: Visiting Team | I110: Underdog | J110: Visiting Team | K110: Underdog | L110: No | M110: Yes | N110: - | O110: - | P110: Over | Q110: 5 | R110: 25 | S110: 30
A111: 2009-11-01 | B111: St Louis Rams | C111: 17 | D111: Detroit Lions | E111: 10 | F111: 4 | G111: 43.5 | H111: Visiting Team | I111: Underdog | J111: Visiting Team | K111: Underdog | L111: No | M111: Yes | N111: - | O111: - | P111: Under | Q111: 7 | R111: 10 | S111: 17
A112: 2009-11-01 | B112: Seattle Seahawks | C112: 17 | D112: Dallas Cowboys | E112: 38 | F112: 9.5 | G112: 46 | H112: Home Team | I112: Favorite | J112: Home Team | K112: Favorite | L112: Yes | M112: No | N112: - | O112: - | P112: Over | Q112: 21 | R112: 17 | S112: 38
A113: 2009-11-01 | B113: Oakland Raiders | C113: 16 | D113: San Diego Chargers | E113: 24 | F113: 16.5 | G113: 41.5 | H113: Home Team | I113: Favorite | J113: Visiting Team | K113: Underdog | L113: No | M113: Yes | N113: - | O113: - | P113: Under | Q113: 8 | R113: 16 | S113: 24
A114: 2009-11-01 | B114: Jacksonville Jaguars | C114: 13 | D114: Tennessee Titans | E114: 30 | F114: 3 | G114: 44.5 | H114: Home Team | I114: Favorite | J114: Home Team | K114: Favorite | L114: Yes | M114: No | N114: - | O114: - | P114: Under | Q114: 17 | R114: 13 | S114: 30
A115: 2009-11-01 | B115: Carolina Panthers | C115: 34 | D115: Arizona Cardinals | E115: 21 | F115: 10 | G115: 41 | H115: Visiting Team | I115: Underdog | J115: Visiting Team | K115: Underdog | L115: No | M115: Yes | N115: - | O115: - | P115: Over | Q115: 13 | R115: 21 | S115: 34
A116: 2009-11-01 | B116: New York Giants | C116: 17 | D116: Philadelphia Eagles | E116: 40 | F116: -1 | G116: 44.5 | H116: Home Team | I116: Underdog | J116: Home Team | K116: Underdog | L116: - | M116: - | N116: Yes | O116: No | P116: Over | Q116: 23 | R116: 17 | S116: 40
A117: 2009-11-02 | B117: Atlanta Falcons | C117: 27 | D117: New Orleans Saints | E117: 35 | F117: 12 | G117: 56 | H117: Home Team | I117: Favorite | J117: Visiting Team | K117: Underdog | L117: No | M117: Yes | N117: - | O117: - | P117: Over | Q117: 8 | R117: 27 | S117: 35
A118: 2009-11-08 | B118: Kansas City Chiefs | C118: 21 | D118: Jacksonville Jaguars | E118: 24 | F118: 7 | G118: 41.5 | H118: Home Team | I118: Favorite | J118: Visiting Team | K118: Underdog | L118: No | M118: Yes | N118: - | O118: - | P118: Over | Q118: 3 | R118: 21 | S118: 24
A119: 2009-11-08 | B119: Baltimore Ravens | C119: 7 | D119: Cincinnati Bengals | E119: 17 | F119: -3 | G119: 44.5 | H119: Home Team | I119: Underdog | J119: Home Team | K119: Underdog | L119: - | M119: - | N119: Yes | O119: No | P119: Under | Q119: 10 | R119: 7 | S119: 17
A120: 2009-11-08 | B120: Houston Texans | C120: 17 | D120: Indianapolis Colts | E120: 20 | F120: 8.5 | G120: 49.5 | H120: Home Team | I120: Favorite | J120: Visiting Team | K120: Underdog | L120: No | M120: Yes | N120: - | O120: - | P120: Under | Q120: 3 | R120: 17 | S120: 20
A121: 2009-11-08 | B121: Washington Redskins | C121: 17 | D121: Atlanta Falcons | E121: 31 | F121: 9 | G121: 41 | H121: Home Team | I121: Favorite | J121: Home Team | K121: Favorite | L121: Yes | M121: No | N121: - | O121: - | P121: Over | Q121: 14 | R121: 17 | S121: 31
A122: 2009-11-08 | B122: Green Bay Packers | C122: 28 | D122: Tampa Bay Buccaneers | E122: 38 | F122: -9.5 | G122: 43.5 | H122: Home Team | I122: Underdog | J122: Home Team | K122: Underdog | L122: - | M122: - | N122: Yes | O122: No | P122: Over | Q122: 10 | R122: 28 | S122: 38
A123: 2009-11-08 | B123: Arizona Cardinals | C123: 41 | D123: Chicago Bears | E123: 21 | F123: 3 | G123: 44.5 | H123: Visiting Team | I123: Underdog | J123: Visiting Team | K123: Underdog | L123: No | M123: Yes | N123: - | O123: - | P123: Over | Q123: 20 | R123: 21 | S123: 41
A124: 2009-11-08 | B124: Miami Dolphins | C124: 17 | D124: New England Patriots | E124: 27 | F124: 10.5 | G124: 46.5 | H124: Home Team | I124: Favorite | J124: Visiting Team | K124: Underdog | L124: No | M124: Yes | N124: - | O124: - | P124: Under | Q124: 10 | R124: 17 | S124: 27
A125: 2009-11-08 | B125: Carolina Panthers | C125: 20 | D125: New Orleans Saints | E125: 30 | F125: 13 | G125: 51.5 | H125: Home Team | I125: Favorite | J125: Visiting Team | K125: Underdog | L125: No | M125: Yes | N125: - | O125: - | P125: Under | Q125: 10 | R125: 20 | S125: 30
A126: 2009-11-08 | B126: Detroit Lions | C126: 20 | D126: Seattle Seahawks | E126: 32 | F126: 10 | G126: 42 | H126: Home Team | I126: Favorite | J126: Home Team | K126: Favorite | L126: Yes | M126: No | N126: - | O126: - | P126: Over | Q126: 12 | R126: 20 | S126: 32
A127: 2009-11-08 | B127: Tennessee Titans | C127: 34 | D127: San Francisco 49ers | E127: 27 | F127: 4 | G127: 40.5 | H127: Visiting Team | I127: Underdog | J127: Visiting Team | K127: Underdog | L127: No | M127: Yes | N127: - | O127: - | P127: =IF($C127+$E127=$G127,"Push",IF($C127+$E127>$G127,"Over","Under")) -> Over | Q127: 7 | R127: 27 | S127: 34
A128: 2009-11-08 | B128: San Diego Chargers | C128: 21 | D128: New York Giants | E128: 20 | F128: 4.5 | G128: 48 | H128: Visiting Team | I128: Underdog | J128: Visiting Team | K128: Underdog | L128: No | M128: Yes | N128: - | O128: - | P128: Under | Q128: 1 | R128: 20 | S128: 21
A129: 2009-11-08 | B129: Dallas Cowboys | C129: 20 | D129: Philadelphia Eagles | E129: 16 | F129: 3 | G129: 50 | H129: Visiting Team | I129: Underdog | J129: Visiting Team | K129: Underdog | L129: No | M129: Yes | N129: - | O129: - | P129: Under | Q129: 4 | R129: 16 | S129: 20
A130: 2009-11-09 | B130: Pittsburgh Steelers | C130: 28 | D130: Denver Broncos | E130: 10 | F130: -3 | G130: 41.5 | H130: Visiting Team | I130: Favorite | J130: =IF($C130+$F130=$E130,"Push",IF($C130+$F130>$E130,"Visiting Team","Home Team")) -> Visiting Team | K130: Favorite | L130: - | M130: - | N130: No | O130: Yes | P130: Under | Q130: 18 | R130: 10 | S130: 28
A131: 2009-11-12 | B131: Chicago Bears | C131: 6 | D131: San Francisco 49ers | E131: 10 | F131: 3 | G131: 43.5 | H131: Home Team | I131: Favorite | J131: Home Team | K131: Favorite | L131: =IF(AND($F131>0,$C131+$F131=$E131),"Push",IF(AND($F131<0,$E131-$F131=$C131),"Push",IF($F131<0,"-",IF(AND($F131>0,$C131+$F131<$E131),"Yes","No")))) -> Yes | M131: =IF(AND($F131>0,$C131+$F131=$E131),"Push",IF(AND($F131<0,$E131-$F131=$C131),"Push",IF($F131<0,"-",IF(AND($F131>0,$C131+$F131>$E131),"Yes","No")))) -> No | N131: =IF(AND($F131>0,$C131+$F131=$E131),"Push",IF(AND($F131<0,$E131-$F131=$C131),"Push",IF($F131>0,"-",IF(AND($F131<0,$C131+$F131<$E131),"Yes","No")))) -> - | O131: =IF(AND($F131>0,$C131+$F131=$E131),"Push",IF(AND($F131<0,$E131-$F131=$C131),"Push",IF($F131>0,"-",IF(AND($F131<0,$C131+$F131>$E131),"Yes","No")))) -> - | P131: Under | Q131: 4 | R131: 6 | S131: 10
A132: 2009-11-15 | B132: Jacksonville Jaguars | C132: 24 | D132: New York Jets | E132: 22 | F132: 6.5 | G132: 41 | H132: Visiting Team | I132: Underdog | J132: Visiting Team | K132: Underdog | L132: No | M132: Yes | N132: - | O132: - | P132: Over | Q132: 2 | R132: 22 | S132: 24
A133: 2009-11-15 | B133: Denver Broncos | C133: 17 | D133: Washington Redskins | E133: 27 | F133: -3.5 | G133: 36.5 | H133: Home Team | I133: Underdog | J133: Home Team | K133: Underdog | L133: - | M133: - | N133: Yes | O133: No | P133: Over | Q133: 10 | R133: =IF(C133<E133, C133+0, E133+0) -> 17 | S133: =IF(E133>C133, E133+0, C133+0) -> 27
A134: 2009-11-15 | B134: Cincinnati Bengals | C134: 18 | D134: Pittsburgh Steelers | E134: 12 | F134: 6.5 | G134: 41.5 | H134: Visiting Team | I134: Underdog | J134: Visiting Team | K134: Underdog | L134: No | M134: Yes | N134: - | O134: - | P134: Under | Q134: =ABS(C134-E134) -> 6 | R134: 12 | S134: 18
A135: 2009-11-15 | B135: Buffalo Bills | C135: 17 | D135: Tennessee Titans | E135: 41 | F135: 7.5 | G135: 41 | H135: Home Team | I135: Favorite | J135: Home Team | K135: Favorite | L135: Yes | M135: No | N135: - | O135: - | P135: Over | Q135: 24 | R135: 17 | S135: 41
A136: 2009-11-15 | B136: Detroit Lions | C136: 10 | D136: Minnesota Vikings | E136: 27 | F136: 17 | G136: 47.5 | H136: Home Team | I136: Favorite | J136: Push | K136: Push | L136: Push | M136: Push | N136: Push | O136: Push | P136: Under | Q136: 17 | R136: 10 | S136: 27
A137: 2009-11-15 | B137: New Orleans Saints | C137: 28 | D137: St Louis Rams | E137: 23 | F137: -14.5 | G137: 51 | H137: Visiting Team | I137: Favorite | J137: Home Team | K137: Underdog | L137: - | M137: - | N137: Yes | O137: No | P137: Push | Q137: 5 | R137: 23 | S137: 28
A138: 2009-11-15 | B138: Atlanta Falcons | C138: 19 | D138: Carolina Panthers | E138: 28 | F138: -1 | G138: 43.5 | H138: Home Team | I138: Underdog | J138: Home Team | K138: Underdog | L138: - | M138: - | N138: Yes | O138: No | P138: Over | Q138: 9 | R138: 19 | S138: 28
A139: 2009-11-15 | B139: Tampa Bay Buccaneers | C139: 23 | D139: Miami Dolphins | E139: 25 | F139: 10 | G139: 43.5 | H139: Home Team | I139: Favorite | J139: Visiting Team | K139: Underdog | L139: No | M139: Yes | N139: - | O139: - | P139: Over | Q139: 2 | R139: 23 | S139: 25
A140: 2009-11-15 | B140: Kansas City Chiefs | C140: 16 | D140: Oakland Raiders | E140: 10 | F140: 2.5 | G140: 36 | H140: =IF($C140=$E140,"Tie Game",IF($C140>$E140,"Visiting Team","Home Team")) -> Visiting Team | I140: Underdog | J140: Visiting Team | K140: Underdog | L140: No | M140: Yes | N140: - | O140: - | P140: Under | Q140: 6 | R140: 10 | S140: 16
A141: 2009-11-15 | B141: Seattle Seahawks | C141: 20 | D141: Arizona Cardinals | E141: 31 | F141: 8.5 | G141: 46.5 | H141: Home Team | I141: Favorite | J141: Home Team | K141: Favorite | L141: Yes | M141: No | N141: - | O141: - | P141: Over | Q141: 11 | R141: 20 | S141: 31
A142: 2009-11-15 | B142: Philadelphia Eagles | C142: 23 | D142: San Diego Chargers | E142: 31 | F142: 1.5 | G142: 47 | H142: Home Team | I142: =IF(AND(F142>0,E142>C142),"Favorite",IF(AND(F142<0,E142>C142),"Underdog",IF(AND(F142<0,E142<C142),"Favorite",IF(AND(F142>0,E142<C142),"Underdog")))) -> Favorite | J142: Home Team | K142: Favorite | L142: Yes | M142: No | N142: - | O142: - | P142: Over | Q142: 8 | R142: 23 | S142: 31
A143: 2009-11-15 | B143: Dallas Cowboys | C143: 7 | D143: Green Bay Packers | E143: 17 | F143: -3 | G143: 48 | H143: Home Team | I143: Underdog | J143: Home Team | K143: Underdog | L143: - | M143: - | N143: Yes | O143: No | P143: Under | Q143: 10 | R143: 7 | S143: 17
A144: 2009-11-15 | B144: New England Patriots | C144: 34 | D144: Indianapolis Colts | E144: 35 | F144: 1.5 | G144: 48.5 | H144: Home Team | I144: Favorite | J144: Visiting Team | K144: Underdog | L144: No | M144: Yes | N144: - | O144: - | P144: Over | Q144: 1 | R144: 34 | S144: 35
A145: 2009-11-16 | B145: Baltimore Ravens | C145: 16 | D145: Cleveland Browns | E145: 0 | F145: -11 | G145: 39 | H145: Visiting Team | I145: Favorite | J145: Visiting Team | K145: Favorite | L145: - | M145: - | N145: No | O145: Yes | P145: Under | Q145: 16 | R145: 0 | S145: 16
A146: 2009-11-19 | B146: Miami Dolphins | C146: 24 | D146: Carolina Panthers | E146: 17 | F146: 3.5 | G146: 42 | H146: Visiting Team | I146: Underdog | J146: Visiting Team | K146: Underdog | L146: No | M146: Yes | N146: - | O146: - | P146: Under | Q146: 7 | R146: 17 | S146: 24
A147: 2009-11-22 | B147: Cleveland Browns | C147: 37 | D147: Detroit Lions | E147: 38 | F147: 3 | G147: 37.5 | H147: Home Team | I147: Favorite | J147: Visiting Team | K147: Underdog | L147: No | M147: Yes | N147: - | O147: - | P147: Over | Q147: 1 | R147: 37 | S147: 38
A148: 2009-11-22 | B148: Buffalo Bills | C148: 15 | D148: Jacksonville Jaguars | E148: 18 | F148: 8.5 | G148: 41 | H148: Home Team | I148: Favorite | J148: Visiting Team | K148: Underdog | L148: No | M148: Yes | N148: - | O148: - | P148: Under | Q148: 3 | R148: 15 | S148: 18
A149: 2009-11-22 | B149: Pittsburgh Steelers | C149: 24 | D149: Kansas City Chiefs | E149: 27 | F149: -11.5 | G149: 39.5 | H149: Home Team | I149: Underdog | J149: Home Team | K149: Underdog | L149: - | M149: - | N149: Yes | O149: No | P149: Over | Q149: 3 | R149: 24 | S149: 27
A150: 2009-11-22 | B150: Indianapolis Colts | C150: 17 | D150: Baltimore Ravens | E150: 15 | F150: -1.5 | G150: 44.5 | H150: Visiting Team | I150: Favorite | J150: Visiting Team | K150: Favorite | L150: - | M150: - | N150: No | O150: Yes | P150: Under | Q150: 2 | R150: 15 | S150: 17
A151: 2009-11-22 | B151: Atlanta Falcons | C151: 31 | D151: New York Giants | E151: 34 | F151: 7 | G151: 46.5 | H151: Home Team | I151: Favorite | J151: Visiting Team | K151: Underdog | L151: No | M151: Yes | N151: - | O151: - | P151: Over | Q151: 3 | R151: 31 | S151: 34
A152: 2009-11-22 | B152: San Francisco 49ers | C152: 24 | D152: Green Bay Packers | E152: 30 | F152: 6 | G152: 42 | H152: Home Team | I152: Favorite | J152: Push | K152: =IF(L152="Yes", "Favorite", IF(O152="Yes", "Favorite", IF(M152 = "Yes", "Underdog", IF(N152 = "Yes", "Underdog",IF(L152 = "Push", "Push"))))) -> Push | L152: Push | M152: Push | N152: Push | O152: Push | P152: Over | Q152: 6 | R152: 24 | S152: 30
A153: 2009-11-22 | B153: Seattle Seahawks | C153: 9 | D153: Minnesota Vikings | E153: 35 | F153: 11 | G153: 47 | H153: Home Team | I153: Favorite | J153: Home Team | K153: Favorite | L153: Yes | M153: No | N153: - | O153: - | P153: Under | Q153: 26 | R153: 9 | S153: 35
A154: 2009-11-22 | B154: Washington Redskins | C154: 6 | D154: Dallas Cowboys | E154: 7 | F154: 10.5 | G154: 41.5 | H154: Home Team | I154: Favorite | J154: Visiting Team | K154: Underdog | L154: No | M154: Yes | N154: - | O154: - | P154: Under | Q154: 1 | R154: 6 | S154: 7
A155: 2009-11-22 | B155: New Orleans Saints | C155: 38 | D155: Tampa Bay Buccaneers | E155: 7 | F155: -10.5 | G155: 51 | H155: Visiting Team | I155: Favorite | J155: Visiting Team | K155: Favorite | L155: - | M155: - | N155: No | O155: Yes | P155: Under | Q155: 31 | R155: 7 | S155: 38
A156: 2009-11-22 | B156: Arizona Cardinals | C156: 21 | D156: St Louis Rams | E156: 13 | F156: -9 | G156: 47 | H156: Visiting Team | I156: Favorite | J156: Home Team | K156: Underdog | L156: - | M156: - | N156: Yes | O156: No | P156: Under | Q156: 8 | R156: 13 | S156: 21
A157: 2009-11-22 | B157: New York Jets | C157: 14 | D157: New England Patriots | E157: 31 | F157: 11 | G157: 45 | H157: Home Team | I157: Favorite | J157: Home Team | K157: Favorite | L157: Yes | M157: No | N157: - | O157: - | P157: Push | Q157: 17 | R157: 14 | S157: 31
A158: 2009-11-22 | B158: Cincinnati Bengals | C158: 17 | D158: Oakland Raiders | E158: 20 | F158: -8.5 | G158: 36 | H158: Home Team | I158: Underdog | J158: Home Team | K158: Underdog | L158: - | M158: - | N158: Yes | O158: No | P158: Over | Q158: 3 | R158: 17 | S158: 20
A159: 2009-11-22 | B159: San Diego Chargers | C159: 32 | D159: Denver Broncos | E159: 3 | F159: -6 | G159: 42 | H159: Visiting Team | I159: Favorite | J159: Visiting Team | K159: Favorite | L159: - | M159: - | N159: No | O159: Yes | P159: Under | Q159: 29 | R159: 3 | S159: 32
A160: 2009-11-22 | B160: Philadelphia Eagles | C160: 24 | D160: Chicago Bears | E160: 20 | F160: -3.5 | G160: 47 | H160: Visiting Team | I160: Favorite | J160: Visiting Team | K160: Favorite | L160: - | M160: - | N160: No | O160: Yes | P160: Under | Q160: 4 | R160: 20 | S160: 24
A161: 2009-11-23 | B161: Tennessee Titans | C161: 20 | D161: Houston Texans | E161: 17 | F161: 3.5 | G161: 48 | H161: Visiting Team | I161: Underdog | J161: Visiting Team | K161: Underdog | L161: No | M161: Yes | N161: - | O161: - | P161: Under | Q161: 3 | R161: 17 | S161: 20
A162: 2009-11-26 | B162: Green Bay Packers | C162: 34 | D162: Detroit Lions | E162: 12 | F162: -11.5 | G162: 48 | H162: Visiting Team | I162: Favorite | J162: Visiting Team | K162: Favorite | L162: - | M162: - | N162: No | O162: Yes | P162: Under | Q162: 22 | R162: 12 | S162: 34
A163: 2009-11-26 | B163: Oakland Raiders | C163: 7 | D163: Dallas Cowboys | E163: 24 | F163: 13.5 | G163: 40.5 | H163: Home Team | I163: Favorite | J163: Home Team | K163: Favorite | L163: Yes | M163: No | N163: - | O163: - | P163: Under | Q163: 17 | R163: 7 | S163: 24
A164: 2009-11-26 | B164: New York Giants | C164: 6 | D164: Denver Broncos | E164: 26 | F164: -4.5 | G164: 43.5 | H164: Home Team | I164: Underdog | J164: Home Team | K164: Underdog | L164: - | M164: - | N164: Yes | O164: No | P164: Under | Q164: 20 | R164: 6 | S164: 26
A165: 2009-11-29 | B165: Indianapolis Colts | C165: 35 | D165: Houston Texans | E165: 27 | F165: -3 | G165: 48 | H165: Visiting Team | I165: Favorite | J165: Visiting Team | K165: Favorite | L165: - | M165: - | N165: No | O165: Yes | P165: Over | Q165: 8 | R165: 27 | S165: 35
A166: 2009-11-29 | B166: Cleveland Browns | C166: 7 | D166: Cincinnati Bengals | E166: 16 | F166: 12 | G166: 39.5 | H166: Home Team | I166: Favorite | J166: Visiting Team | K166: Underdog | L166: No | M166: Yes | N166: - | O166: - | P166: Under | Q166: 9 | R166: 7 | S166: 16
A167: 2009-11-29 | B167: Chicago Bears | C167: 10 | D167: Minnesota Vikings | E167: 36 | F167: 10 | G167: 47 | H167: Home Team | I167: Favorite | J167: Home Team | K167: Favorite | L167: Yes | M167: No | N167: - | O167: - | P167: Under | Q167: 26 | R167: 10 | S167: 36
A168: 2009-11-29 | B168: Washington Redskins | C168: 24 | D168: Philadelphia Eagles | E168: 27 | F168: 10 | G168: 40.5 | H168: Home Team | I168: Favorite | J168: Visiting Team | K168: Underdog | L168: No | M168: Yes | N168: - | O168: - | P168: Over | Q168: 3 | R168: 24 | S168: 27
A169: 2009-11-29 | B169: Miami Dolphins | C169: 14 | D169: Buffalo Bills | E169: 31 | F169: -3.5 | G169: 38.5 | H169: Home Team | I169: Underdog | J169: Home Team | K169: Underdog | L169: - | M169: - | N169: Yes | O169: No | P169: Over | Q169: 17 | R169: 14 | S169: 31
A170: 2009-11-29 | B170: Arizona Cardinals | C170: 17 | D170: Tennessee Titans | E170: 20 | F170: 2 | G170: 45.5 | H170: Home Team | I170: Favorite | J170: Home Team | K170: Favorite | L170: Yes | M170: No | N170: - | O170: - | P170: Under | Q170: 3 | R170: 17 | S170: 20
A171: 2009-11-29 | B171: Seattle Seahawks | C171: 27 | D171: St Louis Rams | E171: 17 | F171: -3.5 | G171: 42.5 | H171: Visiting Team | I171: Favorite | J171: Visiting Team | K171: Favorite | L171: - | M171: - | N171: No | O171: Yes | P171: Over | Q171: 10 | R171: 17 | S171: 27
A172: 2009-11-29 | B172: Tampa Bay Buccaneers | C172: 17 | D172: Atlanta Falcons | E172: 20 | F172: 12.5 | G172: 46 | H172: Home Team | I172: Favorite | J172: Visiting Team | K172: Underdog | L172: No | M172: Yes | N172: - | O172: - | P172: Under | Q172: 3 | R172: 17 | S172: 20
A173: 2009-11-29 | B173: Carolina Panthers | C173: 6 | D173: New York Jets | E173: 17 | F173: 3.5 | G173: 41.5 | H173: Home Team | I173: Favorite | J173: Home Team | K173: Favorite | L173: Yes | M173: No | N173: - | O173: - | P173: Under | Q173: 11 | R173: 6 | S173: 17
